{"text_format":"1","workbook":"xlsx","n_sheets":5,"sheets":["CÉDULA","DATOS","MPO","LOCAL","Hoja5"],"not_rendered":{"charts":0,"images":0,"macros":1,"external_links":0,"defined_names":12,"comments":0,"pivot_tables":0},"unopened":[],"bounds":{"document_bytes":16777216,"sheet_cells":100000,"rows_first":2000,"rows_last":500,"rows_between":2000,"halvings":0,"cell_chars":16384,"cell_head_chars":4096},"cells_cut":0,"cells_raw":0,"read":"whole","date_system":"1900"}

{"sheet":"CÉDULA","index":0,"n_rows":72,"n_cols":20,"rows_kept":72,"cut":false,"hidden":false,"merged":[[0,1,0,6],[22,2,26,4],[27,2,27,4]]}
[null,"ANEXO II. CÉDULA"]
[]
[null,"I. Generales"]
[]
[]
[null,null,"Nombre de la obra de infraestructura:"]
[]
[]
[]
[null,null,"Entidad Federativa:",null,{"$f":"VLOOKUP(D10,DATOS!$B$3:$C$4,2,FALSE)&\"_\"","v":{"$error":"#N/A"}}]
[]
[null,null,"Municipio:",null,{"$f":"VLOOKUP(D12,DATOS!G3:H2459,2,FALSE)&\"_\"","v":{"$error":"#N/A"}}]
[]
[null,null,"Localidad:"]
[]
[null,null,"Monto de inversión (IVA incluido):"]
[]
[]
[]
[null,"II. Croquis de localización"]
[]
[]
[]
[]
[]
[]
[]
[]
[]
[]
[null,"III. Servicios básicos"]
[]
[]
[null,null,null,null,"Seleccione"]
[null,null,"¿Se cuenta con los servicios básicos necesarios para la realización de la obra?",null,"SÍ"]
[null,null,null,null,"No"]
[]
[]
[]
[null,"IV. Metas físicas y periodo de ejecución (exclusivamente para pavimentaciones)"]
[]
[]
[null,null,"A) Metas físicas para pavimentación de calles"]
[]
[null,null,"Tipo de pavimentación ",null,null,null,null,null,null,null,"Seleccione",null,"Seleccione",null,null,null,null,null,null,"Seleccione"]
[]
[null,null,"Área",null,"metros cuadrados",null,null,null,null,null,"Concreto hidráulico",null,"Primaria",null,null,null,null,null,null,"Sí"]
[]
[null,null,"Tipo de vialidad",null,null,null,null,null,null,null,"Cemento asfáltico",null,"Secundaria",null,null,null,null,null,null,"No"]
[]
[null,null,"Banquetas",null,null,null,null,null,null,null,null,null,"Terciaria"]
[]
[null,null,"B) Periodo de ejecución"]
[]
[null,null,"Meses",null,"número"]
[]
[]
[]
[]
[]
[null,"V. Datos de contacto"]
[]
[]
[null,null,"A. Datos del presidente municipal"]
[]
[null,null,"Nombre completo (nombre, apellido paterno y materno):"]
[]
[null,null,"Correo electrónico:"]
[]
[null,null,"Dirección"]
[]
[null,null,"Teléfono:"]

{"sheet":"DATOS","index":1,"n_rows":279658,"n_cols":15,"rows_kept":4500,"cut":true,"hidden":true,"merged":[],"bounds":{"rows_first":2000,"rows_last":500,"rows_between":2000,"halvings":0}}
["CVE_ENT","NOM_ENT",null,null,"CVE_ENT","CVE_MUN","NOM_MUN",null,null,"CVE_ENT","CVE_MUN","CVE_LOC","NOM_LOC"]
[null,"SELECCIONE","AUX 1",null,null,null,"SELECCIONE",null,null,null,null,null,"SELECCIONE"]
[4,"Campeche","EDO4",null,4,2,"Campeche","MPO23",{"$f":"$J3&$K3&$L3","v":"541"},5,4,1,"Arteaga",null,{"$f":"con","v":{"$error":"#NAME?"}}]
[27,"Tabasco","EDO27",null,4,3,"Carmen","MPO24","544",5,4,4,"El Alambre"]
[null,null,null,null,27,2,"Cárdenas","MPO1963","545",5,4,5,"Los Álamos"]
[null,null,null,null,27,3,"Centla","MPO1964","547",5,4,7,"Artesillas"]
[null,null,null,null,27,4,"Centro","MPO1965","5411",5,4,11,"La Biznaga"]
[null,null,null,null,27,5,"Comalcalco","MPO1966","5412",5,4,12,"Buena Vista"]
[null,null,null,null,27,8,"Huimanguillo","MPO1969","5413",5,4,13,"Buenavista de la Roja"]
[null,null,null,null,27,12,"Macuspana","MPO1973","5414",5,4,14,"Buenos Aires"]
[null,null,null,null,27,14,"Paraíso","MPO1975","5417",5,4,17,"Cañón del Buey (Cañón el Buey)"]
[null,null,null,null,null,null,null,null,"5419",5,4,19,"El Carmen (Las Vigas)"]
[null,null,null,null,null,null,null,null,"5420",5,4,20,"El Carmen"]
[null,null,null,null,null,null,null,null,"5423",5,4,23,"La Casa de la Madera"]
[null,null,null,null,null,null,null,null,"5425",5,4,25,"El Cedrito"]
[null,null,null,null,null,null,null,null,"5426",5,4,26,"Ciénega de la Purísima"]
[null,null,null,null,null,null,null,null,"5427",5,4,27,"La Cieneguita"]
[null,null,null,null,null,null,null,null,"5428",5,4,28,"Paola (El Ciprés) [Granja]"]
[null,null,null,null,null,null,null,null,"5430",5,4,30,"El Condado Uno"]
[null,null,null,null,null,null,null,null,"5431",5,4,31,"Las Copetonas"]
[null,null,null,null,null,null,null,null,"5432",5,4,32,"La Bety (La Querencia)"]
[null,null,null,null,null,null,null,null,"5433",5,4,33,"La Coyotera (Cortijo la Coyotera)"]
[null,null,null,null,null,null,null,null,"5434",5,4,34,"Las Cuatro Milpas"]
[null,null,null,null,null,null,null,null,"5437",5,4,37,"El Chaparral"]
[null,null,null,null,null,null,null,null,"5438",5,4,38,"Chapultepec (Chapul)"]
[null,null,null,null,null,null,null,null,"5440",5,4,40,"Las Delicias"]
[null,null,null,null,null,null,null,null,"5441",5,4,41,"El Derramadero"]
[null,null,null,null,null,null,null,null,"5442",5,4,42,"El Desmonte"]
[null,null,null,null,null,null,null,null,"5443",5,4,43,"El Diamante"]
[null,null,null,null,null,null,null,null,"5444",5,4,44,"El Dieciocho de Marzo (El Dieciocho)"]
[null,null,null,null,null,null,null,null,"5445",5,4,45,"La Efigenia"]
[null,null,null,null,null,null,null,null,"5446",5,4,46,"Emiliano Zapata"]
[null,null,null,null,null,null,null,null,"5447",5,4,47,"Escobedo"]
[null,null,null,null,null,null,null,null,"5451",5,4,51,"Las Galeras"]
[null,null,null,null,null,null,null,null,"5452",5,4,52,"Guadalupe"]
[null,null,null,null,null,null,null,null,"5453",5,4,53,"Guadalupe (Ultimagua)"]
[null,null,null,null,null,null,null,null,"5454",5,4,54,"Huachichil (El Huache)"]
[null,null,null,null,null,null,null,null,"5455",5,4,55,"Jame"]
[null,null,null,null,null,null,null,null,"5457",5,4,57,"Viento de Paz Uno (La Leona)"]
[null,null,null,null,null,null,null,null,"5458",5,4,58,"Libertad"]
[null,null,null,null,null,null,null,null,"5461",5,4,61,"Los Lirios"]
[null,null,null,null,null,null,null,null,"5463",5,4,63,"Los Llanos"]
[null,null,null,null,null,null,null,null,"5464",5,4,64,"Las Mangas"]
[null,null,null,null,null,null,null,null,"5466",5,4,66,"La Maroma"]
[null,null,null,null,null,null,null,null,"5467",5,4,67,"Martinillos Dos"]
[null,null,null,null,null,null,null,null,"5468",5,4,68,"Mesa de las Tablas"]
[null,null,null,null,null,null,null,null,"5469",5,4,69,"El Milagro"]
[null,null,null,null,null,null,null,null,"5470",5,4,70,"El Milagro"]
[null,null,null,null,null,null,null,null,"5471",5,4,71,"Los Ranchitos (Cuatro Milpas)"]
[null,null,null,null,null,null,null,null,"5472",5,4,72,"Las Norias (Norias de Buena Vista)"]
[null,null,null,null,null,null,null,null,"5473",5,4,73,"Nuncio"]
[null,null,null,null,null,null,null,null,"5474",5,4,74,"Fraccionamiento el Oasis"]
[null,null,null,null,null,null,null,null,"5475",5,4,75,"Ojo de Agua"]
[null,null,null,null,null,null,null,null,"5476",5,4,76,"Las Palanganas"]
[null,null,null,null,null,null,null,null,"5480",5,4,80,"Las Placetas"]
[null,null,null,null,null,null,null,null,"5481",5,4,81,"Las Playas"]
[null,null,null,null,null,null,null,null,"5482",5,4,82,"El Poleo"]
[null,null,null,null,null,null,null,null,"5485",5,4,85,"El Porvenir"]
[null,null,null,null,null,null,null,null,"5486",5,4,86,"El Porvenir"]
[null,null,null,null,null,null,null,null,"5487",5,4,87,"Potrero de Ábrego"]
[null,null,null,null,null,null,null,null,"5488",5,4,88,"La Presa"]
[null,null,null,null,null,null,null,null,"5489",5,4,89,"Primer Llano (Tres Hermanos)"]
[null,null,null,null,null,null,null,null,"5492",5,4,92,"La Purísima (Las Golondrinas)"]
[null,null,null,null,null,null,null,null,"5493",5,4,93,"Los Quelites"]
[null,null,null,null,null,null,null,null,"5495",5,4,95,"Piedra Blanca (El Ranchito)"]
[null,null,null,null,null,null,null,null,"5496",5,4,96,"Rancho Nuevo"]
[null,null,null,null,null,null,null,null,{"$f":"$J67&$K67&$L67","v":"5497"},5,4,97,"La Esmeralda"]
[null,null,null,null,null,null,null,null,"5498",5,4,98,"Rancho Viejo"]
[null,null,null,null,null,null,null,null,"54100",5,4,100,"La Reforma"]
[null,null,null,null,null,null,null,null,"54101",5,4,101,"Refugio de la Roja (El Refugio)"]
[null,null,null,null,null,null,null,null,"54102",5,4,102,"Los Ranchitos"]
[null,null,null,null,null,null,null,null,"54103",5,4,103,"La Rodada"]
[null,null,null,null,null,null,null,null,"54104",5,4,104,"La Rosita"]
[null,null,null,null,null,null,null,null,"54105",5,4,105,"San Andrés"]
[null,null,null,null,null,null,null,null,"54107",5,4,107,"San Antonio de las Alazanas"]
[null,null,null,null,null,null,null,null,"54110",5,4,110,"San Felipe"]
[null,null,null,null,null,null,null,null,"54111",5,4,111,"San Francisco"]
[null,null,null,null,null,null,null,null,"54113",5,4,113,"San Ignacio de Abajo"]
[null,null,null,null,null,null,null,null,"54114",5,4,114,"San Ignacio de Arriba"]
[null,null,null,null,null,null,null,null,"54117",5,4,117,"San Juan de los Dolores"]
[null,null,null,null,null,null,null,null,"54118",5,4,118,"San Juanito (San Juanito de los Valdez)"]
[null,null,null,null,null,null,null,null,"54119",5,4,119,"San Lorenzo"]
[null,null,null,null,null,null,null,null,"54120",5,4,120,"San Pedro"]
[null,null,null,null,null,null,null,null,"54121",5,4,121,"San Rafael de la Roja"]
[null,null,null,null,null,null,null,null,"54123",5,4,123,"San Ramón"]
[null,null,null,null,null,null,null,null,"54124",5,4,124,"Santa Amalia"]
[null,null,null,null,null,null,null,null,"54125",5,4,125,"Santa Anita"]
[null,null,null,null,null,null,null,null,"54127",5,4,127,"Santa Rita"]
[null,null,null,null,null,null,null,null,"54129",5,4,129,"San Vicente"]
[null,null,null,null,null,null,null,null,"54131",5,4,131,"El Saucillo de Abajo"]
[null,null,null,null,null,null,null,null,"54137",5,4,137,"La Soledad"]
[null,null,null,null,null,null,null,null,"54139",5,4,139,"San Francisco del Taray (El Taray)"]
[null,null,null,null,null,null,null,null,"54140",5,4,140,"El Taray (El Taray Uno)"]
[null,null,null,null,null,null,null,null,"54141",5,4,141,"Los Tarihuanes"]
[null,null,null,null,null,null,null,null,"54143",5,4,143,"Tierras Prietas"]
[null,null,null,null,null,null,null,null,"54144",5,4,144,"La Tosca"]
[null,null,null,null,null,null,null,null,"54145",5,4,145,"El Tunal"]
[null,null,null,null,null,null,null,null,"54147",5,4,147,"Veracruz"]
[null,null,null,null,null,null,null,null,"54148",5,4,148,"La Virgen"]
[null,null,null,null,null,null,null,null,"54149",5,4,149,"Zaragoza"]
[null,null,null,null,null,null,null,null,"54150",5,4,150,"Agua Blanca"]
[null,null,null,null,null,null,null,null,"54151",5,4,151,"El Aguajito de Adentro"]
[null,null,null,null,null,null,null,null,"54152",5,4,152,"El Aguajito de Afuera"]
[null,null,null,null,null,null,null,null,"54155",5,4,155,"Los Ángeles"]
[null,null,null,null,null,null,null,null,"54158",5,4,158,"El Arbolito"]
[null,null,null,null,null,null,null,null,"54159",5,4,159,"Los Aromos"]
[null,null,null,null,null,null,null,null,"54160",5,4,160,"Los Arbolitos"]
[null,null,null,null,null,null,null,null,"54162",5,4,162,"El Baratillo"]
[null,null,null,null,null,null,null,null,"54164",5,4,164,"El Alto del Encinado Jabalí (Las Galeras)"]
[null,null,null,null,null,null,null,null,"54165",5,4,165,"El Capulín"]
[null,null,null,null,null,null,null,null,"54166",5,4,166,"El Capulín"]
[null,null,null,null,null,null,null,null,"54168",5,4,168,"Santa Fe"]
[null,null,null,null,null,null,null,null,"54169",5,4,169,"La Ciruela"]
[null,null,null,null,null,null,null,null,"54170",5,4,170,"Los Cedritos"]
[null,null,null,null,null,null,null,null,"54171",5,4,171,"Manuel Sánchez Sánchez (Punta de la Loma)"]
[null,null,null,null,null,null,null,null,"54172",5,4,172,"El Cerrito"]
[null,null,null,null,null,null,null,null,"54173",5,4,173,"La Colorada (Ultimagua)"]
[null,null,null,null,null,null,null,null,"54174",5,4,174,"El Coyote"]
[null,null,null,null,null,null,null,null,"54175",5,4,175,"El Cristal"]
[null,null,null,null,null,null,null,null,"54176",5,4,176,"La Cruz"]
[null,null,null,null,null,null,null,null,"54177",5,4,177,"Las Cuevas"]
[null,null,null,null,null,null,null,null,"54178",5,4,178,"Cuevecillas (Cuevecillas Dos)"]
[null,null,null,null,null,null,null,null,"54179",5,4,179,"Las Cuestecitas"]
[null,null,null,null,null,null,null,null,"54180",5,4,180,"Las Cumbres"]
[null,null,null,null,null,null,null,null,"54182",5,4,182,"El Chagoyo"]
[null,null,null,null,null,null,null,null,"54183",5,4,183,"El Segurito"]
[null,null,null,null,null,null,null,null,"54184",5,4,184,"El Águila Real"]
[null,null,null,null,null,null,null,null,"54188",5,4,188,"La Floreña"]
[null,null,null,null,null,null,null,null,"54189",5,4,189,"El Cascajal"]
[null,null,null,null,null,null,null,null,"54190",5,4,190,"La Montaña (La Gloria)"]
[null,null,null,null,null,null,null,null,{"$f":"$J131&$K131&$L131","v":"54191"},5,4,191,"Santa Isabel [Granja]"]
[null,null,null,null,null,null,null,null,"54192",5,4,192,"Los Laureles"]
[null,null,null,null,null,null,null,null,"54195",5,4,195,"Guadalupe"]
[null,null,null,null,null,null,null,null,"54196",5,4,196,"La Haciendita"]
[null,null,null,null,null,null,null,null,"54198",5,4,198,"El Hondable"]
[null,null,null,null,null,null,null,null,"54199",5,4,199,"La Herradura"]
[null,null,null,null,null,null,null,null,"54200",5,4,200,"El 3 V"]
[null,null,null,null,null,null,null,null,"54202",5,4,202,"Laguna Seca (Los Ranchitos)"]
[null,null,null,null,null,null,null,null,"54203",5,4,203,"Lontananza"]
[null,null,null,null,null,null,null,null,"54204",5,4,204,"La Luz (Pinos Altos)"]
[null,null,null,null,null,null,null,null,"54206",5,4,206,"Los Llanitos"]
[null,null,null,null,null,null,null,null,"54207",5,4,207,"Los Magueyes"]
[null,null,null,null,null,null,null,null,"54208",5,4,208,"Maravillas"]
[null,null,null,null,null,null,null,null,"54209",5,4,209,"Martinillos Uno"]
[null,null,null,null,null,null,null,null,"54210",5,4,210,"El Mezquite"]
[null,null,null,null,null,null,null,null,"54211",5,4,211,"El Mimbral"]
[null,null,null,null,null,null,null,null,"54213",5,4,213,"El Mirador"]
[null,null,null,null,null,null,null,null,"54214",5,4,214,"El Mogote"]
[null,null,null,null,null,null,null,null,"54216",5,4,216,"La Morita"]
[null,null,null,null,null,null,null,null,"54217",5,4,217,"Las Tres Marías (El Muerto)"]
[null,null,null,null,null,null,null,null,"54218",5,4,218,"Las Norias"]
[null,null,null,null,null,null,null,null,"54219",5,4,219,"La Purísima"]
[null,null,null,null,null,null,null,null,"54220",5,4,220,"Jesús María (Ojo Negro)"]
[null,null,null,null,null,null,null,null,"54221",5,4,221,"Ojo de Mula (Agua de Mula)"]
[null,null,null,null,null,null,null,null,"54222",5,4,222,"El Olvido"]
[null,null,null,null,null,null,null,null,"54223",5,4,223,"Juan Salas Rodríguez"]
[null,null,null,null,null,null,null,null,"54224",5,4,224,"El Retoño"]
[null,null,null,null,null,null,null,null,"54225",5,4,225,"La Puerta de la Casita"]
[null,null,null,null,null,null,null,null,"54226",5,4,226,"La Presa"]
[null,null,null,null,null,null,null,null,"54227",5,4,227,"La Papelera"]
[null,null,null,null,null,null,null,null,"54228",5,4,228,"Palo de Agua"]
[null,null,null,null,null,null,null,null,"54229",5,4,229,"Concepción del Álamo (Punta de la Loma)"]
[null,null,null,null,null,null,null,null,"54230",5,4,230,"Los Dos Javieres"]
[null,null,null,null,null,null,null,null,"54231",5,4,231,"El Pinar"]
[null,null,null,null,null,null,null,null,"54232",5,4,232,"La Ponderosa"]
[null,null,null,null,null,null,null,null,"54233",5,4,233,"El Pino de la Cruz"]
[null,null,null,null,null,null,null,null,"54234",5,4,234,"Puerto San Juan de Dolores"]
[null,null,null,null,null,null,null,null,"54236",5,4,236,"La Pinalosa"]
[null,null,null,null,null,null,null,null,"54239",5,4,239,"Pino Gacho"]
[null,null,null,null,null,null,null,null,"54240",5,4,240,"La Palma"]
[null,null,null,null,null,null,null,null,"54241",5,4,241,"El Puerto de la Cruz"]
[null,null,null,null,null,null,null,null,"54242",5,4,242,"Potrerillos"]
[null,null,null,null,null,null,null,null,"54243",5,4,243,"La Placeta (La Placeta de los Árboles)"]
[null,null,null,null,null,null,null,null,"54244",5,4,244,"Los Pozos"]
[null,null,null,null,null,null,null,null,"54246",5,4,246,"El Pino"]
[null,null,null,null,null,null,null,null,"54247",5,4,247,"El Puerto"]
[null,null,null,null,null,null,null,null,"54248",5,4,248,"El Ranchito"]
[null,null,null,null,null,null,null,null,"54250",5,4,250,"El Recreo"]
[null,null,null,null,null,null,null,null,"54252",5,4,252,"El Rincón de los Pinos"]
[null,null,null,null,null,null,null,null,"54253",5,4,253,"El Roble"]
[null,null,null,null,null,null,null,null,"54257",5,4,257,"San Carlos"]
[null,null,null,null,null,null,null,null,"54258",5,4,258,"El Carmen (Ultimagua)"]
[null,null,null,null,null,null,null,null,"54264",5,4,264,"San Francisco (La Cosa)"]
[null,null,null,null,null,null,null,null,"54266",5,4,266,"Blanca Ramírez Recio (San Juan Bautista)"]
[null,null,null,null,null,null,null,null,"54267",5,4,267,"San Marcos"]
[null,null,null,null,null,null,null,null,"54268",5,4,268,"Santa Anita"]
[null,null,null,null,null,null,null,null,"54269",5,4,269,"San Benito"]
[null,null,null,null,null,null,null,null,"54270",5,4,270,"San Rafael"]
[null,null,null,null,null,null,null,null,"54271",5,4,271,"Cinco Hermanos (San Vicente)"]
[null,null,null,null,null,null,null,null,"54272",5,4,272,"Sierra Hermosa"]
[null,null,null,null,null,null,null,null,"54273",5,4,273,"El Borrego (La Galera)"]
[null,null,null,null,null,null,null,null,"54277",5,4,277,"El Tule"]
[null,null,null,null,null,null,null,null,"54278",5,4,278,"El Temporal"]
[null,null,null,null,null,null,null,null,"54279",5,4,279,"Los Tomates"]
[null,null,null,null,null,null,null,null,{"$f":"$J195&$K195&$L195","v":"54282"},5,4,282,"Los Timones"]
[null,null,null,null,null,null,null,null,"54283",5,4,283,"El Tizne"]
[null,null,null,null,null,null,null,null,"54284",5,4,284,"El Tábano"]
[null,null,null,null,null,null,null,null,"54286",5,4,286,"El Texano"]
[null,null,null,null,null,null,null,null,"54288",5,4,288,"La Yerbabuena"]
[null,null,null,null,null,null,null,null,"54289",5,4,289,"El Vergel (El Zorrillo)"]
[null,null,null,null,null,null,null,null,"54290",5,4,290,"El Valle"]
[null,null,null,null,null,null,null,null,"54291",5,4,291,"El Álamo"]
[null,null,null,null,null,null,null,null,"54295",5,4,295,"San Isidro"]
[null,null,null,null,null,null,null,null,"54296",5,4,296,"El Pino"]
[null,null,null,null,null,null,null,null,"54297",5,4,297,"La Boquilla"]
[null,null,null,null,null,null,null,null,"54299",5,4,299,"San Isidro"]
[null,null,null,null,null,null,null,null,"54301",5,4,301,"La Escondida"]
[null,null,null,null,null,null,null,null,"54302",5,4,302,"San José"]
[null,null,null,null,null,null,null,null,"54303",5,4,303,"La Concordia (Rancho Nuevo)"]
[null,null,null,null,null,null,null,null,"54305",5,4,305,"El Pedregal"]
[null,null,null,null,null,null,null,null,"54308",5,4,308,"Federico Elizondo"]
[null,null,null,null,null,null,null,null,"54313",5,4,313,"El Ranchito"]
[null,null,null,null,null,null,null,null,"54316",5,4,316,"La Almendrilla"]
[null,null,null,null,null,null,null,null,"54317",5,4,317,"El Alto San Antonio de las Alazanas"]
[null,null,null,null,null,null,null,null,"54319",5,4,319,"San Isidro de la Roja"]
[null,null,null,null,null,null,null,null,"54320",5,4,320,"Bosque de la Montaña"]
[null,null,null,null,null,null,null,null,"54321",5,4,321,"Campestre los Andes"]
[null,null,null,null,null,null,null,null,"54322",5,4,322,"Santa María de Teotepec"]
[null,null,null,null,null,null,null,null,"54324",5,4,324,"Casa Blanca"]
[null,null,null,null,null,null,null,null,"54325",5,4,325,"Cerro de en Medio"]
[null,null,null,null,null,null,null,null,"54326",5,4,326,"Cumbres del Chorro"]
[null,null,null,null,null,null,null,null,"54327",5,4,327,"Fidel Oyervides Casas"]
[null,null,null,null,null,null,null,null,"54328",5,4,328,"Los Halcones"]
[null,null,null,null,null,null,null,null,"54329",5,4,329,"Huerta el Carmen"]
[null,null,null,null,null,null,null,null,"54330",5,4,330,"Bosques de la Montaña (El Infiernillo)"]
[null,null,null,null,null,null,null,null,"54331",5,4,331,"Vikingo Noventa"]
[null,null,null,null,null,null,null,null,"54332",5,4,332,"León Bravo"]
[null,null,null,null,null,null,null,null,"54333",5,4,333,"Los Llanitos"]
[null,null,null,null,null,null,null,null,"54334",5,4,334,"Los Llanos"]
[null,null,null,null,null,null,null,null,"54335",5,4,335,"Karibú"]
[null,null,null,null,null,null,null,null,"54336",5,4,336,"Martinillos Tres"]
[null,null,null,null,null,null,null,null,"54337",5,4,337,"El Milagro"]
[null,null,null,null,null,null,null,null,"54338",5,4,338,"Ojo de Agua"]
[null,null,null,null,null,null,null,null,"54339",5,4,339,"Arroyo Colorado (Ojo de Agua)"]
[null,null,null,null,null,null,null,null,"54340",5,4,340,"Los Oyameles"]
[null,null,null,null,null,null,null,null,"54341",5,4,341,"Cuatro Palmas"]
[null,null,null,null,null,null,null,null,"54342",5,4,342,"Paredón"]
[null,null,null,null,null,null,null,null,"54343",5,4,343,"Pinos Altos"]
[null,null,null,null,null,null,null,null,"54344",5,4,344,"Los Pinos"]
[null,null,null,null,null,null,null,null,"54345",5,4,345,"Pomarada de Tepeyac"]
[null,null,null,null,null,null,null,null,"54346",5,4,346,"Famaya (San Antonio)"]
[null,null,null,null,null,null,null,null,"54348",5,4,348,"Puerto Maravilla"]
[null,null,null,null,null,null,null,null,"54349",5,4,349,"Santa María"]
[null,null,null,null,null,null,null,null,"54350",5,4,350,"Santa Margarita (Las Pulgas de Don Jesús)"]
[null,null,null,null,null,null,null,null,"54351",5,4,351,"La Purísima"]
[null,null,null,null,null,null,null,null,"54352",5,4,352,"El Refugio"]
[null,null,null,null,null,null,null,null,"54353",5,4,353,"Santa Cruz"]
[null,null,null,null,null,null,null,null,"54354",5,4,354,"San Francisco"]
[null,null,null,null,null,null,null,null,"54355",5,4,355,"Los Letreros"]
[null,null,null,null,null,null,null,null,"54356",5,4,356,"Agustín Zorrilla (Tanque el Cercado)"]
[null,null,null,null,null,null,null,null,"54357",5,4,357,"El Terrero"]
[null,null,null,null,null,null,null,null,"54358",5,4,358,"La Tracalada"]
[null,null,null,null,null,null,null,null,"54360",5,4,360,"El Bajío"]
[null,null,null,null,null,null,null,null,"54362",5,4,362,"La Cañada del Caballo"]
[null,null,null,null,null,null,null,null,"54366",5,4,366,"La Purísima"]
[null,null,null,null,null,null,null,null,"54367",5,4,367,"El Olmo"]
[null,null,null,null,null,null,null,null,"54369",5,4,369,"El Recreo"]
[null,null,null,null,null,null,null,null,"54370",5,4,370,"Labor de la Carrera"]
[null,null,null,null,null,null,null,null,{"$f":"$J259&$K259&$L259","v":"54371"},5,4,371,"Rancho de la Huerta"]
[null,null,null,null,null,null,null,null,"54372",5,4,372,"La Almendrilla"]
[null,null,null,null,null,null,null,null,"54373",5,4,373,"La Viga"]
[null,null,null,null,null,null,null,null,"54374",5,4,374,"Los Cedros"]
[null,null,null,null,null,null,null,null,"54375",5,4,375,"Las Brisas"]
[null,null,null,null,null,null,null,null,"54377",5,4,377,"Los Ángeles"]
[null,null,null,null,null,null,null,null,"54378",5,4,378,"El Pedregal"]
[null,null,null,null,null,null,null,null,"54379",5,4,379,"La Codicia (La Tosca)"]
[null,null,null,null,null,null,null,null,"54380",5,4,380,"El Corral Falso"]
[null,null,null,null,null,null,null,null,"54381",5,4,381,"El Gavillero"]
[null,null,null,null,null,null,null,null,"54382",5,4,382,"Bosques de Monterreal"]
[null,null,null,null,null,null,null,null,"54383",5,4,383,"Los Alpes"]
[null,null,null,null,null,null,null,null,"54384",5,4,384,"El Capricho"]
[null,null,null,null,null,null,null,null,"54385",5,4,385,"Los Laureles"]
[null,null,null,null,null,null,null,null,"54386",5,4,386,"Los Cedros"]
[null,null,null,null,null,null,null,null,"54387",5,4,387,"Ojo de Agua"]
[null,null,null,null,null,null,null,null,"54388",5,4,388,"Altamira"]
[null,null,null,null,null,null,null,null,"54391",5,4,391,"El Triángulo (El Espejo)"]
[null,null,null,null,null,null,null,null,"54393",5,4,393,"Santa María"]
[null,null,null,null,null,null,null,null,"54394",5,4,394,"Los Pinos (Arnulfo Gaona)"]
[null,null,null,null,null,null,null,null,"54395",5,4,395,"Las Cabañas"]
[null,null,null,null,null,null,null,null,"54396",5,4,396,"Sierra de los Pocitos"]
[null,null,null,null,null,null,null,null,"54397",5,4,397,"San Francisco"]
[null,null,null,null,null,null,null,null,"54398",5,4,398,"Sal Si Puedes"]
[null,null,null,null,null,null,null,null,"54399",5,4,399,"Arroyo Grande"]
[null,null,null,null,null,null,null,null,"54400",5,4,400,"Los Pinares"]
[null,null,null,null,null,null,null,null,"54401",5,4,401,"La Casita"]
[null,null,null,null,null,null,null,null,"54403",5,4,403,"El Bayonero"]
[null,null,null,null,null,null,null,null,"54404",5,4,404,"Portal San Antonio"]
[null,null,null,null,null,null,null,null,"54405",5,4,405,"La Mesa del Cedrito"]
[null,null,null,null,null,null,null,null,"54408",5,4,408,"Santa Mónica"]
[null,null,null,null,null,null,null,null,"54410",5,4,410,"Manzanares"]
[null,null,null,null,null,null,null,null,"54414",5,4,414,"Cumbres del Tunal"]
[null,null,null,null,null,null,null,null,"54417",5,4,417,"El Retorno"]
[null,null,null,null,null,null,null,null,"54419",5,4,419,"Los Portales"]
[null,null,null,null,null,null,null,null,"54420",5,4,420,"Los Llanos"]
[null,null,null,null,null,null,null,null,"54422",5,4,422,"Pinares de Rancho Viejo"]
[null,null,null,null,null,null,null,null,"54423",5,4,423,"Bosques de Guadalupe (El Chilar)"]
[null,null,null,null,null,null,null,null,"54424",5,4,424,"Ramón López (Punta de la Loma)"]
[null,null,null,null,null,null,null,null,"54425",5,4,425,"El Milagro"]
[null,null,null,null,null,null,null,null,"54427",5,4,427,"El Taray Dos"]
[null,null,null,null,null,null,null,null,"54428",5,4,428,"Los Oyameles (Guarida del Oso)"]
[null,null,null,null,null,null,null,null,"54429",5,4,429,"Zaragoza"]
[null,null,null,null,null,null,null,null,"54430",5,4,430,"San Isidro de las Palomas"]
[null,null,null,null,null,null,null,null,"54432",5,4,432,"Chula Vista"]
[null,null,null,null,null,null,null,null,"54435",5,4,435,"Agustín López Gámez (Loma el Perdido)"]
[null,null,null,null,null,null,null,null,"54436",5,4,436,"El Corona"]
[null,null,null,null,null,null,null,null,"54437",5,4,437,"El Retiro"]
[null,null,null,null,null,null,null,null,"54438",5,4,438,"Tejano Ranch"]
[null,null,null,null,null,null,null,null,"54439",5,4,439,"El Alto del Encinal"]
[null,null,null,null,null,null,null,null,"54441",5,4,441,"Francisco Guzmán Solís (San Felipe)"]
[null,null,null,null,null,null,null,null,"54442",5,4,442,"Hacienda Santa María"]
[null,null,null,null,null,null,null,null,"54443",5,4,443,"Cedro Grande"]
[null,null,null,null,null,null,null,null,"54444",5,4,444,"La Guitarra"]
[null,null,null,null,null,null,null,null,"54445",5,4,445,"Galeras Blancas"]
[null,null,null,null,null,null,null,null,"54447",5,4,447,"El Carmen"]
[null,null,null,null,null,null,null,null,"54448",5,4,448,"Los Cañoncitos"]
[null,null,null,null,null,null,null,null,"54449",5,4,449,"El Molino (Samuel Flores Márquez)"]
[null,null,null,null,null,null,null,null,"54450",5,4,450,"El Tesoro"]
[null,null,null,null,null,null,null,null,"54451",5,4,451,"Los Andes"]
[null,null,null,null,null,null,null,null,"54452",5,4,452,"El Kilate"]
[null,null,null,null,null,null,null,null,"54455",5,4,455,"El Oasis (Fraccionamiento Lomas del Palomar)"]
[null,null,null,null,null,null,null,null,"54456",5,4,456,"Algún Día"]
[null,null,null,null,null,null,null,null,"54457",5,4,457,"Cayetano de la Cruz (El Baratío)"]
[null,null,null,null,null,null,null,null,{"$f":"$J323&$K323&$L323","v":"54459"},5,4,459,"La Paloma"]
[null,null,null,null,null,null,null,null,"54462",5,4,462,"Santa Eduviges"]
[null,null,null,null,null,null,null,null,"54463",5,4,463,"Huerta Heolymar"]
[null,null,null,null,null,null,null,null,"54464",5,4,464,"Ronses Valles"]
[null,null,null,null,null,null,null,null,"54465",5,4,465,"Cimarrón"]
[null,null,null,null,null,null,null,null,"54466",5,4,466,"La Laguna (Los Ranchitos Dos)"]
[null,null,null,null,null,null,null,null,"54467",5,4,467,"Timoteo Cerecero Martínez"]
[null,null,null,null,null,null,null,null,"54468",5,4,468,"Arroyo el Buey (José Clemente Sánchez)"]
[null,null,null,null,null,null,null,null,"54471",5,4,471,"La Escondida"]
[null,null,null,null,null,null,null,null,"54473",5,4,473,"Armando Valdez (Calabacillas)"]
[null,null,null,null,null,null,null,null,"54474",5,4,474,"Ninguno [Asociación Ganadera]"]
[null,null,null,null,null,null,null,null,"54476",5,4,476,"Santa María (Bartolo Ibarra Valdez)"]
[null,null,null,null,null,null,null,null,"54479",5,4,479,"Calabacillas"]
[null,null,null,null,null,null,null,null,"54480",5,4,480,"Camino del Agua"]
[null,null,null,null,null,null,null,null,"54482",5,4,482,"San Ignacio"]
[null,null,null,null,null,null,null,null,"54483",5,4,483,"Fraccionamiento Zapalinamé"]
[null,null,null,null,null,null,null,null,"54484",5,4,484,"El Capricho"]
[null,null,null,null,null,null,null,null,"54485",5,4,485,"El Potrero (El Milagro)"]
[null,null,null,null,null,null,null,null,"54488",5,4,488,"Quinta Tenis San José"]
[null,null,null,null,null,null,null,null,"54489",5,4,489,"El Condado Dos"]
[null,null,null,null,null,null,null,null,"54492",5,4,492,"Juan Manuel Vidales (Galeras del Palmar)"]
[null,null,null,null,null,null,null,null,"54493",5,4,493,"El Gavilán"]
[null,null,null,null,null,null,null,null,"54494",5,4,494,"Lomas Campestres (Los Cuñados)"]
[null,null,null,null,null,null,null,null,"54495",5,4,495,"San Miguel (Julián Oyervides)"]
[null,null,null,null,null,null,null,null,"54497",5,4,497,"Los Cactus"]
[null,null,null,null,null,null,null,null,"54500",5,4,500,"Santa Ana"]
[null,null,null,null,null,null,null,null,"54501",5,4,501,"El Mirador"]
[null,null,null,null,null,null,null,null,"54503",5,4,503,"El Pedregal (Jorge Berlanga)"]
[null,null,null,null,null,null,null,null,"54504",5,4,504,"Arturo Coronado (Galeras del Palmar)"]
[null,null,null,null,null,null,null,null,"54505",5,4,505,"La Huerta (Ricardo Álvarez)"]
[null,null,null,null,null,null,null,null,"54506",5,4,506,"SNTIMSS (Loma Alta)"]
[null,null,null,null,null,null,null,null,"54507",5,4,507,"Kilómetro Doce y Medio"]
[null,null,null,null,null,null,null,null,"54510",5,4,510,"El Alazán (Rodolfo Ramos Villa)"]
[null,null,null,null,null,null,null,null,"54511",5,4,511,"Roberto Tamez Gutiérrez"]
[null,null,null,null,null,null,null,null,"54512",5,4,512,"Quinta las Palmas (Ramiro Aguirre)"]
[null,null,null,null,null,null,null,null,"54513",5,4,513,"Fraccionamiento las Casas"]
[null,null,null,null,null,null,null,null,"54514",5,4,514,"José Arzola Camarillo"]
[null,null,null,null,null,null,null,null,"54518",5,4,518,"La Nogalera"]
[null,null,null,null,null,null,null,null,"54519",5,4,519,"La Noria"]
[null,null,null,null,null,null,null,null,"54520",5,4,520,"Oscar Rodríguez Téllez"]
[null,null,null,null,null,null,null,null,"54521",5,4,521,"La Palma"]
[null,null,null,null,null,null,null,null,"54526",5,4,526,"Loma Alta [Planta Potabilizadora]"]
[null,null,null,null,null,null,null,null,"54529",5,4,529,"Los Pioneros"]
[null,null,null,null,null,null,null,null,"54530",5,4,530,"El Pitahayo"]
[null,null,null,null,null,null,null,null,"54531",5,4,531,"El Potrero"]
[null,null,null,null,null,null,null,null,"54532",5,4,532,"La Rosita"]
[null,null,null,null,null,null,null,null,"54533",5,4,533,"Los Ramos"]
[null,null,null,null,null,null,null,null,"54535",5,4,535,"Reynaldo Villarreal"]
[null,null,null,null,null,null,null,null,"54536",5,4,536,"Santa Mónica (Roberto Dávila)"]
[null,null,null,null,null,null,null,null,"54537",5,4,537,"Santa Isabel"]
[null,null,null,null,null,null,null,null,"54538",5,4,538,"Santa Isabel"]
[null,null,null,null,null,null,null,null,"54546",5,4,546,"Dionisio Sánchez"]
[null,null,null,null,null,null,null,null,"54547",5,4,547,"Don Pedro"]
[null,null,null,null,null,null,null,null,"54548",5,4,548,"Homero Campo Redondo (San Pancho)"]
[null,null,null,null,null,null,null,null,"54549",5,4,549,"El Divisadero"]
[null,null,null,null,null,null,null,null,"54550",5,4,550,"La Puerta"]
[null,null,null,null,null,null,null,null,"54551",5,4,551,"Jacinto Cardona (El Quelite)"]
[null,null,null,null,null,null,null,null,"54552",5,4,552,"El Diamante (Merced Sánchez Nuncio)"]
[null,null,null,null,null,null,null,null,"54553",5,4,553,"Gabriel Aguirre"]
[null,null,null,null,null,null,null,null,"54555",5,4,555,"Raymundo Flores (El Cerrito)"]
[null,null,null,null,null,null,null,null,"54556",5,4,556,"La Cruz (Pedro Flores)"]
[null,null,null,null,null,null,null,null,"54557",5,4,557,"El Puerto"]
[null,null,null,null,null,null,null,null,"54558",5,4,558,"La Quinta Esencia (San Rafael)"]
[null,null,null,null,null,null,null,null,"54559",5,4,559,"Leonardo Guerrero Dávila (Maravillas)"]
[null,null,null,null,null,null,null,null,{"$f":"$J387&$K387&$L387","v":"54560"},5,4,560,"Humberto Dávila Esquivel"]
[null,null,null,null,null,null,null,null,"54561",5,4,561,"Ramón Udave (Las Vigas)"]
[null,null,null,null,null,null,null,null,"54562",5,4,562,"Loma Redonda"]
[null,null,null,null,null,null,null,null,"54563",5,4,563,"El Sueño"]
[null,null,null,null,null,null,null,null,"54564",5,4,564,"Cruz Flores"]
[null,null,null,null,null,null,null,null,"54565",5,4,565,"Nicolás Gaona"]
[null,null,null,null,null,null,null,null,"54566",5,4,566,"Luis Valdez (Piedra Blanca)"]
[null,null,null,null,null,null,null,null,"54567",5,4,567,"Saturnino Saucedo (Puerto el Tarillal)"]
[null,null,null,null,null,null,null,null,"54569",5,4,569,"Carlos Zamarripa"]
[null,null,null,null,null,null,null,null,"54570",5,4,570,"La Terraza"]
[null,null,null,null,null,null,null,null,"54571",5,4,571,"Santa Rosa"]
[null,null,null,null,null,null,null,null,"54573",5,4,573,"Martín Covarrubias (El Barranco)"]
[null,null,null,null,null,null,null,null,"54574",5,4,574,"Tiburcio Sánchez"]
[null,null,null,null,null,null,null,null,"54575",5,4,575,"Luis Cárdenas"]
[null,null,null,null,null,null,null,null,"54576",5,4,576,"Fortunato Martínez"]
[null,null,null,null,null,null,null,null,"54578",5,4,578,"Alberto Valdez Valdez (Cuevecillas)"]
[null,null,null,null,null,null,null,null,"54579",5,4,579,"Daniel García Nájera"]
[null,null,null,null,null,null,null,null,"54580",5,4,580,"Salvador Cepeda Valdez (Cuevecillas)"]
[null,null,null,null,null,null,null,null,"54581",5,4,581,"Gabriela Sánchez (El Arenal)"]
[null,null,null,null,null,null,null,null,"54582",5,4,582,"Ricardo Valdés"]
[null,null,null,null,null,null,null,null,"54583",5,4,583,"Un Solo Camino (Reyes Sánchez Vidales)"]
[null,null,null,null,null,null,null,null,"54584",5,4,584,"Rincón de la Roja (Manuel Valdés)"]
[null,null,null,null,null,null,null,null,"54585",5,4,585,"José Isabel Amador (El Rebaje)"]
[null,null,null,null,null,null,null,null,"54586",5,4,586,"José Olvera"]
[null,null,null,null,null,null,null,null,"54587",5,4,587,"Oscar Valdez"]
[null,null,null,null,null,null,null,null,"54588",5,4,588,"El Rosario"]
[null,null,null,null,null,null,null,null,"54589",5,4,589,"Manuel Casas"]
[null,null,null,null,null,null,null,null,"54590",5,4,590,"Cinco Hermanos"]
[null,null,null,null,null,null,null,null,"54591",5,4,591,"Jesús Gámez"]
[null,null,null,null,null,null,null,null,"54592",5,4,592,"Hipacio Guzmán"]
[null,null,null,null,null,null,null,null,"54593",5,4,593,"Loma del Muerto"]
[null,null,null,null,null,null,null,null,"54594",5,4,594,"Vista Hermosa"]
[null,null,null,null,null,null,null,null,"54595",5,4,595,"San Pedro"]
[null,null,null,null,null,null,null,null,"54596",5,4,596,"Antonio Blanca"]
[null,null,null,null,null,null,null,null,"54597",5,4,597,"Ramón Valdés"]
[null,null,null,null,null,null,null,null,"54598",5,4,598,"Ismael Santana"]
[null,null,null,null,null,null,null,null,"54599",5,4,599,"José Chávez"]
[null,null,null,null,null,null,null,null,"54600",5,4,600,"Cristina Valdés"]
[null,null,null,null,null,null,null,null,"54601",5,4,601,"Don Oscar"]
[null,null,null,null,null,null,null,null,"54602",5,4,602,"Elvira Saucedo Valdez (La Bota)"]
[null,null,null,null,null,null,null,null,"54603",5,4,603,"Armando del Bosque (La Panda)"]
[null,null,null,null,null,null,null,null,"54604",5,4,604,"Ramón García Guzmán"]
[null,null,null,null,null,null,null,null,"54605",5,4,605,"Flavio Valdés (El Pino)"]
[null,null,null,null,null,null,null,null,"54606",5,4,606,"Genaro García Salazar"]
[null,null,null,null,null,null,null,null,"54607",5,4,607,"Pablo González"]
[null,null,null,null,null,null,null,null,"54608",5,4,608,"Benjamín González"]
[null,null,null,null,null,null,null,null,"54609",5,4,609,"Ángel Valdés Flores"]
[null,null,null,null,null,null,null,null,"54610",5,4,610,"Francisco Salas"]
[null,null,null,null,null,null,null,null,"54611",5,4,611,"El Rincón de Santa Rosa"]
[null,null,null,null,null,null,null,null,"54612",5,4,612,"David Martínez Galindo (Santa Rosa)"]
[null,null,null,null,null,null,null,null,"54613",5,4,613,"Santa Isabel"]
[null,null,null,null,null,null,null,null,"54614",5,4,614,"Arnoldo Sánchez"]
[null,null,null,null,null,null,null,null,"54615",5,4,615,"La Paz"]
[null,null,null,null,null,null,null,null,"54616",5,4,616,"Arnulfo Ibarra Martínez (El Llano)"]
[null,null,null,null,null,null,null,null,"54617",5,4,617,"El Seis"]
[null,null,null,null,null,null,null,null,"54618",5,4,618,"La Leona (La Joya)"]
[null,null,null,null,null,null,null,null,"54619",5,4,619,"Donato Cárdenas"]
[null,null,null,null,null,null,null,null,"54620",5,4,620,"Monte Alegre"]
[null,null,null,null,null,null,null,null,"54621",5,4,621,"Las Cumbres"]
[null,null,null,null,null,null,null,null,"54622",5,4,622,"La Conchita"]
[null,null,null,null,null,null,null,null,"54623",5,4,623,"La Minita"]
[null,null,null,null,null,null,null,null,"54624",5,4,624,"Rafael Guerra"]
[null,null,null,null,null,null,null,null,"54625",5,4,625,"Agustín del Valle (San Andrés)"]
[null,null,null,null,null,null,null,null,"54626",5,4,626,"El Ciruelo"]
[null,null,null,null,null,null,null,null,{"$f":"$J451&$K451&$L451","v":"54627"},5,4,627,"Huerta Matilde"]
[null,null,null,null,null,null,null,null,"54628",5,4,628,"Otilio de la Peña"]
[null,null,null,null,null,null,null,null,"54629",5,4,629,"Los Fuereños (Fidel Oyervides Casas)"]
[null,null,null,null,null,null,null,null,"54630",5,4,630,"Evelia de la Peña"]
[null,null,null,null,null,null,null,null,"54631",5,4,631,"La Ponderosa (Lauro de la Peña)"]
[null,null,null,null,null,null,null,null,"54632",5,4,632,"Leticia de la Peña"]
[null,null,null,null,null,null,null,null,"54633",5,4,633,"Emilia de la Peña"]
[null,null,null,null,null,null,null,null,"54634",5,4,634,"Praxedis Sánchez de la Peña"]
[null,null,null,null,null,null,null,null,"54635",5,4,635,"Corralitos"]
[null,null,null,null,null,null,null,null,"54636",5,4,636,"Ignacio Gutiérrez"]
[null,null,null,null,null,null,null,null,"54637",5,4,637,"El Sauz"]
[null,null,null,null,null,null,null,null,"54638",5,4,638,"El Salto"]
[null,null,null,null,null,null,null,null,"54639",5,4,639,"Los Encinos"]
[null,null,null,null,null,null,null,null,"54640",5,4,640,"Juan Oyervides Nuncio (El Arbolito)"]
[null,null,null,null,null,null,null,null,"54641",5,4,641,"Sixto González (El Mimbral)"]
[null,null,null,null,null,null,null,null,"54642",5,4,642,"El Tirol"]
[null,null,null,null,null,null,null,null,"54643",5,4,643,"El Carmen"]
[null,null,null,null,null,null,null,null,"54644",5,4,644,"Gonzalo Zamora (Cañón el Buey)"]
[null,null,null,null,null,null,null,null,"54645",5,4,645,"El Refugio"]
[null,null,null,null,null,null,null,null,"54646",5,4,646,"Lorenzo Molina"]
[null,null,null,null,null,null,null,null,"54647",5,4,647,"La Flecha"]
[null,null,null,null,null,null,null,null,"54648",5,4,648,"Los Hernández"]
[null,null,null,null,null,null,null,null,"54649",5,4,649,"La Mora"]
[null,null,null,null,null,null,null,null,"54650",5,4,650,"La Palmita"]
[null,null,null,null,null,null,null,null,"54651",5,4,651,"Altamira"]
[null,null,null,null,null,null,null,null,"54652",5,4,652,"Las Calandrias"]
[null,null,null,null,null,null,null,null,"54653",5,4,653,"Los Colunga"]
[null,null,null,null,null,null,null,null,"54654",5,4,654,"Guadalupe"]
[null,null,null,null,null,null,null,null,"54655",5,4,655,"Monte Fresco"]
[null,null,null,null,null,null,null,null,"54656",5,4,656,"El Toro"]
[null,null,null,null,null,null,null,null,"54657",5,4,657,"Roberto Ramírez"]
[null,null,null,null,null,null,null,null,"54658",5,4,658,"Puerto Rico"]
[null,null,null,null,null,null,null,null,"54659",5,4,659,"San Francisco (Salvador Zambrano)"]
[null,null,null,null,null,null,null,null,"54660",5,4,660,"Reynaldo Sánchez"]
[null,null,null,null,null,null,null,null,"54661",5,4,661,"El Cedrito (El Ancla)"]
[null,null,null,null,null,null,null,null,"54662",5,4,662,"El Cedrito"]
[null,null,null,null,null,null,null,null,"54663",5,4,663,"Las Maravillas"]
[null,null,null,null,null,null,null,null,"54664",5,4,664,"Bosques del Huachichil"]
[null,null,null,null,null,null,null,null,"54665",5,4,665,"La Galera"]
[null,null,null,null,null,null,null,null,"54666",5,4,666,"Santa Rosa"]
[null,null,null,null,null,null,null,null,"54667",5,4,667,"Wapakoneta"]
[null,null,null,null,null,null,null,null,"54668",5,4,668,"El Capulín"]
[null,null,null,null,null,null,null,null,"54673",5,4,673,"El Alto de la Noria"]
[null,null,null,null,null,null,null,null,"54675",5,4,675,"Javier Ruiz Ortiz"]
[null,null,null,null,null,null,null,null,"54676",5,4,676,"Nicolás Alday"]
[null,null,null,null,null,null,null,null,"54679",5,4,679,"La Majada (Domingo Velázquez)"]
[null,null,null,null,null,null,null,null,"54680",5,4,680,"San Gabriel"]
[null,null,null,null,null,null,null,null,"54681",5,4,681,"Los Pirules"]
[null,null,null,null,null,null,null,null,"54682",5,4,682,"Moisés Sánchez"]
[null,null,null,null,null,null,null,null,"54683",5,4,683,"Los Compadres"]
[null,null,null,null,null,null,null,null,"54684",5,4,684,"La Joya"]
[null,null,null,null,null,null,null,null,"54685",5,4,685,"María de Lourdes"]
[null,null,null,null,null,null,null,null,"54686",5,4,686,"El Pedregal"]
[null,null,null,null,null,null,null,null,"54687",5,4,687,"Herminio González"]
[null,null,null,null,null,null,null,null,"54688",5,4,688,"Jesús Elizondo"]
[null,null,null,null,null,null,null,null,"54689",5,4,689,"Octavio Berlanga"]
[null,null,null,null,null,null,null,null,"54690",5,4,690,"La Pila"]
[null,null,null,null,null,null,null,null,"54691",5,4,691,"El Sombrerete"]
[null,null,null,null,null,null,null,null,"54692",5,4,692,"San Arturo (Roberto Huereca)"]
[null,null,null,null,null,null,null,null,"54693",5,4,693,"Ignacio Berlanga (El Alto)"]
[null,null,null,null,null,null,null,null,"54694",5,4,694,"Joaquín Charles Nieves (El Alto)"]
[null,null,null,null,null,null,null,null,"54695",5,4,695,"Armando Durán (El Lucero)"]
[null,null,null,null,null,null,null,null,"54696",5,4,696,"María Álvarez (La Efigenia)"]
[null,null,null,null,null,null,null,null,"54697",5,4,697,"Sergio Garza (La Escondida)"]
[null,null,null,null,null,null,null,null,{"$f":"$J515&$K515&$L515","v":"54698"},5,4,698,"El Pinalito (Cañón los Amargos)"]
[null,null,null,null,null,null,null,null,"54699",5,4,699,"Silvano Padilla (El Mirador)"]
[null,null,null,null,null,null,null,null,"54700",5,4,700,"Antonio García (La Alameda)"]
[null,null,null,null,null,null,null,null,"54701",5,4,701,"Isidro Pérez Arreola (Las Norias)"]
[null,null,null,null,null,null,null,null,"54702",5,4,702,"La Siberia"]
[null,null,null,null,null,null,null,null,"54704",5,4,704,"Domingo Flores Espinoza (El Cañón la Peñita)"]
[null,null,null,null,null,null,null,null,"54705",5,4,705,"El Altamar"]
[null,null,null,null,null,null,null,null,"54706",5,4,706,"Los Placeres"]
[null,null,null,null,null,null,null,null,"54707",5,4,707,"El Saucillo"]
[null,null,null,null,null,null,null,null,"54708",5,4,708,"Pinares de la Montaña (Las Rosas)"]
[null,null,null,null,null,null,null,null,"54709",5,4,709,"Campestre el Diamante"]
[null,null,null,null,null,null,null,null,"54710",5,4,710,"Vista Hermosa"]
[null,null,null,null,null,null,null,null,"54711",5,4,711,"Armín Valdés"]
[null,null,null,null,null,null,null,null,"54712",5,4,712,"Hoya de las Artenejas"]
[null,null,null,null,null,null,null,null,"54713",5,4,713,"El Pilar (La Frontera)"]
[null,null,null,null,null,null,null,null,"54714",5,4,714,"Anacleto Alvarado Torres"]
[null,null,null,null,null,null,null,null,"54715",5,4,715,"Tanque los Reyes"]
[null,null,null,null,null,null,null,null,"54716",5,4,716,"Juan Blanco (Ojo de Agua)"]
[null,null,null,null,null,null,null,null,"54717",5,4,717,"El Carrizal"]
[null,null,null,null,null,null,null,null,"54718",5,4,718,"El Galeme (Carlos Díaz)"]
[null,null,null,null,null,null,null,null,"54720",5,4,720,"Valle del Carmen"]
[null,null,null,null,null,null,null,null,"54721",5,4,721,"La Flor"]
[null,null,null,null,null,null,null,null,"54722",5,4,722,"El Edén"]
[null,null,null,null,null,null,null,null,"54723",5,4,723,"La Taiga"]
[null,null,null,null,null,null,null,null,"54724",5,4,724,"Egdide Akar"]
[null,null,null,null,null,null,null,null,"54725",5,4,725,"Dos Arbolitos"]
[null,null,null,null,null,null,null,null,"54726",5,4,726,"Las Siete Erres y una O"]
[null,null,null,null,null,null,null,null,"54727",5,4,727,"Rincón de Ayancual"]
[null,null,null,null,null,null,null,null,"54728",5,4,728,"Huerta Erika"]
[null,null,null,null,null,null,null,null,"54729",5,4,729,"La Providencia"]
[null,null,null,null,null,null,null,null,"54730",5,4,730,"Los Alpes"]
[null,null,null,null,null,null,null,null,"54731",5,4,731,"Las Ánimas"]
[null,null,null,null,null,null,null,null,"54732",5,4,732,"La Nopalera"]
[null,null,null,null,null,null,null,null,"54733",5,4,733,"Mesa del Naranjo"]
[null,null,null,null,null,null,null,null,"54734",5,4,734,"Lampazos"]
[null,null,null,null,null,null,null,null,"54736",5,4,736,"El Capulín"]
[null,null,null,null,null,null,null,null,"54737",5,4,737,"El Capulín"]
[null,null,null,null,null,null,null,null,"54738",5,4,738,"La Caprichosa"]
[null,null,null,null,null,null,null,null,"54740",5,4,740,"Jesús Rivera Pérez (El Poleo)"]
[null,null,null,null,null,null,null,null,"54741",5,4,741,"Juan Varela Pinales"]
[null,null,null,null,null,null,null,null,"54742",5,4,742,"Enrique Valdez"]
[null,null,null,null,null,null,null,null,"54743",5,4,743,"Camilo Gaona Torres"]
[null,null,null,null,null,null,null,null,"54744",5,4,744,"Los Galindo"]
[null,null,null,null,null,null,null,null,"54745",5,4,745,"Las Coloradas (Javier Martínez)"]
[null,null,null,null,null,null,null,null,"54746",5,4,746,"Los Pinos"]
[null,null,null,null,null,null,null,null,"54747",5,4,747,"Leopoldo González (Loma Alta)"]
[null,null,null,null,null,null,null,null,"54748",5,4,748,"Alfredo Gutiérrez"]
[null,null,null,null,null,null,null,null,"54749",5,4,749,"Loma Alta"]
[null,null,null,null,null,null,null,null,"54750",5,4,750,"Ignacio Martínez (La Cueva)"]
[null,null,null,null,null,null,null,null,"54751",5,4,751,"Flores Valdez"]
[null,null,null,null,null,null,null,null,"54752",5,4,752,"Saltillo [Cromo Industrial]"]
[null,null,null,null,null,null,null,null,"54753",5,4,753,"Ninguno [Centro Inspectorial Recreativo]"]
[null,null,null,null,null,null,null,null,"54754",5,4,754,"Los Valdez"]
[null,null,null,null,null,null,null,null,"54755",5,4,755,"Seminario Diocesano de Saltillo"]
[null,null,null,null,null,null,null,null,"54756",5,4,756,"José Luis García"]
[null,null,null,null,null,null,null,null,"54757",5,4,757,"Las Azucenas (Leocadio López Silva)"]
[null,null,null,null,null,null,null,null,"54758",5,4,758,"El Tráiler"]
[null,null,null,null,null,null,null,null,"54759",5,4,759,"Cuatro de Octubre"]
[null,null,null,null,null,null,null,null,"54760",5,4,760,"Privada Buenos Aires"]
[null,null,null,null,null,null,null,null,"54761",5,4,761,"El Terreno"]
[null,null,null,null,null,null,null,null,"54762",5,4,762,"Ninguno [Maderas y Empaques Industriales Forestales]"]
[null,null,null,null,null,null,null,null,"54763",5,4,763,"Francisco Melo Valdez"]
[null,null,null,null,null,null,null,null,"54764",5,4,764,"Campestre California (Campestre San Antonio)"]
[null,null,null,null,null,null,null,null,"54765",5,4,765,"El Ranchito (Herminio Llamas García)"]
[null,null,null,null,null,null,null,null,{"$f":"$J579&$K579&$L579","v":"54766"},5,4,766,"María del Carmen Torres Espinoza"]
[null,null,null,null,null,null,null,null,"54767",5,4,767,"Ninguno [Restaurante Familiar]"]
[null,null,null,null,null,null,null,null,"54769",5,4,769,"Arroyo Blanco"]
[null,null,null,null,null,null,null,null,"54774",5,4,774,"Kilómetro Trece"]
[null,null,null,null,null,null,null,null,"54775",5,4,775,"San Jerónimo"]
[null,null,null,null,null,null,null,null,"54776",5,4,776,"Luis Jaime Tamayo [Fabricaciones Metálicas]"]
[null,null,null,null,null,null,null,null,"54777",5,4,777,"El Escorpión"]
[null,null,null,null,null,null,null,null,"54778",5,4,778,"El Suspiro"]
[null,null,null,null,null,null,null,null,"54779",5,4,779,"Fraccionamiento Ampliación California"]
[null,null,null,null,null,null,null,null,"54780",5,4,780,"San Marcos"]
[null,null,null,null,null,null,null,null,"54781",5,4,781,"Pascual Sánchez Lucio"]
[null,null,null,null,null,null,null,null,"54782",5,4,782,"Juana María Cruz Flores"]
[null,null,null,null,null,null,null,null,"54783",5,4,783,"Aurora Montalvo Saucedo"]
[null,null,null,null,null,null,null,null,"54784",5,4,784,"Pedro García Cortez"]
[null,null,null,null,null,null,null,null,"54785",5,4,785,"El Muerto"]
[null,null,null,null,null,null,null,null,"54786",5,4,786,"Los Cedros"]
[null,null,null,null,null,null,null,null,"54787",5,4,787,"El Paraíso de Coahuila (Chupadero de Abajo)"]
[null,null,null,null,null,null,null,null,"54788",5,4,788,"El Santuario (Ramón González)"]
[null,null,null,null,null,null,null,null,"54789",5,4,789,"Los Reyes (Gabriel Carreón Guerrero)"]
[null,null,null,null,null,null,null,null,"54791",5,4,791,"Campestre la Herradura"]
[null,null,null,null,null,null,null,null,"54793",5,4,793,"Rancho Jireth"]
[null,null,null,null,null,null,null,null,"54794",5,4,794,"Nuestra Señora de Fátima"]
[null,null,null,null,null,null,null,null,"54795",5,4,795,"Valle Alto"]
[null,null,null,null,null,null,null,null,"54796",5,4,796,"Las Avestruces"]
[null,null,null,null,null,null,null,null,"54797",5,4,797,"Cañada Prieta"]
[null,null,null,null,null,null,null,null,"54798",5,4,798,"La Concepción"]
[null,null,null,null,null,null,null,null,"54799",5,4,799,"Flores [Concreto Asfálticos]"]
[null,null,null,null,null,null,null,null,"54800",5,4,800,"Cumbres de Zapalinamé"]
[null,null,null,null,null,null,null,null,"54801",5,4,801,"Hacienda la Purísima"]
[null,null,null,null,null,null,null,null,"54802",5,4,802,"El Mirador"]
[null,null,null,null,null,null,null,null,"54803",5,4,803,"Los Pérez"]
[null,null,null,null,null,null,null,null,"54804",5,4,804,"Portal de la Sierra"]
[null,null,null,null,null,null,null,null,"54805",5,4,805,"Quinta el Carmen"]
[null,null,null,null,null,null,null,null,"54806",5,4,806,"El Sendero"]
[null,null,null,null,null,null,null,null,"54807",5,4,807,"Los Tres Nogales"]
[null,null,null,null,null,null,null,null,"54808",5,4,808,"Valdés"]
[null,null,null,null,null,null,null,null,"54809",5,4,809,"La Ilusión"]
[null,null,null,null,null,null,null,null,"54811",5,4,811,"El Mirador"]
[null,null,null,null,null,null,null,null,"54812",5,4,812,"María Esther [Granja]"]
[null,null,null,null,null,null,null,null,"54813",5,4,813,"El Paraíso"]
[null,null,null,null,null,null,null,null,"54814",5,4,814,"Puerto Carbonera"]
[null,null,null,null,null,null,null,null,"54815",5,4,815,"El Gato"]
[null,null,null,null,null,null,null,null,"54816",5,4,816,"Kaelum"]
[null,null,null,null,null,null,null,null,"54817",5,4,817,"La Montaña"]
[null,null,null,null,null,null,null,null,"54818",5,4,818,"El Taray"]
[null,null,null,null,null,null,null,null,"54819",5,4,819,"Rocosa"]
[null,null,null,null,null,null,null,null,"54820",5,4,820,"La Mesa"]
[null,null,null,null,null,null,null,null,"54821",5,4,821,"La Polanca"]
[null,null,null,null,null,null,null,null,"54822",5,4,822,"Las Golondrinas"]
[null,null,null,null,null,null,null,null,"54823",5,4,823,"San José del Vergel"]
[null,null,null,null,null,null,null,null,"54824",5,4,824,"La Presita (La Pompeya)"]
[null,null,null,null,null,null,null,null,"54825",5,4,825,"La Verdolaga"]
[null,null,null,null,null,null,null,null,"54827",5,4,827,"La Guardarraya (La Graciela)"]
[null,null,null,null,null,null,null,null,"54828",5,4,828,"La Mesa del Nopal"]
[null,null,null,null,null,null,null,null,"54830",5,4,830,"Los Laureles (Gonzaleño)"]
[null,null,null,null,null,null,null,null,"54831",5,4,831,"Los Puertecitos"]
[null,null,null,null,null,null,null,null,"54832",5,4,832,"Casa Victoria"]
[null,null,null,null,null,null,null,null,"54833",5,4,833,"Baldomero Jalomo González"]
[null,null,null,null,null,null,null,null,"54834",5,4,834,"Humberto Vázquez"]
[null,null,null,null,null,null,null,null,"54835",5,4,835,"Los Tres Potrillos"]
[null,null,null,null,null,null,null,null,"54836",5,4,836,"El Arenal (Severiano Amador Capetillo)"]
[null,null,null,null,null,null,null,null,"54837",5,4,837,"La Cabaña (Francisco Curiel Rojas)"]
[null,null,null,null,null,null,null,null,"54838",5,4,838,"El Ranchito"]
[null,null,null,null,null,null,null,null,"54839",5,4,839,"El Rincón de Artesillas"]
[null,null,null,null,null,null,null,null,{"$f":"$J643&$K643&$L643","v":"54840"},5,4,840,"Ignacio Alemán Sánchez"]
[null,null,null,null,null,null,null,null,"54841",5,4,841,"Buena Vista"]
[null,null,null,null,null,null,null,null,"54842",5,4,842,"Campestre Puerto Alto"]
[null,null,null,null,null,null,null,null,"54843",5,4,843,"El Frisón"]
[null,null,null,null,null,null,null,null,"54844",5,4,844,"El Renacer de la Sierra (El Morro)"]
[null,null,null,null,null,null,null,null,"54845",5,4,845,"La Moneda (La Monera)"]
[null,null,null,null,null,null,null,null,"54846",5,4,846,"David Gaona Arreaga"]
[null,null,null,null,null,null,null,null,"54847",5,4,847,"Elías Lumbreras Flores"]
[null,null,null,null,null,null,null,null,"54848",5,4,848,"Fernando Gaona Arriaga"]
[null,null,null,null,null,null,null,null,"54849",5,4,849,"Ernesto Galavis"]
[null,null,null,null,null,null,null,null,"54850",5,4,850,"Francisco Alemán Peña"]
[null,null,null,null,null,null,null,null,"54851",5,4,851,"Martín Alemán Peña"]
[null,null,null,null,null,null,null,null,"54852",5,4,852,"Homero García Sauceda"]
[null,null,null,null,null,null,null,null,"54853",5,4,853,"El Aguajito (Las Tres Hermanas)"]
[null,null,null,null,null,null,null,null,"54854",5,4,854,"El Mollete"]
[null,null,null,null,null,null,null,null,"54855",5,4,855,"Las Playas (El Guadalupe)"]
[null,null,null,null,null,null,null,null,"54856",5,4,856,"Valle Adoración"]
[null,null,null,null,null,null,null,null,"54857",5,4,857,"Cinco Elementos"]
[null,null,null,null,null,null,null,null,"54858",5,4,858,"Los Cactus Corral"]
[null,null,null,null,null,null,null,null,"54859",5,4,859,"Privanzas del Campestre"]
[null,null,null,null,null,null,null,null,"54860",5,4,860,"Los Llanos"]
[null,null,null,null,null,null,null,null,"54861",5,4,861,"Valle del Oriente"]
[null,null,null,null,null,null,null,null,"54862",5,4,862,"Loma Alta"]
[null,null,null,null,null,null,null,null,"54863",5,4,863,"La Soledad"]
[null,null,null,null,null,null,null,null,"551",5,5,1,"Candela"]
[null,null,null,null,null,null,null,null,"552",5,5,2,"Buenos Aires"]
[null,null,null,null,null,null,null,null,"553",5,5,3,"Las Cabras"]
[null,null,null,null,null,null,null,null,"554",5,5,4,"La Candelaria"]
[null,null,null,null,null,null,null,null,"555",5,5,5,"El Cándido"]
[null,null,null,null,null,null,null,null,"557",5,5,7,"Gloria"]
[null,null,null,null,null,null,null,null,"558",5,5,8,"Los Algodonales (La Ciénega)"]
[null,null,null,null,null,null,null,null,"559",5,5,9,"Las Coloradas"]
[null,null,null,null,null,null,null,null,"5510",5,5,10,"Guadalupe"]
[null,null,null,null,null,null,null,null,"5511",5,5,11,"El Huizachal"]
[null,null,null,null,null,null,null,null,"5514",5,5,14,"Los Mendoza"]
[null,null,null,null,null,null,null,null,"5518",5,5,18,"El Rosario"]
[null,null,null,null,null,null,null,null,"5520",5,5,20,"San Antonio de Afuera"]
[null,null,null,null,null,null,null,null,"5521",5,5,21,"San Francisco"]
[null,null,null,null,null,null,null,null,"5522",5,5,22,"San Ambrosio"]
[null,null,null,null,null,null,null,null,"5523",5,5,23,"San Juan"]
[null,null,null,null,null,null,null,null,"5524",5,5,24,"San Pedro (Lomas Blancas)"]
[null,null,null,null,null,null,null,null,"5525",5,5,25,"San Pedro"]
[null,null,null,null,null,null,null,null,"5526",5,5,26,"San Rafael"]
[null,null,null,null,null,null,null,null,"5528",5,5,28,"Las Tres Lomitas (Las Tres Lomas)"]
[null,null,null,null,null,null,null,null,"5529",5,5,29,"Vacas"]
[null,null,null,null,null,null,null,null,"5530",5,5,30,"Valladares"]
[null,null,null,null,null,null,null,null,"5532",5,5,32,"El Mimbre"]
[null,null,null,null,null,null,null,null,"5533",5,5,33,"San Rolando"]
[null,null,null,null,null,null,null,null,"5534",5,5,34,"Los San Migueles"]
[null,null,null,null,null,null,null,null,"5535",5,5,35,"Las Pitayas"]
[null,null,null,null,null,null,null,null,"5537",5,5,37,"El Llanito"]
[null,null,null,null,null,null,null,null,"5538",5,5,38,"Sacramento Vázquez"]
[null,null,null,null,null,null,null,null,"5540",5,5,40,"San Antonio de Adentro"]
[null,null,null,null,null,null,null,null,"5541",5,5,41,"Palo Blanco"]
[null,null,null,null,null,null,null,null,"5542",5,5,42,"La Carroza"]
[null,null,null,null,null,null,null,null,"5543",5,5,43,"Campo Real"]
[null,null,null,null,null,null,null,null,"5544",5,5,44,"Barriales"]
[null,null,null,null,null,null,null,null,"5546",5,5,46,"Saucillo"]
[null,null,null,null,null,null,null,null,"5547",5,5,47,"Los Álamos"]
[null,null,null,null,null,null,null,null,"5548",5,5,48,"Buena Vista"]
[null,null,null,null,null,null,null,null,"5549",5,5,49,"Los Cañones"]
[null,null,null,null,null,null,null,null,"5550",5,5,50,"El Chapote"]
[null,null,null,null,null,null,null,null,"5551",5,5,51,"La Curva (San Andrés)"]
[null,null,null,null,null,null,null,null,"5552",5,5,52,"Guadalupe"]
[null,null,null,null,null,null,null,null,{"$f":"$J707&$K707&$L707","v":"5553"},5,5,53,"Mesa de Cartujanos"]
[null,null,null,null,null,null,null,null,"5556",5,5,56,"Pánuco [Mina]"]
[null,null,null,null,null,null,null,null,"5557",5,5,57,"El Papalote (Loma Prieta)"]
[null,null,null,null,null,null,null,null,"5559",5,5,59,"Flores"]
[null,null,null,null,null,null,null,null,"5560",5,5,60,"Rancherías (Rancherías Nuevo)"]
[null,null,null,null,null,null,null,null,"5561",5,5,61,"San Alberto"]
[null,null,null,null,null,null,null,null,"5562",5,5,62,"El Refugio"]
[null,null,null,null,null,null,null,null,"5563",5,5,63,"Los Rincones"]
[null,null,null,null,null,null,null,null,"5564",5,5,64,"San Carlos"]
[null,null,null,null,null,null,null,null,"5565",5,5,65,"San Francisco"]
[null,null,null,null,null,null,null,null,"5566",5,5,66,"San Luis"]
[null,null,null,null,null,null,null,null,"5567",5,5,67,"San Miguel"]
[null,null,null,null,null,null,null,null,"5569",5,5,69,"Santa Lucía"]
[null,null,null,null,null,null,null,null,"5570",5,5,70,"Nueva Esperanza (Las Vacas)"]
[null,null,null,null,null,null,null,null,"5571",5,5,71,"Valles"]
[null,null,null,null,null,null,null,null,"5572",5,5,72,"Veintidós de Febrero"]
[null,null,null,null,null,null,null,null,"5575",5,5,75,"El Salado"]
[null,null,null,null,null,null,null,null,"5576",5,5,76,"Antonio Madrid"]
[null,null,null,null,null,null,null,null,"5582",5,5,82,"Santa Cristina"]
[null,null,null,null,null,null,null,null,"5583",5,5,83,"Rancho Viejo"]
[null,null,null,null,null,null,null,null,"5584",5,5,84,"La Hacienda"]
[null,null,null,null,null,null,null,null,"5585",5,5,85,"2 Hermanos"]
[null,null,null,null,null,null,null,null,"5586",5,5,86,"San José"]
[null,null,null,null,null,null,null,null,"5587",5,5,87,"Martina González"]
[null,null,null,null,null,null,null,null,"5588",5,5,88,"Perpetuo Socorro"]
[null,null,null,null,null,null,null,null,"5590",5,5,90,"Las Pitayas"]
[null,null,null,null,null,null,null,null,"5594",5,5,94,"Francisco Pérez"]
[null,null,null,null,null,null,null,null,"5595",5,5,95,"Israel Garza"]
[null,null,null,null,null,null,null,null,"5596",5,5,96,"Juan Elizondo (Los Juanes)"]
[null,null,null,null,null,null,null,null,"55100",5,5,100,"Los Indios"]
[null,null,null,null,null,null,null,null,"55101",5,5,101,"El Porvenir"]
[null,null,null,null,null,null,null,null,"55104",5,5,104,"Cuatro Halcones"]
[null,null,null,null,null,null,null,null,"55106",5,5,106,"Jesús María (Loma Macavelo)"]
[null,null,null,null,null,null,null,null,"55110",5,5,110,"El Serrano"]
[null,null,null,null,null,null,null,null,"55111",5,5,111,"Gregorio Lara Ortegón"]
[null,null,null,null,null,null,null,null,"55112",5,5,112,"San Francisco"]
[null,null,null,null,null,null,null,null,"55114",5,5,114,"Los Colorados (La Crucita)"]
[null,null,null,null,null,null,null,null,"55115",5,5,115,"La Perlita (Vidal Romero)"]
[null,null,null,null,null,null,null,null,"55117",5,5,117,"El Trébol"]
[null,null,null,null,null,null,null,null,"55118",5,5,118,"La Sauceda"]
[null,null,null,null,null,null,null,null,"55119",5,5,119,"Empidio de la Cruz"]
[null,null,null,null,null,null,null,null,"55120",5,5,120,"Oscar Santos Arévalo"]
[null,null,null,null,null,null,null,null,"55121",5,5,121,"Carlos Kistner"]
[null,null,null,null,null,null,null,null,"55122",5,5,122,"Rodolfo Kistner"]
[null,null,null,null,null,null,null,null,"55124",5,5,124,"Robles"]
[null,null,null,null,null,null,null,null,"55125",5,5,125,"Las Enramadas"]
[null,null,null,null,null,null,null,null,"55126",5,5,126,"La Ponderosa"]
[null,null,null,null,null,null,null,null,"55127",5,5,127,"Roberto de la Cruz"]
[null,null,null,null,null,null,null,null,"55128",5,5,128,"El Kínder"]
[null,null,null,null,null,null,null,null,"55129",5,5,129,"Nemecio Hernández"]
[null,null,null,null,null,null,null,null,"55130",5,5,130,"Gilberto Garza Villarreal"]
[null,null,null,null,null,null,null,null,"55131",5,5,131,"Juan Garza"]
[null,null,null,null,null,null,null,null,"55132",5,5,132,"Benjamín Ortegón"]
[null,null,null,null,null,null,null,null,"55133",5,5,133,"Jesús Cipriano García (El Infierno)"]
[null,null,null,null,null,null,null,null,"55134",5,5,134,"Ranchito de Moreno"]
[null,null,null,null,null,null,null,null,"55135",5,5,135,"Mauricio Tijerina"]
[null,null,null,null,null,null,null,null,"55136",5,5,136,"Veintidós"]
[null,null,null,null,null,null,null,null,"55137",5,5,137,"Humberto Mendiola"]
[null,null,null,null,null,null,null,null,"55138",5,5,138,"El Quince"]
[null,null,null,null,null,null,null,null,"55139",5,5,139,"Santa Isabel"]
[null,null,null,null,null,null,null,null,"55140",5,5,140,"Rancho del Carmen"]
[null,null,null,null,null,null,null,null,"55143",5,5,143,"Los Brasiles"]
[null,null,null,null,null,null,null,null,"55144",5,5,144,"Rincón del Barretoso"]
[null,null,null,null,null,null,null,null,"55145",5,5,145,"José Guillermo Valdez Oviedo"]
[null,null,null,null,null,null,null,null,{"$f":"$J771&$K771&$L771","v":"55146"},5,5,146,"Sabas de León (Don Sabas)"]
[null,null,null,null,null,null,null,null,"55147",5,5,147,"El Chaparral"]
[null,null,null,null,null,null,null,null,"55148",5,5,148,"José Arévalo (El Llano)"]
[null,null,null,null,null,null,null,null,"55149",5,5,149,"Casas Blancas"]
[null,null,null,null,null,null,null,null,"55150",5,5,150,"Rodolfo Garza Ancira"]
[null,null,null,null,null,null,null,null,"55151",5,5,151,"Las Navajas"]
[null,null,null,null,null,null,null,null,"55152",5,5,152,"Santa Bárbara"]
[null,null,null,null,null,null,null,null,"55153",5,5,153,"San Isidro (El Mimbre)"]
[null,null,null,null,null,null,null,null,"55154",5,5,154,"Jesús Villarreal Siller"]
[null,null,null,null,null,null,null,null,"55155",5,5,155,"Raúl Chavarría Espinoza"]
[null,null,null,null,null,null,null,null,"55156",5,5,156,"Villarreal"]
[null,null,null,null,null,null,null,null,"55157",5,5,157,"José García Tijerina (El Trece)"]
[null,null,null,null,null,null,null,null,"55159",5,5,159,"Félix Buentello"]
[null,null,null,null,null,null,null,null,"55160",5,5,160,"Antonio Fuentes Galindo (El Temporal Ranch)"]
[null,null,null,null,null,null,null,null,"55161",5,5,161,"La Carroza"]
[null,null,null,null,null,null,null,null,"55162",5,5,162,"Profesor José María"]
[null,null,null,null,null,null,null,null,"55164",5,5,164,"Ninguno [Molino de Mineral]"]
[null,null,null,null,null,null,null,null,"55165",5,5,165,"San Pablo"]
[null,null,null,null,null,null,null,null,"55166",5,5,166,"Melchor Flores"]
[null,null,null,null,null,null,null,null,"55168",5,5,168,"La Tinaja"]
[null,null,null,null,null,null,null,null,"55170",5,5,170,"José Ramos Márquez"]
[null,null,null,null,null,null,null,null,"55171",5,5,171,"San Pedro"]
[null,null,null,null,null,null,null,null,"55172",5,5,172,"El Ancón del Carmen (Rodolfo Morales)"]
[null,null,null,null,null,null,null,null,"55173",5,5,173,"La Presa"]
[null,null,null,null,null,null,null,null,"55174",5,5,174,"Los Ramírez"]
[null,null,null,null,null,null,null,null,"55175",5,5,175,"Juan Ramón Lara Buentello"]
[null,null,null,null,null,null,null,null,"55176",5,5,176,"Ninguno"]
[null,null,null,null,null,null,null,null,"55177",5,5,177,"El Chapote"]
[null,null,null,null,null,null,null,null,"55178",5,5,178,"3 Ríos (René Ríos)"]
[null,null,null,null,null,null,null,null,"561",5,6,1,"Castaños"]
[null,null,null,null,null,null,null,null,"562",5,6,2,"Acámbaro (Acámbaro Viejo)"]
[null,null,null,null,null,null,null,null,"563",5,6,3,"El Alamito"]
[null,null,null,null,null,null,null,null,"567",5,6,7,"Congregación Baján"]
[null,null,null,null,null,null,null,null,"568",5,6,8,"Baján (Estación Baján)"]
[null,null,null,null,null,null,null,null,"569",5,6,9,"Los Barriles"]
[null,null,null,null,null,null,null,null,"5610",5,6,10,"Bocatoche (Las Pompas)"]
[null,null,null,null,null,null,null,null,"5611",5,6,11,"La Bolita"]
[null,null,null,null,null,null,null,null,"5612",5,6,12,"Buenavista"]
[null,null,null,null,null,null,null,null,"5617",5,6,17,"Dolomita [Estación]"]
[null,null,null,null,null,null,null,null,"5618",5,6,18,"Dolores"]
[null,null,null,null,null,null,null,null,"5619",5,6,19,"Elva Gloria"]
[null,null,null,null,null,null,null,null,"5620",5,6,20,"La Encantada"]
[null,null,null,null,null,null,null,null,"5623",5,6,23,"Favorita"]
[null,null,null,null,null,null,null,null,"5627",5,6,27,"Gloria [Estación]"]
[null,null,null,null,null,null,null,null,"5628",5,6,28,"El Granjeno"]
[null,null,null,null,null,null,null,null,"5629",5,6,29,"Guadalupe"]
[null,null,null,null,null,null,null,null,"5630",5,6,30,"La Joya"]
[null,null,null,null,null,null,null,null,"5633",5,6,33,"Tres Palomas"]
[null,null,null,null,null,null,null,null,"5634",5,6,34,"El Milagro"]
[null,null,null,null,null,null,null,null,"5637",5,6,37,"La Muralla"]
[null,null,null,null,null,null,null,null,"5638",5,6,38,"Palmira"]
[null,null,null,null,null,null,null,null,"5639",5,6,39,"Palo Blanco"]
[null,null,null,null,null,null,null,null,"5640",5,6,40,"Nogalera la Paloma"]
[null,null,null,null,null,null,null,null,"5642",5,6,42,"Las Potrancas"]
[null,null,null,null,null,null,null,null,"5643",5,6,43,"El Prendimiento"]
[null,null,null,null,null,null,null,null,"5644",5,6,44,"Presa de Chaires"]
[null,null,null,null,null,null,null,null,"5645",5,6,45,"Presa Rodríguez"]
[null,null,null,null,null,null,null,null,"5646",5,6,46,"Providencia (San Ramón)"]
[null,null,null,null,null,null,null,null,"5647",5,6,47,"Providencia"]
[null,null,null,null,null,null,null,null,"5648",5,6,48,"Sergio de León"]
[null,null,null,null,null,null,null,null,"5649",5,6,49,"El Refugio"]
[null,null,null,null,null,null,null,null,"5650",5,6,50,"San Ambrosio"]
[null,null,null,null,null,null,null,null,"5652",5,6,52,"San Antonio"]
[null,null,null,null,null,null,null,null,"5654",5,6,54,"Centenario (San Diego)"]
[null,null,null,null,null,null,null,null,{"$f":"$J835&$K835&$L835","v":"5655"},5,6,55,"San Francisco"]
[null,null,null,null,null,null,null,null,"5656",5,6,56,"San Isidro"]
[null,null,null,null,null,null,null,null,"5658",5,6,58,"San Lorenzo (El Tanquito)"]
[null,null,null,null,null,null,null,null,"5659",5,6,59,"San Miguel"]
[null,null,null,null,null,null,null,null,"5662",5,6,62,"San Rafael"]
[null,null,null,null,null,null,null,null,"5663",5,6,63,"Santa Elena"]
[null,null,null,null,null,null,null,null,"5664",5,6,64,"Santa Genoveva"]
[null,null,null,null,null,null,null,null,"5665",5,6,65,"Santa Mónica"]
[null,null,null,null,null,null,null,null,"5666",5,6,66,"Santa Teresa"]
[null,null,null,null,null,null,null,null,"5667",5,6,67,"Santa Teresa"]
[null,null,null,null,null,null,null,null,"5668",5,6,68,"Santo Domingo"]
[null,null,null,null,null,null,null,null,"5670",5,6,70,"Tres Marías (El Socorro)"]
[null,null,null,null,null,null,null,null,"5671",5,6,71,"Soledad"]
[null,null,null,null,null,null,null,null,"5672",5,6,72,"La Trinidad (Marcos González González)"]
[null,null,null,null,null,null,null,null,"5673",5,6,73,"Las Uvas"]
[null,null,null,null,null,null,null,null,"5674",5,6,74,"Carlos Salinas de Gortari (San Pablo de los Valdez)"]
[null,null,null,null,null,null,null,null,"5675",5,6,75,"Valle Bocatoche"]
[null,null,null,null,null,null,null,null,"5676",5,6,76,"El Sago (Loma Bola)"]
[null,null,null,null,null,null,null,null,"5677",5,6,77,"La Zorra"]
[null,null,null,null,null,null,null,null,"5680",5,6,80,"Cuauhtémoc (La Presa)"]
[null,null,null,null,null,null,null,null,"5682",5,6,82,"La Gloria (El Marqués)"]
[null,null,null,null,null,null,null,null,"5684",5,6,84,"El Huizache"]
[null,null,null,null,null,null,null,null,"5686",5,6,86,"Los Lirios"]
[null,null,null,null,null,null,null,null,"5688",5,6,88,"Marcelinas"]
[null,null,null,null,null,null,null,null,"5691",5,6,91,"La Palangana"]
[null,null,null,null,null,null,null,null,"5692",5,6,92,"San Marcos"]
[null,null,null,null,null,null,null,null,"5693",5,6,93,"El Canelo"]
[null,null,null,null,null,null,null,null,"5694",5,6,94,"La Viga"]
[null,null,null,null,null,null,null,null,"56100",5,6,100,"Acatita de Baján"]
[null,null,null,null,null,null,null,null,"56102",5,6,102,"San José"]
[null,null,null,null,null,null,null,null,"56103",5,6,103,"La Fe (Transvaal)"]
[null,null,null,null,null,null,null,null,"56105",5,6,105,"Los Ángeles"]
[null,null,null,null,null,null,null,null,"56107",5,6,107,"Las Golondrinas"]
[null,null,null,null,null,null,null,null,"56109",5,6,109,"Canalitates"]
[null,null,null,null,null,null,null,null,"56110",5,6,110,"Cañón de las Vacas"]
[null,null,null,null,null,null,null,null,"56111",5,6,111,"Cañón del Velduque"]
[null,null,null,null,null,null,null,null,"56113",5,6,113,"El Chapote"]
[null,null,null,null,null,null,null,null,"56114",5,6,114,"Los Chapotes"]
[null,null,null,null,null,null,null,null,"56117",5,6,117,"San Vicente (El Coyote)"]
[null,null,null,null,null,null,null,null,"56119",5,6,119,"El Cubilete"]
[null,null,null,null,null,null,null,null,"56123",5,6,123,"La Escondida"]
[null,null,null,null,null,null,null,null,"56125",5,6,125,"Guadalupe"]
[null,null,null,null,null,null,null,null,"56128",5,6,128,"Junco (El Ojo de Agua)"]
[null,null,null,null,null,null,null,null,"56131",5,6,131,"Maravillas"]
[null,null,null,null,null,null,null,null,"56137",5,6,137,"Palo del Oso"]
[null,null,null,null,null,null,null,null,"56142",5,6,142,"El Ranchito"]
[null,null,null,null,null,null,null,null,"56143",5,6,143,"La Rinconada"]
[null,null,null,null,null,null,null,null,"56144",5,6,144,"San Antonio"]
[null,null,null,null,null,null,null,null,"56146",5,6,146,"San Carlos"]
[null,null,null,null,null,null,null,null,"56148",5,6,148,"Las Cuevas (Cañón de las Cuevas)"]
[null,null,null,null,null,null,null,null,"56150",5,6,150,"San José"]
[null,null,null,null,null,null,null,null,"56151",5,6,151,"San José"]
[null,null,null,null,null,null,null,null,"56152",5,6,152,"San Juan"]
[null,null,null,null,null,null,null,null,"56153",5,6,153,"San Lorenzo"]
[null,null,null,null,null,null,null,null,"56154",5,6,154,"San Martín"]
[null,null,null,null,null,null,null,null,"56155",5,6,155,"San Osvaldo"]
[null,null,null,null,null,null,null,null,"56156",5,6,156,"San Patricio (Los Charrasquillos)"]
[null,null,null,null,null,null,null,null,"56159",5,6,159,"Santa Cruz"]
[null,null,null,null,null,null,null,null,"56160",5,6,160,"Tres Victorias"]
[null,null,null,null,null,null,null,null,"56161",5,6,161,"Santa Engracia"]
[null,null,null,null,null,null,null,null,"56165",5,6,165,"El Saucito"]
[null,null,null,null,null,null,null,null,"56167",5,6,167,"San Esteban (Juan Sifuentes González)"]
[null,null,null,null,null,null,null,null,"56169",5,6,169,"El Tanquito (Enrique Castillo Montemayor)"]
[null,null,null,null,null,null,null,null,"56170",5,6,170,"El Trébol"]
[null,null,null,null,null,null,null,null,{"$f":"$J899&$K899&$L899","v":"56173"},5,6,173,"La Fuente [Balneario]"]
[null,null,null,null,null,null,null,null,"56175",5,6,175,"Mavet (La Coyota)"]
[null,null,null,null,null,null,null,null,"56178",5,6,178,"Limón"]
[null,null,null,null,null,null,null,null,"56180",5,6,180,"San Antonio"]
[null,null,null,null,null,null,null,null,"56181",5,6,181,"Cristo Rey"]
[null,null,null,null,null,null,null,null,"56184",5,6,184,"La Esperanza"]
[null,null,null,null,null,null,null,null,"56185",5,6,185,"Rancho Alegre"]
[null,null,null,null,null,null,null,null,"56188",5,6,188,"Chiquito"]
[null,null,null,null,null,null,null,null,"56190",5,6,190,"Alicia"]
[null,null,null,null,null,null,null,null,"56193",5,6,193,"Carlos Asís"]
[null,null,null,null,null,null,null,null,"56195",5,6,195,"Víctor Silva"]
[null,null,null,null,null,null,null,null,"56196",5,6,196,"La Gloria"]
[null,null,null,null,null,null,null,null,"56197",5,6,197,"El Milagro"]
[null,null,null,null,null,null,null,null,"56198",5,6,198,"La Gloria"]
[null,null,null,null,null,null,null,null,"56199",5,6,199,"El Aguacero"]
[null,null,null,null,null,null,null,null,"56200",5,6,200,"Santa Anita"]
[null,null,null,null,null,null,null,null,"56201",5,6,201,"La Escondida"]
[null,null,null,null,null,null,null,null,"56202",5,6,202,"El Nogalito"]
[null,null,null,null,null,null,null,null,"56209",5,6,209,"Real Viejo"]
[null,null,null,null,null,null,null,null,"56211",5,6,211,"El Cañón"]
[null,null,null,null,null,null,null,null,"56212",5,6,212,"Acámbaro de Arriba (Nuevo Acámbaro)"]
[null,null,null,null,null,null,null,null,"56219",5,6,219,"Leñadero (La Soledad)"]
[null,null,null,null,null,null,null,null,"56220",5,6,220,"Campamento Bautista"]
[null,null,null,null,null,null,null,null,"56221",5,6,221,"La Esperanza"]
[null,null,null,null,null,null,null,null,"56222",5,6,222,"El Socorro"]
[null,null,null,null,null,null,null,null,"56223",5,6,223,"José Herrera"]
[null,null,null,null,null,null,null,null,"56224",5,6,224,"Boca del Cañón de San Antonio"]
[null,null,null,null,null,null,null,null,"56225",5,6,225,"Santa Rosa"]
[null,null,null,null,null,null,null,null,"56226",5,6,226,"San Jesús"]
[null,null,null,null,null,null,null,null,"56227",5,6,227,"Miguel Silva"]
[null,null,null,null,null,null,null,null,"56228",5,6,228,"Jesús Castillo Galván"]
[null,null,null,null,null,null,null,null,"56231",5,6,231,"Las Bugambilias"]
[null,null,null,null,null,null,null,null,"56232",5,6,232,"Antonia Martínez Guedea"]
[null,null,null,null,null,null,null,null,"56233",5,6,233,"Federico Cárdenas Fuentes"]
[null,null,null,null,null,null,null,null,"56234",5,6,234,"Las Palmas"]
[null,null,null,null,null,null,null,null,"56235",5,6,235,"Hacienda el Sago"]
[null,null,null,null,null,null,null,null,"56236",5,6,236,"Pequeño Rancho"]
[null,null,null,null,null,null,null,null,"56237",5,6,237,"La Estrella"]
[null,null,null,null,null,null,null,null,"56238",5,6,238,"El Arenoso"]
[null,null,null,null,null,null,null,null,"56239",5,6,239,"Mónico Carreón"]
[null,null,null,null,null,null,null,null,"56241",5,6,241,"San José"]
[null,null,null,null,null,null,null,null,"56242",5,6,242,"La Y Griega [Restaurante]"]
[null,null,null,null,null,null,null,null,"56243",5,6,243,"Simón Sifuentes"]
[null,null,null,null,null,null,null,null,"56244",5,6,244,"Tuty (Ernesto Barrera de Hoyos)"]
[null,null,null,null,null,null,null,null,"56245",5,6,245,"Esteban Reyes"]
[null,null,null,null,null,null,null,null,"56246",5,6,246,"Federico Martínez"]
[null,null,null,null,null,null,null,null,"56247",5,6,247,"Margarito Mendoza (Los Mendoza)"]
[null,null,null,null,null,null,null,null,"56248",5,6,248,"Ignacio Alemán"]
[null,null,null,null,null,null,null,null,"56249",5,6,249,"Pedro Mascorro"]
[null,null,null,null,null,null,null,null,"56250",5,6,250,"Mina del Agua"]
[null,null,null,null,null,null,null,null,"56251",5,6,251,"Fraccionamiento el Cañón"]
[null,null,null,null,null,null,null,null,"56252",5,6,252,"Raúl González Luna"]
[null,null,null,null,null,null,null,null,"56253",5,6,253,"Cañón el Panal"]
[null,null,null,null,null,null,null,null,"56254",5,6,254,"La Purísima (El Panal)"]
[null,null,null,null,null,null,null,null,"56255",5,6,255,"La Pasta Tres"]
[null,null,null,null,null,null,null,null,"56257",5,6,257,"Cañón Chilpitín (Rancho de Cuca)"]
[null,null,null,null,null,null,null,null,"56258",5,6,258,"Cañón Chilpitín Uno"]
[null,null,null,null,null,null,null,null,"56262",5,6,262,"El Chilpitín"]
[null,null,null,null,null,null,null,null,"56264",5,6,264,"San Francisco (Tanque de San Francisco)"]
[null,null,null,null,null,null,null,null,"56265",5,6,265,"El Tepeyac"]
[null,null,null,null,null,null,null,null,"56266",5,6,266,"Santa Fe"]
[null,null,null,null,null,null,null,null,"56267",5,6,267,"Paraíso"]
[null,null,null,null,null,null,null,null,"56268",5,6,268,"Santa Cruz Dos"]
[null,null,null,null,null,null,null,null,"56269",5,6,269,"San Francisco"]
[null,null,null,null,null,null,null,null,{"$f":"$J963&$K963&$L963","v":"56270"},5,6,270,"Joya [Mina]"]
[null,null,null,null,null,null,null,null,"56272",5,6,272,"La Negrita"]
[null,null,null,null,null,null,null,null,"56273",5,6,273,"Espinazo"]
[null,null,null,null,null,null,null,null,"56274",5,6,274,"Felícita Chaires"]
[null,null,null,null,null,null,null,null,"56275",5,6,275,"Pedro Mata Martínez (Acámbaro Fracción)"]
[null,null,null,null,null,null,null,null,"56276",5,6,276,"La Escondida (Pasta del Anillo)"]
[null,null,null,null,null,null,null,null,"56277",5,6,277,"El Pérsico"]
[null,null,null,null,null,null,null,null,"56278",5,6,278,"Luis Hernández"]
[null,null,null,null,null,null,null,null,"56279",5,6,279,"Guillermo Suárez Díaz"]
[null,null,null,null,null,null,null,null,"56280",5,6,280,"Gregorio Segundo Medellín"]
[null,null,null,null,null,null,null,null,"56281",5,6,281,"Pedro Castilleja"]
[null,null,null,null,null,null,null,null,"56282",5,6,282,"Luis Alvarado"]
[null,null,null,null,null,null,null,null,"56283",5,6,283,"La Gavia"]
[null,null,null,null,null,null,null,null,"56284",5,6,284,"San Rafael (Santa Genoveva) [Mina]"]
[null,null,null,null,null,null,null,null,"56285",5,6,285,"Felipe Carrillo Valero"]
[null,null,null,null,null,null,null,null,"56286",5,6,286,"Honorio Andrade"]
[null,null,null,null,null,null,null,null,"56287",5,6,287,"El Socorro"]
[null,null,null,null,null,null,null,null,"56288",5,6,288,"Tres Hermanos (Noé Veliz Guzmán)"]
[null,null,null,null,null,null,null,null,"56289",5,6,289,"San Lázaro"]
[null,null,null,null,null,null,null,null,"56290",5,6,290,"El Berrinche (Rodolfo Reyes)"]
[null,null,null,null,null,null,null,null,"56291",5,6,291,"La Escondida (Juan Alvarado)"]
[null,null,null,null,null,null,null,null,"56292",5,6,292,"Cristo Rey Dos"]
[null,null,null,null,null,null,null,null,"56293",5,6,293,"El Alacrán"]
[null,null,null,null,null,null,null,null,"56294",5,6,294,"Pedro Sarabia"]
[null,null,null,null,null,null,null,null,"56295",5,6,295,"Guadalupe"]
[null,null,null,null,null,null,null,null,"56296",5,6,296,"San Luis"]
[null,null,null,null,null,null,null,null,"56297",5,6,297,"Pedro de León (De Sago)"]
[null,null,null,null,null,null,null,null,"56298",5,6,298,"Alfredo Suárez"]
[null,null,null,null,null,null,null,null,"56299",5,6,299,"Arturo Méndez Cervantes"]
[null,null,null,null,null,null,null,null,"56300",5,6,300,"Francisco Hernández"]
[null,null,null,null,null,null,null,null,"56301",5,6,301,"Rogelio Lerma Treviño"]
[null,null,null,null,null,null,null,null,"56302",5,6,302,"Mario Lomas"]
[null,null,null,null,null,null,null,null,"56303",5,6,303,"Fidencio Cázares"]
[null,null,null,null,null,null,null,null,"56304",5,6,304,"El Pitayo (Edmundo González)"]
[null,null,null,null,null,null,null,null,"56305",5,6,305,"Emiliano Aguirre Flores"]
[null,null,null,null,null,null,null,null,"56306",5,6,306,"La Garruña (Los Castillo)"]
[null,null,null,null,null,null,null,null,"56307",5,6,307,"El Álamo"]
[null,null,null,null,null,null,null,null,"56308",5,6,308,"Carolina [Minera]"]
[null,null,null,null,null,null,null,null,"56309",5,6,309,"Los Mimbres"]
[null,null,null,null,null,null,null,null,"56310",5,6,310,"El Paso de la Bolita"]
[null,null,null,null,null,null,null,null,"56311",5,6,311,"San Antonio"]
[null,null,null,null,null,null,null,null,"56312",5,6,312,"Ninguno"]
[null,null,null,null,null,null,null,null,"56313",5,6,313,"Jesús Carrillo Campusano"]
[null,null,null,null,null,null,null,null,"56314",5,6,314,"Antonio Méndez"]
[null,null,null,null,null,null,null,null,"56315",5,6,315,"Carlos Torres"]
[null,null,null,null,null,null,null,null,"56316",5,6,316,"Ciriaco Juárez Borrego"]
[null,null,null,null,null,null,null,null,"56317",5,6,317,"El Divisadero (Arturo Inocencio Beltrán)"]
[null,null,null,null,null,null,null,null,"56318",5,6,318,"José Chaires"]
[null,null,null,null,null,null,null,null,"56319",5,6,319,"Las Mangas"]
[null,null,null,null,null,null,null,null,"56320",5,6,320,"Manuel Hernández"]
[null,null,null,null,null,null,null,null,"56321",5,6,321,"El Ojo de Agua"]
[null,null,null,null,null,null,null,null,"56322",5,6,322,"Polo Guajardo"]
[null,null,null,null,null,null,null,null,"56323",5,6,323,"El Molino Providencia [Triturados Construcción y Maquinaria]"]
[null,null,null,null,null,null,null,null,"56324",5,6,324,"Ninguno"]
[null,null,null,null,null,null,null,null,"56325",5,6,325,"Ninguno"]
[null,null,null,null,null,null,null,null,"56326",5,6,326,"Ninguno"]
[null,null,null,null,null,null,null,null,"56327",5,6,327,"Abel Sepúlveda"]
[null,null,null,null,null,null,null,null,"56328",5,6,328,"El Abuelo"]
[null,null,null,null,null,null,null,null,"56330",5,6,330,"El Tigre [Autolineas]"]
[null,null,null,null,null,null,null,null,"56332",5,6,332,"El Cariño (José Guadalupe Tobías Cervantes)"]
[null,null,null,null,null,null,null,null,"56333",5,6,333,"Los Compadres"]
[null,null,null,null,null,null,null,null,"56334",5,6,334,"Castaños [Construcción Cascajo y Arena]"]
[null,null,null,null,null,null,null,null,"56335",5,6,335,"El Conejo"]
[null,null,null,null,null,null,null,null,"56336",5,6,336,"Cuadra Santa Cecilia (Santiago Méndez C.)"]
[null,null,null,null,null,null,null,null,{"$f":"$J1027&$K1027&$L1027","v":"56337"},5,6,337,"El Encino (Jacinto Contreras)"]
[null,null,null,null,null,null,null,null,"56338",5,6,338,"Ninguno [Express Gasusa]"]
[null,null,null,null,null,null,null,null,"56339",5,6,339,"Faustino Méndez (El Texano)"]
[null,null,null,null,null,null,null,null,"56340",5,6,340,"El Yuyo [Granja]"]
[null,null,null,null,null,null,null,null,"56341",5,6,341,"Guadalupe Macías Pecina"]
[null,null,null,null,null,null,null,null,"56342",5,6,342,"Ignacio Sánchez Flores"]
[null,null,null,null,null,null,null,null,"56343",5,6,343,"Las Isabeles"]
[null,null,null,null,null,null,null,null,"56344",5,6,344,"Jacinto Contreras"]
[null,null,null,null,null,null,null,null,"56345",5,6,345,"Jesús Roberto Quintanilla"]
[null,null,null,null,null,null,null,null,"56347",5,6,347,"Martha Elena Carreón"]
[null,null,null,null,null,null,null,null,"56348",5,6,348,"José Reyes Espinoza"]
[null,null,null,null,null,null,null,null,"56349",5,6,349,"Juan Camarillo"]
[null,null,null,null,null,null,null,null,"56350",5,6,350,"Julio Flores Salinas"]
[null,null,null,null,null,null,null,null,"56351",5,6,351,"Leocadio de Hoyos"]
[null,null,null,null,null,null,null,null,"56354",5,6,354,"La Majada de Don Jesús"]
[null,null,null,null,null,null,null,null,"56355",5,6,355,"Manuel Villarreal Galván"]
[null,null,null,null,null,null,null,null,"56356",5,6,356,"Maravillas (Vicente Domínguez Torres)"]
[null,null,null,null,null,null,null,null,"56357",5,6,357,"Omar González (Rey de Reyes)"]
[null,null,null,null,null,null,null,null,"56358",5,6,358,"Quinta Guadalupe"]
[null,null,null,null,null,null,null,null,"56359",5,6,359,"Ramiro Jiménez"]
[null,null,null,null,null,null,null,null,"56360",5,6,360,"Raúl Sánchez Campuzano (Rey de Reyes)"]
[null,null,null,null,null,null,null,null,"56361",5,6,361,"El Renegado"]
[null,null,null,null,null,null,null,null,"56362",5,6,362,"Rogelio Aguilar Treviño"]
[null,null,null,null,null,null,null,null,"56363",5,6,363,"Rogelio Torres"]
[null,null,null,null,null,null,null,null,"56365",5,6,365,"Santiago Hernández"]
[null,null,null,null,null,null,null,null,"56366",5,6,366,"Gima [Transporte]"]
[null,null,null,null,null,null,null,null,"56367",5,6,367,"Ramírez [Transporte]"]
[null,null,null,null,null,null,null,null,"56368",5,6,368,"Argi [Triturado]"]
[null,null,null,null,null,null,null,null,"56369",5,6,369,"Víctor Santiesteban Mora"]
[null,null,null,null,null,null,null,null,"56370",5,6,370,"Zaragoza Zúñiga"]
[null,null,null,null,null,null,null,null,"56371",5,6,371,"Rancho Seco (Rigoberto Loera Ceballos)"]
[null,null,null,null,null,null,null,null,"56372",5,6,372,"Tanque de Juan"]
[null,null,null,null,null,null,null,null,"56373",5,6,373,"Colonia Maravillas"]
[null,null,null,null,null,null,null,null,"56374",5,6,374,"Adán Méndez"]
[null,null,null,null,null,null,null,null,"56375",5,6,375,"Alejandro de Hoyos"]
[null,null,null,null,null,null,null,null,"56376",5,6,376,"El Centeno"]
[null,null,null,null,null,null,null,null,"56377",5,6,377,"Roger Braun (El Reboso)"]
[null,null,null,null,null,null,null,null,"56378",5,6,378,"Demetrio Juárez Costilla"]
[null,null,null,null,null,null,null,null,"56379",5,6,379,"Pablo García"]
[null,null,null,null,null,null,null,null,"56380",5,6,380,"Miguel Ger"]
[null,null,null,null,null,null,null,null,"56381",5,6,381,"José Medrano"]
[null,null,null,null,null,null,null,null,"56382",5,6,382,"El Socorro"]
[null,null,null,null,null,null,null,null,"56383",5,6,383,"La Majada"]
[null,null,null,null,null,null,null,null,"56384",5,6,384,"Juan Elizondo"]
[null,null,null,null,null,null,null,null,"571",5,7,1,"Cuatro Ciénegas de Carranza"]
[null,null,null,null,null,null,null,null,"572",5,7,2,"Antiguos Mineros del Norte (Santa Tecla)"]
[null,null,null,null,null,null,null,null,"574",5,7,4,"Belloc [Estación]"]
[null,null,null,null,null,null,null,null,"576",5,7,6,"Alfalfar [Sociedad de Producción Rural]"]
[null,null,null,null,null,null,null,null,"577",5,7,7,"Cuates de Australia"]
[null,null,null,null,null,null,null,null,"5710",5,7,10,"Estanque de Norias"]
[null,null,null,null,null,null,null,null,"5711",5,7,11,"Estanque de Palomas (Las Palomas)"]
[null,null,null,null,null,null,null,null,"5712",5,7,12,"La Cuchilla (Ferriño)"]
[null,null,null,null,null,null,null,null,"5714",5,7,14,"El Venado"]
[null,null,null,null,null,null,null,null,"5715",5,7,15,"El Oso"]
[null,null,null,null,null,null,null,null,"5716",5,7,16,"Reforma (La Colonia)"]
[null,null,null,null,null,null,null,null,"5718",5,7,18,"San Juan de Boquillas (San Juan)"]
[null,null,null,null,null,null,null,null,"5719",5,7,19,"San Vicente"]
[null,null,null,null,null,null,null,null,"5720",5,7,20,"El Socorro [Estación]"]
[null,null,null,null,null,null,null,null,"5721",5,7,21,"Tanque Nuevo (El Cinco)"]
[null,null,null,null,null,null,null,null,"5722",5,7,22,"La Vega"]
[null,null,null,null,null,null,null,null,"5723",5,7,23,"La Victoria"]
[null,null,null,null,null,null,null,null,"5724",5,7,24,"Seis de Enero"]
[null,null,null,null,null,null,null,null,"5725",5,7,25,"San José de la Zacatosa (Arocha)"]
[null,null,null,null,null,null,null,null,"5727",5,7,27,"Australia (Barranquitas)"]
[null,null,null,null,null,null,null,null,{"$f":"$J1091&$K1091&$L1091","v":"5728"},5,7,28,"El Granizo (Bordos el Diablo)"]
[null,null,null,null,null,null,null,null,"5729",5,7,29,"Carrizos"]
[null,null,null,null,null,null,null,null,"5730",5,7,30,"Cuates de Abajo (Cerros Prietos)"]
[null,null,null,null,null,null,null,null,"5732",5,7,32,"El Mineral de Reforma"]
[null,null,null,null,null,null,null,null,"5733",5,7,33,"El Espejo"]
[null,null,null,null,null,null,null,null,"5735",5,7,35,"El Refugio"]
[null,null,null,null,null,null,null,null,"5738",5,7,38,"Siete de Junio"]
[null,null,null,null,null,null,null,null,"5739",5,7,39,"El Retiro (La China)"]
[null,null,null,null,null,null,null,null,"5740",5,7,40,"El Juncal"]
[null,null,null,null,null,null,null,null,"5741",5,7,41,"El Tajo"]
[null,null,null,null,null,null,null,null,"5746",5,7,46,"El Jabalí"]
[null,null,null,null,null,null,null,null,"5748",5,7,48,"El Madero"]
[null,null,null,null,null,null,null,null,"5749",5,7,49,"Tanque el Magueyal"]
[null,null,null,null,null,null,null,null,"5750",5,7,50,"El Clavel"]
[null,null,null,null,null,null,null,null,"5752",5,7,52,"El Toro"]
[null,null,null,null,null,null,null,null,"5754",5,7,54,"Ferriño [Bodegas]"]
[null,null,null,null,null,null,null,null,"5756",5,7,56,"Cuatro Ciénegas de Carranza [Estación]"]
[null,null,null,null,null,null,null,null,"5757",5,7,57,"Ocampo [Asociación Ganadera]"]
[null,null,null,null,null,null,null,null,"5761",5,7,61,"Gabino Vázquez (El Naranjo)"]
[null,null,null,null,null,null,null,null,"5765",5,7,65,"La Casita"]
[null,null,null,null,null,null,null,null,"5766",5,7,66,"Loma Prieta"]
[null,null,null,null,null,null,null,null,"5767",5,7,67,"El Valle (La Avería)"]
[null,null,null,null,null,null,null,null,"5768",5,7,68,"La Calera (Los García)"]
[null,null,null,null,null,null,null,null,"5769",5,7,69,"Nueve de Octubre [Sociedad de Producción Rural]"]
[null,null,null,null,null,null,null,null,"5770",5,7,70,"San Miguel (La Máquina)"]
[null,null,null,null,null,null,null,null,"5771",5,7,71,"San Miguel"]
[null,null,null,null,null,null,null,null,"5772",5,7,72,"El Sauz"]
[null,null,null,null,null,null,null,null,"5773",5,7,73,"La Calera (Los Govea)"]
[null,null,null,null,null,null,null,null,"5775",5,7,75,"Corita [Sociedad de Producción Rural]"]
[null,null,null,null,null,null,null,null,"5776",5,7,76,"Rosario Viejo"]
[null,null,null,null,null,null,null,null,"5777",5,7,77,"San José del Anteojo"]
[null,null,null,null,null,null,null,null,"5780",5,7,80,"Molino del Rey"]
[null,null,null,null,null,null,null,null,"5781",5,7,81,"Quinta Margarita"]
[null,null,null,null,null,null,null,null,"5786",5,7,86,"Los Belloc (Guadalupe)"]
[null,null,null,null,null,null,null,null,"5787",5,7,87,"San Lorenzo"]
[null,null,null,null,null,null,null,null,"5788",5,7,88,"Tierra Blanca"]
[null,null,null,null,null,null,null,null,"5789",5,7,89,"Poza la Becerra (Poza de la Becerra)"]
[null,null,null,null,null,null,null,null,"5790",5,7,90,"Nuevo Atalaya (San Marcos)"]
[null,null,null,null,null,null,null,null,"5791",5,7,91,"Orozco"]
[null,null,null,null,null,null,null,null,"5792",5,7,92,"La Campana"]
[null,null,null,null,null,null,null,null,"5793",5,7,93,"Santa Teresa de Sofía"]
[null,null,null,null,null,null,null,null,"5794",5,7,94,"Loma Verde"]
[null,null,null,null,null,null,null,null,"5795",5,7,95,"Santa Rosalía"]
[null,null,null,null,null,null,null,null,"57101",5,7,101,"La Muralla (San Pablo)"]
[null,null,null,null,null,null,null,null,"57103",5,7,103,"Los Altos (Los Castros)"]
[null,null,null,null,null,null,null,null,"57107",5,7,107,"La Escondida (El Lucero)"]
[null,null,null,null,null,null,null,null,"57110",5,7,110,"El Jonuco"]
[null,null,null,null,null,null,null,null,"57112",5,7,112,"La Luz"]
[null,null,null,null,null,null,null,null,"57113",5,7,113,"María Rosa"]
[null,null,null,null,null,null,null,null,"57114",5,7,114,"San Pablo (Ex-Hacienda de San Pablo)"]
[null,null,null,null,null,null,null,null,"57116",5,7,116,"San Esteban"]
[null,null,null,null,null,null,null,null,"57121",5,7,121,"El Venado"]
[null,null,null,null,null,null,null,null,"57123",5,7,123,"Viridiana"]
[null,null,null,null,null,null,null,null,"57124",5,7,124,"Vitali"]
[null,null,null,null,null,null,null,null,"57125",5,7,125,"Magueyal"]
[null,null,null,null,null,null,null,null,"57127",5,7,127,"Guadalupe"]
[null,null,null,null,null,null,null,null,"57128",5,7,128,"La Estrella"]
[null,null,null,null,null,null,null,null,"57132",5,7,132,"Los Ángeles"]
[null,null,null,null,null,null,null,null,"57133",5,7,133,"San José"]
[null,null,null,null,null,null,null,null,"57135",5,7,135,"Santa Mónica"]
[null,null,null,null,null,null,null,null,"57136",5,7,136,"La Ximena"]
[null,null,null,null,null,null,null,null,"57139",5,7,139,"El Buque"]
[null,null,null,null,null,null,null,null,"57140",5,7,140,"Ninguno [Unidad Deportiva]"]
[null,null,null,null,null,null,null,null,"57141",5,7,141,"Susana Moncada (Quinta Guerra Moncada)"]
[null,null,null,null,null,null,null,null,{"$f":"$J1155&$K1155&$L1155","v":"57142"},5,7,142,"Romaguera"]
[null,null,null,null,null,null,null,null,"57143",5,7,143,"González [Granja]"]
[null,null,null,null,null,null,null,null,"57147",5,7,147,"La Rinconada"]
[null,null,null,null,null,null,null,null,"57149",5,7,149,"El Pitayo"]
[null,null,null,null,null,null,null,null,"57150",5,7,150,"La Clave"]
[null,null,null,null,null,null,null,null,"57152",5,7,152,"Ninguno [Unión Ganadera Ejidal]"]
[null,null,null,null,null,null,null,null,"57153",5,7,153,"La Palmosa"]
[null,null,null,null,null,null,null,null,"57154",5,7,154,"El Quinto"]
[null,null,null,null,null,null,null,null,"57155",5,7,155,"Santo Domingo"]
[null,null,null,null,null,null,null,null,"57157",5,7,157,"La Sabaneta"]
[null,null,null,null,null,null,null,null,"57158",5,7,158,"Los Martínez"]
[null,null,null,null,null,null,null,null,"57161",5,7,161,"Gas Monclova"]
[null,null,null,null,null,null,null,null,"57162",5,7,162,"Campamento Minero Bonanza"]
[null,null,null,null,null,null,null,null,"57163",5,7,163,"Bonanza"]
[null,null,null,null,null,null,null,null,"57164",5,7,164,"Los Cuates"]
[null,null,null,null,null,null,null,null,"57165",5,7,165,"Los Osos"]
[null,null,null,null,null,null,null,null,"57166",5,7,166,"La Poza Azul"]
[null,null,null,null,null,null,null,null,"57167",5,7,167,"Las Lagunas"]
[null,null,null,null,null,null,null,null,"57168",5,7,168,"El Hundido"]
[null,null,null,null,null,null,null,null,"57169",5,7,169,"Quintero"]
[null,null,null,null,null,null,null,null,"57172",5,7,172,"El Volcán"]
[null,null,null,null,null,null,null,null,"57175",5,7,175,"Estanque de León"]
[null,null,null,null,null,null,null,null,"57177",5,7,177,"Lucio Blanco (La Pelota)"]
[null,null,null,null,null,null,null,null,"57178",5,7,178,"San Antonio"]
[null,null,null,null,null,null,null,null,"57181",5,7,181,"El Campizal"]
[null,null,null,null,null,null,null,null,"57182",5,7,182,"San Fernando"]
[null,null,null,null,null,null,null,null,"57184",5,7,184,"Zeta"]
[null,null,null,null,null,null,null,null,"57185",5,7,185,"La Sandra"]
[null,null,null,null,null,null,null,null,"57187",5,7,187,"Eliseo Mendoza Berrueto"]
[null,null,null,null,null,null,null,null,"57188",5,7,188,"Las Morenas"]
[null,null,null,null,null,null,null,null,"57190",5,7,190,"Puerto Salado"]
[null,null,null,null,null,null,null,null,"57192",5,7,192,"Presa de Mata"]
[null,null,null,null,null,null,null,null,"57194",5,7,194,"El Amparo (La Babia)"]
[null,null,null,null,null,null,null,null,"57198",5,7,198,"El Volcán"]
[null,null,null,null,null,null,null,null,"57199",5,7,199,"Estroncios de México (San Martín) [Mina]"]
[null,null,null,null,null,null,null,null,"57200",5,7,200,"La Roja [Compañía Minera]"]
[null,null,null,null,null,null,null,null,"57204",5,7,204,"El Rinconcito"]
[null,null,null,null,null,null,null,null,"57205",5,7,205,"El Forado"]
[null,null,null,null,null,null,null,null,"57207",5,7,207,"Las Tetillas"]
[null,null,null,null,null,null,null,null,"57208",5,7,208,"El Tanque"]
[null,null,null,null,null,null,null,null,"57212",5,7,212,"El Campamento del Loco"]
[null,null,null,null,null,null,null,null,"57215",5,7,215,"Puerto Viejo de Bonanza"]
[null,null,null,null,null,null,null,null,"57216",5,7,216,"Perfecto Martínez"]
[null,null,null,null,null,null,null,null,"57217",5,7,217,"Cañón de la Nopalera"]
[null,null,null,null,null,null,null,null,"57218",5,7,218,"El Calvario"]
[null,null,null,null,null,null,null,null,"57219",5,7,219,"Guadalupe"]
[null,null,null,null,null,null,null,null,"57220",5,7,220,"Luis Lauro Cantú"]
[null,null,null,null,null,null,null,null,"57221",5,7,221,"El Cerrito [Rocas y Minerales]"]
[null,null,null,null,null,null,null,null,"57224",5,7,224,"El Milagro"]
[null,null,null,null,null,null,null,null,"57225",5,7,225,"La Caseta"]
[null,null,null,null,null,null,null,null,"57226",5,7,226,"Fundador"]
[null,null,null,null,null,null,null,null,"57227",5,7,227,"El Refugio Praderas"]
[null,null,null,null,null,null,null,null,"57228",5,7,228,"Las Pulgas"]
[null,null,null,null,null,null,null,null,"57232",5,7,232,"El Rastro"]
[null,null,null,null,null,null,null,null,"57233",5,7,233,"Julián Riojas"]
[null,null,null,null,null,null,null,null,"57234",5,7,234,"Orlando Almaguer"]
[null,null,null,null,null,null,null,null,"57235",5,7,235,"Silvestre Medina"]
[null,null,null,null,null,null,null,null,"57236",5,7,236,"Las Palmas"]
[null,null,null,null,null,null,null,null,"57237",5,7,237,"Efraín González"]
[null,null,null,null,null,null,null,null,"57238",5,7,238,"Francisco López"]
[null,null,null,null,null,null,null,null,"57239",5,7,239,"Oscar Sánchez"]
[null,null,null,null,null,null,null,null,"57241",5,7,241,"Hugo Navarro de la Garza"]
[null,null,null,null,null,null,null,null,"57242",5,7,242,"Juan Ramón Navarro Villegas"]
[null,null,null,null,null,null,null,null,"57243",5,7,243,"Ninguno"]
[null,null,null,null,null,null,null,null,{"$f":"$J1219&$K1219&$L1219","v":"57244"},5,7,244,"Jorge Ibarra"]
[null,null,null,null,null,null,null,null,"57246",5,7,246,"El Volcán Dos"]
[null,null,null,null,null,null,null,null,"57247",5,7,247,"Manoly Rusarez"]
[null,null,null,null,null,null,null,null,"57248",5,7,248,"La China"]
[null,null,null,null,null,null,null,null,"57249",5,7,249,"La Pocera"]
[null,null,null,null,null,null,null,null,"57250",5,7,250,"El Ranchito"]
[null,null,null,null,null,null,null,null,"57251",5,7,251,"Piedras de Lumbre de la Estación"]
[null,null,null,null,null,null,null,null,"57252",5,7,252,"Piedras de Lumbre"]
[null,null,null,null,null,null,null,null,"57253",5,7,253,"El Campito (Los Polvorines)"]
[null,null,null,null,null,null,null,null,"57255",5,7,255,"Las Alazanas"]
[null,null,null,null,null,null,null,null,"57256",5,7,256,"El Anteojo"]
[null,null,null,null,null,null,null,null,"57258",5,7,258,"Arturo Torres"]
[null,null,null,null,null,null,null,null,"57259",5,7,259,"Santiago Menchaca"]
[null,null,null,null,null,null,null,null,"57260",5,7,260,"Los Pinos (Valentín Martínez Pérez)"]
[null,null,null,null,null,null,null,null,"57261",5,7,261,"Mario Flores"]
[null,null,null,null,null,null,null,null,"57262",5,7,262,"Gerardo Matanus"]
[null,null,null,null,null,null,null,null,"57263",5,7,263,"El Chapote"]
[null,null,null,null,null,null,null,null,"57264",5,7,264,"Gilberto Cantú (La Angostura Uno)"]
[null,null,null,null,null,null,null,null,"57265",5,7,265,"La Salina"]
[null,null,null,null,null,null,null,null,"57266",5,7,266,"San Eliseo"]
[null,null,null,null,null,null,null,null,"57267",5,7,267,"El Rancho de los Ortiz"]
[null,null,null,null,null,null,null,null,"57268",5,7,268,"La Flecha"]
[null,null,null,null,null,null,null,null,"57269",5,7,269,"Claudio Torres"]
[null,null,null,null,null,null,null,null,"57271",5,7,271,"Elpidio Meras Treviño"]
[null,null,null,null,null,null,null,null,"57272",5,7,272,"El Pasaporte"]
[null,null,null,null,null,null,null,null,"57273",5,7,273,"Armando Villa"]
[null,null,null,null,null,null,null,null,"57274",5,7,274,"La Ilusión"]
[null,null,null,null,null,null,null,null,"57275",5,7,275,"La Labor del Clavel"]
[null,null,null,null,null,null,null,null,"57276",5,7,276,"Santo Domingo"]
[null,null,null,null,null,null,null,null,"57277",5,7,277,"El Anteojito"]
[null,null,null,null,null,null,null,null,"57278",5,7,278,"Cañón Grande"]
[null,null,null,null,null,null,null,null,"57279",5,7,279,"Lomas del Toro"]
[null,null,null,null,null,null,null,null,"57280",5,7,280,"Armerías"]
[null,null,null,null,null,null,null,null,"57281",5,7,281,"Llano Blanco"]
[null,null,null,null,null,null,null,null,"57282",5,7,282,"San José"]
[null,null,null,null,null,null,null,null,"57283",5,7,283,"El Suspiro"]
[null,null,null,null,null,null,null,null,"57285",5,7,285,"Beta San Gabriel"]
[null,null,null,null,null,null,null,null,"57286",5,7,286,"Los Sampedros"]
[null,null,null,null,null,null,null,null,"57287",5,7,287,"La Pistola"]
[null,null,null,null,null,null,null,null,"57288",5,7,288,"Gabriel Villarreal Jordán"]
[null,null,null,null,null,null,null,null,"57289",5,7,289,"José Vázquez"]
[null,null,null,null,null,null,null,null,"57290",5,7,290,"Ramiro Villegas Garza"]
[null,null,null,null,null,null,null,null,"57291",5,7,291,"Héctor Castillo"]
[null,null,null,null,null,null,null,null,"57292",5,7,292,"Francisco López Jiménez"]
[null,null,null,null,null,null,null,null,"57293",5,7,293,"Ramón García"]
[null,null,null,null,null,null,null,null,"57294",5,7,294,"Guadalupe López"]
[null,null,null,null,null,null,null,null,"57295",5,7,295,"Santo Domingo (Cañón de Farías)"]
[null,null,null,null,null,null,null,null,"57296",5,7,296,"El Pilar [Compañía Agrícola]"]
[null,null,null,null,null,null,null,null,"57298",5,7,298,"González"]
[null,null,null,null,null,null,null,null,"57299",5,7,299,"Ninguno [El Relleno Sanitario]"]
[null,null,null,null,null,null,null,null,"57300",5,7,300,"Jesús Castro"]
[null,null,null,null,null,null,null,null,"57301",5,7,301,"José Alfredo Álvarez Cerda"]
[null,null,null,null,null,null,null,null,"57302",5,7,302,"La Babia"]
[null,null,null,null,null,null,null,null,"57303",5,7,303,"Torrebarrio"]
[null,null,null,null,null,null,null,null,"57304",5,7,304,"Bertha Laura Garza Villarreal"]
[null,null,null,null,null,null,null,null,"57305",5,7,305,"La Presita"]
[null,null,null,null,null,null,null,null,"57306",5,7,306,"Los Arellano (El Cañón)"]
[null,null,null,null,null,null,null,null,"57307",5,7,307,"El Abuelo"]
[null,null,null,null,null,null,null,null,"57308",5,7,308,"Francisco Zamarrón"]
[null,null,null,null,null,null,null,null,"57309",5,7,309,"El Galope"]
[null,null,null,null,null,null,null,null,"57310",5,7,310,"Ninguno [El Relleno Sanitario]"]
[null,null,null,null,null,null,null,null,"57311",5,7,311,"El Oasis"]
[null,null,null,null,null,null,null,null,"57312",5,7,312,"Los López"]
[null,null,null,null,null,null,null,null,"57313",5,7,313,"San Rafael"]
[null,null,null,null,null,null,null,null,{"$f":"$J1283&$K1283&$L1283","v":"57314"},5,7,314,"Las 3 Lilas"]
[null,null,null,null,null,null,null,null,"57315",5,7,315,"Chon Ibarra"]
[null,null,null,null,null,null,null,null,"57316",5,7,316,"Los Príncipes"]
[null,null,null,null,null,null,null,null,"57317",5,7,317,"Juan de la Garza"]
[null,null,null,null,null,null,null,null,"57318",5,7,318,"La Colmenita"]
[null,null,null,null,null,null,null,null,"57319",5,7,319,"El Inocente"]
[null,null,null,null,null,null,null,null,"57320",5,7,320,"El Vergel"]
[null,null,null,null,null,null,null,null,"57321",5,7,321,"Chema Soto Díaz de León"]
[null,null,null,null,null,null,null,null,"57322",5,7,322,"Cuahuiltecas [Sales]"]
[null,null,null,null,null,null,null,null,"57323",5,7,323,"Puerto San Juan"]
[null,null,null,null,null,null,null,null,"57324",5,7,324,"San Isidro"]
[null,null,null,null,null,null,null,null,"57325",5,7,325,"El Charro (Luis González Arocha)"]
[null,null,null,null,null,null,null,null,"57326",5,7,326,"Amado Villarreal"]
[null,null,null,null,null,null,null,null,"57327",5,7,327,"René Cantú"]
[null,null,null,null,null,null,null,null,"57328",5,7,328,"Guadalupe López Sánchez"]
[null,null,null,null,null,null,null,null,"581",5,8,1,"Escobedo"]
[null,null,null,null,null,null,null,null,"582",5,8,2,"Loma el Briseño"]
[null,null,null,null,null,null,null,null,"584",5,8,4,"Estación Hermanas"]
[null,null,null,null,null,null,null,null,"586",5,8,6,"San Benito (La Luz)"]
[null,null,null,null,null,null,null,null,"587",5,8,7,"San Isidro (El Mimbre)"]
[null,null,null,null,null,null,null,null,"588",5,8,8,"Obayos"]
[null,null,null,null,null,null,null,null,"589",5,8,9,"Primero de Mayo"]
[null,null,null,null,null,null,null,null,"5811",5,8,11,"Veintinueve de Noviembre (Borregas)"]
[null,null,null,null,null,null,null,null,"5813",5,8,13,"Agua de la Herradura"]
[null,null,null,null,null,null,null,null,"5814",5,8,14,"La Ciénega"]
[null,null,null,null,null,null,null,null,"5815",5,8,15,"Chacón"]
[null,null,null,null,null,null,null,null,"5818",5,8,18,"El Salado"]
[null,null,null,null,null,null,null,null,"5820",5,8,20,"Colonia Menonita (La Gaviota)"]
[null,null,null,null,null,null,null,null,"5822",5,8,22,"La Blanca (Tierra Blanca)"]
[null,null,null,null,null,null,null,null,"5825",5,8,25,"El Mimbre (Los Amaya)"]
[null,null,null,null,null,null,null,null,"5826",5,8,26,"Benigno Franco Anaya"]
[null,null,null,null,null,null,null,null,"5828",5,8,28,"El Potrero (Las Potrancas)"]
[null,null,null,null,null,null,null,null,"5829",5,8,29,"Las Quemadas"]
[null,null,null,null,null,null,null,null,"5831",5,8,31,"El Tulillo"]
[null,null,null,null,null,null,null,null,"5834",5,8,34,"El Paraíso"]
[null,null,null,null,null,null,null,null,"5835",5,8,35,"Sanguijuelas"]
[null,null,null,null,null,null,null,null,"5836",5,8,36,"Cañón de Borregas"]
[null,null,null,null,null,null,null,null,"5837",5,8,37,"El Caracol"]
[null,null,null,null,null,null,null,null,"5839",5,8,39,"El Huizache"]
[null,null,null,null,null,null,null,null,"5840",5,8,40,"Lampazos (Lampacitos)"]
[null,null,null,null,null,null,null,null,"5841",5,8,41,"Lampacitos Nuevo"]
[null,null,null,null,null,null,null,null,"5842",5,8,42,"El Puerto"]
[null,null,null,null,null,null,null,null,"5843",5,8,43,"Sanguijuela"]
[null,null,null,null,null,null,null,null,"5844",5,8,44,"El Tecolote"]
[null,null,null,null,null,null,null,null,"5845",5,8,45,"El Temporal"]
[null,null,null,null,null,null,null,null,"5846",5,8,46,"San Isidro"]
[null,null,null,null,null,null,null,null,"5847",5,8,47,"Santa Elena"]
[null,null,null,null,null,null,null,null,"5849",5,8,49,"Isaías Torres S."]
[null,null,null,null,null,null,null,null,"5851",5,8,51,"Guadalupe"]
[null,null,null,null,null,null,null,null,"5853",5,8,53,"Toño Ibarra"]
[null,null,null,null,null,null,null,null,"5854",5,8,54,"Ramón García"]
[null,null,null,null,null,null,null,null,"5855",5,8,55,"El Mimbre"]
[null,null,null,null,null,null,null,null,"5857",5,8,57,"Luis Arturo Gutiérrez"]
[null,null,null,null,null,null,null,null,"5858",5,8,58,"Juan Ríos Ruiz"]
[null,null,null,null,null,null,null,null,"5859",5,8,59,"El Sheroko"]
[null,null,null,null,null,null,null,null,"5860",5,8,60,"Eleuterio Maltos (Sanguijuela)"]
[null,null,null,null,null,null,null,null,"5861",5,8,61,"Emérico Rivera"]
[null,null,null,null,null,null,null,null,"5862",5,8,62,"Las Delicias"]
[null,null,null,null,null,null,null,null,"5863",5,8,63,"El Potrero"]
[null,null,null,null,null,null,null,null,"5864",5,8,64,"Obayos [Estación]"]
[null,null,null,null,null,null,null,null,"5867",5,8,67,"Jesús Ibarra Chávez"]
[null,null,null,null,null,null,null,null,"5869",5,8,69,"María Sánchez de Ibarra"]
[null,null,null,null,null,null,null,null,"5871",5,8,71,"Anastacio Daniel"]
[null,null,null,null,null,null,null,null,"5872",5,8,72,"Ceferino Sánchez Vázquez"]
[null,null,null,null,null,null,null,null,{"$f":"$J1347&$K1347&$L1347","v":"5873"},5,8,73,"Ceferino Sánchez Vázquez"]
[null,null,null,null,null,null,null,null,"5874",5,8,74,"El Vaquero"]
[null,null,null,null,null,null,null,null,"5875",5,8,75,"Ramón Daniel Sánchez"]
[null,null,null,null,null,null,null,null,"5876",5,8,76,"La Mota"]
[null,null,null,null,null,null,null,null,"5877",5,8,77,"Ceferino Sánchez Vázquez"]
[null,null,null,null,null,null,null,null,"5879",5,8,79,"El Rosario (Sergio Martínez)"]
[null,null,null,null,null,null,null,null,"5880",5,8,80,"Los Valdez (Rancho los Valdez)"]
[null,null,null,null,null,null,null,null,"5881",5,8,81,"Oscar González"]
[null,null,null,null,null,null,null,null,"5882",5,8,82,"Rancho Verde (Los Morales)"]
[null,null,null,null,null,null,null,null,"5883",5,8,83,"Las Seis Mariposas (Jorge Maldonado)"]
[null,null,null,null,null,null,null,null,"5885",5,8,85,"Saca la Villa (Gonzalo Ramírez)"]
[null,null,null,null,null,null,null,null,"5886",5,8,86,"Santos Vargas"]
[null,null,null,null,null,null,null,null,"5887",5,8,87,"Las Palmitas"]
[null,null,null,null,null,null,null,null,"5888",5,8,88,"Los Pinos"]
[null,null,null,null,null,null,null,null,"591",5,9,1,"Francisco I. Madero (Chávez)"]
[null,null,null,null,null,null,null,null,"593",5,9,3,"Alamito"]
[null,null,null,null,null,null,null,null,"594",5,9,4,"Alonso Tegui"]
[null,null,null,null,null,null,null,null,"595",5,9,5,"Amabiscar"]
[null,null,null,null,null,null,null,null,"596",5,9,6,"La Aurora"]
[null,null,null,null,null,null,null,null,"597",5,9,7,"Francisco I. Madero (Banco de Londres)"]
[null,null,null,null,null,null,null,null,"598",5,9,8,"Batopilas"]
[null,null,null,null,null,null,null,null,"5910",5,9,10,"Buenavista de Arriba"]
[null,null,null,null,null,null,null,null,"5911",5,9,11,"El Cántabro"]
[null,null,null,null,null,null,null,null,"5912",5,9,12,"Castrejana"]
[null,null,null,null,null,null,null,null,"5913",5,9,13,"Colón"]
[null,null,null,null,null,null,null,null,"5914",5,9,14,"La Coruña"]
[null,null,null,null,null,null,null,null,"5916",5,9,16,"Covadonga"]
[null,null,null,null,null,null,null,null,"5917",5,9,17,"El Chaparro"]
[null,null,null,null,null,null,null,null,"5918",5,9,18,"Charcos de Risa"]
[null,null,null,null,null,null,null,null,"5919",5,9,19,"Dieciocho de Marzo"]
[null,null,null,null,null,null,null,null,"5920",5,9,20,"El Ebro"]
[null,null,null,null,null,null,null,null,"5921",5,9,21,"Finisterre"]
[null,null,null,null,null,null,null,null,"5922",5,9,22,"Florencia"]
[null,null,null,null,null,null,null,null,"5923",5,9,23,"La Florida"]
[null,null,null,null,null,null,null,null,"5924",5,9,24,"Guadalupe (Las Lupes)"]
[null,null,null,null,null,null,null,null,"5925",5,9,25,"Hidalgo"]
[null,null,null,null,null,null,null,null,"5926",5,9,26,"Jaboncillo"]
[null,null,null,null,null,null,null,null,"5927",5,9,27,"Lanchares"]
[null,null,null,null,null,null,null,null,"5928",5,9,28,"Lequeitio"]
[null,null,null,null,null,null,null,null,"5929",5,9,29,"Marsella (Santa Ligia) [Sociedad de Producción Rural]"]
[null,null,null,null,null,null,null,null,"5930",5,9,30,"Matienzo (La Ocho)"]
[null,null,null,null,null,null,null,null,"5931",5,9,31,"Las Mercedes"]
[null,null,null,null,null,null,null,null,"5936",5,9,36,"Nuevo León"]
[null,null,null,null,null,null,null,null,"5938",5,9,38,"La Pinta"]
[null,null,null,null,null,null,null,null,"5939",5,9,39,"El Porvenir (El Porvenir de Arriba)"]
[null,null,null,null,null,null,null,null,"5940",5,9,40,"El Relicario"]
[null,null,null,null,null,null,null,null,"5941",5,9,41,"Ana Victoria"]
[null,null,null,null,null,null,null,null,"5942",5,9,42,"Saloña (Tres Norias)"]
[null,null,null,null,null,null,null,null,"5943",5,9,43,"Saloña"]
[null,null,null,null,null,null,null,null,"5944",5,9,44,"San Agustín de Ulúa"]
[null,null,null,null,null,null,null,null,"5945",5,9,45,"San Esteban de Egipto"]
[null,null,null,null,null,null,null,null,"5946",5,9,46,"San José de la Niña"]
[null,null,null,null,null,null,null,null,"5947",5,9,47,"San Juan de Ulúa"]
[null,null,null,null,null,null,null,null,"5948",5,9,48,"San Pablo"]
[null,null,null,null,null,null,null,null,"5949",5,9,49,"San Salvador de Arriba"]
[null,null,null,null,null,null,null,null,"5950",5,9,50,"Santa María (Santa María de Arriba)"]
[null,null,null,null,null,null,null,null,"5953",5,9,53,"Seis de Octubre (Santo Niño)"]
[null,null,null,null,null,null,null,null,"5954",5,9,54,"El Sella"]
[null,null,null,null,null,null,null,null,"5955",5,9,55,"Toberas"]
[null,null,null,null,null,null,null,null,"5956",5,9,56,"La Esperanza"]
[null,null,null,null,null,null,null,null,"5957",5,9,57,"Vasconia"]
[null,null,null,null,null,null,null,null,"5958",5,9,58,"El Venado"]
[null,null,null,null,null,null,null,null,"5960",5,9,60,"La Victoria"]
[null,null,null,null,null,null,null,null,"5962",5,9,62,"Las Virginias"]
[null,null,null,null,null,null,null,null,{"$f":"$J1411&$K1411&$L1411","v":"5963"},5,9,63,"Yucatán"]
[null,null,null,null,null,null,null,null,"5968",5,9,68,"Jacaranda (Filipinas)"]
[null,null,null,null,null,null,null,null,"5969",5,9,69,"San Gabriel"]
[null,null,null,null,null,null,null,null,"5972",5,9,72,"El Dorado"]
[null,null,null,null,null,null,null,null,"5973",5,9,73,"El Botecito"]
[null,null,null,null,null,null,null,null,"5974",5,9,74,"El Encanto"]
[null,null,null,null,null,null,null,null,"5976",5,9,76,"La Esperanza"]
[null,null,null,null,null,null,null,null,"5977",5,9,77,"La Estrella"]
[null,null,null,null,null,null,null,null,"5980",5,9,80,"Villa Verde"]
[null,null,null,null,null,null,null,null,"5991",5,9,91,"Nueva Trinidad"]
[null,null,null,null,null,null,null,null,"5992",5,9,92,"Benito Juárez"]
[null,null,null,null,null,null,null,null,"5994",5,9,94,"Felipe Ángeles"]
[null,null,null,null,null,null,null,null,"5995",5,9,95,"Linda Vista"]
[null,null,null,null,null,null,null,null,"5996",5,9,96,"La Pezuña"]
[null,null,null,null,null,null,null,null,"5997",5,9,97,"Tres Manantiales (La Parrita)"]
[null,null,null,null,null,null,null,null,"5998",5,9,98,"Los Corsos"]
[null,null,null,null,null,null,null,null,"59103",5,9,103,"Beta San Gabriel"]
[null,null,null,null,null,null,null,null,"59107",5,9,107,"El Refugio"]
[null,null,null,null,null,null,null,null,"59108",5,9,108,"Río Aguanaval"]
[null,null,null,null,null,null,null,null,"59110",5,9,110,"San Isidro"]
[null,null,null,null,null,null,null,null,"59111",5,9,111,"San Ramiro"]
[null,null,null,null,null,null,null,null,"59112",5,9,112,"Nicolás Muñiz Méndez (Sector Número Uno)"]
[null,null,null,null,null,null,null,null,"59113",5,9,113,"Ampuero (Las Vegas)"]
[null,null,null,null,null,null,null,null,"59114",5,9,114,"Cántabro Progreso (El Veintiocho)"]
[null,null,null,null,null,null,null,null,"59116",5,9,116,"Fresno del Norte"]
[null,null,null,null,null,null,null,null,"59117",5,9,117,"La Marsellita (Marsella Dos)"]
[null,null,null,null,null,null,null,null,"59118",5,9,118,"San Martín (Covadonga)"]
[null,null,null,null,null,null,null,null,"59119",5,9,119,"El León"]
[null,null,null,null,null,null,null,null,"59122",5,9,122,"Diana"]
[null,null,null,null,null,null,null,null,"59123",5,9,123,"El Porvenir [Granja]"]
[null,null,null,null,null,null,null,null,"59124",5,9,124,"La Noria"]
[null,null,null,null,null,null,null,null,"59125",5,9,125,"Florida la Libertad"]
[null,null,null,null,null,null,null,null,"59130",5,9,130,"Florencia"]
[null,null,null,null,null,null,null,null,"59132",5,9,132,"Noria Florencia"]
[null,null,null,null,null,null,null,null,"59137",5,9,137,"Buenavista"]
[null,null,null,null,null,null,null,null,"59138",5,9,138,"Ernesto Sedma (Noria Buenavista)"]
[null,null,null,null,null,null,null,null,"59140",5,9,140,"Noria las Mercedes"]
[null,null,null,null,null,null,null,null,"59141",5,9,141,"La Manada"]
[null,null,null,null,null,null,null,null,"59142",5,9,142,"Lequeitio (Víctor Handall)"]
[null,null,null,null,null,null,null,null,"59143",5,9,143,"Huitrón (Alfonso Macías)"]
[null,null,null,null,null,null,null,null,"59144",5,9,144,"La Arabia"]
[null,null,null,null,null,null,null,null,"59145",5,9,145,"Benito Valenzuela"]
[null,null,null,null,null,null,null,null,"59146",5,9,146,"Huitrón Fracción Norte (Heriberto Ochoa)"]
[null,null,null,null,null,null,null,null,"59147",5,9,147,"La India"]
[null,null,null,null,null,null,null,null,"59148",5,9,148,"Noria Número Dos mil Ciento Noventa y Cinco"]
[null,null,null,null,null,null,null,null,"59149",5,9,149,"Noria de Hidalgo (La Uno)"]
[null,null,null,null,null,null,null,null,"59151",5,9,151,"El Trébol Dos"]
[null,null,null,null,null,null,null,null,"59152",5,9,152,"La Nueve"]
[null,null,null,null,null,null,null,null,"59154",5,9,154,"Alamito (Ignacio Martínez Tricio)"]
[null,null,null,null,null,null,null,null,"59160",5,9,160,"La Pompita"]
[null,null,null,null,null,null,null,null,"59161",5,9,161,"Francisco de la Torre"]
[null,null,null,null,null,null,null,null,"59162",5,9,162,"La Noria Uno"]
[null,null,null,null,null,null,null,null,"59163",5,9,163,"La Amapola"]
[null,null,null,null,null,null,null,null,"59164",5,9,164,"La Argolla"]
[null,null,null,null,null,null,null,null,"59167",5,9,167,"Los Cuates"]
[null,null,null,null,null,null,null,null,"59168",5,9,168,"La Libertad"]
[null,null,null,null,null,null,null,null,"59173",5,9,173,"Benjamín Perales"]
[null,null,null,null,null,null,null,null,"59177",5,9,177,"Mena Chiqui"]
[null,null,null,null,null,null,null,null,"59178",5,9,178,"Noria Tres"]
[null,null,null,null,null,null,null,null,"59179",5,9,179,"Ramón Marrufo"]
[null,null,null,null,null,null,null,null,"59180",5,9,180,"Noria de Ramón Marrufo"]
[null,null,null,null,null,null,null,null,"59181",5,9,181,"Luz de Luna (Alfonso Aranzaba)"]
[null,null,null,null,null,null,null,null,"59182",5,9,182,"Miguel López"]
[null,null,null,null,null,null,null,null,"59183",5,9,183,"Francisco Aranzaba"]
[null,null,null,null,null,null,null,null,{"$f":"$J1475&$K1475&$L1475","v":"59184"},5,9,184,"Sector Dos (Pascual Esparza Soto)"]
[null,null,null,null,null,null,null,null,"59185",5,9,185,"Grupo Covadonga [Sociedad]"]
[null,null,null,null,null,null,null,null,"59186",5,9,186,"El Cinco"]
[null,null,null,null,null,null,null,null,"59187",5,9,187,"Sector Cuatro"]
[null,null,null,null,null,null,null,null,"59188",5,9,188,"Sector Uno"]
[null,null,null,null,null,null,null,null,"59189",5,9,189,"Tierra Blanca"]
[null,null,null,null,null,null,null,null,"59191",5,9,191,"Sector Número Uno"]
[null,null,null,null,null,null,null,null,"59193",5,9,193,"Santa María"]
[null,null,null,null,null,null,null,null,"59195",5,9,195,"Andalucía"]
[null,null,null,null,null,null,null,null,"59196",5,9,196,"El Cañón"]
[null,null,null,null,null,null,null,null,"59197",5,9,197,"Otzanduri"]
[null,null,null,null,null,null,null,null,"59198",5,9,198,"Providencia del Norte"]
[null,null,null,null,null,null,null,null,"59199",5,9,199,"San Gonzalo (La Aurora)"]
[null,null,null,null,null,null,null,null,"59201",5,9,201,"El Once (Guillermo Garza)"]
[null,null,null,null,null,null,null,null,"59203",5,9,203,"Francisco Vega"]
[null,null,null,null,null,null,null,null,"59204",5,9,204,"Tomasa Alonso"]
[null,null,null,null,null,null,null,null,"59205",5,9,205,"Batopilas"]
[null,null,null,null,null,null,null,null,"59206",5,9,206,"El Miño"]
[null,null,null,null,null,null,null,null,"59208",5,9,208,"La Nueva Trinidad"]
[null,null,null,null,null,null,null,null,"59209",5,9,209,"Nuevo San José (El Terraceño)"]
[null,null,null,null,null,null,null,null,"59210",5,9,210,"Nueva Rosita"]
[null,null,null,null,null,null,null,null,"59212",5,9,212,"Morteros"]
[null,null,null,null,null,null,null,null,"59213",5,9,213,"Juan Calamaco"]
[null,null,null,null,null,null,null,null,"59215",5,9,215,"La Tres"]
[null,null,null,null,null,null,null,null,"59216",5,9,216,"La Caseta Veintinueve más Setecientos"]
[null,null,null,null,null,null,null,null,"59217",5,9,217,"Canal Sacramento (El Tajo)"]
[null,null,null,null,null,null,null,null,"59219",5,9,219,"Noria de los Berlanga"]
[null,null,null,null,null,null,null,null,"59220",5,9,220,"Noria del Grupo de los Amarillos"]
[null,null,null,null,null,null,null,null,"59222",5,9,222,"Noria Sector Ocho (Noria Dos)"]
[null,null,null,null,null,null,null,null,"59223",5,9,223,"Kilómetro Tres Carretera la Florida-Madero"]
[null,null,null,null,null,null,null,null,"59224",5,9,224,"San Elías del Álamo"]
[null,null,null,null,null,null,null,null,"59225",5,9,225,"El Milagro"]
[null,null,null,null,null,null,null,null,"59226",5,9,226,"Trincheras"]
[null,null,null,null,null,null,null,null,"59227",5,9,227,"La Liliana"]
[null,null,null,null,null,null,null,null,"59228",5,9,228,"La Perlita"]
[null,null,null,null,null,null,null,null,"59229",5,9,229,"La Noria"]
[null,null,null,null,null,null,null,null,"59231",5,9,231,"San José del Venado"]
[null,null,null,null,null,null,null,null,"59233",5,9,233,"El Milagro (Güero)"]
[null,null,null,null,null,null,null,null,"59234",5,9,234,"El Camarón"]
[null,null,null,null,null,null,null,null,"59235",5,9,235,"La Noria de Linda Vista"]
[null,null,null,null,null,null,null,null,"59236",5,9,236,"Río Aguanaval"]
[null,null,null,null,null,null,null,null,"59238",5,9,238,"Esfuerzo Campesino (Andrés Posada)"]
[null,null,null,null,null,null,null,null,"59240",5,9,240,"La Florida [Lácteos]"]
[null,null,null,null,null,null,null,null,"59241",5,9,241,"Tolibia [Sociedad de Producción Rural]"]
[null,null,null,null,null,null,null,null,"59244",5,9,244,"Noria Sector Número Dos"]
[null,null,null,null,null,null,null,null,"59246",5,9,246,"Benjamín Rivera González"]
[null,null,null,null,null,null,null,null,"59247",5,9,247,"Alberto Ibarra Moreno"]
[null,null,null,null,null,null,null,null,"59248",5,9,248,"José Luis Aguilera"]
[null,null,null,null,null,null,null,null,"59249",5,9,249,"El Cántabro"]
[null,null,null,null,null,null,null,null,"59250",5,9,250,"Sector Uno B Lequeitio (Teodoro López)"]
[null,null,null,null,null,null,null,null,"59252",5,9,252,"La Noria del Tazas"]
[null,null,null,null,null,null,null,null,"59253",5,9,253,"Villas del Fresno"]
[null,null,null,null,null,null,null,null,"59255",5,9,255,"Las Nenas"]
[null,null,null,null,null,null,null,null,"59256",5,9,256,"Fraccionamiento de los Santos"]
[null,null,null,null,null,null,null,null,"59259",5,9,259,"Noria Sector Seis"]
[null,null,null,null,null,null,null,null,"59263",5,9,263,"Lugardo Muñoz García"]
[null,null,null,null,null,null,null,null,"59264",5,9,264,"San Jacinto (Arturo Aguilera Hernández)"]
[null,null,null,null,null,null,null,null,"59265",5,9,265,"Pedro Ramírez"]
[null,null,null,null,null,null,null,null,"59266",5,9,266,"La Morenita"]
[null,null,null,null,null,null,null,null,"59267",5,9,267,"Noria del Alto"]
[null,null,null,null,null,null,null,null,"59268",5,9,268,"Noria del Naranjo"]
[null,null,null,null,null,null,null,null,"59270",5,9,270,"Lupita [Granja]"]
[null,null,null,null,null,null,null,null,"59271",5,9,271,"Toro Moro"]
[null,null,null,null,null,null,null,null,"59274",5,9,274,"Unión y Progreso"]
[null,null,null,null,null,null,null,null,{"$f":"$J1539&$K1539&$L1539","v":"59275"},5,9,275,"María de Lourdes Encina Bernal"]
[null,null,null,null,null,null,null,null,"59276",5,9,276,"Ojo de Agua (Zona de Manantiales)"]
[null,null,null,null,null,null,null,null,"59277",5,9,277,"Ángel del Hoyo"]
[null,null,null,null,null,null,null,null,"59278",5,9,278,"3 Marías (Carril Francisco I. Madero) [Granja]"]
[null,null,null,null,null,null,null,null,"59280",5,9,280,"Oscar Javier Campos Sifuentes"]
[null,null,null,null,null,null,null,null,"59281",5,9,281,"La Herradura"]
[null,null,null,null,null,null,null,null,"59282",5,9,282,"Estanque Caballo Blanco [Granja]"]
[null,null,null,null,null,null,null,null,"59283",5,9,283,"Noé Saldaña"]
[null,null,null,null,null,null,null,null,"59284",5,9,284,"José Ángel Garza [Crematorio]"]
[null,null,null,null,null,null,null,null,"59285",5,9,285,"Raúl Gómez Torres"]
[null,null,null,null,null,null,null,null,"59286",5,9,286,"Pequeña Santo Niño"]
[null,null,null,null,null,null,null,null,"59287",5,9,287,"Jesús Pedroza"]
[null,null,null,null,null,null,null,null,"59288",5,9,288,"Eliud Martínez"]
[null,null,null,null,null,null,null,null,"59289",5,9,289,"Lazarín González"]
[null,null,null,null,null,null,null,null,"59290",5,9,290,"Vidal Vázquez Barrios"]
[null,null,null,null,null,null,null,null,"59291",5,9,291,"J.C. Jesús Ramírez Hernández"]
[null,null,null,null,null,null,null,null,"59292",5,9,292,"De los Santos [Caprinocultores]"]
[null,null,null,null,null,null,null,null,"59293",5,9,293,"Alejandro"]
[null,null,null,null,null,null,null,null,"59294",5,9,294,"Muba"]
[null,null,null,null,null,null,null,null,"59295",5,9,295,"Nogalera (César Muñiz)"]
[null,null,null,null,null,null,null,null,"59296",5,9,296,"Caseta Treinta y Cinco más 432"]
[null,null,null,null,null,null,null,null,"59297",5,9,297,"Granja Axa"]
[null,null,null,null,null,null,null,null,"59298",5,9,298,"La Pinta"]
[null,null,null,null,null,null,null,null,"59299",5,9,299,"WX"]
[null,null,null,null,null,null,null,null,"59300",5,9,300,"Nuevo Lequeitio"]
[null,null,null,null,null,null,null,null,"59301",5,9,301,"Francisco Rodríguez Delgado"]
[null,null,null,null,null,null,null,null,"59302",5,9,302,"David Flores"]
[null,null,null,null,null,null,null,null,"59303",5,9,303,"Norias de Felipe Ángeles"]
[null,null,null,null,null,null,null,null,"59304",5,9,304,"Noria Santo Niño"]
[null,null,null,null,null,null,null,null,"59305",5,9,305,"Roberto Pamanes"]
[null,null,null,null,null,null,null,null,"5101",5,10,1,"Frontera"]
[null,null,null,null,null,null,null,null,"5102",5,10,2,"La Cruz"]
[null,null,null,null,null,null,null,null,"5103",5,10,3,"Nuevo Poblado de Fresnillo (Fresnillo)"]
[null,null,null,null,null,null,null,null,"5105",5,10,5,"Ocho de Enero"]
[null,null,null,null,null,null,null,null,"5106",5,10,6,"Pozuelos de Abajo"]
[null,null,null,null,null,null,null,null,"5107",5,10,7,"Pozuelos de Arriba"]
[null,null,null,null,null,null,null,null,"5108",5,10,8,"El Chapote"]
[null,null,null,null,null,null,null,null,"5109",5,10,9,"Colón"]
[null,null,null,null,null,null,null,null,"51010",5,10,10,"San Isidro (El Alemán)"]
[null,null,null,null,null,null,null,null,"51012",5,10,12,"Las Flores"]
[null,null,null,null,null,null,null,null,"51015",5,10,15,"La Molienda"]
[null,null,null,null,null,null,null,null,"51018",5,10,18,"La Pila"]
[null,null,null,null,null,null,null,null,"51019",5,10,19,"El Papalote"]
[null,null,null,null,null,null,null,null,"51021",5,10,21,"Fraccionamiento San Antonio"]
[null,null,null,null,null,null,null,null,"51022",5,10,22,"La Polka 1"]
[null,null,null,null,null,null,null,null,"51023",5,10,23,"La Polka 1 (Las Carmelitas)"]
[null,null,null,null,null,null,null,null,"51030",5,10,30,"San Juan"]
[null,null,null,null,null,null,null,null,"51031",5,10,31,"La Mota"]
[null,null,null,null,null,null,null,null,"51032",5,10,32,"El Encino"]
[null,null,null,null,null,null,null,null,"51036",5,10,36,"La Escondida"]
[null,null,null,null,null,null,null,null,"51037",5,10,37,"Fresnillo (AHMSA)"]
[null,null,null,null,null,null,null,null,"51040",5,10,40,"La Polka 1 (Mario Villalobos)"]
[null,null,null,null,null,null,null,null,"51041",5,10,41,"Rancho Grande [Plaza de Toros]"]
[null,null,null,null,null,null,null,null,"51043",5,10,43,"La Polka 1 (Luis Gutiérrez)"]
[null,null,null,null,null,null,null,null,"51044",5,10,44,"San Pedro (La Polka 1)"]
[null,null,null,null,null,null,null,null,"51046",5,10,46,"Ninguno [Ciudad Sanitaria]"]
[null,null,null,null,null,null,null,null,"51055",5,10,55,"Las Moras"]
[null,null,null,null,null,null,null,null,"51056",5,10,56,"Roberto Rivera"]
[null,null,null,null,null,null,null,null,"51058",5,10,58,"Gustavo García"]
[null,null,null,null,null,null,null,null,"51060",5,10,60,"Rancho del Consuelo (Los Mona)"]
[null,null,null,null,null,null,null,null,"51064",5,10,64,"Los Cárdenas (Marcial Cárdenas Villastrigo)"]
[null,null,null,null,null,null,null,null,"51069",5,10,69,"Los Álamos"]
[null,null,null,null,null,null,null,null,"51071",5,10,71,"Quinta José (Alejandro Arroyo Gómez)"]
[null,null,null,null,null,null,null,null,"51073",5,10,73,"Jesús Martínez"]
[null,null,null,null,null,null,null,null,{"$f":"$J1603&$K1603&$L1603","v":"51074"},5,10,74,"Guillermo Gutiérrez Fraustro (La Aurora)"]
[null,null,null,null,null,null,null,null,"51076",5,10,76,"Juan Rodríguez"]
[null,null,null,null,null,null,null,null,"51078",5,10,78,"Raúl García Morales"]
[null,null,null,null,null,null,null,null,"51079",5,10,79,"Rendón [Granja]"]
[null,null,null,null,null,null,null,null,"51080",5,10,80,"Santa Alicia (Reynold Peña Cruz)"]
[null,null,null,null,null,null,null,null,"51081",5,10,81,"La Polka 1 (Roberto Ortegón)"]
[null,null,null,null,null,null,null,null,"51083",5,10,83,"Milagros (Gustavo Fidencio González Vega)"]
[null,null,null,null,null,null,null,null,"51084",5,10,84,"Fidencio Mendoza Castillo [Sector de Producción Número 1]"]
[null,null,null,null,null,null,null,null,"51088",5,10,88,"Miguel Mona"]
[null,null,null,null,null,null,null,null,"51090",5,10,90,"Acatlán"]
[null,null,null,null,null,null,null,null,"51091",5,10,91,"Hermosa Provincia"]
[null,null,null,null,null,null,null,null,"51093",5,10,93,"Los Auces"]
[null,null,null,null,null,null,null,null,"51094",5,10,94,"José Isidro Silva"]
[null,null,null,null,null,null,null,null,"510101",5,10,101,"Popa Mona"]
[null,null,null,null,null,null,null,null,"510102",5,10,102,"Mona"]
[null,null,null,null,null,null,null,null,"510104",5,10,104,"José Arturo Barrera"]
[null,null,null,null,null,null,null,null,"510105",5,10,105,"José Ignacio Dávila"]
[null,null,null,null,null,null,null,null,"510106",5,10,106,"Jorge de los Santos"]
[null,null,null,null,null,null,null,null,"510107",5,10,107,"Los Temporales (Mario Salazar Garza)"]
[null,null,null,null,null,null,null,null,"510108",5,10,108,"Colonia Doctor Esteban Martínez"]
[null,null,null,null,null,null,null,null,"510110",5,10,110,"Estancias de San Juan Bautista"]
[null,null,null,null,null,null,null,null,"510111",5,10,111,"Gerardo Galindo Moreno"]
[null,null,null,null,null,null,null,null,"510112",5,10,112,"La Polka 1 (La Piedad)"]
[null,null,null,null,null,null,null,null,"510113",5,10,113,"Quinta la Polka"]
[null,null,null,null,null,null,null,null,"510114",5,10,114,"La Polka 1 (Abel Salazar Santos)"]
[null,null,null,null,null,null,null,null,"510118",5,10,118,"El Milagro (Dennis Coffey)"]
[null,null,null,null,null,null,null,null,"510119",5,10,119,"El Alto de Estancias (Francisco de Alba)"]
[null,null,null,null,null,null,null,null,"510120",5,10,120,"Casa Blanca (El Alto)"]
[null,null,null,null,null,null,null,null,"510121",5,10,121,"Santos Peña"]
[null,null,null,null,null,null,null,null,"510124",5,10,124,"Alfredo Paredes"]
[null,null,null,null,null,null,null,null,"510125",5,10,125,"Fidencio Rodríguez"]
[null,null,null,null,null,null,null,null,"510128",5,10,128,"Lupita"]
[null,null,null,null,null,null,null,null,"510130",5,10,130,"Enrique Castillo"]
[null,null,null,null,null,null,null,null,"510133",5,10,133,"Las Flores"]
[null,null,null,null,null,null,null,null,"510134",5,10,134,"La Polka Dos"]
[null,null,null,null,null,null,null,null,"510137",5,10,137,"Fidencio Peña Peña e Hijos"]
[null,null,null,null,null,null,null,null,"510138",5,10,138,"El Coyote (Rogelio Córdoba)"]
[null,null,null,null,null,null,null,null,"510139",5,10,139,"El Refugio (Juan Hermilo Arauza)"]
[null,null,null,null,null,null,null,null,"510142",5,10,142,"La Lupita"]
[null,null,null,null,null,null,null,null,"510143",5,10,143,"La Esperanza (Jaime Mario Castellanos Córdova)"]
[null,null,null,null,null,null,null,null,"510144",5,10,144,"El Tesoro (Antonio de la Cruz Rodríguez)"]
[null,null,null,null,null,null,null,null,"510146",5,10,146,"La Puerta"]
[null,null,null,null,null,null,null,null,"510147",5,10,147,"San Pedro"]
[null,null,null,null,null,null,null,null,"510148",5,10,148,"Santa Anita"]
[null,null,null,null,null,null,null,null,"510149",5,10,149,"La Granjita (Hortencia Barajas)"]
[null,null,null,null,null,null,null,null,"510150",5,10,150,"La Puerta"]
[null,null,null,null,null,null,null,null,"510152",5,10,152,"Santa Inés"]
[null,null,null,null,null,null,null,null,"510153",5,10,153,"Santa Inés (De la Herradura)"]
[null,null,null,null,null,null,null,null,"510154",5,10,154,"Orica"]
[null,null,null,null,null,null,null,null,"510155",5,10,155,"Santa Inés (Salvador Martínez)"]
[null,null,null,null,null,null,null,null,"510158",5,10,158,"La Polka 1 (Nicolás García Carreón)"]
[null,null,null,null,null,null,null,null,"510159",5,10,159,"Los Pinabetes (Carlos Huerta Moreno)"]
[null,null,null,null,null,null,null,null,"510160",5,10,160,"Chayín (Eliseo Briones Alcocer)"]
[null,null,null,null,null,null,null,null,"510161",5,10,161,"Artemio Serna Zamur"]
[null,null,null,null,null,null,null,null,"510164",5,10,164,"La Polka 1 (Manuel Flores Guzmán)"]
[null,null,null,null,null,null,null,null,"510165",5,10,165,"El Venado (Francisco Raúl Ballesteros Peña)"]
[null,null,null,null,null,null,null,null,"510167",5,10,167,"Osvaldo Suárez Salazar"]
[null,null,null,null,null,null,null,null,"510169",5,10,169,"Eduardo Alvarado Morones"]
[null,null,null,null,null,null,null,null,"510170",5,10,170,"Ninguno [Club To Ton]"]
[null,null,null,null,null,null,null,null,"510171",5,10,171,"Juan García Venegas"]
[null,null,null,null,null,null,null,null,"510172",5,10,172,"Beatriz del Río"]
[null,null,null,null,null,null,null,null,"510173",5,10,173,"Francisco Rosciano"]
[null,null,null,null,null,null,null,null,"510174",5,10,174,"Calderones Ranch (Calderón Liñán)"]
[null,null,null,null,null,null,null,null,"510175",5,10,175,"Jaime Quirino"]
[null,null,null,null,null,null,null,null,{"$f":"$J1667&$K1667&$L1667","v":"510176"},5,10,176,"Colonia Diana Laura Riojas de Colosio"]
[null,null,null,null,null,null,null,null,"510177",5,10,177,"El Junco"]
[null,null,null,null,null,null,null,null,"510178",5,10,178,"Los Panchos"]
[null,null,null,null,null,null,null,null,"510179",5,10,179,"El Establo"]
[null,null,null,null,null,null,null,null,"510180",5,10,180,"San José"]
[null,null,null,null,null,null,null,null,"510181",5,10,181,"Ampliación Doctor Esteban Martínez"]
[null,null,null,null,null,null,null,null,"510182",5,10,182,"Antonio Ramos"]
[null,null,null,null,null,null,null,null,"510183",5,10,183,"Tomás Escobedo"]
[null,null,null,null,null,null,null,null,"510184",5,10,184,"El Borrego (Pueblo Nuevo)"]
[null,null,null,null,null,null,null,null,"510185",5,10,185,"La Cabaña"]
[null,null,null,null,null,null,null,null,"510187",5,10,187,"Corralitos"]
[null,null,null,null,null,null,null,null,"510188",5,10,188,"Enrique Martínez y Martínez"]
[null,null,null,null,null,null,null,null,"510189",5,10,189,"San Isidro [Confinamiento Industrial]"]
[null,null,null,null,null,null,null,null,"510190",5,10,190,"Las Cuatas"]
[null,null,null,null,null,null,null,null,"510191",5,10,191,"Cuatro Caminos (La Hermosa)"]
[null,null,null,null,null,null,null,null,"510192",5,10,192,"Dámaso González Sánchez"]
[null,null,null,null,null,null,null,null,"510193",5,10,193,"David Ramírez"]
[null,null,null,null,null,null,null,null,"510194",5,10,194,"Efraín Asís"]
[null,null,null,null,null,null,null,null,"510196",5,10,196,"Erika Rocío Rendón Lara"]
[null,null,null,null,null,null,null,null,"510197",5,10,197,"Fidencio Martínez"]
[null,null,null,null,null,null,null,null,"510198",5,10,198,"Fracción Ejidal Pozuelos de Abajo"]
[null,null,null,null,null,null,null,null,"510199",5,10,199,"Gonzalo Castillo Alvarado"]
[null,null,null,null,null,null,null,null,"510200",5,10,200,"Guadalupe"]
[null,null,null,null,null,null,null,null,"510201",5,10,201,"Hermilo Ramos"]
[null,null,null,null,null,null,null,null,"510202",5,10,202,"Jesús Candelario Martínez Pacheco"]
[null,null,null,null,null,null,null,null,"510203",5,10,203,"Valle Verde (Álvarez Hernández)"]
[null,null,null,null,null,null,null,null,"510204",5,10,204,"Manuel Escobedo Arévalo"]
[null,null,null,null,null,null,null,null,"510205",5,10,205,"Arturo Reyes"]
[null,null,null,null,null,null,null,null,"510206",5,10,206,"La Mota (Nazario Escobedo)"]
[null,null,null,null,null,null,null,null,"510209",5,10,209,"Pedro Requena"]
[null,null,null,null,null,null,null,null,"510210",5,10,210,"La Acerera [Planta de Transmisión de Radio]"]
[null,null,null,null,null,null,null,null,"510211",5,10,211,"Quinta Nora Patricia"]
[null,null,null,null,null,null,null,null,"510212",5,10,212,"Ramiro Castillo Guía"]
[null,null,null,null,null,null,null,null,"510213",5,10,213,"René Rivas Urbina"]
[null,null,null,null,null,null,null,null,"510214",5,10,214,"El Retiro"]
[null,null,null,null,null,null,null,null,"510215",5,10,215,"Gabino Rodríguez"]
[null,null,null,null,null,null,null,null,"510216",5,10,216,"Santa Leticia"]
[null,null,null,null,null,null,null,null,"510218",5,10,218,"Carlos Rodríguez"]
[null,null,null,null,null,null,null,null,"510219",5,10,219,"Los Juanes"]
[null,null,null,null,null,null,null,null,"510221",5,10,221,"Los Dávila"]
[null,null,null,null,null,null,null,null,"510222",5,10,222,"San Antonio (Nuevo Paraíso)"]
[null,null,null,null,null,null,null,null,"510223",5,10,223,"Juana María Suarez Riojas"]
[null,null,null,null,null,null,null,null,"510224",5,10,224,"La Villita"]
[null,null,null,null,null,null,null,null,"510226",5,10,226,"Luis Gerardo Arocha González"]
[null,null,null,null,null,null,null,null,"510227",5,10,227,"José Luis Garza del Toro"]
[null,null,null,null,null,null,null,null,"510228",5,10,228,"El Paraíso (Ricardo Medrano)"]
[null,null,null,null,null,null,null,null,"510229",5,10,229,"El Vivero"]
[null,null,null,null,null,null,null,null,"510230",5,10,230,"Jesús Mendoza"]
[null,null,null,null,null,null,null,null,"510231",5,10,231,"Quinta Ángeles"]
[null,null,null,null,null,null,null,null,"510232",5,10,232,"Rancho de la Pina (Raúl Montemayor Valdés)"]
[null,null,null,null,null,null,null,null,"510233",5,10,233,"Escobar"]
[null,null,null,null,null,null,null,null,"510234",5,10,234,"Rancho 3 R"]
[null,null,null,null,null,null,null,null,"510235",5,10,235,"El Pequeño (Jesús Candelario Martínez Pacheco)"]
[null,null,null,null,null,null,null,null,"510236",5,10,236,"El Topo"]
[null,null,null,null,null,null,null,null,"510237",5,10,237,"Francisco Moncada"]
[null,null,null,null,null,null,null,null,"510238",5,10,238,"El Encanto (La Bandera)"]
[null,null,null,null,null,null,null,null,"510239",5,10,239,"José Luis Rodríguez Vázquez"]
[null,null,null,null,null,null,null,null,"510240",5,10,240,"El Trébol"]
[null,null,null,null,null,null,null,null,"510241",5,10,241,"Monclova [Centro Ecuestre]"]
[null,null,null,null,null,null,null,null,"510242",5,10,242,"El Chupadero (Salvador Gutiérrez Flores)"]
[null,null,null,null,null,null,null,null,"510243",5,10,243,"José Alberto Asís Calderón"]
[null,null,null,null,null,null,null,null,"510244",5,10,244,"Juan Sifuentes Rodríguez"]
[null,null,null,null,null,null,null,null,"510245",5,10,245,"Juan Morín Duarte"]
[null,null,null,null,null,null,null,null,"510246",5,10,246,"Obdulia Dávila Gloria"]
[null,null,null,null,null,null,null,null,{"$f":"$J1731&$K1731&$L1731","v":"510247"},5,10,247,"Elvia Martínez Guajardo"]
[null,null,null,null,null,null,null,null,"510248",5,10,248,"Carlos Ramos Reyes"]
[null,null,null,null,null,null,null,null,"510249",5,10,249,"Ninguno"]
[null,null,null,null,null,null,null,null,"510250",5,10,250,"Tres Potrillos"]
[null,null,null,null,null,null,null,null,"510251",5,10,251,"Santa Rosa"]
[null,null,null,null,null,null,null,null,"510252",5,10,252,"Las Alazanas"]
[null,null,null,null,null,null,null,null,"510253",5,10,253,"Eloy Limón"]
[null,null,null,null,null,null,null,null,"510254",5,10,254,"Santa Clara"]
[null,null,null,null,null,null,null,null,"510255",5,10,255,"Julia Elena Ortega García"]
[null,null,null,null,null,null,null,null,"510256",5,10,256,"Cuatro Milpas"]
[null,null,null,null,null,null,null,null,"510257",5,10,257,"Los Williamsón"]
[null,null,null,null,null,null,null,null,"510258",5,10,258,"El Borrego"]
[null,null,null,null,null,null,null,null,"510259",5,10,259,"La Morita"]
[null,null,null,null,null,null,null,null,"510260",5,10,260,"Elba Méndez de León"]
[null,null,null,null,null,null,null,null,"510261",5,10,261,"Barajas"]
[null,null,null,null,null,null,null,null,"510262",5,10,262,"Sandra Luz Méndez González"]
[null,null,null,null,null,null,null,null,"510263",5,10,263,"Enrique Martel Sifuentes"]
[null,null,null,null,null,null,null,null,"510264",5,10,264,"Eulalio Méndez González"]
[null,null,null,null,null,null,null,null,"510265",5,10,265,"Rodolfo Méndez González"]
[null,null,null,null,null,null,null,null,"5111",5,11,1,"General Cepeda"]
[null,null,null,null,null,null,null,null,"5112",5,11,2,"Agua de la Mula"]
[null,null,null,null,null,null,null,null,"5114",5,11,4,"Los Ángeles"]
[null,null,null,null,null,null,null,null,"5115",5,11,5,"Benecio López Padilla (Benito Juárez)"]
[null,null,null,null,null,null,null,null,"5116",5,11,6,"Huertas del Valle (El Mermejo)"]
[null,null,null,null,null,null,null,null,"5117",5,11,7,"Guelatao"]
[null,null,null,null,null,null,null,null,"5119",5,11,9,"Buenos Aires"]
[null,null,null,null,null,null,null,null,"51111",5,11,11,"La Casita"]
[null,null,null,null,null,null,null,null,"51112",5,11,12,"La Luz y Colón"]
[null,null,null,null,null,null,null,null,"51113",5,11,13,"La Perla del Carmen"]
[null,null,null,null,null,null,null,null,"51114",5,11,14,"Las Cuatas"]
[null,null,null,null,null,null,null,null,"51116",5,11,16,"Depósito de la Luz"]
[null,null,null,null,null,null,null,null,"51117",5,11,17,"El Dorado"]
[null,null,null,null,null,null,null,null,"51118",5,11,18,"Dos de Abril"]
[null,null,null,null,null,null,null,null,"51120",5,11,20,"El Tanque San Vicente"]
[null,null,null,null,null,null,null,null,"51121",5,11,21,"Fermín"]
[null,null,null,null,null,null,null,null,"51122",5,11,22,"La Florida"]
[null,null,null,null,null,null,null,null,"51123",5,11,23,"El Fortín"]
[null,null,null,null,null,null,null,null,"51124",5,11,24,"Gachupines"]
[null,null,null,null,null,null,null,null,"51125",5,11,25,"El Gavillero"]
[null,null,null,null,null,null,null,null,"51126",5,11,26,"La Gloria"]
[null,null,null,null,null,null,null,null,"51127",5,11,27,"Presa de Guadalupe (Guadalupe)"]
[null,null,null,null,null,null,null,null,"51128",5,11,28,"Guadalupe Alamitos"]
[null,null,null,null,null,null,null,null,"51129",5,11,29,"La Hedionda Chica"]
[null,null,null,null,null,null,null,null,"51130",5,11,30,"La Mesa"]
[null,null,null,null,null,null,null,null,"51131",5,11,31,"Independencia"]
[null,null,null,null,null,null,null,null,"51132",5,11,32,"Jalpa"]
[null,null,null,null,null,null,null,null,"51133",5,11,33,"El Jaralito"]
[null,null,null,null,null,null,null,null,"51135",5,11,35,"La Luz"]
[null,null,null,null,null,null,null,null,"51136",5,11,36,"Macuyú"]
[null,null,null,null,null,null,null,null,"51138",5,11,38,"Marte (Estación Marte)"]
[null,null,null,null,null,null,null,null,"51140",5,11,40,"El Mogote"]
[null,null,null,null,null,null,null,null,"51141",5,11,41,"Narigua"]
[null,null,null,null,null,null,null,null,"51142",5,11,42,"El Nogal"]
[null,null,null,null,null,null,null,null,"51143",5,11,43,"La Noria de la Sabina"]
[null,null,null,null,null,null,null,null,"51144",5,11,44,"La Pequeña de Fermín"]
[null,null,null,null,null,null,null,null,"51145",5,11,45,"Oratorio Chico"]
[null,null,null,null,null,null,null,null,"51146",5,11,46,"Oratorio Grande"]
[null,null,null,null,null,null,null,null,"51147",5,11,47,"La Parrita"]
[null,null,null,null,null,null,null,null,"51149",5,11,49,"La Paz"]
[null,null,null,null,null,null,null,null,"51151",5,11,51,"Piedras de Lumbre"]
[null,null,null,null,null,null,null,null,"51152",5,11,52,"El Pilar de Richardson"]
[null,null,null,null,null,null,null,null,"51153",5,11,53,"Porvenir de Jalpa"]
[null,null,null,null,null,null,null,null,"51154",5,11,54,"Porvenir de Tacubaya"]
[null,null,null,null,null,null,null,null,"51155",5,11,55,"Ojo de Agua"]
[null,null,null,null,null,null,null,null,{"$f":"$J1795&$K1795&$L1795","v":"51156"},5,11,56,"La Puerta"]
[null,null,null,null,null,null,null,null,"51157",5,11,57,"La Redoma"]
[null,null,null,null,null,null,null,null,"51158",5,11,58,"Rincón Colorado"]
[null,null,null,null,null,null,null,null,"51159",5,11,59,"La Rosa"]
[null,null,null,null,null,null,null,null,"51160",5,11,60,"Sabanilla"]
[null,null,null,null,null,null,null,null,"51162",5,11,62,"Sacramento (San Roberto de las Parras)"]
[null,null,null,null,null,null,null,null,"51164",5,11,64,"San Antonio de las Cabras"]
[null,null,null,null,null,null,null,null,"51165",5,11,65,"San Antonio del Jaral"]
[null,null,null,null,null,null,null,null,"51166",5,11,66,"San Francisco"]
[null,null,null,null,null,null,null,null,"51168",5,11,68,"La Noria"]
[null,null,null,null,null,null,null,null,"51169",5,11,69,"San José de la Paila (Rancho Nuevo)"]
[null,null,null,null,null,null,null,null,"51170",5,11,70,"San José del Refugio"]
[null,null,null,null,null,null,null,null,"51171",5,11,71,"San Juan del Cohetero (El Colorado)"]
[null,null,null,null,null,null,null,null,"51172",5,11,72,"Santa Inés (El Ojito)"]
[null,null,null,null,null,null,null,null,"51174",5,11,74,"El Tejocote"]
[null,null,null,null,null,null,null,null,"51175",5,11,75,"La Tórtola"]
[null,null,null,null,null,null,null,null,"51176",5,11,76,"La Trinidad"]
[null,null,null,null,null,null,null,null,"51182",5,11,82,"Josefina [Restaurante]"]
[null,null,null,null,null,null,null,null,"51183",5,11,83,"Las Galeras"]
[null,null,null,null,null,null,null,null,"51184",5,11,84,"Ex-Hacienda Ojo de Agua"]
[null,null,null,null,null,null,null,null,"51185",5,11,85,"La Hedionda de los Morales"]
[null,null,null,null,null,null,null,null,"51186",5,11,86,"El Huache"]
[null,null,null,null,null,null,null,null,"51188",5,11,88,"La Joya (Porfirio Tello Chávez)"]
[null,null,null,null,null,null,null,null,"51190",5,11,90,"El Mimbre"]
[null,null,null,null,null,null,null,null,"51191",5,11,91,"El Mimbre"]
[null,null,null,null,null,null,null,null,"51196",5,11,96,"El Palmar"]
[null,null,null,null,null,null,null,null,"51199",5,11,99,"El Paso del Águila"]
[null,null,null,null,null,null,null,null,"511105",5,11,105,"El Río"]
[null,null,null,null,null,null,null,null,"511107",5,11,107,"Palo Blanco (Salitre)"]
[null,null,null,null,null,null,null,null,"511109",5,11,109,"El Depósito de la Luz"]
[null,null,null,null,null,null,null,null,"511111",5,11,111,"Santo Niño"]
[null,null,null,null,null,null,null,null,"511116",5,11,116,"La Unión"]
[null,null,null,null,null,null,null,null,"511118",5,11,118,"El Vergel"]
[null,null,null,null,null,null,null,null,"511120",5,11,120,"Villa Verde"]
[null,null,null,null,null,null,null,null,"511122",5,11,122,"Jesús de la Rosa"]
[null,null,null,null,null,null,null,null,"511123",5,11,123,"El Alto de la Tórtola"]
[null,null,null,null,null,null,null,null,"511128",5,11,128,"La Lagunilla"]
[null,null,null,null,null,null,null,null,"511129",5,11,129,"La Mamilaria"]
[null,null,null,null,null,null,null,null,"511131",5,11,131,"San Ignacio"]
[null,null,null,null,null,null,null,null,"511133",5,11,133,"El Potrero de en Medio"]
[null,null,null,null,null,null,null,null,"511134",5,11,134,"Las Barrancas"]
[null,null,null,null,null,null,null,null,"511136",5,11,136,"Predio de Dolores"]
[null,null,null,null,null,null,null,null,"511137",5,11,137,"Monte de en Medio"]
[null,null,null,null,null,null,null,null,"511141",5,11,141,"El Cuatro"]
[null,null,null,null,null,null,null,null,"511142",5,11,142,"Agualfa"]
[null,null,null,null,null,null,null,null,"511143",5,11,143,"Rancho Texas"]
[null,null,null,null,null,null,null,null,"511144",5,11,144,"San Isidro de Gómez"]
[null,null,null,null,null,null,null,null,"511145",5,11,145,"El Carmen (San Isidro de Gómez)"]
[null,null,null,null,null,null,null,null,"511146",5,11,146,"La Campana"]
[null,null,null,null,null,null,null,null,"511147",5,11,147,"Tres Hermanos (La Pila)"]
[null,null,null,null,null,null,null,null,"511148",5,11,148,"San José"]
[null,null,null,null,null,null,null,null,"511149",5,11,149,"Kilómetro Sesenta y Cuatro"]
[null,null,null,null,null,null,null,null,"511150",5,11,150,"San Nicolás de los Conos (El Pozo)"]
[null,null,null,null,null,null,null,null,"511153",5,11,153,"Crucero de Jalpa (Tramo Ancho)"]
[null,null,null,null,null,null,null,null,"511154",5,11,154,"Abel Treviño"]
[null,null,null,null,null,null,null,null,"511155",5,11,155,"Santa Elena"]
[null,null,null,null,null,null,null,null,"511157",5,11,157,"El Cheroke"]
[null,null,null,null,null,null,null,null,"511158",5,11,158,"San Belén"]
[null,null,null,null,null,null,null,null,"511159",5,11,159,"La Mesa de Huachichil"]
[null,null,null,null,null,null,null,null,"511160",5,11,160,"El Carmen"]
[null,null,null,null,null,null,null,null,"511161",5,11,161,"La Garza"]
[null,null,null,null,null,null,null,null,"511162",5,11,162,"San Miguel"]
[null,null,null,null,null,null,null,null,"511163",5,11,163,"Los José"]
[null,null,null,null,null,null,null,null,"511164",5,11,164,"Julio Shleiman (La Ilusión)"]
[null,null,null,null,null,null,null,null,{"$f":"$J1859&$K1859&$L1859","v":"511165"},5,11,165,"La Hoz de Anero"]
[null,null,null,null,null,null,null,null,"511166",5,11,166,"El Corazón"]
[null,null,null,null,null,null,null,null,"511167",5,11,167,"Narigua Uno"]
[null,null,null,null,null,null,null,null,"511168",5,11,168,"Narigua Dos"]
[null,null,null,null,null,null,null,null,"511170",5,11,170,"Los Altares"]
[null,null,null,null,null,null,null,null,"511171",5,11,171,"Cinco Hermanos"]
[null,null,null,null,null,null,null,null,"511172",5,11,172,"Eduardo Morelos Ochoa"]
[null,null,null,null,null,null,null,null,"511173",5,11,173,"Las Palomas"]
[null,null,null,null,null,null,null,null,"511174",5,11,174,"La Mesa de San Francisco"]
[null,null,null,null,null,null,null,null,"511175",5,11,175,"El Saucillo"]
[null,null,null,null,null,null,null,null,"511176",5,11,176,"Manuel Domínguez de la Riva"]
[null,null,null,null,null,null,null,null,"511177",5,11,177,"San Isidro"]
[null,null,null,null,null,null,null,null,"511178",5,11,178,"Rancho James"]
[null,null,null,null,null,null,null,null,"511179",5,11,179,"Octavio Ostos García"]
[null,null,null,null,null,null,null,null,"511180",5,11,180,"El Milagro [Granja Avícola]"]
[null,null,null,null,null,null,null,null,"511181",5,11,181,"La Rosa [Restaurante]"]
[null,null,null,null,null,null,null,null,"511182",5,11,182,"El Potrero [Establo]"]
[null,null,null,null,null,null,null,null,"511183",5,11,183,"Oscar González"]
[null,null,null,null,null,null,null,null,"511184",5,11,184,"La Florida (El Mezquite)"]
[null,null,null,null,null,null,null,null,"511185",5,11,185,"Tomás Concha"]
[null,null,null,null,null,null,null,null,"511186",5,11,186,"Las Bielas"]
[null,null,null,null,null,null,null,null,"511187",5,11,187,"Santa Inés"]
[null,null,null,null,null,null,null,null,"511188",5,11,188,"La Joya"]
[null,null,null,null,null,null,null,null,"511189",5,11,189,"La Casa de la Colectiva"]
[null,null,null,null,null,null,null,null,"511190",5,11,190,"Francisco Tello Corpus"]
[null,null,null,null,null,null,null,null,"511191",5,11,191,"Santa María"]
[null,null,null,null,null,null,null,null,"511192",5,11,192,"El Despepitador"]
[null,null,null,null,null,null,null,null,"511193",5,11,193,"Crucero a Estación Marte"]
[null,null,null,null,null,null,null,null,"511194",5,11,194,"La Pastora"]
[null,null,null,null,null,null,null,null,"511195",5,11,195,"La Sabina"]
[null,null,null,null,null,null,null,null,"511196",5,11,196,"Laura Villalba Pérez"]
[null,null,null,null,null,null,null,null,"511197",5,11,197,"El Texano"]
[null,null,null,null,null,null,null,null,"511199",5,11,199,"La Loma [Restaurante]"]
[null,null,null,null,null,null,null,null,"511200",5,11,200,"La Mesa"]
[null,null,null,null,null,null,null,null,"511201",5,11,201,"Irma Ávila Viuda de García"]
[null,null,null,null,null,null,null,null,"511202",5,11,202,"Huachichil"]
[null,null,null,null,null,null,null,null,"511203",5,11,203,"Gumersindo Rivera González"]
[null,null,null,null,null,null,null,null,"511204",5,11,204,"Las Rusias"]
[null,null,null,null,null,null,null,null,"511205",5,11,205,"Juan Rodríguez Monsiváis (El Potrillo)"]
[null,null,null,null,null,null,null,null,"511206",5,11,206,"Juan Rodríguez Morales"]
[null,null,null,null,null,null,null,null,"511207",5,11,207,"Víctor Rodríguez Delgado"]
[null,null,null,null,null,null,null,null,"511208",5,11,208,"La Joya (Luis Tello Chávez)"]
[null,null,null,null,null,null,null,null,"511209",5,11,209,"Los Jamoncillos"]
[null,null,null,null,null,null,null,null,"511210",5,11,210,"La Virgen"]
[null,null,null,null,null,null,null,null,"511211",5,11,211,"Los Patos"]
[null,null,null,null,null,null,null,null,"511212",5,11,212,"El Cuatro"]
[null,null,null,null,null,null,null,null,"511213",5,11,213,"La Vaquería"]
[null,null,null,null,null,null,null,null,"511214",5,11,214,"El Cantizal"]
[null,null,null,null,null,null,null,null,"511215",5,11,215,"El Sendero"]
[null,null,null,null,null,null,null,null,"511216",5,11,216,"Juan de la Rosa Arellano"]
[null,null,null,null,null,null,null,null,"511217",5,11,217,"Félix Jesús Arellano Pérez"]
[null,null,null,null,null,null,null,null,"511218",5,11,218,"Jesús Espinoza Téllez"]
[null,null,null,null,null,null,null,null,"511219",5,11,219,"El Siete"]
[null,null,null,null,null,null,null,null,"511220",5,11,220,"Aguilar"]
[null,null,null,null,null,null,null,null,"511221",5,11,221,"El Siete"]
[null,null,null,null,null,null,null,null,"511223",5,11,223,"Victoria [Granja Avícola]"]
[null,null,null,null,null,null,null,null,"511224",5,11,224,"El Tejabán"]
[null,null,null,null,null,null,null,null,"511225",5,11,225,"La Soledad"]
[null,null,null,null,null,null,null,null,"511226",5,11,226,"La Vinata"]
[null,null,null,null,null,null,null,null,"511227",5,11,227,"Los José"]
[null,null,null,null,null,null,null,null,"511229",5,11,229,"José Sánchez de la Rosa"]
[null,null,null,null,null,null,null,null,"511230",5,11,230,"Predio de Dolores (Eugenio Nájera Montejano)"]
[null,null,null,null,null,null,null,null,"511231",5,11,231,"Manuel Alemán Cuevas"]
[null,null,null,null,null,null,null,null,"511233",5,11,233,"Remigio Barrientos Espinoza"]
[null,null,null,null,null,null,null,null,{"$f":"$J1923&$K1923&$L1923","v":"511234"},5,11,234,"Los Álamos"]
[null,null,null,null,null,null,null,null,"511235",5,11,235,"Carlos Hernández"]
[null,null,null,null,null,null,null,null,"511236",5,11,236,"La Cuchilla del Indio"]
[null,null,null,null,null,null,null,null,"511237",5,11,237,"Guadalupe Téllez Ramos"]
[null,null,null,null,null,null,null,null,"511238",5,11,238,"San Francisco"]
[null,null,null,null,null,null,null,null,"511239",5,11,239,"Epimenio González Cardona"]
[null,null,null,null,null,null,null,null,"511240",5,11,240,"Dionisio Salazar Torres"]
[null,null,null,null,null,null,null,null,"511241",5,11,241,"La Paz [Granja Avícola]"]
[null,null,null,null,null,null,null,null,"511242",5,11,242,"Hacienda San Isidro de Gómez"]
[null,null,null,null,null,null,null,null,"511243",5,11,243,"Manuel Bueno"]
[null,null,null,null,null,null,null,null,"511244",5,11,244,"Sergio de la Peña"]
[null,null,null,null,null,null,null,null,"511245",5,11,245,"María Trinidad Zertuche"]
[null,null,null,null,null,null,null,null,"511246",5,11,246,"Ingeniero Leal"]
[null,null,null,null,null,null,null,null,"511247",5,11,247,"Potrero de Cárdenas"]
[null,null,null,null,null,null,null,null,"511248",5,11,248,"Delfino Juárez Soria"]
[null,null,null,null,null,null,null,null,"511249",5,11,249,"Antonio Téllez"]
[null,null,null,null,null,null,null,null,"511250",5,11,250,"El Rema (Víctor Reina)"]
[null,null,null,null,null,null,null,null,"511251",5,11,251,"La Nogalera"]
[null,null,null,null,null,null,null,null,"511252",5,11,252,"San Antonio del Jaral"]
[null,null,null,null,null,null,null,null,"511253",5,11,253,"Ninguno"]
[null,null,null,null,null,null,null,null,"511254",5,11,254,"Juventino Guadalupe Fonseca Sánchez"]
[null,null,null,null,null,null,null,null,"511255",5,11,255,"Ariel de la Cruz"]
[null,null,null,null,null,null,null,null,"511256",5,11,256,"Rafael Tello García"]
[null,null,null,null,null,null,null,null,"511257",5,11,257,"La Huerta (La Nogalera)"]
[null,null,null,null,null,null,null,null,"511258",5,11,258,"Santa María (El Marrano)"]
[null,null,null,null,null,null,null,null,"511260",5,11,260,"Ramiro Covarrubias"]
[null,null,null,null,null,null,null,null,"511261",5,11,261,"Herminio Sánchez Abeldaño"]
[null,null,null,null,null,null,null,null,"511262",5,11,262,"Isidro Sánchez"]
[null,null,null,null,null,null,null,null,"511263",5,11,263,"José García Durán"]
[null,null,null,null,null,null,null,null,"511264",5,11,264,"La Cruz (Luis Zamora)"]
[null,null,null,null,null,null,null,null,"511265",5,11,265,"Eusebio Márquez"]
[null,null,null,null,null,null,null,null,"511266",5,11,266,"Los Piquininos"]
[null,null,null,null,null,null,null,null,"511267",5,11,267,"Las Liebres"]
[null,null,null,null,null,null,null,null,"511268",5,11,268,"Los Abuelos (La Mesa)"]
[null,null,null,null,null,null,null,null,"511269",5,11,269,"San Juan"]
[null,null,null,null,null,null,null,null,"511270",5,11,270,"La Herencia"]
[null,null,null,null,null,null,null,null,"511271",5,11,271,"Mi Única Estrella"]
[null,null,null,null,null,null,null,null,"511272",5,11,272,"La Herradura"]
[null,null,null,null,null,null,null,null,"511273",5,11,273,"El Papalote"]
[null,null,null,null,null,null,null,null,"511274",5,11,274,"Las Huertas"]
[null,null,null,null,null,null,null,null,"511275",5,11,275,"Las Bugambilias"]
[null,null,null,null,null,null,null,null,"511276",5,11,276,"Tequila"]
[null,null,null,null,null,null,null,null,"511277",5,11,277,"El Corralero"]
[null,null,null,null,null,null,null,null,"511278",5,11,278,"Miguel Rodríguez Olivan"]
[null,null,null,null,null,null,null,null,"511279",5,11,279,"San Miguel"]
[null,null,null,null,null,null,null,null,"511280",5,11,280,"El Carmen"]
[null,null,null,null,null,null,null,null,"511281",5,11,281,"El Álamo (Jerónimo Aguilar)"]
[null,null,null,null,null,null,null,null,"511282",5,11,282,"Los Nogales"]
[null,null,null,null,null,null,null,null,"511283",5,11,283,"Socorro Guerrero Vázquez"]
[null,null,null,null,null,null,null,null,"511284",5,11,284,"Tomas Vargas Ortiz"]
[null,null,null,null,null,null,null,null,"511285",5,11,285,"Guillermo Rodríguez Vargas"]
[null,null,null,null,null,null,null,null,"5121",5,12,1,"Guerrero"]
[null,null,null,null,null,null,null,null,"5122",5,12,2,"El Amole"]
[null,null,null,null,null,null,null,null,"5124",5,12,4,"El Azulejo"]
[null,null,null,null,null,null,null,null,"5125",5,12,5,"El Barranco Blanco"]
[null,null,null,null,null,null,null,null,"5126",5,12,6,"La Burra (La Trinidad)"]
[null,null,null,null,null,null,null,null,"5127",5,12,7,"La Candelaria (El Armadillo)"]
[null,null,null,null,null,null,null,null,"5128",5,12,8,"El Caracol"]
[null,null,null,null,null,null,null,null,"51210",5,12,10,"Cerrito Prieto"]
[null,null,null,null,null,null,null,null,"51215",5,12,15,"El Socorro (San Patricio)"]
[null,null,null,null,null,null,null,null,"51216",5,12,16,"La Estancia"]
[null,null,null,null,null,null,null,null,"51217",5,12,17,"Galván"]
[null,null,null,null,null,null,null,null,"51218",5,12,18,"El Gato"]
[null,null,null,null,null,null,null,null,"51219",5,12,19,"La Concepción"]
[null,null,null,null,null,null,null,null,{"$f":"$J1987&$K1987&$L1987","v":"51220"},5,12,20,"Hacienda de Guadalupe"]
[null,null,null,null,null,null,null,null,"51221",5,12,21,"Guadalupe"]
[null,null,null,null,null,null,null,null,"51225",5,12,25,"Oro Blanco"]
[null,null,null,null,null,null,null,null,"51226",5,12,26,"El Papalote"]
[null,null,null,null,null,null,null,null,"51227",5,12,27,"La Reforma"]
[null,null,null,null,null,null,null,null,"51228",5,12,28,"Congregación Rodríguez"]
[null,null,null,null,null,null,null,null,"51229",5,12,29,"San Agustín"]
[null,null,null,null,null,null,null,null,"51231",5,12,31,"San José"]
[null,null,null,null,null,null,null,null,"51232",5,12,32,"San Luis"]
[null,null,null,null,null,null,null,null,"51233",5,12,33,"Los Ajos (San Lucas Uno)"]
[null,null,null,null,null,null,null,null,"51234",5,12,34,"Santa Lucía"]
[null,null,null,null,null,null,null,null,"51235",5,12,35,"Santa Mónica"]
[null,null,null,null,null,null,null,null,"51237",5,12,37,"San Vicente"]
[null,null,null,null,null,null,null,null,"51241",5,12,41,"El Tejas de Abajo (El Tejas Uno)"]
[null,null,null,null,null,null,null,null,"512150",5,12,150,"San Luis (Santa Hermila)"]
[null,null,null,null,null,null,null,null,"5141",5,14,1,"Jiménez"]
[null,null,null,null,null,null,null,null,"514153",5,14,153,"Rodrigo Ortega Rodríguez"]
[null,null,null,null,null,null,null,null,"515177",5,15,177,"San Ramón"]
[null,null,null,null,null,null,null,null,"51641",5,16,41,"Potrero de Menchaca (Manuel Zertuche)"]
[null,null,null,null,null,null,null,null,"517216",5,17,216,"Morelos Siete (Los López)"]
[null,null,null,null,null,null,null,null,"517464",5,17,464,"Antonio Martínez"]
[null,null,null,null,null,null,null,null,"51810",5,18,10,"Carrizalejo"]
[null,null,null,null,null,null,null,null,"518454",5,18,454,"La Polvorosa"]
[null,null,null,null,null,null,null,null,"518490",5,18,490,"De Luna (Roberto de Luna Hipólito)"]
[null,null,null,null,null,null,null,null,"519193",5,19,193,"Sergio Zúñiga"]
[null,null,null,null,null,null,null,null,"520100",5,20,100,"Los Picos de Davis"]
[null,null,null,null,null,null,null,null,"520547",5,20,547,"Miguel Guerra (Los Gutiérrez)"]
[null,null,null,null,null,null,null,null,"520756",5,20,756,"Los Nogales"]
[null,null,null,null,null,null,null,null,"520923",5,20,923,"Manuel Muñoz Dos"]
[null,null,null,null,null,null,null,null,"5201051",5,20,1051,"Jacal de Sergio"]
[null,null,null,null,null,null,null,null,"522139",5,22,139,"San José"]
[null,null,null,null,null,null,null,null,"522358",5,22,358,"Rodrigo Rodríguez"]
[null,null,null,null,null,null,null,null,"522499",5,22,499,"Sinaí Dos Mil"]
[null,null,null,null,null,null,null,null,"52395",5,23,95,"La Rueda"]
[null,null,null,null,null,null,null,null,"523353",5,23,353,"Soledad"]
[null,null,null,null,null,null,null,null,"523476",5,23,476,"El Pozo (Jesús Rodríguez González)"]
[null,null,null,null,null,null,null,null,"524170",5,24,170,"La Salada"]
[null,null,null,null,null,null,null,null,"524471",5,24,471,"Guerrero"]
[null,null,null,null,null,null,null,null,"52569",5,25,69,"Don Pillon"]
[null,null,null,null,null,null,null,null,"525258",5,25,258,"Casa Blanca"]
[null,null,null,null,null,null,null,null,"526159",5,26,159,"La Azufrosa"]
[null,null,null,null,null,null,null,null,"527132",5,27,132,"Cerrito Blanco"]
[null,null,null,null,null,null,null,null,"527426",5,27,426,"Valle de Santa Isidra"]
[null,null,null,null,null,null,null,null,"527607",5,27,607,"La Casa Blanca"]
[null,null,null,null,null,null,null,null,"528122",5,28,122,"Barrio Seis (Agujita)"]
[null,null,null,null,null,null,null,null,"528384",5,28,384,"La Birria"]
[null,null,null,null,null,null,null,null,"528405",5,28,405,"Ninguno"]
[null,null,null,null,null,null,null,null,"530347",5,30,347,"Rancho Nuevo"]
[null,null,null,null,null,null,null,null,"530670",5,30,670,"Entronque Brecha San Salvador"]
[null,null,null,null,null,null,null,null,"530830",5,30,830,"Isidoro Cortez"]
[null,null,null,null,null,null,null,null,"530991",5,30,991,"Juan Mariscal Cisneros"]
[null,null,null,null,null,null,null,null,"53197",5,31,97,"Malva Rosa"]
[null,null,null,null,null,null,null,null,"531155",5,31,155,"El Paso (Maricela Martínez Martínez)"]
[null,null,null,null,null,null,null,null,"532103",5,32,103,"La Gacha"]
[null,null,null,null,null,null,null,null,"532198",5,32,198,"La Rueda"]
[null,null,null,null,null,null,null,null,"533302",5,33,302,"Purísima de Rubio"]
[null,null,null,null,null,null,null,null,"533432",5,33,432,"Flores Magón"]
[null,null,null,null,null,null,null,null,"533676",5,33,676,"Mario González Mireles"]
[null,null,null,null,null,null,null,null,"534123",5,34,123,"San Martín Bolívar"]
[null,null,null,null,null,null,null,null,"535431",5,35,431,"Diana"]
[null,null,null,null,null,null,null,null,"536159",5,36,159,"Sector Tres C. Gilita (Rancho del Prieto)"]
[null,null,null,null,null,null,null,null,"537126",5,37,126,"La Gloria"]
[null,null,null,null,null,null,null,null,"53813",5,38,13,"La Cruz"]
[null,null,null,null,null,null,null,null,"538225",5,38,225,"La Ventana"]
[null,null,null,null,null,null,null,null,"538414",5,38,414,"Buenos Aires"]
[null,null,null,null,null,null,null,null,"538546",5,38,546,"Ninguno [Almacén Acondicionador de Semillas]"]
[null,null,null,null,null,null,null,null,"61242",6,1,242,"El Profesor"]
[null,null,null,null,null,null,null,null,"61339",6,1,339,"La Tilapia"]
[null,null,null,null,null,null,null,null,"62354",6,2,354,"El Cuatro"]
[null,null,null,null,null,null,null,null,"62441",6,2,441,"Los Mezcales"]
[null,null,null,null,null,null,null,null,{"$f":"$J9795&$K9795&$L9795","v":"62580"},6,2,580,"Las Trancas [Restaurante]"]
[null,null,null,null,null,null,null,null,"6383",6,3,83,"La Huizachera"]
[null,null,null,null,null,null,null,null,"63281",6,3,281,"Felipe Alcaraz"]
[null,null,null,null,null,null,null,null,"649",6,4,9,"Cruz de Piedra"]
[null,null,null,null,null,null,null,null,"64321",6,4,321,"La Rápida"]
[null,null,null,null,null,null,null,null,"6549",6,5,49,"El Pastor"]
[null,null,null,null,null,null,null,null,"65311",6,5,311,"Jesús Mendoza"]
[null,null,null,null,null,null,null,null,"65335",6,5,335,"Potrero de la Sábila"]
[null,null,null,null,null,null,null,null,"67187",6,7,187,"El Ventarrón"]
[null,null,null,null,null,null,null,null,"67442",6,7,442,"Loma Caliente"]
[null,null,null,null,null,null,null,null,"67696",6,7,696,"Rebalse (Rancho Cervantes)"]
[null,null,null,null,null,null,null,null,"6826",6,8,26,"Platanarillos"]
[null,null,null,null,null,null,null,null,"68145",6,8,145,"Los Saucos"]
[null,null,null,null,null,null,null,null,"69333",6,9,333,"Los Compadres"]
[null,null,null,null,null,null,null,null,"69621",6,9,621,"De la Viuda"]
[null,null,null,null,null,null,null,null,"69755",6,9,755,"Conrado Verduzco"]
[null,null,null,null,null,null,null,null,"69972",6,9,972,"El Mangal"]
[null,null,null,null,null,null,null,null,"691024",6,9,1024,"Beto Gudiño"]
[null,null,null,null,null,null,null,null,{"$f":"$J12355&$K12355&$L12355","v":"61095"},6,10,95,"La Sidra"]
[null,null,null,null,null,null,null,null,"610257",6,10,257,"Daniel García Larios"]
[null,null,null,null,null,null,null,null,"71176",7,1,176,"Galeana"]
[null,null,null,null,null,null,null,null,"72157",7,2,157,"Cupijamo"]
[null,null,null,null,null,null,null,null,"72379",7,2,379,"Las Raíces"]
[null,null,null,null,null,null,null,null,"73253",7,3,253,"Santo Domingo"]
[null,null,null,null,null,null,null,null,"73491",7,3,491,"Tres Hermanos"]
[null,null,null,null,null,null,null,null,"74246",7,4,246,"Getzemaní"]
[null,null,null,null,null,null,null,null,"75157",7,5,157,"Zapotal"]
[null,null,null,null,null,null,null,null,"7742",7,7,42,"San Gregorio"]
[null,null,null,null,null,null,null,null,"7851",7,8,51,"España"]
[null,null,null,null,null,null,null,null,"78594",7,8,594,"Las Vegas"]
[null,null,null,null,null,null,null,null,"79161",7,9,161,"Villa del Mar"]
[null,null,null,null,null,null,null,null,"79436",7,9,436,"La Ceiba"]
[null,null,null,null,null,null,null,null,"79657",7,9,657,"El Ramal"]
[null,null,null,null,null,null,null,null,{"$f":"$J14339&$K14339&$L14339","v":"7109"},7,10,9,"El Pino"]
[null,null,null,null,null,null,null,null,"712214",7,12,214,"Guadalupe"]
[null,null,null,null,null,null,null,null,"712325",7,12,325,"San Jorge"]
[null,null,null,null,null,null,null,null,"712678",7,12,678,"Monterrey (Granja)"]
[null,null,null,null,null,null,null,null,"712746",7,12,746,"Ciudad Maya"]
[null,null,null,null,null,null,null,null,"715195",7,15,195,"Ojo de Agua"]
[null,null,null,null,null,null,null,null,"716246",7,16,246,"El Naranjo"]
[null,null,null,null,null,null,null,null,"71794",7,17,94,"El Platanillo"]
[null,null,null,null,null,null,null,null,"717128",7,17,128,"San Sebastián"]
[null,null,null,null,null,null,null,null,"717556",7,17,556,"El Saltillo"]
[null,null,null,null,null,null,null,null,"717718",7,17,718,"Rancho Verde"]
[null,null,null,null,null,null,null,null,"717924",7,17,924,"La Selva"]
[null,null,null,null,null,null,null,null,"7171069",7,17,1069,"Marcos Pérez Pérez"]
[null,null,null,null,null,null,null,null,"7171121",7,17,1121,"La Ribera"]
[null,null,null,null,null,null,null,null,"719156",7,19,156,"San Francisco Uninajab [Los Baños]"]
[null,null,null,null,null,null,null,null,"719333",7,19,333,"San Pedro Copalar"]
[null,null,null,null,null,null,null,null,"72083",7,20,83,"Lindavista"]
[null,null,null,null,null,null,null,null,"720208",7,20,208,"Tierra Blanca"]
[null,null,null,null,null,null,null,null,{"$f":"$J16899&$K16899&$L16899","v":"720458"},7,20,458,"Nuevo Cuauhtémoc"]
[null,null,null,null,null,null,null,null,"720677",7,20,677,"Nuevo San Pedro"]
[null,null,null,null,null,null,null,null,"720941",7,20,941,"Saltillo"]
[null,null,null,null,null,null,null,null,"7201090",7,20,1090,"San Antonio"]
[null,null,null,null,null,null,null,null,"721105",7,21,105,"La Lagunita"]
[null,null,null,null,null,null,null,null,"721208",7,21,208,"San Marcos I"]
[null,null,null,null,null,null,null,null,"723154",7,23,154,"Bahukum"]
[null,null,null,null,null,null,null,null,"72536",7,25,36,"San José Paraíso"]
[null,null,null,null,null,null,null,null,"72756",7,27,56,"Ribera de Monte Rico (Nacamucuyi)"]
[null,null,null,null,null,null,null,null,"727334",7,27,334,"Unión y Progreso"]
[null,null,null,null,null,null,null,null,"727556",7,27,556,"Parralito"]
[null,null,null,null,null,null,null,null,"73035",7,30,35,"El Naranjo"]
[null,null,null,null,null,null,null,null,"730236",7,30,236,"San José"]
[null,null,null,null,null,null,null,null,"73129",7,31,29,"Caquemte'El (K'Aquemteel 1ra. Sección)"]
[null,null,null,null,null,null,null,null,"731461",7,31,461,"Baj'Tokal"]
[null,null,null,null,null,null,null,null,"731540",7,31,540,"Jol Catarraya"]
[null,null,null,null,null,null,null,null,"731771",7,31,771,"Salto del Tigre"]
[null,null,null,null,null,null,null,null,"731889",7,31,889,"La Ilusión Segunda Sección"]
[null,null,null,null,null,null,null,null,"732155",7,32,155,"El Playón"]
[null,null,null,null,null,null,null,null,"732296",7,32,296,"Jorge Chanlati"]
[null,null,null,null,null,null,null,null,"734319",7,34,319,"Elpidio Morales V."]
[null,null,null,null,null,null,null,null,"73544",7,35,44,"Gustavo Díaz Ordaz"]
[null,null,null,null,null,null,null,null,"73624",7,36,24,"El Encuentro"]
[null,null,null,null,null,null,null,null,"739152",7,39,152,"Ramos Cubilete"]
[null,null,null,null,null,null,null,null,"739193",7,39,193,"Campo Alegre"]
[null,null,null,null,null,null,null,null,"7419",7,41,9,"El Calvario"]
[null,null,null,null,null,null,null,null,"741452",7,41,452,"San Caralampio (Anexo Francisco Sarabia)"]
[null,null,null,null,null,null,null,null,"74458",7,44,58,"Las Tejitas"]
[null,null,null,null,null,null,null,null,"7468",7,46,8,"Baja California"]
[null,null,null,null,null,null,null,null,"746373",7,46,373,"El Progreso"]
[null,null,null,null,null,null,null,null,"746572",7,46,572,"Cielito Lindo"]
[null,null,null,null,null,null,null,null,"746887",7,46,887,"El Brasil"]
[null,null,null,null,null,null,null,null,"74816",7,48,16,"Mario Aguilera Dorantes"]
[null,null,null,null,null,null,null,null,"75058",7,50,58,"Bajada Grande"]
[null,null,null,null,null,null,null,null,"75187",7,51,87,"Berlín"]
[null,null,null,null,null,null,null,null,"751458",7,51,458,"El Roble"]
[null,null,null,null,null,null,null,null,"751595",7,51,595,"Tilapilla Fracción Dos"]
[null,null,null,null,null,null,null,null,"751938",7,51,938,"El Paval"]
[null,null,null,null,null,null,null,null,"7511022",7,51,1022,"El Potrerón"]
[null,null,null,null,null,null,null,null,"7511161",7,51,1161,"Santa Teresa"]
[null,null,null,null,null,null,null,null,"752173",7,52,173,"Tabasco"]
[null,null,null,null,null,null,null,null,"752528",7,52,528,"San Ramón"]
[null,null,null,null,null,null,null,null,"752808",7,52,808,"Lindavista"]
[null,null,null,null,null,null,null,null,"75425",7,54,25,"Marte R. Gómez"]
[null,null,null,null,null,null,null,null,"754256",7,54,256,"Guadalupe"]
[null,null,null,null,null,null,null,null,"757315",7,57,315,"La Verbena"]
[null,null,null,null,null,null,null,null,"757386",7,57,386,"Las Joyas"]
[null,null,null,null,null,null,null,null,"757597",7,57,597,"Plan Grande"]
[null,null,null,null,null,null,null,null,"759335",7,59,335,"San Nicolás Tenanguito"]
[null,null,null,null,null,null,null,null,"759878",7,59,878,"San Antonio"]
[null,null,null,null,null,null,null,null,"7591348",7,59,1348,"El Palmar"]
[null,null,null,null,null,null,null,null,"7591408",7,59,1408,"La Tinta"]
[null,null,null,null,null,null,null,null,"7592007",7,59,2007,"San Pedro"]
[null,null,null,null,null,null,null,null,"7592050",7,59,2050,"Patihuitz"]
[null,null,null,null,null,null,null,null,"7592740",7,59,2740,"Revolución"]
[null,null,null,null,null,null,null,null,"7593026",7,59,3026,"San Pablo"]
[null,null,null,null,null,null,null,null,"7593068",7,59,3068,"Las Minas"]
[null,null,null,null,null,null,null,null,"761560",7,61,560,"Yavr"]
[null,null,null,null,null,null,null,null,"761896",7,61,896,"La Lagunita"]
[null,null,null,null,null,null,null,null,"7611000",7,61,1000,"Zacate Largo"]
[null,null,null,null,null,null,null,null,"7611330",7,61,1330,"Las Gaviotas"]
[null,null,null,null,null,null,null,null,"7611529",7,61,1529,"José Inés Pérez"]
[null,null,null,null,null,null,null,null,"7611733",7,61,1733,"San Pedro"]
[null,null,null,null,null,null,null,null,"7611864",7,61,1864,"Los Manguitos"]
[null,null,null,null,null,null,null,null,"76480",7,64,80,"Chijtal"]
[null,null,null,null,null,null,null,null,"764188",7,64,188,"Ch'Ay K'Ajk"]
[null,null,null,null,null,null,null,null,"76592",7,65,92,"El Porvenir"]
[null,null,null,null,null,null,null,null,"765461",7,65,461,"El Carmen Uno (Vallecillo)"]
[null,null,null,null,null,null,null,null,"765727",7,65,727,"Santo Domingo"]
[null,null,null,null,null,null,null,null,"7651028",7,65,1028,"Los Alazanes"]
[null,null,null,null,null,null,null,null,"7651178",7,65,1178,"San Pedro"]
[null,null,null,null,null,null,null,null,"7651294",7,65,1294,"El Roble"]
[null,null,null,null,null,null,null,null,"766162",7,66,162,"San José del Carmen"]
[null,null,null,null,null,null,null,null,"76797",7,67,97,"Buenavista"]
[null,null,null,null,null,null,null,null,"769199",7,69,199,"Sin Pensar"]
[null,null,null,null,null,null,null,null,"769454",7,69,454,"Santa Sonia"]
[null,null,null,null,null,null,null,null,"769694",7,69,694,"Tierra Santa"]
[null,null,null,null,null,null,null,null,"769971",7,69,971,"Las Carmelitas"]
[null,null,null,null,null,null,null,null,"7691195",7,69,1195,"Las Palmas (Nueva Palmera)"]
[null,null,null,null,null,null,null,null,"7691317",7,69,1317,"San Francisco"]
[null,null,null,null,null,null,null,null,"7691556",7,69,1556,"El Zapote"]
[null,null,null,null,null,null,null,null,"7691618",7,69,1618,"Los Olivos"]
[null,null,null,null,null,null,null,null,"7691820",7,69,1820,"Sin Pensar (Las Chirino)"]
[null,null,null,null,null,null,null,null,"77059",7,70,59,"Santa Rosa"]
[null,null,null,null,null,null,null,null,"772195",7,72,195,"Concepción Urania"]
[null,null,null,null,null,null,null,null,"77343",7,73,43,"Flor de María"]
[null,null,null,null,null,null,null,null,{"$f":"$J28867&$K28867&$L28867","v":"776123"},7,76,123,"San Pedro"]
[null,null,null,null,null,null,null,null,"77753",7,77,53,"Mi Patria es Primero"]
[null,null,null,null,null,null,null,null,"777415",7,77,415,"Ojo de Agua"]
[null,null,null,null,null,null,null,null,"77865",7,78,65,"La Florecilla"]
[null,null,null,null,null,null,null,null,"77992",7,79,92,"Tierra Blanca"]
[null,null,null,null,null,null,null,null,"78010",7,80,10,"Las Delicias"]
[null,null,null,null,null,null,null,null,"780201",7,80,201,"El Paraíso"]
[null,null,null,null,null,null,null,null,"781304",7,81,304,"El Triunfo la Laguna"]
[null,null,null,null,null,null,null,null,"782103",7,82,103,"San Martín"]
[null,null,null,null,null,null,null,null,"783197",7,83,197,"Tierra y Libertad"]
[null,null,null,null,null,null,null,null,"78626",7,86,26,"Plan de Mulumí"]
[null,null,null,null,null,null,null,null,"78779",7,87,79,"San Martín de Porres"]
[null,null,null,null,null,null,null,null,"787270",7,87,270,"La Escondida"]
[null,null,null,null,null,null,null,null,"789425",7,89,425,"San Francisco"]
[null,null,null,null,null,null,null,null,"789614",7,89,614,"San Antonio Cintaguayate"]
[null,null,null,null,null,null,null,null,"789811",7,89,811,"Bojoncito"]
[null,null,null,null,null,null,null,null,"789975",7,89,975,"Las Banderas"]
[null,null,null,null,null,null,null,null,"79256",7,92,56,"El Herradero (Japón)"]
[null,null,null,null,null,null,null,null,"792300",7,92,300,"Santa Cruz"]
[null,null,null,null,null,null,null,null,"792479",7,92,479,"Camino Real"]
[null,null,null,null,null,null,null,null,"792688",7,92,688,"El Encanto"]
[null,null,null,null,null,null,null,null,"7942",7,94,2,"El Paraíso"]
[null,null,null,null,null,null,null,null,"79646",7,96,46,"Los Mangos"]
[null,null,null,null,null,null,null,null,"797161",7,97,161,"Rosita"]
[null,null,null,null,null,null,null,null,"797281",7,97,281,"Reforma"]
[null,null,null,null,null,null,null,null,"797698",7,97,698,"La Paz"]
[null,null,null,null,null,null,null,null,"797765",7,97,765,"El Amatal"]
[null,null,null,null,null,null,null,null,"7971251",7,97,1251,"Irlanda"]
[null,null,null,null,null,null,null,null,"7971282",7,97,1282,"La Concepción"]
[null,null,null,null,null,null,null,null,"79841",7,98,41,"El Guayabal"]
[null,null,null,null,null,null,null,null,"799103",7,99,103,"Francisco Villa"]
[null,null,null,null,null,null,null,null,"799691",7,99,691,"La Huasteca"]
[null,null,null,null,null,null,null,null,"799993",7,99,993,"Nueva Esperanza el Ocotal"]
[null,null,null,null,null,null,null,null,"710043",7,100,43,"El Progreso"]
[null,null,null,null,null,null,null,null,"7101243",7,101,243,"Quinta Guadalupe"]
[null,null,null,null,null,null,null,null,"7101420",7,101,420,"Nuevo Jerusalén"]
[null,null,null,null,null,null,null,null,"7103158",7,103,158,"Las Palmas"]
[null,null,null,null,null,null,null,null,"710461",7,104,61,"San Ramón"]
[null,null,null,null,null,null,null,null,"7106276",7,106,276,"El Carmen"]
[null,null,null,null,null,null,null,null,"7106528",7,106,528,"San Pedro el Puy"]
[null,null,null,null,null,null,null,null,"7106770",7,106,770,"Desvío el Carrizal"]
[null,null,null,null,null,null,null,null,"7107149",7,107,149,"Nueva Esperanza"]
[null,null,null,null,null,null,null,null,"7107588",7,107,588,"San Julián"]
[null,null,null,null,null,null,null,null,"7107759",7,107,759,"Las Águilas"]
[null,null,null,null,null,null,null,null,"7107988",7,107,988,"Santa Fe"]
[null,null,null,null,null,null,null,null,"71071063",7,107,1063,"Las Marías"]
[null,null,null,null,null,null,null,null,"71071185",7,107,1185,"Las Gardenias"]
[null,null,null,null,null,null,null,null,"71071528",7,107,1528,"Las Limas"]
[null,null,null,null,null,null,null,null,"71071747",7,107,1747,"Santa Cecilia"]
[null,null,null,null,null,null,null,null,"71071880",7,107,1880,"La Paz (Lindavista)"]
[null,null,null,null,null,null,null,null,"71072007",7,107,2007,"Santa Clara"]
[null,null,null,null,null,null,null,null,"71072218",7,107,2218,"San Francisco"]
[null,null,null,null,null,null,null,null,"71072337",7,107,2337,"Alto Horizonte"]
[null,null,null,null,null,null,null,null,"71072466",7,107,2466,"Celaya"]
[null,null,null,null,null,null,null,null,"71072718",7,107,2718,"Fracción la Muralla"]
[null,null,null,null,null,null,null,null,"710868",7,108,68,"Cristóbal Obregón"]
[null,null,null,null,null,null,null,null,"7108472",7,108,472,"Minerva"]
[null,null,null,null,null,null,null,null,"7108702",7,108,702,"Santo Domingo"]
[null,null,null,null,null,null,null,null,"71081013",7,108,1013,"Acapulco"]
[null,null,null,null,null,null,null,null,"71081096",7,108,1096,"La Paz"]
[null,null,null,null,null,null,null,null,"71081521",7,108,1521,"Berlín"]
[null,null,null,null,null,null,null,null,"71081798",7,108,1798,"Las Flores"]
[null,null,null,null,null,null,null,null,"71081882",7,108,1882,"Las Perlas"]
[null,null,null,null,null,null,null,null,"71082065",7,108,2065,"Campo Real"]
[null,null,null,null,null,null,null,null,"71082199",7,108,2199,"El Sasafrás"]
[null,null,null,null,null,null,null,null,"71082372",7,108,2372,"Santa Teresa"]
[null,null,null,null,null,null,null,null,"7109225",7,109,225,"Calvario las Delicias"]
[null,null,null,null,null,null,null,null,"711160",7,111,60,"Jechtojtik"]
[null,null,null,null,null,null,null,null,"711425",7,114,25,"Roberto Barrios"]
[null,null,null,null,null,null,null,null,"711771",7,117,71,"La Vainilla"]
[null,null,null,null,null,null,null,null,"81146",8,1,146,"El Palmar (El Dos)"]
[null,null,null,null,null,null,null,null,"81491",8,1,491,"El Tule"]
[null,null,null,null,null,null,null,null,"81921",8,1,921,"Las Margaritas"]
[null,null,null,null,null,null,null,null,"81964",8,1,964,"Santo Niño"]
[null,null,null,null,null,null,null,null,"8286",8,2,86,"El Socorro"]
[null,null,null,null,null,null,null,null,"82235",8,2,235,"El Morreón (El Morrión)"]
[null,null,null,null,null,null,null,null,"82559",8,2,559,"El Matonal"]
[null,null,null,null,null,null,null,null,"82667",8,2,667,"Ninguno"]
[null,null,null,null,null,null,null,null,"8410",8,4,10,"El Pozo Artesiano"]
[null,null,null,null,null,null,null,null,"85213",8,5,213,"La Bufa"]
[null,null,null,null,null,null,null,null,"85945",8,5,945,"Santa Clara Número Tres"]
[null,null,null,null,null,null,null,null,"851077",8,5,1077,"Ninguno"]
[null,null,null,null,null,null,null,null,"86117",8,6,117,"Ninguno"]
[null,null,null,null,null,null,null,null,"8789",8,7,89,"Piedra Bola"]
[null,null,null,null,null,null,null,null,"87268",8,7,268,"San José"]
[null,null,null,null,null,null,null,null,"87499",8,7,499,"Paraje el Palomo"]
[null,null,null,null,null,null,null,null,"87741",8,7,741,"El Obispo"]
[null,null,null,null,null,null,null,null,"88181",8,8,181,"San Juan de Dios (Agua Caliente)"]
[null,null,null,null,null,null,null,null,"88415",8,8,415,"Mesa de San José"]
[null,null,null,null,null,null,null,null,"881026",8,8,1026,"El Carrizal"]
[null,null,null,null,null,null,null,null,"881119",8,8,1119,"La Ventana"]
[null,null,null,null,null,null,null,null,"881262",8,8,1262,"El Pochote"]
[null,null,null,null,null,null,null,null,"89212",8,9,212,"Setiapachi"]
[null,null,null,null,null,null,null,null,"89462",8,9,462,"El Yerbanís"]
[null,null,null,null,null,null,null,null,"89809",8,9,809,"Guadalajara"]
[null,null,null,null,null,null,null,null,"89976",8,9,976,"Boreachi"]
[null,null,null,null,null,null,null,null,"810220",8,10,220,"Agua Zarca"]
[null,null,null,null,null,null,null,null,"811102",8,11,102,"La Morita"]
[null,null,null,null,null,null,null,null,"811360",8,11,360,"La Zacatosa"]
[null,null,null,null,null,null,null,null,"811597",8,11,597,"La Ladrillera"]
[null,null,null,null,null,null,null,null,"811849",8,11,849,"El Ocotillo Dos (El Pozo)"]
[null,null,null,null,null,null,null,null,"81225",8,12,25,"Ranchería Guahuachérare"]
[null,null,null,null,null,null,null,null,"812330",8,12,330,"Guageachi"]
[null,null,null,null,null,null,null,null,"812668",8,12,668,"Napuchi"]
[null,null,null,null,null,null,null,null,"813202",8,13,202,"Huerta las Cuevitas"]
[null,null,null,null,null,null,null,null,"813330",8,13,330,"San Jorge"]
[null,null,null,null,null,null,null,null,"81451",8,14,51,"El Dieciséis"]
[null,null,null,null,null,null,null,null,"815209",8,15,209,"Coyamito"]
[null,null,null,null,null,null,null,null,{"$f":"$J43843&$K43843&$L43843","v":"81734"},8,17,34,"Campo Número Once"]
[null,null,null,null,null,null,null,null,"817146",8,17,146,"El Polvorín"]
[null,null,null,null,null,null,null,null,"817349",8,17,349,"Las Lilitas"]
[null,null,null,null,null,null,null,null,"817650",8,17,650,"El Ranchito"]
[null,null,null,null,null,null,null,null,"817758",8,17,758,"Ninguno"]
[null,null,null,null,null,null,null,null,"81869",8,18,69,"San Bernabé"]
[null,null,null,null,null,null,null,null,"818290",8,18,290,"Huerta la Finca"]
[null,null,null,null,null,null,null,null,"819446",8,19,446,"La Cendradita (Colonia Hidalgo)"]
[null,null,null,null,null,null,null,null,"819665",8,19,665,"Las Playas"]
[null,null,null,null,null,null,null,null,"819879",8,19,879,"Granjas el Refugio de Victorio"]
[null,null,null,null,null,null,null,null,"8191194",8,19,1194,"El Álamo"]
[null,null,null,null,null,null,null,null,"8191268",8,19,1268,"San Jorge"]
[null,null,null,null,null,null,null,null,"820258",8,20,258,"El Arroyo"]
[null,null,null,null,null,null,null,null,"820276",8,20,276,"El Rosario"]
[null,null,null,null,null,null,null,null,"82150",8,21,50,"La Concepción"]
[null,null,null,null,null,null,null,null,"821649",8,21,649,"Las Rositas (El Mirador)"]
[null,null,null,null,null,null,null,null,"8211143",8,21,1143,"La Aurora"]
[null,null,null,null,null,null,null,null,"8211489",8,21,1489,"Nicolás Jáquez"]
[null,null,null,null,null,null,null,null,"823147",8,23,147,"Ninguno"]
[null,null,null,null,null,null,null,null,"82537",8,25,37,"Las Canoas"]
[null,null,null,null,null,null,null,null,"827339",8,27,339,"Sayaguachi"]
[null,null,null,null,null,null,null,null,"827586",8,27,586,"Matalirabo"]
[null,null,null,null,null,null,null,null,"8271050",8,27,1050,"Basigochito"]
[null,null,null,null,null,null,null,null,"8271274",8,27,1274,"Sitagochi"]
[null,null,null,null,null,null,null,null,"8271640",8,27,1640,"Sitanachi"]
[null,null,null,null,null,null,null,null,"8271999",8,27,1999,"Aquichi"]
[null,null,null,null,null,null,null,null,"8272240",8,27,2240,"Sahuarare"]
[null,null,null,null,null,null,null,null,"8272493",8,27,2493,"Comichi"]
[null,null,null,null,null,null,null,null,"8272652",8,27,2652,"Pompachi"]
[null,null,null,null,null,null,null,null,"8272801",8,27,2801,"El Aguajito"]
[null,null,null,null,null,null,null,null,"8273124",8,27,3124,"El Manzano"]
[null,null,null,null,null,null,null,null,"828107",8,28,107,"Los Infantes"]
[null,null,null,null,null,null,null,null,"829136",8,29,136,"Nabogame"]
[null,null,null,null,null,null,null,null,"829244",8,29,244,"Paraje el Tigrito"]
[null,null,null,null,null,null,null,null,"829514",8,29,514,"Arroyo Tendido"]
[null,null,null,null,null,null,null,null,"829878",8,29,878,"La Cieneguita"]
[null,null,null,null,null,null,null,null,"8291179",8,29,1179,"Las Banquetas"]
[null,null,null,null,null,null,null,null,"8291561",8,29,1561,"La Ciénega"]
[null,null,null,null,null,null,null,null,"8291849",8,29,1849,"Ojo del Buey"]
[null,null,null,null,null,null,null,null,"8291947",8,29,1947,"El Hundido"]
[null,null,null,null,null,null,null,null,"8292127",8,29,2127,"Cabreras"]
[null,null,null,null,null,null,null,null,"8292222",8,29,2222,"Waipan"]
[null,null,null,null,null,null,null,null,"83051",8,30,51,"Hormigueros"]
[null,null,null,null,null,null,null,null,"830233",8,30,233,"Laurel"]
[null,null,null,null,null,null,null,null,"830725",8,30,725,"La Bavisa"]
[null,null,null,null,null,null,null,null,"8301303",8,30,1303,"El Maguechi"]
[null,null,null,null,null,null,null,null,"831137",8,31,137,"El Terrerito"]
[null,null,null,null,null,null,null,null,"831539",8,31,539,"El Capulín"]
[null,null,null,null,null,null,null,null,"831628",8,31,628,"Ninguno"]
[null,null,null,null,null,null,null,null,"831846",8,31,846,"Granja Tierra Mojada"]
[null,null,null,null,null,null,null,null,"831943",8,31,943,"El Soco"]
[null,null,null,null,null,null,null,null,"832274",8,32,274,"Rancho la Boca"]
[null,null,null,null,null,null,null,null,"832323",8,32,323,"El Refugio"]
[null,null,null,null,null,null,null,null,"835183",8,35,183,"Nifay"]
[null,null,null,null,null,null,null,null,"835356",8,35,356,"Santa Anita"]
[null,null,null,null,null,null,null,null,"835487",8,35,487,"Don Adolfo"]
[null,null,null,null,null,null,null,null,"836299",8,36,299,"Los Alamitos"]
[null,null,null,null,null,null,null,null,"836567",8,36,567,"El Monzón"]
[null,null,null,null,null,null,null,null,"836776",8,36,776,"Marbella"]
[null,null,null,null,null,null,null,null,"837900",8,37,900,"La Flor del Campo [Restaurante]"]
[null,null,null,null,null,null,null,null,"8371051",8,37,1051,"Ninguno [Viveros Forestales]"]
[null,null,null,null,null,null,null,null,"8397",8,39,7,"El Cairo"]
[null,null,null,null,null,null,null,null,"839138",8,39,138,"El Sinaí"]
[null,null,null,null,null,null,null,null,"840312",8,40,312,"El Camposanto (El Tubo)"]
[null,null,null,null,null,null,null,null,"840445",8,40,445,"Nuevas Fresas"]
[null,null,null,null,null,null,null,null,"840628",8,40,628,"Los Tepozanes"]
[null,null,null,null,null,null,null,null,"840796",8,40,796,"Santa Teresa"]
[null,null,null,null,null,null,null,null,"841315",8,41,315,"El Metate"]
[null,null,null,null,null,null,null,null,"842128",8,42,128,"La Esperanza"]
[null,null,null,null,null,null,null,null,"84444",8,44,44,"Peinado"]
[null,null,null,null,null,null,null,null,"844194",8,44,194,"Las Mariquitas"]
[null,null,null,null,null,null,null,null,"845469",8,45,469,"Ninguno"]
[null,null,null,null,null,null,null,null,"845546",8,45,546,"Ninguno"]
[null,null,null,null,null,null,null,null,"845699",8,45,699,"Ninguno"]
[null,null,null,null,null,null,null,null,"845869",8,45,869,"Ninguno"]
[null,null,null,null,null,null,null,null,"8451332",8,45,1332,"Ninguno"]
[null,null,null,null,null,null,null,null,"84675",8,46,75,"Los Guayabos"]
[null,null,null,null,null,null,null,null,"846356",8,46,356,"Piedra Bola"]
[null,null,null,null,null,null,null,null,"846660",8,46,660,"Puerto la Silla"]
[null,null,null,null,null,null,null,null,"84790",8,47,90,"El Ranchito"]
[null,null,null,null,null,null,null,null,"847228",8,47,228,"La Gloria"]
[null,null,null,null,null,null,null,null,"848181",8,48,181,"La Mula"]
[null,null,null,null,null,null,null,null,"848318",8,48,318,"Rancho de Reno"]
[null,null,null,null,null,null,null,null,"84952",8,49,52,"Las Juntas"]
[null,null,null,null,null,null,null,null,{"$f":"$J55363&$K55363&$L55363","v":"849239"},8,49,239,"Las Chinacas"]
[null,null,null,null,null,null,null,null,"851156",8,51,156,"El Aguaje"]
[null,null,null,null,null,null,null,null,"851399",8,51,399,"Aguajito Escondido"]
[null,null,null,null,null,null,null,null,"852175",8,52,175,"El Mimbre"]
[null,null,null,null,null,null,null,null,"852422",8,52,422,"Ninguno"]
[null,null,null,null,null,null,null,null,"853204",8,53,204,"Ninguno"]
[null,null,null,null,null,null,null,null,"85427",8,54,27,"Campo Sesenta y Tres"]
[null,null,null,null,null,null,null,null,"855214",8,55,214,"Santa Rita"]
[null,null,null,null,null,null,null,null,"855484",8,55,484,"Los Márquez (Pozo Número Nueve)"]
[null,null,null,null,null,null,null,null,"855602",8,55,602,"Rancho Rebeca"]
[null,null,null,null,null,null,null,null,"855772",8,55,772,"Rancho el Esfuerzo"]
[null,null,null,null,null,null,null,null,"857141",8,57,141,"Los Perales"]
[null,null,null,null,null,null,null,null,"85963",8,59,63,"La Noria"]
[null,null,null,null,null,null,null,null,"8614",8,61,4,"El Alamito"]
[null,null,null,null,null,null,null,null,"861269",8,61,269,"La Carreta"]
[null,null,null,null,null,null,null,null,"861344",8,61,344,"Las Barras"]
[null,null,null,null,null,null,null,null,"862410",8,62,410,"Matías Bejarano"]
[null,null,null,null,null,null,null,null,"862529",8,62,529,"Las Hortensias"]
[null,null,null,null,null,null,null,null,"86330",8,63,30,"Los Letreros"]
[null,null,null,null,null,null,null,null,"863247",8,63,247,"La Salitrera"]
[null,null,null,null,null,null,null,null,"863695",8,63,695,"La Mesa"]
[null,null,null,null,null,null,null,null,"86582",8,65,82,"Sebastopol"]
[null,null,null,null,null,null,null,null,"865276",8,65,276,"Salvias"]
[null,null,null,null,null,null,null,null,"865501",8,65,501,"Mariana"]
[null,null,null,null,null,null,null,null,"8651053",8,65,1053,"Boquimoba (Rancho Escondido)"]
[null,null,null,null,null,null,null,null,"8651240",8,65,1240,"Sicoratavo"]
[null,null,null,null,null,null,null,null,"8651521",8,65,1521,"Bacarichi"]
[null,null,null,null,null,null,null,null,"8651543",8,65,1543,"Nopalera"]
[null,null,null,null,null,null,null,null,"8651758",8,65,1758,"Sepo"]
[null,null,null,null,null,null,null,null,"8651847",8,65,1847,"Rancho Marcial"]
[null,null,null,null,null,null,null,null,"866468",8,66,468,"Tierra Prieta"]
[null,null,null,null,null,null,null,null,"866757",8,66,757,"El Duraznito"]
[null,null,null,null,null,null,null,null,"866780",8,66,780,"Rancho Viejo"]
[null,null,null,null,null,null,null,null,"86780",8,67,80,"Las Vegas"]
[null,null,null,null,null,null,null,null,"9879",9,8,79,"Las Golondrinas"]
[null,null,null,null,null,null,null,null,"99215",9,9,215,"El Pirul"]
[null,null,null,null,null,null,null,null,"912175",9,12,175,"Siete Ocotes"]
[null,null,null,null,null,null,null,null,"912276",9,12,276,"Kilómetro 30"]
[null,null,null,null,null,null,null,null,"10159",10,1,59,"Hermenegildo Galeana"]
[null,null,null,null,null,null,null,null,"101293",10,1,293,"Los Aniegos"]
[null,null,null,null,null,null,null,null,"101449",10,1,449,"Tableteros"]
[null,null,null,null,null,null,null,null,"102369",10,2,369,"El Saucito"]
[null,null,null,null,null,null,null,null,"10457",10,4,57,"San Antonio Palo Blanco"]
[null,null,null,null,null,null,null,null,"104309",10,4,309,"El Bajío de Guadalupe"]
[null,null,null,null,null,null,null,null,"105134",10,5,134,"Los Artículos"]
[null,null,null,null,null,null,null,null,"105406",10,5,406,"Corral Falso"]
[null,null,null,null,null,null,null,null,"105657",10,5,657,"La Tijera"]
[null,null,null,null,null,null,null,null,"105793",10,5,793,"Los Arcos [Granja]"]
[null,null,null,null,null,null,null,null,"1051126",10,5,1126,"El Jagüey"]
[null,null,null,null,null,null,null,null,"1051348",10,5,1348,"Segovias"]
[null,null,null,null,null,null,null,null,"1051497",10,5,1497,"Victoriano Rodríguez"]
[null,null,null,null,null,null,null,null,"1051650",10,5,1650,"Los Corrales"]
[null,null,null,null,null,null,null,null,"1051773",10,5,1773,"Roberto Quiñones"]
[null,null,null,null,null,null,null,null,"10613",10,6,13,"San Antonio de Zaragoza"]
[null,null,null,null,null,null,null,null,"107148",10,7,148,"Santa Julia"]
[null,null,null,null,null,null,null,null,"107507",10,7,507,"San José [Grupo Avícola]"]
[null,null,null,null,null,null,null,null,"107742",10,7,742,"La Noria de Jaboncillo"]
[null,null,null,null,null,null,null,null,"107894",10,7,894,"La Empresa (Pánfilo Gaytán)"]
[null,null,null,null,null,null,null,null,"10946",10,9,46,"La Joya de Ayala"]
[null,null,null,null,null,null,null,null,"109436",10,9,436,"Nonalco"]
[null,null,null,null,null,null,null,null,"1010117",10,10,117,"Santa Cecilia"]
[null,null,null,null,null,null,null,null,"1011135",10,11,135,"El Chivato"]
[null,null,null,null,null,null,null,null,"1012266",10,12,266,"Rancho San Francisco de Asís"]
[null,null,null,null,null,null,null,null,"1012440",10,12,440,"José Martínez Espino"]
[null,null,null,null,null,null,null,null,"1012628",10,12,628,"Ninguno"]
[null,null,null,null,null,null,null,null,"1013265",10,13,265,"Sombreretillo"]
[null,null,null,null,null,null,null,null,"1013421",10,13,421,"El Peñolito"]
[null,null,null,null,null,null,null,null,"1014167",10,14,167,"El Silvancito"]
[null,null,null,null,null,null,null,null,"1014276",10,14,276,"Los Leones"]
[null,null,null,null,null,null,null,null,"1014543",10,14,543,"Las Cabezas"]
[null,null,null,null,null,null,null,null,"1014721",10,14,721,"Zapotes"]
[null,null,null,null,null,null,null,null,"1014943",10,14,943,"La Brillera"]
[null,null,null,null,null,null,null,null,"10141095",10,14,1095,"La Ciénega"]
[null,null,null,null,null,null,null,null,"10141195",10,14,1195,"Rancho del Bajío"]
[null,null,null,null,null,null,null,null,"10141393",10,14,1393,"La Cocona"]
[null,null,null,null,null,null,null,null,"10141504",10,14,1504,"Rancho Nuevo"]
[null,null,null,null,null,null,null,null,"101579",10,15,79,"La Pequeña"]
[null,null,null,null,null,null,null,null,"1016147",10,16,147,"Rancho de Mike"]
[null,null,null,null,null,null,null,null,"1017278",10,17,278,"Rancho los Cascabeles (La Rosita)"]
[null,null,null,null,null,null,null,null,"1018153",10,18,153,"Boca de Álamo"]
[null,null,null,null,null,null,null,null,"1020100",10,20,100,"San Isidro"]
[null,null,null,null,null,null,null,null,"102164",10,21,64,"Belem (Sombra del Paraíso)"]
[null,null,null,null,null,null,null,null,"1023167",10,23,167,"Las Ciénegas"]
[null,null,null,null,null,null,null,null,"1023312",10,23,312,"El Caracol"]
[null,null,null,null,null,null,null,null,"1023620",10,23,620,"Ojo de Agua de los Tomates"]
[null,null,null,null,null,null,null,null,"1023771",10,23,771,"Chupaderos"]
[null,null,null,null,null,null,null,null,"102430",10,24,30,"El Realito"]
[null,null,null,null,null,null,null,null,"102653",10,26,53,"La Joya"]
[null,null,null,null,null,null,null,null,"1026237",10,26,237,"Huachimetas de Abajo"]
[null,null,null,null,null,null,null,null,"1026538",10,26,538,"La Vinata"]
[null,null,null,null,null,null,null,null,"1026856",10,26,856,"El Carrizo"]
[null,null,null,null,null,null,null,null,"1026884",10,26,884,"El Muerto"]
[null,null,null,null,null,null,null,null,"103043",10,30,43,"El Espejo"]
[null,null,null,null,null,null,null,null,"103068",10,30,68,"Los Güeros"]
[null,null,null,null,null,null,null,null,"1032246",10,32,246,"Galindos"]
[null,null,null,null,null,null,null,null,"1032355",10,32,355,"La Cieneguita"]
[null,null,null,null,null,null,null,null,"103413",10,34,13,"San Antonio del Cerro"]
[null,null,null,null,null,null,null,null,"1034176",10,34,176,"El Guayabo"]
[null,null,null,null,null,null,null,null,"1034644",10,34,644,"El Llano"]
[null,null,null,null,null,null,null,null,"1034684",10,34,684,"Las Vainillas"]
[null,null,null,null,null,null,null,null,"10341104",10,34,1104,"Mesa del Pino"]
[null,null,null,null,null,null,null,null,"10341144",10,34,1144,"Las Juntas de los Arroyos"]
[null,null,null,null,null,null,null,null,"103535",10,35,35,"Chiqueros"]
[null,null,null,null,null,null,null,null,"1035239",10,35,239,"La Soledad de San Isidro (La Soledad)"]
[null,null,null,null,null,null,null,null,"1035398",10,35,398,"El Venadito"]
[null,null,null,null,null,null,null,null,"1036133",10,36,133,"Tierra Blanca (Barbacoa)"]
[null,null,null,null,null,null,null,null,"1037122",10,37,122,"Las Mesas"]
[null,null,null,null,null,null,null,null,"1037483",10,37,483,"Puerto de la Gallina"]
[null,null,null,null,null,null,null,null,"103824",10,38,24,"El Pozo"]
[null,null,null,null,null,null,null,null,"1039228",10,39,228,"El Garambullo"]
[null,null,null,null,null,null,null,null,"111152",11,1,152,"San Nicolás de los Rosales (La Cabra)"]
[null,null,null,null,null,null,null,null,"111254",11,1,254,"Providencia"]
[null,null,null,null,null,null,null,null,"111584",11,1,584,"Carolina"]
[null,null,null,null,null,null,null,null,"11292",11,2,92,"San Mateo Tócuaro"]
[null,null,null,null,null,null,null,null,"112422",11,2,422,"Rodrigo Acevedo Cardona (Las Varas)"]
[null,null,null,null,null,null,null,null,"113122",11,3,122,"Los Hoyos"]
[null,null,null,null,null,null,null,null,"113433",11,3,433,"Rancho Nuevo (Rancho Nuevo de Banda)"]
[null,null,null,null,null,null,null,null,"113619",11,3,619,"La Luz de San Miguelito (Los Urbina)"]
[null,null,null,null,null,null,null,null,"113883",11,3,883,"Rancho Tejeda"]
[null,null,null,null,null,null,null,null,{"$f":"$J71875&$K71875&$L71875","v":"113980"},11,3,980,"Peña de la Cruz (Ejido San Miguel Viejo)"]
[null,null,null,null,null,null,null,null,"114179",11,4,179,"Capiro [Granja Avícola]"]
[null,null,null,null,null,null,null,null,"115152",11,5,152,"El Monte"]
[null,null,null,null,null,null,null,null,"115300",11,5,300,"El Camino Blanco"]
[null,null,null,null,null,null,null,null,"117246",11,7,246,"San José de la Presa"]
[null,null,null,null,null,null,null,null,"117469",11,7,469,"Jesús Medina Miranda (Los Álamos)"]
[null,null,null,null,null,null,null,null,"11849",11,8,49,"Jagüey de Serranos"]
[null,null,null,null,null,null,null,null,"118120",11,8,120,"San José del Paso"]
[null,null,null,null,null,null,null,null,"118506",11,8,506,"Los Almendros del Carmen"]
[null,null,null,null,null,null,null,null,"11921",11,9,21,"Las Minas"]
[null,null,null,null,null,null,null,null,"111170",11,11,70,"San José de la Peña"]
[null,null,null,null,null,null,null,null,"1111126",11,11,126,"El Carrizal"]
[null,null,null,null,null,null,null,null,"111378",11,13,78,"Derramadero de en Medio"]
[null,null,null,null,null,null,null,null,"111418",11,14,18,"La Providencia (Vadillo de Guadalupe)"]
[null,null,null,null,null,null,null,null,"1114311",11,14,311,"Santa Fe de la Providencia"]
[null,null,null,null,null,null,null,null,"1114597",11,14,597,"San Antonio de los Gallardo"]
[null,null,null,null,null,null,null,null,"1114744",11,14,744,"La Peña"]
[null,null,null,null,null,null,null,null,"111529",11,15,29,"Calvillo"]
[null,null,null,null,null,null,null,null,"1115191",11,15,191,"Los Mexicanos"]
[null,null,null,null,null,null,null,null,"1115347",11,15,347,"La Quebradora"]
[null,null,null,null,null,null,null,null,"1117157",11,17,157,"San Miguel del Brete"]
[null,null,null,null,null,null,null,null,"1117396",11,17,396,"Granja la Encantada (Rancho la Encantada)"]
[null,null,null,null,null,null,null,null,"1117590",11,17,590,"Noé González"]
[null,null,null,null,null,null,null,null,"1117720",11,17,720,"Ojo de Agua"]
[null,null,null,null,null,null,null,null,"111815",11,18,15,"San José de Ojo Zarco"]
[null,null,null,null,null,null,null,null,"111967",11,19,67,"Purísima del Zapote"]
[null,null,null,null,null,null,null,null,"1120321",11,20,321,"Estancia de Medina"]
[null,null,null,null,null,null,null,null,"1120591",11,20,591,"San Vicente"]
[null,null,null,null,null,null,null,null,"1120904",11,20,904,"Fracción Nuevo Lindero"]
[null,null,null,null,null,null,null,null,"11201093",11,20,1093,"Arboledas de los López Primera Sección"]
[null,null,null,null,null,null,null,null,"11201244",11,20,1244,"Lomas de la Loza"]
[null,null,null,null,null,null,null,null,"11201402",11,20,1402,"El Chepinque"]
[null,null,null,null,null,null,null,null,"1122163",11,22,163,"Reyes Navarro Aguiñaga"]
[null,null,null,null,null,null,null,null,"112351",11,23,51,"Casas Blancas"]
[null,null,null,null,null,null,null,null,"1123208",11,23,208,"El Pedregal de Abajo"]
[null,null,null,null,null,null,null,null,"1123513",11,23,513,"Los Cedros del Cachirpe Dos"]
[null,null,null,null,null,null,null,null,"1123618",11,23,618,"Casa de Bernabé García"]
[null,null,null,null,null,null,null,null,"11259",11,25,9,"Carrizo de Rubios"]
[null,null,null,null,null,null,null,null,"112569",11,25,69,"El Cabrito"]
[null,null,null,null,null,null,null,null,{"$f":"$J77379&$K77379&$L77379","v":"1126241"},11,26,241,"Loma Bonita"]
[null,null,null,null,null,null,null,null,"1126381",11,26,381,"Rancho de Don Benjamín"]
[null,null,null,null,null,null,null,null,"1126404",11,26,404,"San Antonio"]
[null,null,null,null,null,null,null,null,"1127204",11,27,204,"La Noria"]
[null,null,null,null,null,null,null,null,"1127506",11,27,506,"Colonia Jardines de Tierra Fría"]
[null,null,null,null,null,null,null,null,"11286",11,28,6,"Betania"]
[null,null,null,null,null,null,null,null,"1129110",11,29,110,"San Roque"]
[null,null,null,null,null,null,null,null,"113016",11,30,16,"Santa Elena (Arroyo del Agua)"]
[null,null,null,null,null,null,null,null,"1130176",11,30,176,"Mineral de Providencia"]
[null,null,null,null,null,null,null,null,"1130390",11,30,390,"Las Adelitas"]
[null,null,null,null,null,null,null,null,"1130687",11,30,687,"El Paraíso"]
[null,null,null,null,null,null,null,null,"1130827",11,30,827,"Rancho Nuevo San Martín"]
[null,null,null,null,null,null,null,null,"1131148",11,31,148,"Las Canales Dos"]
[null,null,null,null,null,null,null,null,"113220",11,32,20,"Cinco de Mayo"]
[null,null,null,null,null,null,null,null,"1132170",11,32,170,"Don Alberto"]
[null,null,null,null,null,null,null,null,"1132324",11,32,324,"Fraccionamiento la Cantera"]
[null,null,null,null,null,null,null,null,"1133249",11,33,249,"El Capadero"]
[null,null,null,null,null,null,null,null,"1133341",11,33,341,"San Antonio Primero"]
[null,null,null,null,null,null,null,null,"1133629",11,33,629,"San Pedro del Derramadero (Los Pirules)"]
[null,null,null,null,null,null,null,null,"1133779",11,33,779,"Rancho Brasil"]
[null,null,null,null,null,null,null,null,"1135129",11,35,129,"San Miguelito"]
[null,null,null,null,null,null,null,null,"1135278",11,35,278,"Manuel Rocha"]
[null,null,null,null,null,null,null,null,"1137225",11,37,225,"Rancho la Luz"]
[null,null,null,null,null,null,null,null,"1137392",11,37,392,"Los Pocitos"]
[null,null,null,null,null,null,null,null,"1137604",11,37,604,"Noria de Sopeña (Rufino Gómez)"]
[null,null,null,null,null,null,null,null,"113813",11,38,13,"San Antonio"]
[null,null,null,null,null,null,null,null,"114018",11,40,18,"Guadalupe"]
[null,null,null,null,null,null,null,null,"1142128",11,42,128,"Zapote de San Vicente"]
[null,null,null,null,null,null,null,null,"1142193",11,42,193,"Sabinito del Brazo"]
[null,null,null,null,null,null,null,null,"1142316",11,42,316,"Granja Martín Ordaz"]
[null,null,null,null,null,null,null,null,"1144105",11,44,105,"Pozo de los Macías"]
[null,null,null,null,null,null,null,null,"1144133",11,44,133,"Pozo San Ignacio"]
[null,null,null,null,null,null,null,null,"114688",11,46,88,"Los Tepetates"]
[null,null,null,null,null,null,null,null,"1146129",11,46,129,"Granja de García"]
[null,null,null,null,null,null,null,null,"121472",12,1,472,"Tres Vidas Acapulco"]
[null,null,null,null,null,null,null,null,"12245",12,2,45,"Atliaca"]
[null,null,null,null,null,null,null,null,"122174",12,2,174,"Huiztepec"]
[null,null,null,null,null,null,null,null,"123229",12,3,229,"Santa María Santa Fe"]
[null,null,null,null,null,null,null,null,"12412",12,4,12,"Lomazóyatl (Lomazoya)"]
[null,null,null,null,null,null,null,null,"127204",12,7,204,"El Rincón"]
[null,null,null,null,null,null,null,null,"121039",12,10,39,"Tlatlauquitepec"]
[null,null,null,null,null,null,null,null,"1210103",12,10,103,"Vista Hermosa"]
[null,null,null,null,null,null,null,null,"1211289",12,11,289,"El Miramar (La Peña)"]
[null,null,null,null,null,null,null,null,"1212104",12,12,104,"El Pochote"]
[null,null,null,null,null,null,null,null,"1213247",12,13,247,"Rancho Manzanárez Cortez"]
[null,null,null,null,null,null,null,null,"121548",12,15,48,"Ixtlahuaca"]
[null,null,null,null,null,null,null,null,"121653",12,16,53,"El Maguey"]
[null,null,null,null,null,null,null,null,{"$f":"$J83843&$K83843&$L83843","v":"1216404"},12,16,404,"Los Tepehuajes"]
[null,null,null,null,null,null,null,null,"121811",12,18,11,"Crucero el Fogón"]
[null,null,null,null,null,null,null,null,"122140",12,21,40,"Platanillo"]
[null,null,null,null,null,null,null,null,"1221221",12,21,221,"Rancho del Palomar"]
[null,null,null,null,null,null,null,null,"1222115",12,22,115,"Tario"]
[null,null,null,null,null,null,null,null,"1222400",12,22,400,"Tejocote"]
[null,null,null,null,null,null,null,null,"1222641",12,22,641,"La Mesa"]
[null,null,null,null,null,null,null,null,"122326",12,23,26,"San Nicolás"]
[null,null,null,null,null,null,null,null,"1223285",12,23,285,"Rancho Ubaldo Paz"]
[null,null,null,null,null,null,null,null,"122466",12,24,66,"Tlalahuacate"]
[null,null,null,null,null,null,null,null,"1227201",12,27,201,"Sanguijuela"]
[null,null,null,null,null,null,null,null,"1227277",12,27,277,"Rancho los Corongoros"]
[null,null,null,null,null,null,null,null,"1228159",12,28,159,"El Tirante"]
[null,null,null,null,null,null,null,null,"1229126",12,29,126,"Lagunillas"]
[null,null,null,null,null,null,null,null,"1229448",12,29,448,"Las Canoitas"]
[null,null,null,null,null,null,null,null,"123250",12,32,50,"Maxíuhitl"]
[null,null,null,null,null,null,null,null,"1232200",12,32,200,"Bugambilias"]
[null,null,null,null,null,null,null,null,"1234123",12,34,123,"La Presa"]
[null,null,null,null,null,null,null,null,"1235150",12,35,150,"Colonia Periférico Oriente"]
[null,null,null,null,null,null,null,null,"1238162",12,38,162,"Pueblo Viejo"]
[null,null,null,null,null,null,null,null,"1238247",12,38,247,"Puertecito"]
[null,null,null,null,null,null,null,null,"1240374",12,40,374,"El Timbral"]
[null,null,null,null,null,null,null,null,"124173",12,41,73,"La Parota"]
[null,null,null,null,null,null,null,null,"124423",12,44,23,"Tlacotitlanapa"]
[null,null,null,null,null,null,null,null,"1245122",12,45,122,"Rancho Manuel González"]
[null,null,null,null,null,null,null,null,"1245275",12,45,275,"Rancho el Coyotomate"]
[null,null,null,null,null,null,null,null,"1246193",12,46,193,"Ramiro López Santiago"]
[null,null,null,null,null,null,null,null,"124842",12,48,42,"El Camarón"]
[null,null,null,null,null,null,null,null,"1248313",12,48,313,"El Venadito"]
[null,null,null,null,null,null,null,null,"1248667",12,48,667,"Rancho Santa Elena (Manolo Morillón)"]
[null,null,null,null,null,null,null,null,"1248757",12,48,757,"La Encinera"]
[null,null,null,null,null,null,null,null,"1251118",12,51,118,"Los Amates"]
[null,null,null,null,null,null,null,null,"1252125",12,52,125,"Arroyo Limón"]
[null,null,null,null,null,null,null,null,{"$f":"$J88387&$K88387&$L88387","v":"1253152"},12,53,152,"La Pastora"]
[null,null,null,null,null,null,null,null,"1254152",12,54,152,"Las Ventanas"]
[null,null,null,null,null,null,null,null,"1254361",12,54,361,"La Calera"]
[null,null,null,null,null,null,null,null,"1255191",12,55,191,"La Rosa"]
[null,null,null,null,null,null,null,null,"1257115",12,57,115,"Santa Lucía"]
[null,null,null,null,null,null,null,null,"1257207",12,57,207,"Las Truchas"]
[null,null,null,null,null,null,null,null,"1257519",12,57,519,"La Cebadilla"]
[null,null,null,null,null,null,null,null,"1257576",12,57,576,"Huerta el Vaden"]
[null,null,null,null,null,null,null,null,"1258165",12,58,165,"Arena Ancha"]
[null,null,null,null,null,null,null,null,"1258252",12,58,252,"Hacienda de los Fresnos"]
[null,null,null,null,null,null,null,null,"125972",12,59,72,"Huerta de Mangos"]
[null,null,null,null,null,null,null,null,"126222",12,62,22,"Jiquimillas (Jiquililla)"]
[null,null,null,null,null,null,null,null,"126348",12,63,48,"Cerro Guadalupe"]
[null,null,null,null,null,null,null,null,"126758",12,67,58,"La Huerta [Restaurante]"]
[null,null,null,null,null,null,null,null,"126812",12,68,12,"Los Cajones"]
[null,null,null,null,null,null,null,null,"1268208",12,68,208,"Las Palancas"]
[null,null,null,null,null,null,null,null,"127125",12,71,25,"Arroyo Guacamaya Uno"]
[null,null,null,null,null,null,null,null,"1273123",12,73,123,"El Pinzán"]
[null,null,null,null,null,null,null,null,"1273242",12,73,242,"Las Palmitas"]
[null,null,null,null,null,null,null,null,"1273424",12,73,424,"El Capire"]
[null,null,null,null,null,null,null,null,"12749",12,74,9,"Ocotitlán"]
[null,null,null,null,null,null,null,null,"127687",12,76,87,"Arroyo Camarón"]
[null,null,null,null,null,null,null,null,"127870",12,78,70,"Piedra Negra"]
[null,null,null,null,null,null,null,null,"127958",12,79,58,"Tlachimaltepec"]
[null,null,null,null,null,null,null,null,"13142",13,1,42,"Piedra Larga"]
[null,null,null,null,null,null,null,null,"1355",13,5,5,"Santiago Tezontlale"]
[null,null,null,null,null,null,null,null,"13677",13,6,77,"Ejido de Santa María la Palma"]
[null,null,null,null,null,null,null,null,"13798",13,7,98,"San Antonio Alconedo"]
[null,null,null,null,null,null,null,null,"131116",13,11,16,"Huitzotlaco"]
[null,null,null,null,null,null,null,null,"131431",13,14,31,"Tetzintla"]
[null,null,null,null,null,null,null,null,"131538",13,15,38,"La Vega"]
[null,null,null,null,null,null,null,null,"1316109",13,16,109,"Valentín Hernández Yáñez"]
[null,null,null,null,null,null,null,null,"1318100",13,18,100,"La Reforma de Palo Semita"]
[null,null,null,null,null,null,null,null,"132227",13,22,27,"El Crucero de Nexpa"]
[null,null,null,null,null,null,null,null,"132415",13,24,15,"La Palmilla"]
[null,null,null,null,null,null,null,null,"13276",13,27,6,"El Xindhó"]
[null,null,null,null,null,null,null,null,"132833",13,28,33,"Coyuco Nuevo"]
[null,null,null,null,null,null,null,null,"1328157",13,28,157,"Pahuatzintla"]
[null,null,null,null,null,null,null,null,"1329118",13,29,118,"Barrio San Juan Mandhó"]
[null,null,null,null,null,null,null,null,"13323",13,32,3,"La Capilla"]
[null,null,null,null,null,null,null,null,"133455",13,34,55,"Zihuatego (Ohuesco)"]
[null,null,null,null,null,null,null,null,"133717",13,37,17,"Huayateno"]
[null,null,null,null,null,null,null,null,"134010",13,40,10,"Cerro Frío de Rancho Viejo"]
[null,null,null,null,null,null,null,null,"134126",13,41,26,"El Volador"]
[null,null,null,null,null,null,null,null,"13447",13,44,7,"Los Cerritos"]
[null,null,null,null,null,null,null,null,"134616",13,46,16,"Cuamecaco"]
[null,null,null,null,null,null,null,null,"13476",13,47,6,"Canoas"]
[null,null,null,null,null,null,null,null,"1351102",13,51,102,"Industrial la Paz"]
[null,null,null,null,null,null,null,null,"1351123",13,51,123,"Privada Quinta Bonita"]
[null,null,null,null,null,null,null,null,"1353151",13,53,151,"Agua Linda"]
[null,null,null,null,null,null,null,null,"13551",13,55,1,"Santiago de Anaya"]
[null,null,null,null,null,null,null,null,"135845",13,58,45,"Frente al Vivero"]
[null,null,null,null,null,null,null,null,"136117",13,61,17,"Vista Hermosa"]
[null,null,null,null,null,null,null,null,"1362138",13,62,138,"El Camposanto"]
[null,null,null,null,null,null,null,null,"136613",13,66,13,"Tlexpa"]
[null,null,null,null,null,null,null,null,"136882",13,68,82,"Chalacuaco"]
[null,null,null,null,null,null,null,null,"137024",13,70,24,"Guadalupe (Cerro del Tezontle) [Colonia]"]
[null,null,null,null,null,null,null,null,"137340",13,73,40,"Temango"]
[null,null,null,null,null,null,null,null,"137512",13,75,12,"Tlaloc"]
[null,null,null,null,null,null,null,null,"137826",13,78,26,"Tlaltecatla"]
[null,null,null,null,null,null,null,null,"138133",13,81,33,"Panohuaya"]
[null,null,null,null,null,null,null,null,"1383132",13,83,132,"Palmitas [Colonia]"]
[null,null,null,null,null,null,null,null,"1384135",13,84,135,"Villa Nueva"]
[null,null,null,null,null,null,null,null,"141133",14,1,133,"Rancho Alegre"]
[null,null,null,null,null,null,null,null,"14393",14,3,93,"Rancho Máximo Gutiérrez"]
[null,null,null,null,null,null,null,null,"14554",14,5,54,"Cecilio Adame"]
[null,null,null,null,null,null,null,null,"146164",14,6,164,"Potrero el Carrizo sin Número"]
[null,null,null,null,null,null,null,null,"14896",14,8,96,"El Chiquihuitillo"]
[null,null,null,null,null,null,null,null,"148513",14,8,513,"El Saucito"]
[null,null,null,null,null,null,null,null,"148672",14,8,672,"El Rancho del Tule"]
[null,null,null,null,null,null,null,null,"141169",14,11,69,"Los Ocotes"]
[null,null,null,null,null,null,null,null,"1412109",14,12,109,"El Jaral"]
[null,null,null,null,null,null,null,null,{"$f":"$J98435&$K98435&$L98435","v":"1413196"},14,13,196,"La Perra"]
[null,null,null,null,null,null,null,null,"1413230",14,13,230,"San Rafael de Montelargo"]
[null,null,null,null,null,null,null,null,"1415132",14,15,132,"El Vergel de los Pelayo"]
[null,null,null,null,null,null,null,null,"1415300",14,15,300,"Los Huayacanes de los Gómez"]
[null,null,null,null,null,null,null,null,"141741",14,17,41,"Huejotitlán"]
[null,null,null,null,null,null,null,null,"1417119",14,17,119,"Yerbabuena de las Palmas"]
[null,null,null,null,null,null,null,null,"1417251",14,17,251,"Colonia Capilla de Rayo"]
[null,null,null,null,null,null,null,null,"1418203",14,18,203,"El Ranchito (Los Ángeles Gemeneños)"]
[null,null,null,null,null,null,null,null,"1419333",14,19,333,"El Mirador"]
[null,null,null,null,null,null,null,null,"142081",14,20,81,"El Limón"]
[null,null,null,null,null,null,null,null,"1420259",14,20,259,"Capuchahua (Los Chonchos)"]
[null,null,null,null,null,null,null,null,"1421107",14,21,107,"El Garcero"]
[null,null,null,null,null,null,null,null,"1422138",14,22,138,"El Edén de Adán"]
[null,null,null,null,null,null,null,null,"1423157",14,23,157,"Rancho Librado Aguilar"]
[null,null,null,null,null,null,null,null,{"$f":"$J100355&$K100355&$L100355","v":"142451"},14,24,51,"El Cortijo"]
[null,null,null,null,null,null,null,null,"1425102",14,25,102,"San Pascual"]
[null,null,null,null,null,null,null,null,"1427134",14,27,134,"Los Robles"]
[null,null,null,null,null,null,null,null,"142839",14,28,39,"Tiñadora"]
[null,null,null,null,null,null,null,null,"142995",14,29,95,"Sinaloa (Los Mezquites)"]
[null,null,null,null,null,null,null,null,"1429145",14,29,145,"Lázaro Cárdenas"]
[null,null,null,null,null,null,null,null,"143193",14,31,93,"El Cuervito"]
[null,null,null,null,null,null,null,null,"143221",14,32,21,"Milpillas"]
[null,null,null,null,null,null,null,null,"1433133",14,33,133,"Marijo"]
[null,null,null,null,null,null,null,null,"1435172",14,35,172,"El Pelón"]
[null,null,null,null,null,null,null,null,"1435431",14,35,431,"Los Tajos"]
[null,null,null,null,null,null,null,null,"1435646",14,35,646,"Los Gavilanes"]
[null,null,null,null,null,null,null,null,"1435775",14,35,775,"Rancho San Lucas"]
[null,null,null,null,null,null,null,null,"1437108",14,37,108,"Rancho Lukamatlán"]
[null,null,null,null,null,null,null,null,"143842",14,38,42,"Loma de la Cruz"]
[null,null,null,null,null,null,null,null,"144035",14,40,35,"Labor de Guadalupe"]
[null,null,null,null,null,null,null,null,"1440101",14,40,101,"El Platanar"]
[null,null,null,null,null,null,null,null,"144188",14,41,88,"El Potrero de Murillo"]
[null,null,null,null,null,null,null,null,"144339",14,43,39,"Ejido la Fortuna"]
[null,null,null,null,null,null,null,null,"1443270",14,43,270,"El Taller"]
[null,null,null,null,null,null,null,null,"144475",14,44,75,"La Cinco"]
[null,null,null,null,null,null,null,null,"1444174",14,44,174,"Rancho Cázares"]
[null,null,null,null,null,null,null,null,"1445275",14,45,275,"La Laguna"]
[null,null,null,null,null,null,null,null,"14462",14,46,2,"Los Acahuales"]
[null,null,null,null,null,null,null,null,"1446227",14,46,227,"Bajío de los Charcos"]
[null,null,null,null,null,null,null,null,"144760",14,47,60,"El Zapote"]
[null,null,null,null,null,null,null,null,"144979",14,49,79,"Gallardo"]
[null,null,null,null,null,null,null,null,"1449307",14,49,307,"Platanar"]
[null,null,null,null,null,null,null,null,"145031",14,50,31,"Romero Montero [Granja]"]
[null,null,null,null,null,null,null,null,"145150",14,51,50,"El Encino"]
[null,null,null,null,null,null,null,null,"1453201",14,53,201,"Rancho Nuevo Dos"]
[null,null,null,null,null,null,null,null,"1453434",14,53,434,"Loma de San Antonio"]
[null,null,null,null,null,null,null,null,"1453628",14,53,628,"Montelera"]
[null,null,null,null,null,null,null,null,"1453872",14,53,872,"El Muerto"]
[null,null,null,null,null,null,null,null,"1453914",14,53,914,"La Estrella"]
[null,null,null,null,null,null,null,null,"1456204",14,56,204,"La Casa de Teja"]
[null,null,null,null,null,null,null,null,"14572",14,57,2,"El Aguacate (La Sabanilla)"]
[null,null,null,null,null,null,null,null,"1458251",14,58,251,"La Huerta de Ixcatán"]
[null,null,null,null,null,null,null,null,"145994",14,59,94,"El Carrizo"]
[null,null,null,null,null,null,null,null,"1460134",14,60,134,"El Llano"]
[null,null,null,null,null,null,null,null,"1461227",14,61,227,"Tesorero"]
[null,null,null,null,null,null,null,null,"1461492",14,61,492,"Techalotita"]
[null,null,null,null,null,null,null,null,"1461646",14,61,646,"Tapalo"]
[null,null,null,null,null,null,null,null,"1461933",14,61,933,"Rancho de Enmedio"]
[null,null,null,null,null,null,null,null,"14611036",14,61,1036,"Campatibala"]
[null,null,null,null,null,null,null,null,"14611200",14,61,1200,"La Loma Dos"]
[null,null,null,null,null,null,null,null,"146222",14,62,22,"La Plateada"]
[null,null,null,null,null,null,null,null,"14646",14,64,6,"Betania"]
[null,null,null,null,null,null,null,null,"146519",14,65,19,"El Capire"]
[null,null,null,null,null,null,null,null,"1465332",14,65,332,"La Limita"]
[null,null,null,null,null,null,null,null,"146627",14,66,27,"San Juan Tecomatlán"]
[null,null,null,null,null,null,null,null,"1467166",14,67,166,"El Palmar de Rivera"]
[null,null,null,null,null,null,null,null,"1467262",14,67,262,"La Vista"]
[null,null,null,null,null,null,null,null,"1468481",14,68,481,"La Cañita"]
[null,null,null,null,null,null,null,null,"1468562",14,68,562,"Las Conchas"]
[null,null,null,null,null,null,null,null,"1469189",14,69,189,"Las Maravillas"]
[null,null,null,null,null,null,null,null,"14719",14,71,9,"La Bolsa"]
[null,null,null,null,null,null,null,null,"1471209",14,71,209,"El Coahuilote"]
[null,null,null,null,null,null,null,null,"1473108",14,73,108,"El Rodeo"]
[null,null,null,null,null,null,null,null,"1473183",14,73,183,"La Joya"]
[null,null,null,null,null,null,null,null,"147457",14,74,57,"Toro Gato"]
[null,null,null,null,null,null,null,null,"147512",14,75,12,"La Calera"]
[null,null,null,null,null,null,null,null,"1476270",14,76,270,"El Zapote"]
[null,null,null,null,null,null,null,null,"147854",14,78,54,"Cieneguita"]
[null,null,null,null,null,null,null,null,"1478327",14,78,327,"El Ranero (Laguna de Piedra)"]
[null,null,null,null,null,null,null,null,"14798",14,79,8,"La Calavera"]
[null,null,null,null,null,null,null,null,"148122",14,81,22,"Los Sauces"]
[null,null,null,null,null,null,null,null,"148246",14,82,46,"La Chirimoya"]
[null,null,null,null,null,null,null,null,"1483142",14,83,142,"Heleno Núñez"]
[null,null,null,null,null,null,null,null,"1484140",14,84,140,"Las Nueces"]
[null,null,null,null,null,null,null,null,"1484496",14,84,496,"Arrayán de los Encinos (Palitos Verdes)"]
[null,null,null,null,null,null,null,null,"148520",14,85,20,"Callejones"]
[null,null,null,null,null,null,null,null,"1485310",14,85,310,"Rincón"]
[null,null,null,null,null,null,null,null,"1485435",14,85,435,"El Pozole"]
[null,null,null,null,null,null,null,null,"1486195",14,86,195,"Rancho la Mesa"]
[null,null,null,null,null,null,null,null,"1487103",14,87,103,"Mezcalitos"]
[null,null,null,null,null,null,null,null,"1487363",14,87,363,"El Encantadillo"]
[null,null,null,null,null,null,null,null,"1487571",14,87,571,"Los Barbechos"]
[null,null,null,null,null,null,null,null,"1488123",14,88,123,"El Aguaje"]
[null,null,null,null,null,null,null,null,"1491141",14,91,141,"El Soyatal"]
[null,null,null,null,null,null,null,null,"1491230",14,91,230,"El Campo de Aviación"]
[null,null,null,null,null,null,null,null,"149371",14,93,71,"El Cedro"]
[null,null,null,null,null,null,null,null,"1493166",14,93,166,"La Loma"]
[null,null,null,null,null,null,null,null,"1493348",14,93,348,"La Ceja de Pegueros"]
[null,null,null,null,null,null,null,null,"1493783",14,93,783,"La Loma"]
[null,null,null,null,null,null,null,null,"149479",14,94,79,"La Mesa"]
[null,null,null,null,null,null,null,null,"1494483",14,94,483,"San Nicolás"]
[null,null,null,null,null,null,null,null,"1494707",14,94,707,"Santa Fe"]
[null,null,null,null,null,null,null,null,"149614",14,96,14,"Villa Emiliano Zapata (Ejido Modelo)"]
[null,null,null,null,null,null,null,null,"1497740",14,97,740,"EMSA [Granja la Virgen]"]
[null,null,null,null,null,null,null,null,"1497787",14,97,787,"Lienzo Charro San Miguel"]
[null,null,null,null,null,null,null,null,"1410098",14,100,98,"Valle de Majahuas (El Poblado)"]
[null,null,null,null,null,null,null,null,"14100313",14,100,313,"Casa Blanca"]
[null,null,null,null,null,null,null,null,"14100354",14,100,354,"Bellavista (Crucerito el Tigre)"]
[null,null,null,null,null,null,null,null,"1410235",14,102,35,"Coyotomate"]
[null,null,null,null,null,null,null,null,"14104110",14,104,110,"Las Galeras"]
[null,null,null,null,null,null,null,null,"141054",14,105,4,"El Carmen"]
[null,null,null,null,null,null,null,null,"141066",14,106,6,"Apulco"]
[null,null,null,null,null,null,null,null,"1410841",14,108,41,"Platanar"]
[null,null,null,null,null,null,null,null,"1410920",14,109,20,"El Cedro"]
[null,null,null,null,null,null,null,null,"14109343",14,109,343,"El Conejo (Los Conejos)"]
[null,null,null,null,null,null,null,null,"14110102",14,110,102,"La Cañada"]
[null,null,null,null,null,null,null,null,"14111104",14,111,104,"Rancho Nuevo"]
[null,null,null,null,null,null,null,null,"14113114",14,113,114,"Las Juntas"]
[null,null,null,null,null,null,null,null,"1411414",14,114,14,"Casas Blancas"]
[null,null,null,null,null,null,null,null,"14115164",14,115,164,"La Casa Colorada (La Puertilla)"]
[null,null,null,null,null,null,null,null,"14116102",14,116,102,"La Estrella"]
[null,null,null,null,null,null,null,null,"14117116",14,117,116,"La Loma"]
[null,null,null,null,null,null,null,null,"14118183",14,118,183,"Los Limpitos"]
[null,null,null,null,null,null,null,null,"14118346",14,118,346,"Los Ranchitos"]
[null,null,null,null,null,null,null,null,"1412090",14,120,90,"Los Guayabos"]
[null,null,null,null,null,null,null,null,"14120571",14,120,571,"Moloaste [Granja Blanquita]"]
[null,null,null,null,null,null,null,null,"14120728",14,120,728,"La Mesa"]
[null,null,null,null,null,null,null,null,"1412279",14,122,79,"Rancho del Cacao"]
[null,null,null,null,null,null,null,null,"1412447",14,124,47,"El Colorado"]
[null,null,null,null,null,null,null,null,"14124317",14,124,317,"El Melón"]
[null,null,null,null,null,null,null,null,"1412563",14,125,63,"Los Coyotes"]
[null,null,null,null,null,null,null,null,"15319",15,3,19,"El Rincón"]
[null,null,null,null,null,null,null,null,"1547",15,4,7,"Jaltepec de Arriba"]
[null,null,null,null,null,null,null,null,"15871",15,8,71,"El Zapote"]
[null,null,null,null,null,null,null,null,"158157",15,8,157,"Joya de la Venta"]
[null,null,null,null,null,null,null,null,"151024",15,10,24,"Tablón Chico (Tabloncito)"]
[null,null,null,null,null,null,null,null,"151545",15,15,45,"Rancho los Ramos"]
[null,null,null,null,null,null,null,null,"1524106",15,24,106,"Machero"]
[null,null,null,null,null,null,null,null,"152547",15,25,47,"Colonia Jazmín de las Flores"]
[null,null,null,null,null,null,null,null,"153725",15,37,25,"Santiago Yancuitlalpan"]
[null,null,null,null,null,null,null,null,"1539161",15,39,161,"Tierra de Uso Común Ejidales de Ayotla"]
[null,null,null,null,null,null,null,null,"154275",15,42,75,"San Jerónimo la Cañada"]
[null,null,null,null,null,null,null,null,"154769",15,47,69,"Sección del Cerrito"]
[null,null,null,null,null,null,null,null,"155043",15,50,43,"San Pedro"]
[null,null,null,null,null,null,null,null,"15561",15,56,1,"San Bartolo Morelos"]
[null,null,null,null,null,null,null,null,"1557268",15,57,268,"Ejido del Tejocote"]
[null,null,null,null,null,null,null,null,"156358",15,63,58,"La Herradura"]
[null,null,null,null,null,null,null,null,"156627",15,66,27,"San Miguel de la Campana (San Miguel)"]
[null,null,null,null,null,null,null,null,"157317",15,73,17,"Colonia la Remolacha"]
[null,null,null,null,null,null,null,null,"15776",15,77,6,"Mina de Agua"]
[null,null,null,null,null,null,null,null,"158083",15,80,83,"Manzanillos"]
[null,null,null,null,null,null,null,null,"1582157",15,82,157,"San José de la Laguna"]
[null,null,null,null,null,null,null,null,{"$f":"$J119491&$K119491&$L119491","v":"158419"},15,84,19,"Rancho Atempan"]
[null,null,null,null,null,null,null,null,"158592",15,85,92,"La Loma de San Mateo"]
[null,null,null,null,null,null,null,null,"158832",15,88,32,"Tepoxtepec"]
[null,null,null,null,null,null,null,null,"159074",15,90,74,"Los Lavaderos"]
[null,null,null,null,null,null,null,null,"15976",15,97,6,"Chiquiuntepec (Chiquintepec)"]
[null,null,null,null,null,null,null,null,"1599127",15,99,127,"San Camilo"]
[null,null,null,null,null,null,null,null,"1510341",15,103,41,"Gavillero (Rancho el Gavillero)"]
[null,null,null,null,null,null,null,null,"15105165",15,105,165,"Plan del Alambique"]
[null,null,null,null,null,null,null,null,"15106230",15,106,230,"Las Misiones [Conjunto Urbano]"]
[null,null,null,null,null,null,null,null,"1511012",15,110,12,"Colorines"]
[null,null,null,null,null,null,null,null,"1511333",15,113,33,"Ejido de la Finca"]
[null,null,null,null,null,null,null,null,"1511436",15,114,36,"Sitio Ejido"]
[null,null,null,null,null,null,null,null,"151197",15,119,7,"San Gaspar"]
[null,null,null,null,null,null,null,null,"1512033",15,120,33,"Los Prados"]
[null,null,null,null,null,null,null,null,"15123168",15,123,168,"Puerto de los Zacatones"]
[null,null,null,null,null,null,null,null,"15123205",15,123,205,"Santa Rosa Estancia Grande"]
[null,null,null,null,null,null,null,null,"16263",16,2,63,"Las Crucitas"]
[null,null,null,null,null,null,null,null,"162177",16,2,177,"Patacuas"]
[null,null,null,null,null,null,null,null,"162635",16,2,635,"Rancho de Macías"]
[null,null,null,null,null,null,null,null,"16616",16,6,16,"La Bejuquera"]
[null,null,null,null,null,null,null,null,"166267",16,6,267,"El Tejiquilpo"]
[null,null,null,null,null,null,null,null,"166527",16,6,527,"Ninguno"]
[null,null,null,null,null,null,null,null,"1682",16,8,2,"Agua Bendita"]
[null,null,null,null,null,null,null,null,"168364",16,8,364,"La Mesa del Chino"]
[null,null,null,null,null,null,null,null,"168531",16,8,531,"La Laja"]
[null,null,null,null,null,null,null,null,"168886",16,8,886,"La Barranca del Chico"]
[null,null,null,null,null,null,null,null,"16935",16,9,35,"El Charapo (Potrero)"]
[null,null,null,null,null,null,null,null,"161068",16,10,68,"La Escoba"]
[null,null,null,null,null,null,null,null,"1610328",16,10,328,"La Higuera Baleada"]
[null,null,null,null,null,null,null,null,"1610567",16,10,567,"La Parotera"]
[null,null,null,null,null,null,null,null,"1610700",16,10,700,"El Cilindro"]
[null,null,null,null,null,null,null,null,"161249",16,12,49,"El Limón de la Luna"]
[null,null,null,null,null,null,null,null,"1612171",16,12,171,"La Parota"]
[null,null,null,null,null,null,null,null,"1613182",16,13,182,"El Anono"]
[null,null,null,null,null,null,null,null,"1613399",16,13,399,"Los Pozos"]
[null,null,null,null,null,null,null,null,"1614171",16,14,171,"El Oasis"]
[null,null,null,null,null,null,null,null,"1615255",16,15,255,"Tesisanes"]
[null,null,null,null,null,null,null,null,"1615540",16,15,540,"El Mesteño"]
[null,null,null,null,null,null,null,null,"1615885",16,15,885,"La Mesa"]
[null,null,null,null,null,null,null,null,"16151074",16,15,1074,"El Manguito"]
[null,null,null,null,null,null,null,null,"16151200",16,15,1200,"La Tacotera (Barranca Verde)"]
[null,null,null,null,null,null,null,null,"161994",16,19,94,"El Quinto"]
[null,null,null,null,null,null,null,null,"162020",16,20,20,"Mariza [Granja]"]
[null,null,null,null,null,null,null,null,"16268",16,26,8,"El Anono"]
[null,null,null,null,null,null,null,null,"1626150",16,26,150,"El Tejón"]
[null,null,null,null,null,null,null,null,"1626363",16,26,363,"La Coyulera"]
[null,null,null,null,null,null,null,null,"163017",16,30,17,"Puerta de Vargas"]
[null,null,null,null,null,null,null,null,"163199",16,31,99,"Los Hernández"]
[null,null,null,null,null,null,null,null,"163458",16,34,58,"José María Morelos (Ziripeo)"]
[null,null,null,null,null,null,null,null,"1634253",16,34,253,"Laguna Larga"]
[null,null,null,null,null,null,null,null,"1634503",16,34,503,"El Guinar"]
[null,null,null,null,null,null,null,null,"1635127",16,35,127,"El Rincón del Mezquite"]
[null,null,null,null,null,null,null,null,"1638145",16,38,145,"Uspio"]
[null,null,null,null,null,null,null,null,"1638263",16,38,263,"Los Cablotes (Los Cahulotes)"]
[null,null,null,null,null,null,null,null,"1638587",16,38,587,"Hermanos Lara"]
[null,null,null,null,null,null,null,null,"164110",16,41,10,"Garambullo"]
[null,null,null,null,null,null,null,null,"164390",16,43,90,"Rancho de Ángel Ortiz (El Puente)"]
[null,null,null,null,null,null,null,null,"164656",16,46,56,"Las Mesitas"]
[null,null,null,null,null,null,null,null,"164933",16,49,33,"Cuacurio de los Gómez (El Puerto de Cuacurio)"]
[null,null,null,null,null,null,null,null,"1649302",16,49,302,"Las Charandas (Agua Zarca)"]
[null,null,null,null,null,null,null,null,"1649352",16,49,352,"La Naranjada"]
[null,null,null,null,null,null,null,null,"165031",16,50,31,"Llano Grande"]
[null,null,null,null,null,null,null,null,"1650163",16,50,163,"Rincón de Huaraqueo"]
[null,null,null,null,null,null,null,null,"1652296",16,52,296,"Agua Dulce (San Gabriel)"]
[null,null,null,null,null,null,null,null,"1652500",16,52,500,"Brisas de Caleta"]
[null,null,null,null,null,null,null,null,"1653150",16,53,150,"Teremendo de los Reyes"]
[null,null,null,null,null,null,null,null,"1653377",16,53,377,"Lomas de Buenavista"]
[null,null,null,null,null,null,null,null,"165418",16,54,18,"San Miguel (Huango el Viejo)"]
[null,null,null,null,null,null,null,null,"165710",16,57,10,"Aparandán (Mesa de Aparandán)"]
[null,null,null,null,null,null,null,null,"1657214",16,57,214,"Charco Verde"]
[null,null,null,null,null,null,null,null,"165929",16,59,29,"Tepenahua"]
[null,null,null,null,null,null,null,null,"166231",16,62,31,"Rancho Nuevo"]
[null,null,null,null,null,null,null,null,"1664101",16,64,101,"Los Apondareño"]
[null,null,null,null,null,null,null,null,"1666136",16,66,136,"Joconol"]
[null,null,null,null,null,null,null,null,"166917",16,69,17,"Guanajuatillo"]
[null,null,null,null,null,null,null,null,"1669116",16,69,116,"Heredia (Arturo Heredia) [Granja]"]
[null,null,null,null,null,null,null,null,"16732",16,73,2,"Atzimbo"]
[null,null,null,null,null,null,null,null,"167715",16,77,15,"Ceibas Altas"]
[null,null,null,null,null,null,null,null,"167738",16,77,38,"Los Limones y Anexos"]
[null,null,null,null,null,null,null,null,"167958",16,79,58,"San Gregorio"]
[null,null,null,null,null,null,null,null,"168122",16,81,22,"Lagunilla"]
[null,null,null,null,null,null,null,null,"168296",16,82,96,"San Rafael Tecario (El Poblado)"]
[null,null,null,null,null,null,null,null,"1683119",16,83,119,"La Cuesta"]
[null,null,null,null,null,null,null,null,"1683148",16,83,148,"La Cañada"]
[null,null,null,null,null,null,null,null,"168831",16,88,31,"San José de las Cerquillas"]
[null,null,null,null,null,null,null,null,"168953",16,89,53,"Zoquitita"]
[null,null,null,null,null,null,null,null,"169243",16,92,43,"El Güinduri"]
[null,null,null,null,null,null,null,null,"1692289",16,92,289,"Las Cañadas"]
[null,null,null,null,null,null,null,null,"1692651",16,92,651,"Las Vigas"]
[null,null,null,null,null,null,null,null,"169523",16,95,23,"La Loma del Tiro"]
[null,null,null,null,null,null,null,null,"169678",16,96,78,"La Paloma"]
[null,null,null,null,null,null,null,null,"1696235",16,96,235,"Higuera Raizuda"]
[null,null,null,null,null,null,null,null,"1696562",16,96,562,"El Limón"]
[null,null,null,null,null,null,null,null,"169771",16,97,71,"El Encanto"]
[null,null,null,null,null,null,null,null,"1697375",16,97,375,"Potrero"]
[null,null,null,null,null,null,null,null,"169841",16,98,41,"El Salitre"]
[null,null,null,null,null,null,null,null,"169955",16,99,55,"Los Guajes de Teamaro"]
[null,null,null,null,null,null,null,null,"1699287",16,99,287,"La Ordeñita"]
[null,null,null,null,null,null,null,null,"1610045",16,100,45,"Colonia Huitzimangari"]
[null,null,null,null,null,null,null,null,"16101264",16,101,264,"El Toril"]
[null,null,null,null,null,null,null,null,"16101552",16,101,552,"Las Tinajas"]
[null,null,null,null,null,null,null,null,"16102136",16,102,136,"El Edén"]
[null,null,null,null,null,null,null,null,"16102316",16,102,316,"Comunidad de San Miguel"]
[null,null,null,null,null,null,null,null,"1610436",16,104,36,"Los Sauces"]
[null,null,null,null,null,null,null,null,"161075",16,107,5,"Las Cabras"]
[null,null,null,null,null,null,null,null,"16108183",16,108,183,"Fraccionamiento Monte Olivo"]
[null,null,null,null,null,null,null,null,"1611038",16,110,38,"San Bernardo"]
[null,null,null,null,null,null,null,null,"16112151",16,112,151,"La Capilla (Tercera Manzana de Francisco Serrato)"]
[null,null,null,null,null,null,null,null,"16112172",16,112,172,"Agua Bendita (El Pocito)"]
[null,null,null,null,null,null,null,null,"17230",17,2,30,"Centro Asturiano de México"]
[null,null,null,null,null,null,null,null,"17466",17,4,66,"Colonia las Lumbreras"]
[null,null,null,null,null,null,null,null,"17771",17,7,71,"El Alambrado"]
[null,null,null,null,null,null,null,null,"17822",17,8,22,"Rancho Tajonar (Campo la Florida)"]
[null,null,null,null,null,null,null,null,"171255",17,12,55,"Rancho San Francisco (La Mesa del Cuajiote)"]
[null,null,null,null,null,null,null,null,"171328",17,13,28,"La Esperanza"]
[null,null,null,null,null,null,null,null,"171762",17,17,62,"El Pericón Grande"]
[null,null,null,null,null,null,null,null,"17194",17,19,4,"Ixtlilco el Chico"]
[null,null,null,null,null,null,null,null,"17226",17,22,6,"Matlacotla"]
[null,null,null,null,null,null,null,null,"1724114",17,24,114,"Ampliación Zaragoza"]
[null,null,null,null,null,null,null,null,"172618",17,26,18,"Colonia 3 de Mayo"]
[null,null,null,null,null,null,null,null,"172968",17,29,68,"El Caudillo del Sur"]
[null,null,null,null,null,null,null,null,"173035",17,30,35,"Rancho las Huertas"]
[null,null,null,null,null,null,null,null,"173138",17,31,38,"Rancho Huixcolco"]
[null,null,null,null,null,null,null,null,"181245",18,1,245,"Los Romero"]
[null,null,null,null,null,null,null,null,"181325",18,1,325,"Martín Cedano"]
[null,null,null,null,null,null,null,null,"184190",18,4,190,"Vizcarra"]
[null,null,null,null,null,null,null,null,"184373",18,4,373,"Jesús Acevedo (Puerta Vieja)"]
[null,null,null,null,null,null,null,null,"184704",18,4,704,"Los Juanes"]
[null,null,null,null,null,null,null,null,"185192",18,5,192,"El Guamuchilito"]
[null,null,null,null,null,null,null,null,"185408",18,5,408,"Los Guajolotes"]
[null,null,null,null,null,null,null,null,"18726",18,7,26,"El Liso"]
[null,null,null,null,null,null,null,null,"18937",18,9,37,"El Colorín"]
[null,null,null,null,null,null,null,null,"189253",18,9,253,"Luis Romero (Las Cocorochas)"]
[null,null,null,null,null,null,null,null,"189726",18,9,726,"San Antonio (Tanila)"]
[null,null,null,null,null,null,null,null,"189961",18,9,961,"Melquiades de la Cruz Cuevas"]
[null,null,null,null,null,null,null,null,"1891210",18,9,1210,"Los Cajones"]
[null,null,null,null,null,null,null,null,"1891313",18,9,1313,"Río Chico"]
[null,null,null,null,null,null,null,null,"181053",18,10,53,"San Miguel"]
[null,null,null,null,null,null,null,null,"1811111",18,11,111,"Chimaltita"]
[null,null,null,null,null,null,null,null,"1812242",18,12,242,"Agua Caliente (Las Mancuernas)"]
[null,null,null,null,null,null,null,null,{"$f":"$J138819&$K138819&$L138819","v":"1814156"},18,14,156,"El Gavilán"]
[null,null,null,null,null,null,null,null,"181596",18,15,96,"Granja Míriam"]
[null,null,null,null,null,null,null,null,"1815260",18,15,260,"El Lote de Vallarta (Playa de Caballos)"]
[null,null,null,null,null,null,null,null,"1816265",18,16,265,"Los Sandoval"]
[null,null,null,null,null,null,null,null,"1817115",18,17,115,"Colonia Seis de Enero"]
[null,null,null,null,null,null,null,null,"1817471",18,17,471,"Crescencio Hernández [Ladrillera]"]
[null,null,null,null,null,null,null,null,"1817622",18,17,622,"José Ernesto Delgadillo Murillo"]
[null,null,null,null,null,null,null,null,"1819499",18,19,499,"Huizolta"]
[null,null,null,null,null,null,null,null,"1819563",18,19,563,"San Isidro"]
[null,null,null,null,null,null,null,null,"18191112",18,19,1112,"Los Llanitos"]
[null,null,null,null,null,null,null,null,"18191338",18,19,1338,"Buenavista"]
[null,null,null,null,null,null,null,null,"18191534",18,19,1534,"Las Palomas"]
[null,null,null,null,null,null,null,null,"18191675",18,19,1675,"Los Guayabos"]
[null,null,null,null,null,null,null,null,"18191745",18,19,1745,"Charco Prieto"]
[null,null,null,null,null,null,null,null,"1820337",18,20,337,"Los Moreno"]
[null,null,null,null,null,null,null,null,"1820404",18,20,404,"Pablo Narez Mendoza"]
[null,null,null,null,null,null,null,null,"19220",19,2,20,"El Maguey"]
[null,null,null,null,null,null,null,null,"192149",19,2,149,"El Texano"]
[null,null,null,null,null,null,null,null,"19354",19,3,54,"El Chapote"]
[null,null,null,null,null,null,null,null,"19554",19,5,54,"El Nuevo Pillaje (Los Bancos)"]
[null,null,null,null,null,null,null,null,"195325",19,5,325,"Felipe Balderas"]
[null,null,null,null,null,null,null,null,"195514",19,5,514,"Los Ángeles"]
[null,null,null,null,null,null,null,null,"195684",19,5,684,"Beto Rodríguez"]
[null,null,null,null,null,null,null,null,"195781",19,5,781,"Emilio Alcorta"]
[null,null,null,null,null,null,null,null,"1951031",19,5,1031,"Las Astas"]
[null,null,null,null,null,null,null,null,"196281",19,6,281,"San Javier"]
[null,null,null,null,null,null,null,null,"19775",19,7,75,"El Tigre"]
[null,null,null,null,null,null,null,null,"197296",19,7,296,"El Naranjo"]
[null,null,null,null,null,null,null,null,"198150",19,8,150,"Ninguno"]
[null,null,null,null,null,null,null,null,"199182",19,9,182,"Santa Cruz"]
[null,null,null,null,null,null,null,null,"199429",19,9,429,"Talía"]
[null,null,null,null,null,null,null,null,"199587",19,9,587,"Los Ebanitos"]
[null,null,null,null,null,null,null,null,"1911225",19,11,225,"San Isidro"]
[null,null,null,null,null,null,null,null,{"$f":"$J143363&$K143363&$L143363","v":"1911391"},19,11,391,"Camaneo Dos (Leticia Ramos)"]
[null,null,null,null,null,null,null,null,"1912203",19,12,203,"El Gato"]
[null,null,null,null,null,null,null,null,"1913147",19,13,147,"La Mancuerna"]
[null,null,null,null,null,null,null,null,"1913471",19,13,471,"Nuevo Juan de Dios"]
[null,null,null,null,null,null,null,null,"1913690",19,13,690,"Palmira"]
[null,null,null,null,null,null,null,null,"19131021",19,13,1021,"Onofre"]
[null,null,null,null,null,null,null,null,"19131142",19,13,1142,"Santo Tomás"]
[null,null,null,null,null,null,null,null,"1914121",19,14,121,"San Diego"]
[null,null,null,null,null,null,null,null,"1914277",19,14,277,"El Rescoldal"]
[null,null,null,null,null,null,null,null,"191547",19,15,47,"Las Peñitas"]
[null,null,null,null,null,null,null,null,"1915214",19,15,214,"Cuatro Potrillos"]
[null,null,null,null,null,null,null,null,"1916157",19,16,157,"Quinta Cande (Rancho Grande)"]
[null,null,null,null,null,null,null,null,"191740",19,17,40,"Francisco Villa"]
[null,null,null,null,null,null,null,null,"1917129",19,17,129,"San Ildefonso"]
[null,null,null,null,null,null,null,null,"1917391",19,17,391,"Artemisas (El Ombligo)"]
[null,null,null,null,null,null,null,null,"1917574",19,17,574,"Las Vegas de San Isidro"]
[null,null,null,null,null,null,null,null,"191860",19,18,60,"Los Rodríguez"]
[null,null,null,null,null,null,null,null,"192055",19,20,55,"Las Iglesias"]
[null,null,null,null,null,null,null,null,"1920334",19,20,334,"El Mantillo (Tinaja de la Vaca)"]
[null,null,null,null,null,null,null,null,"1920430",19,20,430,"Loma Blanca"]
[null,null,null,null,null,null,null,null,"1922152",19,22,152,"La Noria"]
[null,null,null,null,null,null,null,null,"1922271",19,22,271,"Santa Isabel"]
[null,null,null,null,null,null,null,null,"1922585",19,22,585,"La Máquina"]
[null,null,null,null,null,null,null,null,"1922655",19,22,655,"La Quineña"]
[null,null,null,null,null,null,null,null,"192362",19,23,62,"El Jalpeño (Eduviges Hinojosa)"]
[null,null,null,null,null,null,null,null,"192471",19,24,71,"San Vicente"]
[null,null,null,null,null,null,null,null,"192568",19,25,68,"Martínez"]
[null,null,null,null,null,null,null,null,"1927192",19,27,192,"Filo de Piedra (Cerrito Colorado)"]
[null,null,null,null,null,null,null,null,"1927237",19,27,237,"Ess"]
[null,null,null,null,null,null,null,null,"19299",19,29,9,"El Barreal"]
[null,null,null,null,null,null,null,null,"193096",19,30,96,"Ninguno"]
[null,null,null,null,null,null,null,null,"1931299",19,31,299,"La Sierra [Deportivo]"]
[null,null,null,null,null,null,null,null,"1932271",19,32,271,"Las Malvinas"]
[null,null,null,null,null,null,null,null,"193373",19,33,73,"El Cerrito"]
[null,null,null,null,null,null,null,null,"1933379",19,33,379,"San Manuel"]
[null,null,null,null,null,null,null,null,"1933754",19,33,754,"La Ilusión"]
[null,null,null,null,null,null,null,null,"1933795",19,33,795,"Ninguno"]
[null,null,null,null,null,null,null,null,"193451",19,34,51,"Los Saucitos (El Saucito)"]
[null,null,null,null,null,null,null,null,"193493",19,34,93,"Cañada Blanca"]
[null,null,null,null,null,null,null,null,"193625",19,36,25,"Tapona Moreña"]
[null,null,null,null,null,null,null,null,"193815",19,38,15,"Alto de Vigas"]
[null,null,null,null,null,null,null,null,"193875",19,38,75,"El Charco (El Charco Azul)"]
[null,null,null,null,null,null,null,null,"1938514",19,38,514,"Entrada a la Palma (Cuesta Garrapatas)"]
[null,null,null,null,null,null,null,null,"1938712",19,38,712,"San Luis"]
[null,null,null,null,null,null,null,null,"1938792",19,38,792,"Canoas"]
[null,null,null,null,null,null,null,null,"194038",19,40,38,"Hacienda la Ventura"]
[null,null,null,null,null,null,null,null,"1940197",19,40,197,"Roberto González"]
[null,null,null,null,null,null,null,null,"1941341",19,41,341,"El Cuento"]
[null,null,null,null,null,null,null,null,"1941435",19,41,435,"El Cuatro"]
[null,null,null,null,null,null,null,null,"1942276",19,42,276,"Rancho Nuevo"]
[null,null,null,null,null,null,null,null,"1943152",19,43,152,"La Coma"]
[null,null,null,null,null,null,null,null,"1944119",19,44,119,"La Purísima"]
[null,null,null,null,null,null,null,null,"1944447",19,44,447,"La Tierra Prometida"]
[null,null,null,null,null,null,null,null,"1945270",19,45,270,"Dolores (Los Morales)"]
[null,null,null,null,null,null,null,null,"1945440",19,45,440,"El Argentino"]
[null,null,null,null,null,null,null,null,"194732",19,47,32,"San Pedro"]
[null,null,null,null,null,null,null,null,"1948120",19,48,120,"Jesús María"]
[null,null,null,null,null,null,null,null,"1949205",19,49,205,"Ninguno"]
[null,null,null,null,null,null,null,null,"195027",19,50,27,"San Ángel (Víctor Garza)"]
[null,null,null,null,null,null,null,null,"1950271",19,50,271,"A los Cuatro Vientos"]
[null,null,null,null,null,null,null,null,"195198",19,51,98,"La Espiga"]
[null,null,null,null,null,null,null,null,"20240",20,2,40,"Cobagar"]
[null,null,null,null,null,null,null,null,"20512",20,5,12,"El Mezquite"]
[null,null,null,null,null,null,null,null,"201023",20,10,23,"Nacedero"]
[null,null,null,null,null,null,null,null,"201272",20,12,72,"Rocío Obscurana"]
[null,null,null,null,null,null,null,null,"202130",20,21,30,"Rancho Génesis"]
[null,null,null,null,null,null,null,null,"202841",20,28,41,"Barrio Chino"]
[null,null,null,null,null,null,null,null,"203086",20,30,86,"Rancho Pas-Pas"]
[null,null,null,null,null,null,null,null,"203921",20,39,21,"San Pedro Yodoyuxi"]
[null,null,null,null,null,null,null,null,"204167",20,41,67,"Hilatepec"]
[null,null,null,null,null,null,null,null,"2041120",20,41,120,"Agua de Cueva"]
[null,null,null,null,null,null,null,null,"204460",20,44,60,"Cerro Verde"]
[null,null,null,null,null,null,null,null,"2044133",20,44,133,"El Arenal"]
[null,null,null,null,null,null,null,null,"205017",20,50,17,"Loma Nujiqui"]
[null,null,null,null,null,null,null,null,"2057148",20,57,148,"El Ensueño"]
[null,null,null,null,null,null,null,null,"205814",20,58,14,"San Simón Coyoltepec"]
[null,null,null,null,null,null,null,null,"205976",20,59,76,"El Cerrito"]
[null,null,null,null,null,null,null,null,"206645",20,66,45,"El Sesenta y Uno"]
[null,null,null,null,null,null,null,null,"20719",20,71,9,"Consolación"]
[null,null,null,null,null,null,null,null,"2071139",20,71,139,"San Martín"]
[null,null,null,null,null,null,null,null,"207930",20,79,30,"Colonia la Brecha"]
[null,null,null,null,null,null,null,null,"20868",20,86,8,"Nduyahillo"]
[null,null,null,null,null,null,null,null,"20965",20,96,5,"Nahum Bautista"]
[null,null,null,null,null,null,null,null,"2010812",20,108,12,"Loma de Miel"]
[null,null,null,null,null,null,null,null,"2012310",20,123,10,"La Loma Grande"]
[null,null,null,null,null,null,null,null,"201263",20,126,3,"San Andrés Mixtepec"]
[null,null,null,null,null,null,null,null,"201365",20,136,5,"Arroyo Tambor"]
[null,null,null,null,null,null,null,null,"2013745",20,137,45,"Paraje la Calavera (Llano la Calavera)"]
[null,null,null,null,null,null,null,null,"201492",20,149,2,"Gozengo"]
[null,null,null,null,null,null,null,null,"201571",20,157,1,"San Jacinto Amilpas"]
[null,null,null,null,null,null,null,null,"201647",20,164,7,"El Mirador [Colonia]"]
[null,null,null,null,null,null,null,null,"20171102",20,171,102,"Barrio San Jerónimo"]
[null,null,null,null,null,null,null,null,"2017634",20,176,34,"Sección Cuarta (Los Rodríguez)"]
[null,null,null,null,null,null,null,null,"20184150",20,184,150,"Francisco I. Madero (Los Cerritos)"]
[null,null,null,null,null,null,null,null,{"$f":"$J156483&$K156483&$L156483","v":"201872"},20,187,2,"Agua Español"]
[null,null,null,null,null,null,null,null,"2019017",20,190,17,"Nuevo Cerro Mojarra"]
[null,null,null,null,null,null,null,null,"2019883",20,198,83,"Rancho Hermanos Pacheco"]
[null,null,null,null,null,null,null,null,"20198117",20,198,117,"Plan de San Luis"]
[null,null,null,null,null,null,null,null,"2020861",20,208,61,"El Cuajilote"]
[null,null,null,null,null,null,null,null,"2020888",20,208,88,"Cima de la Peña"]
[null,null,null,null,null,null,null,null,"2022653",20,226,53,"El Aguacate"]
[null,null,null,null,null,null,null,null,"2022924",20,229,24,"Piedra Blanca"]
[null,null,null,null,null,null,null,null,"2024227",20,242,27,"San Marcos"]
[null,null,null,null,null,null,null,null,"202547",20,254,7,"El Progreso"]
[null,null,null,null,null,null,null,null,{"$f":"$J157891&$K157891&$L157891","v":"2026341"},20,263,41,"Llano Macizo"]
[null,null,null,null,null,null,null,null,"202647",20,264,7,"Agua Negra"]
[null,null,null,null,null,null,null,null,"2027512",20,275,12,"Ocotal"]
[null,null,null,null,null,null,null,null,"20277157",20,277,157,"El Madrón"]
[null,null,null,null,null,null,null,null,"2027832",20,278,32,"Pescadito de Arriba"]
[null,null,null,null,null,null,null,null,"202927",20,292,7,"El Esponjado"]
[null,null,null,null,null,null,null,null,"203022",20,302,2,"Cruz Colorada"]
[null,null,null,null,null,null,null,null,"2031413",20,314,13,"La Guadalupe"]
[null,null,null,null,null,null,null,null,"2032112",20,321,12,"Agua Negra"]
[null,null,null,null,null,null,null,null,"2032510",20,325,10,"Cerro Culebra"]
[null,null,null,null,null,null,null,null,"2032773",20,327,73,"Las Delicias"]
[null,null,null,null,null,null,null,null,"2033025",20,330,25,"San Isidro Piedra Ancha"]
[null,null,null,null,null,null,null,null,"2033432",20,334,32,"La Polarcita"]
[null,null,null,null,null,null,null,null,"20334176",20,334,176,"Mata de Ajo"]
[null,null,null,null,null,null,null,null,"2034028",20,340,28,"Rumbo a Tiniyú"]
[null,null,null,null,null,null,null,null,"203524",20,352,4,"La Colmena"]
[null,null,null,null,null,null,null,null,"2036473",20,364,73,"Mata Sandía"]
[null,null,null,null,null,null,null,null,"203706",20,370,6,"El Llano"]
[null,null,null,null,null,null,null,null,"2037818",20,378,18,"Los Anonales"]
[null,null,null,null,null,null,null,null,"203862",20,386,2,"Agua Ceniza"]
[null,null,null,null,null,null,null,null,"2039229",20,392,29,"Fortín de Juárez"]
[null,null,null,null,null,null,null,null,"203981",20,398,1,"Ayoquezco de Aldama"]
[null,null,null,null,null,null,null,null,"2040193",20,401,93,"Los Sarmiento"]
[null,null,null,null,null,null,null,null,"204102",20,410,2,"La Reforma"]
[null,null,null,null,null,null,null,null,"2041034",20,410,34,"Río de Cal"]
[null,null,null,null,null,null,null,null,"204183",20,418,3,"Guichiquero"]
[null,null,null,null,null,null,null,null,"204234",20,423,4,"Unión Paz y Progreso"]
[null,null,null,null,null,null,null,null,"2043916",20,439,16,"Mazunte"]
[null,null,null,null,null,null,null,null,"20439121",20,439,121,"Puente Escondido"]
[null,null,null,null,null,null,null,null,"204503",20,450,3,"Barranca Honda"]
[null,null,null,null,null,null,null,null,"2045021",20,450,21,"San José de las Flores"]
[null,null,null,null,null,null,null,null,"204596",20,459,6,"San José Chichihualtepec"]
[null,null,null,null,null,null,null,null,"2046739",20,467,39,"Las Palmitas"]
[null,null,null,null,null,null,null,null,{"$f":"$J162435&$K162435&$L162435","v":"2047077"},20,470,77,"La Ceiba"]
[null,null,null,null,null,null,null,null,"2048225",20,482,25,"Pie del Cerro"]
[null,null,null,null,null,null,null,null,"20482161",20,482,161,"Celestino Acevedo"]
[null,null,null,null,null,null,null,null,"2049216",20,492,16,"San José Tres Lagunas"]
[null,null,null,null,null,null,null,null,"2049544",20,495,44,"Portillo Limón"]
[null,null,null,null,null,null,null,null,"20498150",20,498,150,"Barragán"]
[null,null,null,null,null,null,null,null,"204999",20,499,9,"Nduayute"]
[null,null,null,null,null,null,null,null,"205094",20,509,4,"Cerro Campana"]
[null,null,null,null,null,null,null,null,"2051329",20,513,29,"Río del Sol"]
[null,null,null,null,null,null,null,null,"20515119",20,515,119,"El Bronco [Rancho]"]
[null,null,null,null,null,null,null,null,"2052573",20,525,73,"San Isidro (Los Cocos)"]
[null,null,null,null,null,null,null,null,"2052810",20,528,10,"Familia Orozco"]
[null,null,null,null,null,null,null,null,"205467",20,546,7,"Santa Cecilia"]
[null,null,null,null,null,null,null,null,"2055139",20,551,39,"Rancho Valle del Lago [Fraccionamiento]"]
[null,null,null,null,null,null,null,null,"205631",20,563,1,"Yogana"]
[null,null,null,null,null,null,null,null,"2056932",20,569,32,"El Águila"]
[null,null,null,null,null,null,null,null,"21233",21,2,33,"Palmartepec (Cerro de Palmartepec)"]
[null,null,null,null,null,null,null,null,"21354",21,3,54,"San Isidro Ilamacingo"]
[null,null,null,null,null,null,null,null,"2166",21,6,6,"Tlayehualancingo"]
[null,null,null,null,null,null,null,null,"211081",21,10,81,"Ahuatepec"]
[null,null,null,null,null,null,null,null,"211619",21,16,19,"Tlaltempa"]
[null,null,null,null,null,null,null,null,"212029",21,20,29,"Topoyantle"]
[null,null,null,null,null,null,null,null,"212416",21,24,16,"La Joya del Tamarindo"]
[null,null,null,null,null,null,null,null,"213540",21,35,40,"San José Tequexpalco"]
[null,null,null,null,null,null,null,null,"213641",21,36,41,"San Marcos Tlaltlalkilotl"]
[null,null,null,null,null,null,null,null,"2143116",21,43,116,"Tenexteta"]
[null,null,null,null,null,null,null,null,"214512",21,45,12,"Maravillas"]
[null,null,null,null,null,null,null,null,"214543",21,45,43,"El Encanto"]
[null,null,null,null,null,null,null,null,"2147206",21,47,206,"Palapa"]
[null,null,null,null,null,null,null,null,"215040",21,50,40,"Santiago"]
[null,null,null,null,null,null,null,null,"2153117",21,53,117,"Santa Cruz"]
[null,null,null,null,null,null,null,null,"215912",21,59,12,"Huaxocotepec"]
[null,null,null,null,null,null,null,null,"216466",21,64,66,"El Mirador"]
[null,null,null,null,null,null,null,null,"21666",21,66,6,"Mixquitepec"]
[null,null,null,null,null,null,null,null,"216928",21,69,28,"La Venta"]
[null,null,null,null,null,null,null,null,"21738",21,73,8,"San Juanaite"]
[null,null,null,null,null,null,null,null,"21765",21,76,5,"Los Anayos"]
[null,null,null,null,null,null,null,null,"2176196",21,76,196,"Mecapalco"]
[null,null,null,null,null,null,null,null,"218236",21,82,36,"Rancho Luna (Rancho la Magdalena)"]
[null,null,null,null,null,null,null,null,"2183118",21,83,118,"Tenextepecuaco"]
[null,null,null,null,null,null,null,null,"2185109",21,85,109,"Lomas de Alchichica"]
[null,null,null,null,null,null,null,null,"218793",21,87,93,"El Mata Piojo (Las Arañas)"]
[null,null,null,null,null,null,null,null,"219497",21,94,97,"El Guayín"]
[null,null,null,null,null,null,null,null,"219919",21,99,19,"El Chabacano"]
[null,null,null,null,null,null,null,null,"2110322",21,103,22,"Laguna Seca (Loma de los Pulqueros)"]
[null,null,null,null,null,null,null,null,"211091",21,109,1,"Ciudad de Pahuatlán de Valle"]
[null,null,null,null,null,null,null,null,"21110119",21,110,119,"San Martín"]
[null,null,null,null,null,null,null,null,"2111316",21,113,16,"Hacienda de Guadalupe"]
[null,null,null,null,null,null,null,null,"21114483",21,114,483,"Apantenco"]
[null,null,null,null,null,null,null,null,"2111667",21,116,67,"Cruz Verde"]
[null,null,null,null,null,null,null,null,"2112813",21,128,13,"Santa Ana Mier"]
[null,null,null,null,null,null,null,null,"211343",21,134,3,"Santa María Huepalcalco"]
[null,null,null,null,null,null,null,null,"2114298",21,142,98,"La Providencia"]
[null,null,null,null,null,null,null,null,"2114333",21,143,33,"Acamique"]
[null,null,null,null,null,null,null,null,"211519",21,151,9,"Santo Tomás Hueyotlipan"]
[null,null,null,null,null,null,null,null,"211557",21,155,7,"Quicayán"]
[null,null,null,null,null,null,null,null,"2115510",21,155,10,"El Tempexquixtle"]
[null,null,null,null,null,null,null,null,"21156238",21,156,238,"El Tunge"]
[null,null,null,null,null,null,null,null,"2116113",21,161,13,"Porcina San José"]
[null,null,null,null,null,null,null,null,"2116720",21,167,20,"Tlacomulco"]
[null,null,null,null,null,null,null,null,"211736",21,173,6,"Chalahuico"]
[null,null,null,null,null,null,null,null,"2117720",21,177,20,"Santo Nombre"]
[null,null,null,null,null,null,null,null,"2118034",21,180,34,"Rancho San Juan Tepantzolco"]
[null,null,null,null,null,null,null,null,"2118092",21,180,92,"La Rayuela"]
[null,null,null,null,null,null,null,null,"2118712",21,187,12,"El Cucharal"]
[null,null,null,null,null,null,null,null,"2119139",21,191,39,"Tulcingo"]
[null,null,null,null,null,null,null,null,"21194166",21,194,166,"Los Limones"]
[null,null,null,null,null,null,null,null,"2119713",21,197,13,"Los Naranjos"]
[null,null,null,null,null,null,null,null,"211992",21,199,2,"Alto Lucero"]
[null,null,null,null,null,null,null,null,"2120610",21,206,10,"El Pitahayo"]
[null,null,null,null,null,null,null,null,"2120841",21,208,41,"Yehuala"]
[null,null,null,null,null,null,null,null,"2120968",21,209,68,"Agualcahuinco"]
[null,null,null,null,null,null,null,null,"2121395",21,213,95,"La Floresta"]
[null,null,null,null,null,null,null,null,"2121610",21,216,10,"Tepehican"]
[null,null,null,null,null,null,null,null,"221163",22,1,163,"Rancho los Tres Luises (Chitejé de la Cruz)"]
[null,null,null,null,null,null,null,null,"22252",22,2,52,"Medias Coloradas"]
[null,null,null,null,null,null,null,null,"222245",22,2,245,"La Tinaja"]
[null,null,null,null,null,null,null,null,"22469",22,4,69,"La Nopalera"]
[null,null,null,null,null,null,null,null,"224284",22,4,284,"Corral de Encino"]
[null,null,null,null,null,null,null,null,"22548",22,5,48,"Santa Rosa de Lima (Santa Rosa Poblado)"]
[null,null,null,null,null,null,null,null,"225244",22,5,244,"Sección Sureste de Colón (Camino a la Pila)"]
[null,null,null,null,null,null,null,null,"226142",22,6,142,"Venceremos"]
[null,null,null,null,null,null,null,null,"227159",22,7,159,"Rancho Santa Lucía"]
[null,null,null,null,null,null,null,null,"227234",22,7,234,"Rancho Santa Elena"]
[null,null,null,null,null,null,null,null,"228128",22,8,128,"Mi Pequeño Ranchito"]
[null,null,null,null,null,null,null,null,"229122",22,9,122,"Los Naranjitos"]
[null,null,null,null,null,null,null,null,"221026",22,10,26,"El Naranjo"]
[null,null,null,null,null,null,null,null,"221187",22,11,87,"Rancho Isabel"]
[null,null,null,null,null,null,null,null,"2211238",22,11,238,"Familia Uribe"]
[null,null,null,null,null,null,null,null,"221246",22,12,46,"Rancho el Profeta"]
[null,null,null,null,null,null,null,null,"2212149",22,12,149,"Rancho el Carmen"]
[null,null,null,null,null,null,null,null,"221432",22,14,32,"Buenavista"]
[null,null,null,null,null,null,null,null,"2214229",22,14,229,"Gobernantes"]
[null,null,null,null,null,null,null,null,"2214504",22,14,504,"Sección Sur de San Miguelito"]
[null,null,null,null,null,null,null,null,"2214551",22,14,551,"Sección Oeste de Montenegro"]
[null,null,null,null,null,null,null,null,"2216162",22,16,162,"Los Llanitos"]
[null,null,null,null,null,null,null,null,"2216301",22,16,301,"Familia López (Doxocua)"]
[null,null,null,null,null,null,null,null,"221769",22,17,69,"El Diecinueve [Granja]"]
[null,null,null,null,null,null,null,null,"221840",22,18,40,"Rancho Nuevo"]
[null,null,null,null,null,null,null,null,"231429",23,1,429,"Ferinco"]
[null,null,null,null,null,null,null,null,"231944",23,1,944,"Cozumeleño"]
[null,null,null,null,null,null,null,null,"232313",23,2,313,"Kancabchén Segundo"]
[null,null,null,null,null,null,null,null,"232625",23,2,625,"Ninguno"]
[null,null,null,null,null,null,null,null,"2321066",23,2,1066,"Villahermosa"]
[null,null,null,null,null,null,null,null,"23354",23,3,54,"Chacmuchuch"]
[null,null,null,null,null,null,null,null,"234225",23,4,225,"Luis Echeverría Álvarez"]
[null,null,null,null,null,null,null,null,"234663",23,4,663,"Reforma"]
[null,null,null,null,null,null,null,null,"2341244",23,4,1244,"El Cedralito"]
[null,null,null,null,null,null,null,null,"2341641",23,4,1641,"La Pasadita"]
[null,null,null,null,null,null,null,null,{"$f":"$J177539&$K177539&$L177539","v":"2342008"},23,4,2008,"Golden Suites [Auto Hotel]"]
[null,null,null,null,null,null,null,null,"2342137",23,4,2137,"Chac-Chí"]
[null,null,null,null,null,null,null,null,"2342521",23,4,2521,"Ninguno"]
[null,null,null,null,null,null,null,null,"2342602",23,4,2602,"Alma Caribe"]
[null,null,null,null,null,null,null,null,"2342888",23,4,2888,"Ebén Ezer [Campamento]"]
[null,null,null,null,null,null,null,null,"2342949",23,4,2949,"Ninguno"]
[null,null,null,null,null,null,null,null,"235343",23,5,343,"Balam"]
[null,null,null,null,null,null,null,null,"235984",23,5,984,"Tecnorest Equipo"]
[null,null,null,null,null,null,null,null,"2351276",23,5,1276,"Campo de Tiro"]
[null,null,null,null,null,null,null,null,"2351482",23,5,1482,"Península Resort"]
[null,null,null,null,null,null,null,null,"2351598",23,5,1598,"Premasa del Caribe"]
[null,null,null,null,null,null,null,null,"236657",23,6,657,"Su'ukil Naj"]
[null,null,null,null,null,null,null,null,"236685",23,6,685,"San Luis"]
[null,null,null,null,null,null,null,null,"237309",23,7,309,"El Roble"]
[null,null,null,null,null,null,null,null,"238488",23,8,488,"Santa Rosa"]
[null,null,null,null,null,null,null,null,"238818",23,8,818,"Playa Paraíso"]
[null,null,null,null,null,null,null,null,"239164",23,9,164,"El Pepón"]
[null,null,null,null,null,null,null,null,"239276",23,9,276,"La Bendición de Dios"]
[null,null,null,null,null,null,null,null,"231024",23,10,24,"Caanán"]
[null,null,null,null,null,null,null,null,"2310156",23,10,156,"Las Abejas"]
[null,null,null,null,null,null,null,null,"2310304",23,10,304,"San Martín"]
[null,null,null,null,null,null,null,null,"24214",24,2,14,"Mesa de San Francisco (Mesa de San José)"]
[null,null,null,null,null,null,null,null,"24356",24,3,56,"El Choy"]
[null,null,null,null,null,null,null,null,"24428",24,4,28,"Los Mireles"]
[null,null,null,null,null,null,null,null,"24546",24,5,46,"El Charco"]
[null,null,null,null,null,null,null,null,"246160",24,6,160,"El Pelotazo"]
[null,null,null,null,null,null,null,null,"24765",24,7,65,"El Sauz"]
[null,null,null,null,null,null,null,null,"24919",24,9,19,"Las Mercedes"]
[null,null,null,null,null,null,null,null,"2410284",24,10,284,"Rancho las Azucenas"]
[null,null,null,null,null,null,null,null,"241212",24,12,12,"Chacatitla Segunda Sección"]
[null,null,null,null,null,null,null,null,"2412208",24,12,208,"Tey Já"]
[null,null,null,null,null,null,null,null,"241382",24,13,82,"Colonia Ignacio Zaragoza"]
[null,null,null,null,null,null,null,null,"2413298",24,13,298,"Huizachal"]
[null,null,null,null,null,null,null,null,"2413690",24,13,690,"Loma de las Conchas"]
[null,null,null,null,null,null,null,null,"2413780",24,13,780,"Soria"]
[null,null,null,null,null,null,null,null,"2413997",24,13,997,"El Carpintero (El Corozo)"]
[null,null,null,null,null,null,null,null,"24131118",24,13,1118,"Javier Castro"]
[null,null,null,null,null,null,null,null,"241515",24,15,15,"Chupaderos"]
[null,null,null,null,null,null,null,null,"2415224",24,15,224,"Agapito Mendoza"]
[null,null,null,null,null,null,null,null,"2416120",24,16,120,"Santa Alicia (Gregorio Rivas)"]
[null,null,null,null,null,null,null,null,"2416264",24,16,264,"El Cube (Ejido Auza)"]
[null,null,null,null,null,null,null,null,"241812",24,18,12,"Tantocoy Uno"]
[null,null,null,null,null,null,null,null,"24206",24,20,6,"Buenavista"]
[null,null,null,null,null,null,null,null,"242123",24,21,23,"Comunidad Corte Primero"]
[null,null,null,null,null,null,null,null,"242149",24,21,49,"Las Moras"]
[null,null,null,null,null,null,null,null,"2422153",24,22,153,"Rancho Santa Fe"]
[null,null,null,null,null,null,null,null,"242345",24,23,45,"El Tigre"]
[null,null,null,null,null,null,null,null,"2424220",24,24,220,"El Triángulo"]
[null,null,null,null,null,null,null,null,"2424453",24,24,453,"Colonia María del Rosario (Puente del Carmen)"]
[null,null,null,null,null,null,null,null,"242594",24,25,94,"Piedras Negras"]
[null,null,null,null,null,null,null,null,"242730",24,27,30,"El Encantado"]
[null,null,null,null,null,null,null,null,"2428379",24,28,379,"El Temporal"]
[null,null,null,null,null,null,null,null,"2428398",24,28,398,"El Hacha"]
[null,null,null,null,null,null,null,null,"242930",24,29,30,"Escuatitla"]
[null,null,null,null,null,null,null,null,"242998",24,29,98,"Rancho Nuevo"]
[null,null,null,null,null,null,null,null,"24314",24,31,4,"La Barranca"]
[null,null,null,null,null,null,null,null,"243228",24,32,28,"Belén"]
[null,null,null,null,null,null,null,null,"2432304",24,32,304,"San Miguel"]
[null,null,null,null,null,null,null,null,"2432479",24,32,479,"Rincón de Santo Domingo"]
[null,null,null,null,null,null,null,null,"2433105",24,33,105,"El Lobo Grande"]
[null,null,null,null,null,null,null,null,"2434139",24,34,139,"El Encanto"]
[null,null,null,null,null,null,null,null,"243515",24,35,15,"El Huizache"]
[null,null,null,null,null,null,null,null,"2435265",24,35,265,"Rancho los Buendía"]
[null,null,null,null,null,null,null,null,"2436164",24,36,164,"Buenavista"]
[null,null,null,null,null,null,null,null,"2436302",24,36,302,"La Mezcla"]
[null,null,null,null,null,null,null,null,"2437284",24,37,284,"Tlachihualamel"]
[null,null,null,null,null,null,null,null,"243884",24,38,84,"Rancho el Llano"]
[null,null,null,null,null,null,null,null,"243983",24,39,83,"Rancho Santana"]
[null,null,null,null,null,null,null,null,"2440210",24,40,210,"El Milagro"]
[null,null,null,null,null,null,null,null,"2440313",24,40,313,"Rancho el Triángulo"]
[null,null,null,null,null,null,null,null,"2440567",24,40,567,"Rancho Praderas (Fibracel)"]
[null,null,null,null,null,null,null,null,"2440741",24,40,741,"Taninul [Hotel]"]
[null,null,null,null,null,null,null,null,"244153",24,41,53,"San Benito"]
[null,null,null,null,null,null,null,null,"244250",24,42,50,"La Esperanza"]
[null,null,null,null,null,null,null,null,"244360",24,43,60,"Morteros (Río Morteros)"]
[null,null,null,null,null,null,null,null,"2444126",24,44,126,"Rancho Martínez (Los Pelones)"]
[null,null,null,null,null,null,null,null,"244667",24,46,67,"San José de la Purísima"]
[null,null,null,null,null,null,null,null,"2447110",24,47,110,"San Fermín"]
[null,null,null,null,null,null,null,null,"2449113",24,49,113,"Las Escobas"]
[null,null,null,null,null,null,null,null,"245086",24,50,86,"Rancho el Salto"]
[null,null,null,null,null,null,null,null,"2450234",24,50,234,"Villa de Reyes"]
[null,null,null,null,null,null,null,null,"245311",24,53,11,"Rancho Tres Hermanos"]
[null,null,null,null,null,null,null,null,"245421",24,54,21,"Chichimixtitla"]
[null,null,null,null,null,null,null,null,"2454103",24,54,103,"La Barranca"]
[null,null,null,null,null,null,null,null,"245582",24,55,82,"El Rodeo"]
[null,null,null,null,null,null,null,null,"2455186",24,55,186,"Longoria"]
[null,null,null,null,null,null,null,null,"245732",24,57,32,"Texquitote Segundo"]
[null,null,null,null,null,null,null,null,"2458116",24,58,116,"Campamento Benito Juárez"]
[null,null,null,null,null,null,null,null,"251357",25,1,357,"Poblado Número Seis (Los Natoches)"]
[null,null,null,null,null,null,null,null,"251725",25,1,725,"Almer"]
[null,null,null,null,null,null,null,null,"251905",25,1,905,"El Gallo"]
[null,null,null,null,null,null,null,null,"2511163",25,1,1163,"Campo los Reyes"]
[null,null,null,null,null,null,null,null,"25233",25,2,33,"Colonia Agrícola Sinaloa"]
[null,null,null,null,null,null,null,null,"252322",25,2,322,"Pista del Camarón"]
[null,null,null,null,null,null,null,null,"253217",25,3,217,"El Playón"]
[null,null,null,null,null,null,null,null,"253642",25,3,642,"Los Platanitos"]
[null,null,null,null,null,null,null,null,"253886",25,3,886,"El Aguajito"]
[null,null,null,null,null,null,null,null,"2532104",25,3,2104,"Mesa de la Palma"]
[null,null,null,null,null,null,null,null,"254170",25,4,170,"Zaragoza"]
[null,null,null,null,null,null,null,null,"254589",25,4,589,"El Ranchito"]
[null,null,null,null,null,null,null,null,"254634",25,4,634,"Las Tinas"]
[null,null,null,null,null,null,null,null,"255402",25,5,402,"Las Milpas del Carrizo"]
[null,null,null,null,null,null,null,null,"256417",25,6,417,"Las Isabeles"]
[null,null,null,null,null,null,null,null,"256704",25,6,704,"San Francisco de Tacuichamona"]
[null,null,null,null,null,null,null,null,"2561230",25,6,1230,"El Elefante"]
[null,null,null,null,null,null,null,null,"2561430",25,6,1430,"El Limoncito"]
[null,null,null,null,null,null,null,null,"2562049",25,6,2049,"La Mora"]
[null,null,null,null,null,null,null,null,"2562246",25,6,2246,"Divisadero la Perla"]
[null,null,null,null,null,null,null,null,"2562605",25,6,2605,"Ganadera Verdugo"]
[null,null,null,null,null,null,null,null,"2562803",25,6,2803,"Huerta los Limones"]
[null,null,null,null,null,null,null,null,"2563004",25,6,3004,"Ninguno"]
[null,null,null,null,null,null,null,null,"2563085",25,6,3085,"Campo Santa María"]
[null,null,null,null,null,null,null,null,"2563298",25,6,3298,"Palmares de Casa Blanca"]
[null,null,null,null,null,null,null,null,"257148",25,7,148,"El Nacimiento"]
[null,null,null,null,null,null,null,null,"257302",25,7,302,"El Embarcadero"]
[null,null,null,null,null,null,null,null,"257968",25,7,968,"Los Laureles"]
[null,null,null,null,null,null,null,null,"257999",25,7,999,"El Mimbre"]
[null,null,null,null,null,null,null,null,"258523",25,8,523,"La Conchilla"]
[null,null,null,null,null,null,null,null,"25951",25,9,51,"Pilas de Estancia"]
[null,null,null,null,null,null,null,null,"259791",25,9,791,"Ninguno"]
[null,null,null,null,null,null,null,null,"2510202",25,10,202,"Tetaroba"]
[null,null,null,null,null,null,null,null,"2510479",25,10,479,"Huepaco de los Torres"]
[null,null,null,null,null,null,null,null,"25101300",25,10,1300,"El Encanto de Higuera"]
[null,null,null,null,null,null,null,null,"25101451",25,10,1451,"Los Caballos"]
[null,null,null,null,null,null,null,null,"2511192",25,11,192,"La Pichihuila"]
[null,null,null,null,null,null,null,null,"2511675",25,11,675,"Campo California"]
[null,null,null,null,null,null,null,null,"2511899",25,11,899,"La Virgencita (Lindavista)"]
[null,null,null,null,null,null,null,null,"25111174",25,11,1174,"El Mascareño"]
[null,null,null,null,null,null,null,null,"25111245",25,11,1245,"Ninguno"]
[null,null,null,null,null,null,null,null,"2512248",25,12,248,"Marismas"]
[null,null,null,null,null,null,null,null,"2512515",25,12,515,"Bellavista"]
[null,null,null,null,null,null,null,null,"2512825",25,12,825,"El Dólar"]
[null,null,null,null,null,null,null,null,"25121027",25,12,1027,"El Saucito"]
[null,null,null,null,null,null,null,null,"25121283",25,12,1283,"Las Piñas"]
[null,null,null,null,null,null,null,null,"25121395",25,12,1395,"Ninguno"]
[null,null,null,null,null,null,null,null,"2513370",25,13,370,"Calomato"]
[null,null,null,null,null,null,null,null,"2513597",25,13,597,"Potrerillos Aguajito de León"]
[null,null,null,null,null,null,null,null,"25131232",25,13,1232,"La Almendra"]
[null,null,null,null,null,null,null,null,"2514201",25,14,201,"El Colomo"]
[null,null,null,null,null,null,null,null,"2514472",25,14,472,"Pozos Labrados"]
[null,null,null,null,null,null,null,null,"2514685",25,14,685,"Sitio Cajón Ojo de Agua Número Dos"]
[null,null,null,null,null,null,null,null,"2515142",25,15,142,"Campo el Porvenir"]
[null,null,null,null,null,null,null,null,"2516255",25,16,255,"Las Tablas"]
[null,null,null,null,null,null,null,null,"2516388",25,16,388,"Los Platanitos"]
[null,null,null,null,null,null,null,null,"251713",25,17,13,"El Aguajito"]
[null,null,null,null,null,null,null,null,"2517308",25,17,308,"Campo Torreón"]
[null,null,null,null,null,null,null,null,"2517724",25,17,724,"El Coyote"]
[null,null,null,null,null,null,null,null,"2517822",25,17,822,"El Ranchito"]
[null,null,null,null,null,null,null,null,"25171545",25,17,1545,"El Manguito"]
[null,null,null,null,null,null,null,null,"25171596",25,17,1596,"Los Carrizos"]
[null,null,null,null,null,null,null,null,"251811",25,18,11,"Bachoco"]
[null,null,null,null,null,null,null,null,"2518300",25,18,300,"Nuevo México (Lo de Sauceda Número Dos)"]
[null,null,null,null,null,null,null,null,{"$f":"$J198595&$K198595&$L198595","v":"2518504"},25,18,504,"Los Pinos"]
[null,null,null,null,null,null,null,null,"25182211",25,18,2211,"Ninguno"]
[null,null,null,null,null,null,null,null,"262106",26,2,106,"Los Janitos"]
[null,null,null,null,null,null,null,null,"262267",26,2,267,"Rancho Nuevo el Cachetón"]
[null,null,null,null,null,null,null,null,"26383",26,3,83,"El Chapote"]
[null,null,null,null,null,null,null,null,"263245",26,3,245,"Sejaqui"]
[null,null,null,null,null,null,null,null,"263503",26,3,503,"Buenavista"]
[null,null,null,null,null,null,null,null,"263861",26,3,861,"La Lechería"]
[null,null,null,null,null,null,null,null,"26445",26,4,45,"El Tiburón (María del Carmen)"]
[null,null,null,null,null,null,null,null,"264391",26,4,391,"Hermanos Vázquez"]
[null,null,null,null,null,null,null,null,"264607",26,4,607,"El Seco"]
[null,null,null,null,null,null,null,null,"266129",26,6,129,"El Cumaral"]
[null,null,null,null,null,null,null,null,"266344",26,6,344,"El Nogalar"]
[null,null,null,null,null,null,null,null,"268121",26,8,121,"Roosevelt"]
[null,null,null,null,null,null,null,null,"269166",26,9,166,"Milpillas"]
[null,null,null,null,null,null,null,null,"2610116",26,10,116,"El Campito"]
[null,null,null,null,null,null,null,null,"261274",26,12,74,"Roberto Márquez (Bloque 1711)"]
[null,null,null,null,null,null,null,null,{"$f":"$J200899&$K200899&$L200899","v":"2612337"},26,12,337,"Ejido Ley Agraria"]
[null,null,null,null,null,null,null,null,"2612499",26,12,499,"El Ranchito [Corrales]"]
[null,null,null,null,null,null,null,null,"26167",26,16,7,"Casa Blanca"]
[null,null,null,null,null,null,null,null,"261695",26,16,95,"La Sandía"]
[null,null,null,null,null,null,null,null,"2617511",26,17,511,"San Ramón Uno (Familia Méndez Espinoza)"]
[null,null,null,null,null,null,null,null,"2617609",26,17,609,"Santo Niño"]
[null,null,null,null,null,null,null,null,"26171086",26,17,1086,"Aquituni"]
[null,null,null,null,null,null,null,null,"26171274",26,17,1274,"Doña Gina"]
[null,null,null,null,null,null,null,null,"26171295",26,17,1295,"Gil Antonio Caro Soto"]
[null,null,null,null,null,null,null,null,"2618362",26,18,362,"Progreso (Campo 47)"]
[null,null,null,null,null,null,null,null,"2618950",26,18,950,"Los Nogales"]
[null,null,null,null,null,null,null,null,"26181201",26,18,1201,"Juan Vicente Cota"]
[null,null,null,null,null,null,null,null,"26181663",26,18,1663,"Agropecuaria Santa Bárbara"]
[null,null,null,null,null,null,null,null,"26181819",26,18,1819,"Campo Pérez"]
[null,null,null,null,null,null,null,null,"26182064",26,18,2064,"Lázaro Ayala"]
[null,null,null,null,null,null,null,null,"26182239",26,18,2239,"Rancho las Praderas"]
[null,null,null,null,null,null,null,null,"26182484",26,18,2484,"Ricardo Hurtado"]
[null,null,null,null,null,null,null,null,"26182614",26,18,2614,"Moreguita"]
[null,null,null,null,null,null,null,null,"26182754",26,18,2754,"Aldo"]
[null,null,null,null,null,null,null,null,"26182929",26,18,2929,"Santo Niño"]
[null,null,null,null,null,null,null,null,"26183050",26,18,3050,"Ninguno"]
[null,null,null,null,null,null,null,null,"2619128",26,19,128,"Corrales el Toro"]
[null,null,null,null,null,null,null,null,"262090",26,20,90,"Viñedo Selva (Bacatete)"]
[null,null,null,null,null,null,null,null,"2621193",26,21,193,"El Porvenir"]
[null,null,null,null,null,null,null,null,"2621308",26,21,308,"El Represo"]
[null,null,null,null,null,null,null,null,"262277",26,22,77,"El Rancho"]
[null,null,null,null,null,null,null,null,"2623150",26,23,150,"La Puerta de Alambre"]
[null,null,null,null,null,null,null,null,"2623321",26,23,321,"Cuesta Mala (Jesús Jalapa)"]
[null,null,null,null,null,null,null,null,"2625282",26,25,282,"Ninguno"]
[null,null,null,null,null,null,null,null,"2626194",26,26,194,"San Isidro"]
[null,null,null,null,null,null,null,null,"2626783",26,26,783,"Campo de Martínez"]
[null,null,null,null,null,null,null,null,"26277",26,27,7,"Alisos de Batana (Los Alisos)"]
[null,null,null,null,null,null,null,null,"262965",26,29,65,"5 de Marzo (Cerro Prieto)"]
[null,null,null,null,null,null,null,null,{"$f":"$J205443&$K205443&$L205443","v":"2629237"},26,29,237,"San Francisco (Campo Minero)"]
[null,null,null,null,null,null,null,null,"2629807",26,29,807,"Higuerillas"]
[null,null,null,null,null,null,null,null,"26291135",26,29,1135,"Chicobryan"]
[null,null,null,null,null,null,null,null,"2630144",26,30,144,"Benito Juárez (Sector Cinco)"]
[null,null,null,null,null,null,null,null,"2630202",26,30,202,"Coorit"]
[null,null,null,null,null,null,null,null,"2630660",26,30,660,"Miguel Lerdo de Tejada (Valparaíso)"]
[null,null,null,null,null,null,null,null,"2630700",26,30,700,"El Potrerito (El Potrero de San Francisco)"]
[null,null,null,null,null,null,null,null,"26301079",26,30,1079,"Colonos del Norte"]
[null,null,null,null,null,null,null,null,"26301525",26,30,1525,"El Chaparral"]
[null,null,null,null,null,null,null,null,"26301826",26,30,1826,"La Candelaria"]
[null,null,null,null,null,null,null,null,"26302832",26,30,2832,"La Cuesta (Pozo Uno) [Viñedo]"]
[null,null,null,null,null,null,null,null,"26302965",26,30,2965,"Bagotes Uno"]
[null,null,null,null,null,null,null,null,"26303288",26,30,3288,"Santa Rita"]
[null,null,null,null,null,null,null,null,"26303515",26,30,3515,"El Molinito"]
[null,null,null,null,null,null,null,null,"26303590",26,30,3590,"El Álamo [Fraccionamiento Campestre]"]
[null,null,null,null,null,null,null,null,"26303872",26,30,3872,"Santa Rita"]
[null,null,null,null,null,null,null,null,"263129",26,31,29,"Tebodehuachi"]
[null,null,null,null,null,null,null,null,"2632112",26,32,112,"Chotaqui"]
[null,null,null,null,null,null,null,null,"2633252",26,33,252,"Martínez"]
[null,null,null,null,null,null,null,null,"2633409",26,33,409,"La Primavera"]
[null,null,null,null,null,null,null,null,"2635157",26,35,157,"El Tascalito"]
[null,null,null,null,null,null,null,null,"2635285",26,35,285,"Los Apaches"]
[null,null,null,null,null,null,null,null,"2636324",26,36,324,"Esperanza Valle"]
[null,null,null,null,null,null,null,null,"2636430",26,36,430,"El Tejanito"]
[null,null,null,null,null,null,null,null,"2637289",26,37,289,"Cerro Colorado (Francisco Márquez)"]
[null,null,null,null,null,null,null,null,"2638323",26,38,323,"El Reparo"]
[null,null,null,null,null,null,null,null,"2640304",26,40,304,"El Rodeo"]
[null,null,null,null,null,null,null,null,"2640481",26,40,481,"La Presita"]
[null,null,null,null,null,null,null,null,"2641261",26,41,261,"Los Martínez"]
[null,null,null,null,null,null,null,null,"264285",26,42,85,"Musuabampo"]
[null,null,null,null,null,null,null,null,"2642600",26,42,600,"Navarro"]
[null,null,null,null,null,null,null,null,"2642713",26,42,713,"Ninguno [Huerta]"]
[null,null,null,null,null,null,null,null,"2642865",26,42,865,"Ninguno"]
[null,null,null,null,null,null,null,null,"2643178",26,43,178,"Mascareña (Casas del Ferrocarril)"]
[null,null,null,null,null,null,null,null,"2643420",26,43,420,"El Solovino (Ricardo Encinas)"]
[null,null,null,null,null,null,null,null,"264592",26,45,92,"Santa Margarita"]
[null,null,null,null,null,null,null,null,"2645322",26,45,322,"El Silencio"]
[null,null,null,null,null,null,null,null,"2647339",26,47,339,"Licenciada Rosalva Aguilar Figueroa"]
[null,null,null,null,null,null,null,null,"2647363",26,47,363,"La Ladrillera"]
[null,null,null,null,null,null,null,null,"2648296",26,48,296,"Los Algodones"]
[null,null,null,null,null,null,null,null,{"$f":"$J211075&$K211075&$L211075","v":"2649198"},26,49,198,"El Frijol de Zazueta (El Frijol de Arriba)"]
[null,null,null,null,null,null,null,null,"26504",26,50,4,"Cerro de Oro"]
[null,null,null,null,null,null,null,null,"265095",26,50,95,"El Bigote"]
[null,null,null,null,null,null,null,null,"2651838",26,51,838,"La Higuera"]
[null,null,null,null,null,null,null,null,"2652155",26,52,155,"Rancho Nuevo"]
[null,null,null,null,null,null,null,null,"2652512",26,52,512,"El Cajón Colorado"]
[null,null,null,null,null,null,null,null,"2652722",26,52,722,"Junta de los Arroyos"]
[null,null,null,null,null,null,null,null,"2652893",26,52,893,"El Rincón de las Mesas"]
[null,null,null,null,null,null,null,null,"265539",26,55,39,"El Fronterizo"]
[null,null,null,null,null,null,null,null,"2655374",26,55,374,"Campo de Tito Lince"]
[null,null,null,null,null,null,null,null,"2655464",26,55,464,"Ninguno [Gabino Zavala]"]
[null,null,null,null,null,null,null,null,"2655649",26,55,649,"Raymundo Terraza"]
[null,null,null,null,null,null,null,null,"2655763",26,55,763,"Ninguno [Timoteo Gómez]"]
[null,null,null,null,null,null,null,null,"265661",26,56,61,"El Gato"]
[null,null,null,null,null,null,null,null,"2657119",26,57,119,"La Cantera"]
[null,null,null,null,null,null,null,null,"265835",26,58,35,"El Pantanito"]
[null,null,null,null,null,null,null,null,"2658312",26,58,312,"El Potrero"]
[null,null,null,null,null,null,null,null,"2659147",26,59,147,"La Mesa"]
[null,null,null,null,null,null,null,null,"2660186",26,60,186,"Armando Urquijo (Doña Rita)"]
[null,null,null,null,null,null,null,null,"266238",26,62,38,"Los Callejones"]
[null,null,null,null,null,null,null,null,"266384",26,63,84,"El Babiso"]
[null,null,null,null,null,null,null,null,"266531",26,65,31,"San José (San Enrique)"]
[null,null,null,null,null,null,null,null,"2665135",26,65,135,"Rancho Nuevo"]
[null,null,null,null,null,null,null,null,"266655",26,66,55,"El Potrero (Potrero San Andrés)"]
[null,null,null,null,null,null,null,null,"2666472",26,66,472,"El Venado"]
[null,null,null,null,null,null,null,null,"26687",26,68,7,"Los Álamos"]
[null,null,null,null,null,null,null,null,"266956",26,69,56,"Los Pilares"]
[null,null,null,null,null,null,null,null,"266983",26,69,83,"Rancho Viejo"]
[null,null,null,null,null,null,null,null,"2669339",26,69,339,"El Bordo"]
[null,null,null,null,null,null,null,null,"2669625",26,69,625,"La Clínica"]
[null,null,null,null,null,null,null,null,"2670185",26,70,185,"El Alamito (El Álamo)"]
[null,null,null,null,null,null,null,null,"2670274",26,70,274,"Rancho los Laureles"]
[null,null,null,null,null,null,null,null,"267222",26,72,22,"Irma Galaviz (Bloque 1223)"]
[null,null,null,null,null,null,null,null,"2672102",26,72,102,"Campo de Rodrigo Cota"]
[null,null,null,null,null,null,null,null,"2672272",26,72,272,"Francisco Ochoa Vasquez"]
[null,null,null,null,null,null,null,null,"271187",27,1,187,"Los Gómez"]
[null,null,null,null,null,null,null,null,"271472",27,1,472,"Cibal de la Gloria"]
[null,null,null,null,null,null,null,null,"271724",27,1,724,"San Antonio"]
[null,null,null,null,null,null,null,null,"272155",27,2,155,"Santuario 4ta. Sección"]
[null,null,null,null,null,null,null,null,"27328",27,3,28,"Felipe Carrillo Puerto Sur (Carrillón)"]
[null,null,null,null,null,null,null,null,"273125",27,3,125,"Las Mercedes"]
[null,null,null,null,null,null,null,null,"274116",27,4,116,"Ismate y Chilapilla 1ra. Sección"]
[null,null,null,null,null,null,null,null,"27519",27,5,19,"Chicozapote"]
[null,null,null,null,null,null,null,null,"2764",27,6,4,"Anta y Cúlico (Santa Rita)"]
[null,null,null,null,null,null,null,null,"27723",27,7,23,"Santa Leonor"]
[null,null,null,null,null,null,null,null,"278121",27,8,121,"Marcelino Inorrueta de la Fuente"]
[null,null,null,null,null,null,null,null,{"$f":"$J217411&$K217411&$L217411","v":"278407"},27,8,407,"La Palma"]
[null,null,null,null,null,null,null,null,"278611",27,8,611,"Tres Bocas 3ra. Sección"]
[null,null,null,null,null,null,null,null,"271064",27,10,64,"El Mango de Ayapa"]
[null,null,null,null,null,null,null,null,"2711184",27,11,184,"Argentina"]
[null,null,null,null,null,null,null,null,"2712212",27,12,212,"El Reventón"]
[null,null,null,null,null,null,null,null,"2712260",27,12,260,"La Curva Uno"]
[null,null,null,null,null,null,null,null,"271561",27,15,61,"Tomás Garrido Canabal"]
[null,null,null,null,null,null,null,null,"271697",27,16,97,"Santa Elena"]
[null,null,null,null,null,null,null,null,"281112",28,1,112,"El Herradero (La Gota)"]
[null,null,null,null,null,null,null,null,"281230",28,1,230,"El Tío Sam"]
[null,null,null,null,null,null,null,null,"282100",28,2,100,"El Gavilán Dos"]
[null,null,null,null,null,null,null,null,"282340",28,2,340,"Los Peligros"]
[null,null,null,null,null,null,null,null,"282553",28,2,553,"El Triángulo"]
[null,null,null,null,null,null,null,null,"282725",28,2,725,"Manuel Cavazos Lerma (La Providencia)"]
[null,null,null,null,null,null,null,null,"282972",28,2,972,"Gerardo Cárdenas"]
[null,null,null,null,null,null,null,null,"282993",28,2,993,"El Arroyo"]
[null,null,null,null,null,null,null,null,{"$f":"$J219651&$K219651&$L219651","v":"283311"},28,3,311,"Santa Teresa"]
[null,null,null,null,null,null,null,null,"283421",28,3,421,"El Olivo (Germán Vázquez Villarreal)"]
[null,null,null,null,null,null,null,null,"283711",28,3,711,"El Barranco (Santiago Yáñez)"]
[null,null,null,null,null,null,null,null,"28427",28,4,27,"Las Palmas"]
[null,null,null,null,null,null,null,null,"284338",28,4,338,"El Mar Negro"]
[null,null,null,null,null,null,null,null,"285199",28,5,199,"El Milagro"]
[null,null,null,null,null,null,null,null,"285356",28,5,356,"Zurdo Dos"]
[null,null,null,null,null,null,null,null,"28760",28,7,60,"El Yucateco (La Presa)"]
[null,null,null,null,null,null,null,null,"287339",28,7,339,"Rodolfo Acevedo"]
[null,null,null,null,null,null,null,null,"287423",28,7,423,"Héctor Martínez"]
[null,null,null,null,null,null,null,null,"288167",28,8,167,"Loma Prieta"]
[null,null,null,null,null,null,null,null,"288460",28,8,460,"El Tulipán"]
[null,null,null,null,null,null,null,null,"281085",28,10,85,"Atenco"]
[null,null,null,null,null,null,null,null,"2810321",28,10,321,"La Almega (El Rey)"]
[null,null,null,null,null,null,null,null,"2811324",28,11,324,"La Caseta"]
[null,null,null,null,null,null,null,null,"2812217",28,12,217,"Los Pavitos"]
[null,null,null,null,null,null,null,null,"2812500",28,12,500,"El Mezquite"]
[null,null,null,null,null,null,null,null,"2812820",28,12,820,"La Leyenda"]
[null,null,null,null,null,null,null,null,"2812991",28,12,991,"Pozo Frío"]
[null,null,null,null,null,null,null,null,"28121216",28,12,1216,"El Bernal"]
[null,null,null,null,null,null,null,null,"2813180",28,13,180,"San Andrés"]
[null,null,null,null,null,null,null,null,"2813510",28,13,510,"Marcos Quevedo"]
[null,null,null,null,null,null,null,null,"2813606",28,13,606,"San Francisco"]
[null,null,null,null,null,null,null,null,"2814280",28,14,280,"La Joya"]
[null,null,null,null,null,null,null,null,"2814375",28,14,375,"Alpha Sesenta y Siete (Alpha 67 Número Dos)"]
[null,null,null,null,null,null,null,null,"281572",28,15,72,"Santos Díaz"]
[null,null,null,null,null,null,null,null,"2815383",28,15,383,"Santa Lucía"]
[null,null,null,null,null,null,null,null,"2816323",28,16,323,"El Repuesto"]
[null,null,null,null,null,null,null,null,"2816396",28,16,396,"Rodolfo Gómez Villanueva"]
[null,null,null,null,null,null,null,null,"281863",28,18,63,"Santa Alicia"]
[null,null,null,null,null,null,null,null,"2818187",28,18,187,"El Cóndor"]
[null,null,null,null,null,null,null,null,"2819375",28,19,375,"Santa Rita"]
[null,null,null,null,null,null,null,null,"2819545",28,19,545,"El Potrillo"]
[null,null,null,null,null,null,null,null,"2819695",28,19,695,"El Janambre"]
[null,null,null,null,null,null,null,null,"282172",28,21,72,"Lázaro Cárdenas Dos"]
[null,null,null,null,null,null,null,null,"2821418",28,21,418,"San Andrés"]
[null,null,null,null,null,null,null,null,"2821577",28,21,577,"José Guadalupe Chávez Niño (Quintero)"]
[null,null,null,null,null,null,null,null,"2821709",28,21,709,"Ninguno"]
[null,null,null,null,null,null,null,null,"2822191",28,22,191,"Mayab"]
[null,null,null,null,null,null,null,null,"2822563",28,22,563,"Los Corrales"]
[null,null,null,null,null,null,null,null,"2822897",28,22,897,"El Golfo"]
[null,null,null,null,null,null,null,null,"28221081",28,22,1081,"Álvaro García"]
[null,null,null,null,null,null,null,null,"28221158",28,22,1158,"La Faja de Oro"]
[null,null,null,null,null,null,null,null,"28221499",28,22,1499,"El Huizachal (José Luis Hernández)"]
[null,null,null,null,null,null,null,null,"28221640",28,22,1640,"Los Pinavetes"]
[null,null,null,null,null,null,null,null,"28221791",28,22,1791,"La Esperanza (Juan José Leal)"]
[null,null,null,null,null,null,null,null,"28221994",28,22,1994,"El Chapeño (La Loma)"]
[null,null,null,null,null,null,null,null,"2823159",28,23,159,"Santa Julia (El Barranco)"]
[null,null,null,null,null,null,null,null,"2823388",28,23,388,"Los Tres Potrillos"]
[null,null,null,null,null,null,null,null,"2824125",28,24,125,"Advento Guerra (Kilómetro 24)"]
[null,null,null,null,null,null,null,null,"2824300",28,24,300,"San Andrés (Juan Gilberto García Cavazos)"]
[null,null,null,null,null,null,null,null,"282617",28,26,17,"Valle Hermoso"]
[null,null,null,null,null,null,null,null,"2827456",28,27,456,"El Michoacano"]
[null,null,null,null,null,null,null,null,"28288",28,28,8,"El Jordán"]
[null,null,null,null,null,null,null,null,"2829129",28,29,129,"San Lorenzo el Grande"]
[null,null,null,null,null,null,null,null,"2829403",28,29,403,"Las Bugambilias"]
[null,null,null,null,null,null,null,null,"2830314",28,30,314,"Jorge Rodríguez"]
[null,null,null,null,null,null,null,null,"2832131",28,32,131,"La Encantada"]
[null,null,null,null,null,null,null,null,"2832287",28,32,287,"La Rosita"]
[null,null,null,null,null,null,null,null,"2832693",28,32,693,"Nueva Libertad Campesina Uno"]
[null,null,null,null,null,null,null,null,"2832799",28,32,799,"San Ángel"]
[null,null,null,null,null,null,null,null,"28321045",28,32,1045,"Venecia"]
[null,null,null,null,null,null,null,null,"28321196",28,32,1196,"Guelatao"]
[null,null,null,null,null,null,null,null,"2833367",28,33,367,"Veintiuno de Marzo"]
[null,null,null,null,null,null,null,null,"2833661",28,33,661,"Ciprés"]
[null,null,null,null,null,null,null,null,"2833877",28,33,877,"Cecilio Garcés L."]
[null,null,null,null,null,null,null,null,"28331041",28,33,1041,"El Ebanito"]
[null,null,null,null,null,null,null,null,"28331246",28,33,1246,"Casa del Canalero"]
[null,null,null,null,null,null,null,null,"28331381",28,33,1381,"Los Tres Manueles"]
[null,null,null,null,null,null,null,null,"2834198",28,34,198,"Lolo"]
[null,null,null,null,null,null,null,null,{"$f":"$J229379&$K229379&$L229379","v":"2834384"},28,34,384,"La Fortuna"]
[null,null,null,null,null,null,null,null,"2834463",28,34,463,"San Antonio"]
[null,null,null,null,null,null,null,null,"2835363",28,35,363,"Radiomonitora San Fernando"]
[null,null,null,null,null,null,null,null,"2835471",28,35,471,"Isla los Bules"]
[null,null,null,null,null,null,null,null,"2835813",28,35,813,"El Maco"]
[null,null,null,null,null,null,null,null,"28351036",28,35,1036,"El Sauz (Guillermo Sosa)"]
[null,null,null,null,null,null,null,null,"28351173",28,35,1173,"La Cruz"]
[null,null,null,null,null,null,null,null,"28351336",28,35,1336,"El Arrastre"]
[null,null,null,null,null,null,null,null,"2837168",28,37,168,"Plan de Guadalupe"]
[null,null,null,null,null,null,null,null,"2837311",28,37,311,"La Costa"]
[null,null,null,null,null,null,null,null,"2837586",28,37,586,"Las Mitras"]
[null,null,null,null,null,null,null,null,"2837707",28,37,707,"Los Cuitoles (Los Jaibos)"]
[null,null,null,null,null,null,null,null,"2837902",28,37,902,"El Huracán"]
[null,null,null,null,null,null,null,null,"2837987",28,37,987,"Soto la Marina (Valentín Reséndiz)"]
[null,null,null,null,null,null,null,null,"283914",28,39,14,"Cerro Mocho"]
[null,null,null,null,null,null,null,null,"2839181",28,39,181,"La Aguililla"]
[null,null,null,null,null,null,null,null,"2840294",28,40,294,"José Garay"]
[null,null,null,null,null,null,null,null,"2841104",28,41,104,"Nogales"]
[null,null,null,null,null,null,null,null,"2841209",28,41,209,"Los Herrera"]
[null,null,null,null,null,null,null,null,"2841397",28,41,397,"El Rucio (María Eugenia Benavides)"]
[null,null,null,null,null,null,null,null,{"$f":"$J232131&$K232131&$L232131","v":"2841677"},28,41,677,"La Purísima"]
[null,null,null,null,null,null,null,null,"2841747",28,41,747,"El Capote"]
[null,null,null,null,null,null,null,null,"284281",28,42,81,"Pascual Orozco"]
[null,null,null,null,null,null,null,null,"2842256",28,42,256,"Setenta y Siete"]
[null,null,null,null,null,null,null,null,"2843458",28,43,458,"Camaluco"]
[null,null,null,null,null,null,null,null,"29326",29,3,26,"Cerro de las Flores"]
[null,null,null,null,null,null,null,null,"2965",29,6,5,"Coecillos"]
[null,null,null,null,null,null,null,null,"296170",29,6,170,"Guadalupe Hernández"]
[null,null,null,null,null,null,null,null,"296216",29,6,216,"Gonzalo Cerón"]
[null,null,null,null,null,null,null,null,"2913165",29,13,165,"Fracción Soltepec (El Rincón)"]
[null,null,null,null,null,null,null,null,"291510",29,15,10,"La Ladera"]
[null,null,null,null,null,null,null,null,"292028",29,20,28,"La Reforma"]
[null,null,null,null,null,null,null,null,"292142",29,21,42,"Los Rosales"]
[null,null,null,null,null,null,null,null,"292828",29,28,28,"Tepochmetlatl"]
[null,null,null,null,null,null,null,null,"293092",29,30,92,"La Galera"]
[null,null,null,null,null,null,null,null,"293433",29,34,33,"Lagunilla"]
[null,null,null,null,null,null,null,null,"2934219",29,34,219,"El Limón"]
[null,null,null,null,null,null,null,null,"293719",29,37,19,"Barranca de San Nicolás"]
[null,null,null,null,null,null,null,null,"29453",29,45,3,"Cristóbal Badillo"]
[null,null,null,null,null,null,null,null,"30163",30,1,63,"Paraíso las Flores (La Vaquita)"]
[null,null,null,null,null,null,null,null,"30393",30,3,93,"El Nuevo Principio"]
[null,null,null,null,null,null,null,null,"303458",30,3,458,"La Palma"]
[null,null,null,null,null,null,null,null,"303552",30,3,552,"Glindelia Morales Sánchez"]
[null,null,null,null,null,null,null,null,"30441",30,4,41,"Rancho Nuevo Dos"]
[null,null,null,null,null,null,null,null,"304200",30,4,200,"La Cuactuza"]
[null,null,null,null,null,null,null,null,"304380",30,4,380,"José Luis Grajales"]
[null,null,null,null,null,null,null,null,"30966",30,9,66,"San Luis de los Reyes"]
[null,null,null,null,null,null,null,null,"309139",30,9,139,"Rancho Nuevo"]
[null,null,null,null,null,null,null,null,"301177",30,11,77,"Paso el Platanar"]
[null,null,null,null,null,null,null,null,"3011162",30,11,162,"El Martillo"]
[null,null,null,null,null,null,null,null,"3011323",30,11,323,"Los Pajarillos (Corcobado)"]
[null,null,null,null,null,null,null,null,"301343",30,13,43,"El Borrego"]
[null,null,null,null,null,null,null,null,"301420",30,14,20,"Colonia la Toma"]
[null,null,null,null,null,null,null,null,"3015146",30,15,146,"El Sufrido"]
[null,null,null,null,null,null,null,null,"3015279",30,15,279,"Severo Ambrocio"]
[null,null,null,null,null,null,null,null,"302046",30,20,46,"Ameyala"]
[null,null,null,null,null,null,null,null,"3023105",30,23,105,"Tepantepec"]
[null,null,null,null,null,null,null,null,"3023136",30,23,136,"Cerro del Águila"]
[null,null,null,null,null,null,null,null,"302729",30,27,29,"Coyoltzintla (Amolo)"]
[null,null,null,null,null,null,null,null,"30307",30,30,7,"La Cumbre"]
[null,null,null,null,null,null,null,null,"303294",30,32,94,"La Azufrera (El Río)"]
[null,null,null,null,null,null,null,null,"3032243",30,32,243,"El Seno"]
[null,null,null,null,null,null,null,null,"3032428",30,32,428,"Santa Martha"]
[null,null,null,null,null,null,null,null,"303311",30,33,11,"La Encantada"]
[null,null,null,null,null,null,null,null,"303537",30,35,37,"El Presidio"]
[null,null,null,null,null,null,null,null,"303896",30,38,96,"Rincón de Yeguas"]
[null,null,null,null,null,null,null,null,"3039152",30,39,152,"Rogelio Morales Gari"]
[null,null,null,null,null,null,null,null,"3040125",30,40,125,"Lote 3"]
[null,null,null,null,null,null,null,null,"304314",30,43,14,"Dos Caminos"]
[null,null,null,null,null,null,null,null,"3044149",30,44,149,"Fraccionamiento Electricistas"]
[null,null,null,null,null,null,null,null,"3045378",30,45,378,"Benito Juárez"]
[null,null,null,null,null,null,null,null,"304739",30,47,39,"Barrio Nuevo"]
[null,null,null,null,null,null,null,null,"3048202",30,48,202,"La Reserva"]
[null,null,null,null,null,null,null,null,"304970",30,49,70,"La Mojarrilla"]
[null,null,null,null,null,null,null,null,"3049269",30,49,269,"Mata Catarina"]
[null,null,null,null,null,null,null,null,"305321",30,53,21,"Puente Chico"]
[null,null,null,null,null,null,null,null,"305484",30,54,84,"Soyapa"]
[null,null,null,null,null,null,null,null,"305556",30,55,56,"Lázaro Cárdenas"]
[null,null,null,null,null,null,null,null,"305810",30,58,10,"Ahuimol Tzimpiasco"]
[null,null,null,null,null,null,null,null,"3058121",30,58,121,"Xihuicalco"]
[null,null,null,null,null,null,null,null,"3058298",30,58,298,"Huexoco"]
[null,null,null,null,null,null,null,null,"3059134",30,59,134,"El Jícaro"]
[null,null,null,null,null,null,null,null,{"$f":"$J240707&$K240707&$L240707","v":"306116"},30,61,16,"Nueva Esperanza (Cerro Nanchital)"]
[null,null,null,null,null,null,null,null,"3061230",30,61,230,"Fernando Gutiérrez Barrios"]
[null,null,null,null,null,null,null,null,"3061487",30,61,487,"El Paraíso"]
[null,null,null,null,null,null,null,null,"3061824",30,61,824,"La Ceiba"]
[null,null,null,null,null,null,null,null,"3061978",30,61,978,"La Jacaranda"]
[null,null,null,null,null,null,null,null,"30611031",30,61,1031,"La Puerta Roja"]
[null,null,null,null,null,null,null,null,"30611196",30,61,1196,"Las Piedritas"]
[null,null,null,null,null,null,null,null,"306361",30,63,61,"Comales"]
[null,null,null,null,null,null,null,null,"3065195",30,65,195,"Lomas de Providencia"]
[null,null,null,null,null,null,null,null,"3065236",30,65,236,"San Lorenzo"]
[null,null,null,null,null,null,null,null,"3069116",30,69,116,"San Carlos [Hotel]"]
[null,null,null,null,null,null,null,null,"3070199",30,70,199,"Las Gaviotas"]
[null,null,null,null,null,null,null,null,"307175",30,71,75,"San Lucas"]
[null,null,null,null,null,null,null,null,"3072118",30,72,118,"Colonia los Ángeles"]
[null,null,null,null,null,null,null,null,"3073189",30,73,189,"San Isidro"]
[null,null,null,null,null,null,null,null,"307734",30,77,34,"San Agustín de Guerrero"]
[null,null,null,null,null,null,null,null,"3077155",30,77,155,"El Crucero"]
[null,null,null,null,null,null,null,null,"3077464",30,77,464,"Poposoca"]
[null,null,null,null,null,null,null,null,"3077593",30,77,593,"Santa Tina"]
[null,null,null,null,null,null,null,null,"307841",30,78,41,"Los Ajos"]
[null,null,null,null,null,null,null,null,"3082115",30,82,115,"Los Balancines"]
[null,null,null,null,null,null,null,null,"3083149",30,83,149,"El Cristo"]
[null,null,null,null,null,null,null,null,"3084107",30,84,107,"El Jato (Esteban Ortiz)"]
[null,null,null,null,null,null,null,null,"308753",30,87,53,"Sabanetas (Los López)"]
[null,null,null,null,null,null,null,null,"308910",30,89,10,"Petapa"]
[null,null,null,null,null,null,null,null,"3089260",30,89,260,"El Amate"]
[null,null,null,null,null,null,null,null,"309113",30,91,13,"Colonia Nuevo Morelos"]
[null,null,null,null,null,null,null,null,"3091257",30,91,257,"Cristo Rey"]
[null,null,null,null,null,null,null,null,"3091411",30,91,411,"La Pirotezca"]
[null,null,null,null,null,null,null,null,"309277",30,92,77,"Rancho Alegre"]
[null,null,null,null,null,null,null,null,"3094157",30,94,157,"Juana Huerta (Tierra Colorada)"]
[null,null,null,null,null,null,null,null,"3094302",30,94,302,"Herminio Ortiz"]
[null,null,null,null,null,null,null,null,"3095113",30,95,113,"Potrero de Enmedio"]
[null,null,null,null,null,null,null,null,"30100115",30,100,115,"Paso Serrano"]
[null,null,null,null,null,null,null,null,"3010120",30,101,20,"Tepoxtlán"]
[null,null,null,null,null,null,null,null,"30102436",30,102,436,"San Ricardo"]
[null,null,null,null,null,null,null,null,"30102480",30,102,480,"Rancho del Riego"]
[null,null,null,null,null,null,null,null,{"$f":"$J245891&$K245891&$L245891","v":"30105221"},30,105,221,"Marcos Vélez Campos"]
[null,null,null,null,null,null,null,null,"30105261",30,105,261,"María Luisa"]
[null,null,null,null,null,null,null,null,"30108336",30,108,336,"Ampliación el Depósito"]
[null,null,null,null,null,null,null,null,"30108405",30,108,405,"Los Robles"]
[null,null,null,null,null,null,null,null,"30109135",30,109,135,"El Valle"]
[null,null,null,null,null,null,null,null,"30109296",30,109,296,"Cuatro Caminos"]
[null,null,null,null,null,null,null,null,"30111148",30,111,148,"Porfirio Acosta"]
[null,null,null,null,null,null,null,null,"3011248",30,112,48,"El Charco"]
[null,null,null,null,null,null,null,null,"3011421",30,114,21,"Rancho Nuevo"]
[null,null,null,null,null,null,null,null,"3011662",30,116,62,"El Rubí"]
[null,null,null,null,null,null,null,null,"3011725",30,117,25,"El Mirador"]
[null,null,null,null,null,null,null,null,"30121132",30,121,132,"Santa Rosa (Los Chotes)"]
[null,null,null,null,null,null,null,null,"30121243",30,121,243,"Dolor de Cabeza (Isla Juan A. Ramírez)"]
[null,null,null,null,null,null,null,null,"30121410",30,121,410,"El Pocito"]
[null,null,null,null,null,null,null,null,"30121620",30,121,620,"La Brisa"]
[null,null,null,null,null,null,null,null,"30121852",30,121,852,"San Salvador"]
[null,null,null,null,null,null,null,null,"30121941",30,121,941,"Arroyo Viejo"]
[null,null,null,null,null,null,null,null,"301211235",30,121,1235,"El Chote"]
[null,null,null,null,null,null,null,null,"301211299",30,121,1299,"El Jarillal"]
[null,null,null,null,null,null,null,null,"301211476",30,121,1476,"El Chalahuite"]
[null,null,null,null,null,null,null,null,"301211590",30,121,1590,"La Sierrita"]
[null,null,null,null,null,null,null,null,"3012344",30,123,44,"Ejido Miradores"]
[null,null,null,null,null,null,null,null,"30123290",30,123,290,"El Cuatro C"]
[null,null,null,null,null,null,null,null,"30123474",30,123,474,"La Cueva"]
[null,null,null,null,null,null,null,null,"30123750",30,123,750,"Güétamo"]
[null,null,null,null,null,null,null,null,"30123898",30,123,898,"Simón Torres de la Garza"]
[null,null,null,null,null,null,null,null,"301231056",30,123,1056,"Maurilio Escamilla"]
[null,null,null,null,null,null,null,null,"301231349",30,123,1349,"Leomar"]
[null,null,null,null,null,null,null,null,"301231384",30,123,1384,"Maranatha"]
[null,null,null,null,null,null,null,null,"30124180",30,124,180,"Finca el Juguete"]
[null,null,null,null,null,null,null,null,"30124288",30,124,288,"Finca la Huasteca"]
[null,null,null,null,null,null,null,null,"30124533",30,124,533,"El Tábano"]
[null,null,null,null,null,null,null,null,"3012579",30,125,79,"Rincón de la Soledad"]
[null,null,null,null,null,null,null,null,"3012636",30,126,36,"Rancho Nuevo"]
[null,null,null,null,null,null,null,null,"3012733",30,127,33,"El Minero"]
[null,null,null,null,null,null,null,null,"301296",30,129,6,"Monte Grande"]
[null,null,null,null,null,null,null,null,"30129182",30,129,182,"Rastrojos"]
[null,null,null,null,null,null,null,null,"30130224",30,130,224,"La Peña Blanca"]
[null,null,null,null,null,null,null,null,"3013131",30,131,31,"Chula Vista"]
[null,null,null,null,null,null,null,null,"3013315",30,133,15,"El Higuerón (La Aguadilla)"]
[null,null,null,null,null,null,null,null,"30134134",30,134,134,"La Palmira"]
[null,null,null,null,null,null,null,null,"3013710",30,137,10,"Cubanicuilco"]
[null,null,null,null,null,null,null,null,"3014184",30,141,84,"Texalpan de Abajo"]
[null,null,null,null,null,null,null,null,"30141286",30,141,286,"Ejido el Salto de Eyipantla"]
[null,null,null,null,null,null,null,null,"3014264",30,142,64,"Ejido la Soledad (Malota)"]
[null,null,null,null,null,null,null,null,"30142291",30,142,291,"Los Mangos"]
[null,null,null,null,null,null,null,null,"30142330",30,142,330,"Isabel Conde Ansures"]
[null,null,null,null,null,null,null,null,"30143180",30,143,180,"Los Xolos"]
[null,null,null,null,null,null,null,null,"30143279",30,143,279,"La Guadalupe"]
[null,null,null,null,null,null,null,null,"30144183",30,144,183,"Santa Bárbara"]
[null,null,null,null,null,null,null,null,"30144406",30,144,406,"La Ciénega"]
[null,null,null,null,null,null,null,null,"30145116",30,145,116,"La Candelaria"]
[null,null,null,null,null,null,null,null,"3014865",30,148,65,"Paso Don Roque"]
[null,null,null,null,null,null,null,null,{"$f":"$J253187&$K253187&$L253187","v":"30149112"},30,149,112,"El Zapote"]
[null,null,null,null,null,null,null,null,"30150106",30,150,106,"El Armadillo"]
[null,null,null,null,null,null,null,null,"3015176",30,151,76,"Benito Juárez Segundo"]
[null,null,null,null,null,null,null,null,"30151301",30,151,301,"Santa Juana"]
[null,null,null,null,null,null,null,null,"3015279",30,152,79,"Kilómetro Setenta y Nueve"]
[null,null,null,null,null,null,null,null,"30152251",30,152,251,"San Felipe"]
[null,null,null,null,null,null,null,null,"3015325",30,153,25,"San Francisco"]
[null,null,null,null,null,null,null,null,"30154231",30,154,231,"Las Vegas"]
[null,null,null,null,null,null,null,null,"3015584",30,155,84,"Cucharas"]
[null,null,null,null,null,null,null,null,"30155329",30,155,329,"Jopoy"]
[null,null,null,null,null,null,null,null,"30155533",30,155,533,"Las Conchitas (La Esperanza)"]
[null,null,null,null,null,null,null,null,"30155561",30,155,561,"Roberto San Román"]
[null,null,null,null,null,null,null,null,"30155729",30,155,729,"La Palma"]
[null,null,null,null,null,null,null,null,"3015781",30,157,81,"Las Camelias"]
[null,null,null,null,null,null,null,null,"30158179",30,158,179,"Río Verde"]
[null,null,null,null,null,null,null,null,"3015948",30,159,48,"Loma Chica"]
[null,null,null,null,null,null,null,null,"3016066",30,160,66,"Jardín Viejo"]
[null,null,null,null,null,null,null,null,"30160330",30,160,330,"Santa Teresa"]
[null,null,null,null,null,null,null,null,"30160471",30,160,471,"El Cerro"]
[null,null,null,null,null,null,null,null,"30161119",30,161,119,"El Carrizal"]
[null,null,null,null,null,null,null,null,"30161302",30,161,302,"San Andrés"]
[null,null,null,null,null,null,null,null,"30161598",30,161,598,"San Miguel"]
[null,null,null,null,null,null,null,null,"30161751",30,161,751,"Santa Aurelia"]
[null,null,null,null,null,null,null,null,"30161917",30,161,917,"Comvicsa [Gasera]"]
[null,null,null,null,null,null,null,null,"3016434",30,164,34,"El Trapiche"]
[null,null,null,null,null,null,null,null,"3016837",30,168,37,"Ocotzocotla"]
[null,null,null,null,null,null,null,null,"30169168",30,169,168,"El Crucero"]
[null,null,null,null,null,null,null,null,"3017222",30,172,22,"Villa Alta"]
[null,null,null,null,null,null,null,null,"3017333",30,173,33,"Rancho Alegre"]
[null,null,null,null,null,null,null,null,"30173148",30,173,148,"Francisco Villa Segunda Fracción"]
[null,null,null,null,null,null,null,null,"30174109",30,174,109,"San José Tamazulapa"]
[null,null,null,null,null,null,null,null,"30174288",30,174,288,"El Bolso de los Arano"]
[null,null,null,null,null,null,null,null,"30174514",30,174,514,"Loma de los Pichones"]
[null,null,null,null,null,null,null,null,"30174670",30,174,670,"Mata Maguey"]
[null,null,null,null,null,null,null,null,"30175133",30,175,133,"Loma Prieta"]
[null,null,null,null,null,null,null,null,"30175315",30,175,315,"Zapote Hueco"]
[null,null,null,null,null,null,null,null,"30175434",30,175,434,"Las Vegas"]
[null,null,null,null,null,null,null,null,"3017730",30,177,30,"El Rodeo"]
[null,null,null,null,null,null,null,null,"3018011",30,180,11,"El Naranjal"]
[null,null,null,null,null,null,null,null,"301812",30,181,2,"El Ahijadero"]
[null,null,null,null,null,null,null,null,"30181309",30,181,309,"La Galera"]
[null,null,null,null,null,null,null,null,"30181323",30,181,323,"El Picho"]
[null,null,null,null,null,null,null,null,"3018322",30,183,22,"Vega Chica"]
[null,null,null,null,null,null,null,null,"3018729",30,187,29,"Cuatro Encinos"]
[null,null,null,null,null,null,null,null,"30189242",30,189,242,"Arroyo los Sapos"]
[null,null,null,null,null,null,null,null,"30189360",30,189,360,"Rancho David"]
[null,null,null,null,null,null,null,null,"30189630",30,189,630,"El More"]
[null,null,null,null,null,null,null,null,"30189719",30,189,719,"Adolfo López Mateos [Central Termoeléctrica]"]
[null,null,null,null,null,null,null,null,"30192174",30,192,174,"El Cafetal"]
[null,null,null,null,null,null,null,null,"30193141",30,193,141,"Las Brisas"]
[null,null,null,null,null,null,null,null,"3019712",30,197,12,"Loma de San Agustín"]
[null,null,null,null,null,null,null,null,"3019880",30,198,80,"La Planada"]
[null,null,null,null,null,null,null,null,"3020118",30,201,18,"Emiliano Zapata"]
[null,null,null,null,null,null,null,null,"3020237",30,202,37,"El Fortín"]
[null,null,null,null,null,null,null,null,"3020432",30,204,32,"Santa María"]
[null,null,null,null,null,null,null,null,"30205138",30,205,138,"Vuelta del Tigre"]
[null,null,null,null,null,null,null,null,"3020710",30,207,10,"Putalzingo"]
[null,null,null,null,null,null,null,null,"3020771",30,207,71,"Loma San Juan"]
[null,null,null,null,null,null,null,null,"30207382",30,207,382,"Santa Paulina (Los Dos Hermanos)"]
[null,null,null,null,null,null,null,null,"30207445",30,207,445,"Rincón de Manzanila"]
[null,null,null,null,null,null,null,null,"3021077",30,210,77,"Jorge L. Tamayo"]
[null,null,null,null,null,null,null,null,"302117",30,211,7,"Buenos Aires"]
[null,null,null,null,null,null,null,null,{"$f":"$J261763&$K261763&$L261763","v":"3021214"},30,212,14,"Boca del Monte"]
[null,null,null,null,null,null,null,null,"31211",31,2,11,"Ticopó"]
[null,null,null,null,null,null,null,null,"31464",31,4,64,"La Esperanza"]
[null,null,null,null,null,null,null,null,"31641",31,6,41,"Haydzonot"]
[null,null,null,null,null,null,null,null,"316341",31,6,341,"La Rosita"]
[null,null,null,null,null,null,null,null,"316428",31,6,428,"Santa Isabel"]
[null,null,null,null,null,null,null,null,"31840",31,8,40,"San Fernando Tepich"]
[null,null,null,null,null,null,null,null,"31942",31,9,42,"Ninguno"]
[null,null,null,null,null,null,null,null,"311283",31,12,83,"Santa Pilar"]
[null,null,null,null,null,null,null,null,"311374",31,13,74,"San Juan"]
[null,null,null,null,null,null,null,null,"311745",31,17,45,"Rancho Nuevo"]
[null,null,null,null,null,null,null,null,"3119379",31,19,379,"San Javier"]
[null,null,null,null,null,null,null,null,"3119586",31,19,586,"La Esperanza"]
[null,null,null,null,null,null,null,null,"312530",31,25,30,"Jesús María Uno"]
[null,null,null,null,null,null,null,null,"31278",31,27,8,"El Porvenir"]
[null,null,null,null,null,null,null,null,"312921",31,29,21,"Laach"]
[null,null,null,null,null,null,null,null,"312968",31,29,68,"San Roque"]
[null,null,null,null,null,null,null,null,"313162",31,31,62,"Ninguno"]
[null,null,null,null,null,null,null,null,"3132152",31,32,152,"Ninguno"]
[null,null,null,null,null,null,null,null,"3132178",31,32,178,"La Esperanza"]
[null,null,null,null,null,null,null,null,"313878",31,38,78,"San Patricio"]
[null,null,null,null,null,null,null,null,"314038",31,40,38,"San Antonio"]
[null,null,null,null,null,null,null,null,"3141141",31,41,141,"Las Garzas"]
[null,null,null,null,null,null,null,null,"314222",31,42,22,"San Román"]
[null,null,null,null,null,null,null,null,"314537",31,45,37,"San Miguel"]
[null,null,null,null,null,null,null,null,"3148105",31,48,105,"Lol Pedz Kim Kí"]
[null,null,null,null,null,null,null,null,"3148172",31,48,172,"Chen Pollo 1"]
[null,null,null,null,null,null,null,null,"3150561",31,50,561,"Villa Paraíso"]
[null,null,null,null,null,null,null,null,"3150736",31,50,736,"Ninguno"]
[null,null,null,null,null,null,null,null,"3150918",31,50,918,"Uayamón [Quinta]"]
[null,null,null,null,null,null,null,null,"315246",31,52,46,"Rocío Uno"]
[null,null,null,null,null,null,null,null,"315310",31,53,10,"Los Ángeles"]
[null,null,null,null,null,null,null,null,"3156105",31,56,105,"Kú Tzutzuy"]
[null,null,null,null,null,null,null,null,"3157303",31,57,303,"Chetumal"]
[null,null,null,null,null,null,null,null,"3157436",31,57,436,"La Fe"]
[null,null,null,null,null,null,null,null,"315863",31,58,63,"Tzubil"]
[null,null,null,null,null,null,null,null,"3158216",31,58,216,"Pueblo Nuevo"]
[null,null,null,null,null,null,null,null,"315989",31,59,89,"Yucmich"]
[null,null,null,null,null,null,null,null,"3161129",31,61,129,"San Carlos"]
[null,null,null,null,null,null,null,null,"316561",31,65,61,"Orizaba"]
[null,null,null,null,null,null,null,null,"3165257",31,65,257,"San Felipe"]
[null,null,null,null,null,null,null,null,"316837",31,68,37,"Secundaria General Número Cuarenta y Nueve"]
[null,null,null,null,null,null,null,null,"3170166",31,70,166,"Santa Cecilia"]
[null,null,null,null,null,null,null,null,"3170233",31,70,233,"Dzibi-Ac"]
[null,null,null,null,null,null,null,null,"31711",31,71,1,"Sudzal"]
[null,null,null,null,null,null,null,null,"317561",31,75,61,"Chacsinkín"]
[null,null,null,null,null,null,null,null,"317654",31,76,54,"San José"]
[null,null,null,null,null,null,null,null,"3179179",31,79,179,"Chulté"]
[null,null,null,null,null,null,null,null,"3179330",31,79,330,"Felipe Carrillo Puerto"]
[null,null,null,null,null,null,null,null,"3180114",31,80,114,"Chakil"]
[null,null,null,null,null,null,null,null,"318494",31,84,94,"Santa Isabel Dos"]
[null,null,null,null,null,null,null,null,"3185366",31,85,366,"Sosquil Chac"]
[null,null,null,null,null,null,null,null,"31871",31,87,1,"Tetiz"]
[null,null,null,null,null,null,null,null,"3189132",31,89,132,"Chaytania [SRI]"]
[null,null,null,null,null,null,null,null,"31929",31,92,9,"Poop"]
[null,null,null,null,null,null,null,null,"319356",31,93,56,"Santa María Dzonot"]
[null,null,null,null,null,null,null,null,"319623",31,96,23,"El Edén (Yaxic)"]
[null,null,null,null,null,null,null,null,"3196182",31,96,182,"San Antonio Tres"]
[null,null,null,null,null,null,null,null,"3196566",31,96,566,"Sagrado Corazón"]
[null,null,null,null,null,null,null,null,"3196737",31,96,737,"San Luis (San Luis Número Uno)"]
[null,null,null,null,null,null,null,null,"3196976",31,96,976,"San Isidro"]
[null,null,null,null,null,null,null,null,"31961220",31,96,1220,"Lerma"]
[null,null,null,null,null,null,null,null,"31961411",31,96,1411,"Tumbenkuxtal San David Chumbec"]
[null,null,null,null,null,null,null,null,"31961554",31,96,1554,"El Cerrito"]
[null,null,null,null,null,null,null,null,"31961779",31,96,1779,"San Leonardo"]
[null,null,null,null,null,null,null,null,"31961860",31,96,1860,"Ninguno"]
[null,null,null,null,null,null,null,null,"31962091",31,96,2091,"Santa Fe"]
[null,null,null,null,null,null,null,null,"3197103",31,97,103,"San Gregorio"]
[null,null,null,null,null,null,null,null,"3198208",31,98,208,"Guadalupe"]
[null,null,null,null,null,null,null,null,"3110142",31,101,42,"Santa Rita"]
[null,null,null,null,null,null,null,null,"31101209",31,101,209,"Provi Purina"]
[null,null,null,null,null,null,null,null,"31102299",31,102,299,"Chan Poop"]
[null,null,null,null,null,null,null,null,"31102371",31,102,371,"San Cristóbal"]
[null,null,null,null,null,null,null,null,"31102578",31,102,578,"Takú"]
[null,null,null,null,null,null,null,null,"31102803",31,102,803,"Ninguno"]
[null,null,null,null,null,null,null,null,"31104147",31,104,147,"San Juan"]
[null,null,null,null,null,null,null,null,"32116",32,1,16,"Cerro Alto (Rancho de la Soledad)"]
[null,null,null,null,null,null,null,null,{"$f":"$J272387&$K272387&$L272387","v":"32238"},32,2,38,"Agua Tinta de Arriba"]
[null,null,null,null,null,null,null,null,"325184",32,5,184,"José Tinajero Márquez"]
[null,null,null,null,null,null,null,null,"3288",32,8,8,"La Palma"]
[null,null,null,null,null,null,null,null,"32964",32,9,64,"Dos Pinos"]
[null,null,null,null,null,null,null,null,"3210213",32,10,213,"San José del Río"]
[null,null,null,null,null,null,null,null,"3210238",32,10,238,"San Miguel de Sosa"]
[null,null,null,null,null,null,null,null,"3210704",32,10,704,"Santa Isabel"]
[null,null,null,null,null,null,null,null,"3210950",32,10,950,"El Tanque"]
[null,null,null,null,null,null,null,null,"32101004",32,10,1004,"Perros Bravos"]
[null,null,null,null,null,null,null,null,"32101291",32,10,1291,"El Arenal"]
[null,null,null,null,null,null,null,null,"321158",32,11,58,"Vara Dulce"]
[null,null,null,null,null,null,null,null,"321428",32,14,28,"Mérida Cuatro"]
[null,null,null,null,null,null,null,null,"321518",32,15,18,"Emiliano Zapata (El Mayate)"]
[null,null,null,null,null,null,null,null,{"$f":"$J274243&$K274243&$L274243","v":"321772"},32,17,72,"Laguna de Arriba"]
[null,null,null,null,null,null,null,null,"3217347",32,17,347,"San Antonio [Rancho]"]
[null,null,null,null,null,null,null,null,"3218110",32,18,110,"Barranca de la Ascensión"]
[null,null,null,null,null,null,null,null,"3219362",32,19,362,"Los Saucos"]
[null,null,null,null,null,null,null,null,"3220138",32,20,138,"Manga las Burras"]
[null,null,null,null,null,null,null,null,"3220240",32,20,240,"El Bajío (Dagoberto Acuña)"]
[null,null,null,null,null,null,null,null,"322230",32,22,30,"Cerro de Elena"]
[null,null,null,null,null,null,null,null,"3224111",32,24,111,"La Puerta de la Mesa (María Santos Cruz R.)"]
[null,null,null,null,null,null,null,null,"322612",32,26,12,"El Calabazal"]
[null,null,null,null,null,null,null,null,"3226258",32,26,258,"Rancho Ricardo (Tanque las Palomas)"]
[null,null,null,null,null,null,null,null,"3226400",32,26,400,"El Trigo"]
[null,null,null,null,null,null,null,null,"3228105",32,28,105,"El Ranchito"]
[null,null,null,null,null,null,null,null,"322993",32,29,93,"Laguna el Muerto"]
[null,null,null,null,null,null,null,null,"3231120",32,31,120,"El Tequesquite"]
[null,null,null,null,null,null,null,null,"3231307",32,31,307,"El Montecillo del Durazno"]
[null,null,null,null,null,null,null,null,"323330",32,33,30,"Las Juntas"]
[null,null,null,null,null,null,null,null,"3234154",32,34,154,"El Rayo"]
[null,null,null,null,null,null,null,null,"3234314",32,34,314,"El Salto"]
[null,null,null,null,null,null,null,null,"3236174",32,36,174,"Santa Rosa"]
[null,null,null,null,null,null,null,null,"3237217",32,37,217,"Los Pinos"]
[null,null,null,null,null,null,null,null,"3238216",32,38,216,"La Vaquita"]
[null,null,null,null,null,null,null,null,"3238423",32,38,423,"Rancho de los Cruces"]
[null,null,null,null,null,null,null,null,"323980",32,39,80,"Bajío de las Culatas"]
[null,null,null,null,null,null,null,null,"324091",32,40,91,"La Pipianera (José González)"]
[null,null,null,null,null,null,null,null,"324145",32,41,45,"Cerro Gordo"]
[null,null,null,null,null,null,null,null,"3242283",32,42,283,"Los Ratones"]
[null,null,null,null,null,null,null,null,"3242356",32,42,356,"Charco Morado"]
[null,null,null,null,null,null,null,null,"324645",32,46,45,"San Joaquín"]
[null,null,null,null,null,null,null,null,"3247207",32,47,207,"Rancho del Padre"]
[null,null,null,null,null,null,null,null,"324922",32,49,22,"Calvillo"]
[null,null,null,null,null,null,null,null,"3249167",32,49,167,"El Carrizal"]
[null,null,null,null,null,null,null,null,"3249460",32,49,460,"Barbechitos"]
[null,null,null,null,null,null,null,null,"325024",32,50,24,"Las Huertas de Amaya"]
[null,null,null,null,null,null,null,null,"3251119",32,51,119,"El Berrendo"]
[null,null,null,null,null,null,null,null,"3251513",32,51,513,"San Martín"]
[null,null,null,null,null,null,null,null,"32525",32,52,5,"El Bautismo"]
[null,null,null,null,null,null,null,null,"32534",32,53,4,"Bajío de San Nicolás (San Nicolás)"]
[null,null,null,null,null,null,null,null,"32536",32,53,6,"El Carmen"]
[null,null,null,null,null,null,null,null,"32538",32,53,8,"El Centenario"]
[null,null,null,null,null,null,null,null,"32539",32,53,9,"Cerrito del Agua"]
[null,null,null,null,null,null,null,null,"325310",32,53,10,"Cerro de San Miguel"]
[null,null,null,null,null,null,null,null,"325311",32,53,11,"Zumpango (Colonia Hidalgo)"]
[null,null,null,null,null,null,null,null,"325315",32,53,15,"Estancia de Ánimas"]
[null,null,null,null,null,null,null,null,"325316",32,53,16,"Las Flores [Rancho]"]
[null,null,null,null,null,null,null,null,"325318",32,53,18,"Laguna de Jaramillo (Jaramillo)"]
[null,null,null,null,null,null,null,null,"325320",32,53,20,"La Mesita Redonda"]
[null,null,null,null,null,null,null,null,"325322",32,53,22,"Los Pirules"]
[null,null,null,null,null,null,null,null,"325323",32,53,23,"El Porvenir"]
[null,null,null,null,null,null,null,null,{"$f":"$J279171&$K279171&$L279171","v":"325324"},32,53,24,"La Primavera"]
[null,null,null,null,null,null,null,null,"325325",32,53,25,"El Puerto"]
[null,null,null,null,null,null,null,null,"325326",32,53,26,"Laguna del Quelite"]
[null,null,null,null,null,null,null,null,"325327",32,53,27,"El Refugio del Zacate"]
[null,null,null,null,null,null,null,null,"325328",32,53,28,"San Antonio de las Huertas"]
[null,null,null,null,null,null,null,null,"325330",32,53,30,"San Dionisio"]
[null,null,null,null,null,null,null,null,"325331",32,53,31,"San Francisco del Picacho (El Picacho)"]
[null,null,null,null,null,null,null,null,"325332",32,53,32,"San José"]
[null,null,null,null,null,null,null,null,"325334",32,53,34,"San Martín"]
[null,null,null,null,null,null,null,null,"325335",32,53,35,"San Miguel el Grande"]
[null,null,null,null,null,null,null,null,"325336",32,53,36,"Santa Ana"]
[null,null,null,null,null,null,null,null,"325338",32,53,38,"Las Coras"]
[null,null,null,null,null,null,null,null,"325339",32,53,39,"Santa Cruz del Puerto (El Puerto)"]
[null,null,null,null,null,null,null,null,"325343",32,53,43,"San Leonardo"]
[null,null,null,null,null,null,null,null,"325347",32,53,47,"Nuevo Hawai"]
[null,null,null,null,null,null,null,null,"325348",32,53,48,"La Herradura"]
[null,null,null,null,null,null,null,null,"325349",32,53,49,"Mesa el Muerto"]
[null,null,null,null,null,null,null,null,"325353",32,53,53,"La Blanquita"]
[null,null,null,null,null,null,null,null,"325357",32,53,57,"Rancho Trejo"]
[null,null,null,null,null,null,null,null,"325358",32,53,58,"Colonia los Rivera (El Palmarejo)"]
[null,null,null,null,null,null,null,null,"325359",32,53,59,"Lomas de Talpan"]
[null,null,null,null,null,null,null,null,"325360",32,53,60,"Colonia Aguiña"]
[null,null,null,null,null,null,null,null,"325361",32,53,61,"Rancho Guadalupe"]
[null,null,null,null,null,null,null,null,"325362",32,53,62,"De Guadalupe [Granja]"]
[null,null,null,null,null,null,null,null,"325367",32,53,67,"Colonia Diez de Noviembre (El Campamento)"]
[null,null,null,null,null,null,null,null,"325370",32,53,70,"El Cortijo"]
[null,null,null,null,null,null,null,null,"325371",32,53,71,"Los Arquitos"]
[null,null,null,null,null,null,null,null,"325372",32,53,72,"La Miseria"]
[null,null,null,null,null,null,null,null,"325374",32,53,74,"El Papalote"]
[null,null,null,null,null,null,null,null,"325376",32,53,76,"San Juan de la Cruz"]
[null,null,null,null,null,null,null,null,"325377",32,53,77,"La Soledad"]
[null,null,null,null,null,null,null,null,"325381",32,53,81,"San Martín"]
[null,null,null,null,null,null,null,null,"325383",32,53,83,"San Martín"]
[null,null,null,null,null,null,null,null,"325385",32,53,85,"San Lorenzo"]
[null,null,null,null,null,null,null,null,"325386",32,53,86,"Rancho Odelegario"]
[null,null,null,null,null,null,null,null,"325387",32,53,87,"Los Alicantes Dos"]
[null,null,null,null,null,null,null,null,"325388",32,53,88,"Los Laureles (Mariano Coronel)"]
[null,null,null,null,null,null,null,null,"325389",32,53,89,"El Chaparral"]
[null,null,null,null,null,null,null,null,"325390",32,53,90,"San Francisco"]
[null,null,null,null,null,null,null,null,"325391",32,53,91,"Laguna Grande"]
[null,null,null,null,null,null,null,null,"325392",32,53,92,"El Indio Triste"]
[null,null,null,null,null,null,null,null,"325394",32,53,94,"La Escalera"]
[null,null,null,null,null,null,null,null,"325397",32,53,97,"El Magueycito"]
[null,null,null,null,null,null,null,null,"325399",32,53,99,"Los García"]
[null,null,null,null,null,null,null,null,"3253107",32,53,107,"Las Aguilillas"]
[null,null,null,null,null,null,null,null,"3253108",32,53,108,"Cecilio Báez"]
[null,null,null,null,null,null,null,null,"3253109",32,53,109,"San Miguel (Álvaro Rodríguez Báez) [Granja]"]
[null,null,null,null,null,null,null,null,"3253110",32,53,110,"La Lagunita"]
[null,null,null,null,null,null,null,null,"3253111",32,53,111,"La Peinada"]
[null,null,null,null,null,null,null,null,"3253112",32,53,112,"El Cortijito [Rancho]"]
[null,null,null,null,null,null,null,null,"3253113",32,53,113,"El Progreso [Rancho]"]
[null,null,null,null,null,null,null,null,"3253114",32,53,114,"La Quineña [Rancho]"]
[null,null,null,null,null,null,null,null,"3253115",32,53,115,"La Riqueza [Rancho]"]
[null,null,null,null,null,null,null,null,"3253116",32,53,116,"El Coloradito (Donaciano Rodríguez)"]
[null,null,null,null,null,null,null,null,"3253117",32,53,117,"Los Cuates (Nuevo San José)"]
[null,null,null,null,null,null,null,null,"3253118",32,53,118,"El Bajío (Jaime Hernández Vázquez)"]
[null,null,null,null,null,null,null,null,"3253119",32,53,119,"Rancho Suavecito (Minera Teck)"]
[null,null,null,null,null,null,null,null,"3253120",32,53,120,"La Villita"]
[null,null,null,null,null,null,null,null,"3253121",32,53,121,"Las Cotorras"]
[null,null,null,null,null,null,null,null,"3253123",32,53,123,"San Ángel del Río"]
[null,null,null,null,null,null,null,null,"32541",32,54,1,"Villa Hidalgo"]
[null,null,null,null,null,null,null,null,"32543",32,54,3,"La Ballena"]
[null,null,null,null,null,null,null,null,"32544",32,54,4,"Zona Benito Juárez (Benito Juárez)"]
[null,null,null,null,null,null,null,null,"32545",32,54,5,"Caballerías (Caballería Villa Hidalgo)"]
[null,null,null,null,null,null,null,null,{"$f":"$J279235&$K279235&$L279235","v":"32546"},32,54,6,"La Cerca (Can Can)"]
[null,null,null,null,null,null,null,null,"32547",32,54,7,"Canoas"]
[null,null,null,null,null,null,null,null,"32548",32,54,8,"Cerro Prieto"]
[null,null,null,null,null,null,null,null,"32549",32,54,9,"El Charquillo"]
[null,null,null,null,null,null,null,null,"325410",32,54,10,"Los Dávila"]
[null,null,null,null,null,null,null,null,"325413",32,54,13,"Colonia José María Morelos"]
[null,null,null,null,null,null,null,null,"325415",32,54,15,"La Lagunita"]
[null,null,null,null,null,null,null,null,"325416",32,54,16,"El Maguey"]
[null,null,null,null,null,null,null,null,"325417",32,54,17,"La Prieta"]
[null,null,null,null,null,null,null,null,"325418",32,54,18,"Monte Grande"]
[null,null,null,null,null,null,null,null,"325419",32,54,19,"El Fraile"]
[null,null,null,null,null,null,null,null,"325424",32,54,24,"Presa de Valenzuela (Laguna de Valenzuela)"]
[null,null,null,null,null,null,null,null,"325425",32,54,25,"Providencia"]
[null,null,null,null,null,null,null,null,"325427",32,54,27,"Purísima del Rucio (El Rucio)"]
[null,null,null,null,null,null,null,null,"325428",32,54,28,"Rancho Nuevo (Rancho Viejo)"]
[null,null,null,null,null,null,null,null,"325429",32,54,29,"El Refugio"]
[null,null,null,null,null,null,null,null,"325430",32,54,30,"Los Reyes"]
[null,null,null,null,null,null,null,null,"325431",32,54,31,"El Salitre"]
[null,null,null,null,null,null,null,null,"325432",32,54,32,"San Agustín"]
[null,null,null,null,null,null,null,null,"325433",32,54,33,"San Antonio de la Cruz"]
[null,null,null,null,null,null,null,null,"325434",32,54,34,"San José de Gracia"]
[null,null,null,null,null,null,null,null,"325436",32,54,36,"Santa Rosa"]
[null,null,null,null,null,null,null,null,"325438",32,54,38,"El Sotolillo"]
[null,null,null,null,null,null,null,null,"325439",32,54,39,"El Tepetate"]
[null,null,null,null,null,null,null,null,"325443",32,54,43,"El Verde (El Socorro)"]
[null,null,null,null,null,null,null,null,"325444",32,54,44,"Fraccionamiento Victoria (La Victoria)"]
[null,null,null,null,null,null,null,null,"325445",32,54,45,"El Colorado"]
[null,null,null,null,null,null,null,null,"325446",32,54,46,"Las Huertas"]
[null,null,null,null,null,null,null,null,"325449",32,54,49,"El Conejo"]
[null,null,null,null,null,null,null,null,"325450",32,54,50,"Pozos de Guadalupe"]
[null,null,null,null,null,null,null,null,"325451",32,54,51,"El Puerto"]
[null,null,null,null,null,null,null,null,"325454",32,54,54,"Los López (El Pico)"]
[null,null,null,null,null,null,null,null,"325456",32,54,56,"Las Manguitas"]
[null,null,null,null,null,null,null,null,"325457",32,54,57,"Los Tres Cerritos (Los Muñoz)"]
[null,null,null,null,null,null,null,null,"325458",32,54,58,"El Naranjo"]
[null,null,null,null,null,null,null,null,"325464",32,54,64,"El Saucito"]
[null,null,null,null,null,null,null,null,"325465",32,54,65,"Las Palmas (Rogelio Morales)"]
[null,null,null,null,null,null,null,null,"325467",32,54,67,"Los López (Isabel López) [Rancho]"]
[null,null,null,null,null,null,null,null,"325468",32,54,68,"San José (El Arenal) [Rancho]"]
[null,null,null,null,null,null,null,null,"325469",32,54,69,"Las Azucenas (Antonio López)"]
[null,null,null,null,null,null,null,null,"325472",32,54,72,"La Hondita"]
[null,null,null,null,null,null,null,null,"325474",32,54,74,"San Antonio del Bajío (Puerto de Palmas)"]
[null,null,null,null,null,null,null,null,"325479",32,54,79,"Rancho Erika"]
[null,null,null,null,null,null,null,null,"325483",32,54,83,"El Manzano"]
[null,null,null,null,null,null,null,null,"325484",32,54,84,"Nuevo Ideal"]
[null,null,null,null,null,null,null,null,"325485",32,54,85,"Ojo de Agua de la Presa"]
[null,null,null,null,null,null,null,null,"325487",32,54,87,"El Paso"]
[null,null,null,null,null,null,null,null,"325488",32,54,88,"Pozo las Palmas"]
[null,null,null,null,null,null,null,null,"325490",32,54,90,"Sagrado Corazón"]
[null,null,null,null,null,null,null,null,"325491",32,54,91,"San Antonio"]
[null,null,null,null,null,null,null,null,"325492",32,54,92,"Los Saucitos"]
[null,null,null,null,null,null,null,null,"325493",32,54,93,"Jesús Saucedo"]
[null,null,null,null,null,null,null,null,"325494",32,54,94,"Miguel Amador"]
[null,null,null,null,null,null,null,null,"325495",32,54,95,"El Tulipán (Pascual de la Rosa)"]
[null,null,null,null,null,null,null,null,"325496",32,54,96,"Guadalupe (Jesús Salas Delgado) [Viñedos]"]
[null,null,null,null,null,null,null,null,"325497",32,54,97,"La Milpa (Esteban Mares Molina)"]
[null,null,null,null,null,null,null,null,"325498",32,54,98,"El Santo Niño (Antonio Torres)"]
[null,null,null,null,null,null,null,null,"325499",32,54,99,"Colonia Juárez"]
[null,null,null,null,null,null,null,null,"3254100",32,54,100,"San Gabriel"]
[null,null,null,null,null,null,null,null,"3254103",32,54,103,"El Nivel"]
[null,null,null,null,null,null,null,null,"3254104",32,54,104,"El Mocho [Rancho]"]
[null,null,null,null,null,null,null,null,"3254105",32,54,105,"Villanueva"]
[null,null,null,null,null,null,null,null,"3254106",32,54,106,"Santa Rita"]
[null,null,null,null,null,null,null,null,"32551",32,55,1,"Villanueva"]
[null,null,null,null,null,null,null,null,{"$f":"$J279299&$K279299&$L279299","v":"32552"},32,55,2,"Adjuntas del Refugio (Las Adjuntas)"]
[null,null,null,null,null,null,null,null,"32553",32,55,3,"Colonia Adolfo López Mateos (Majadas)"]
[null,null,null,null,null,null,null,null,"32554",32,55,4,"Atitanac"]
[null,null,null,null,null,null,null,null,"32556",32,55,6,"Colonia Benito Juárez (San Ignacio)"]
[null,null,null,null,null,null,null,null,"32557",32,55,7,"Boca de Rivera"]
[null,null,null,null,null,null,null,null,"32558",32,55,8,"Colonia del Carmen (La Boquilla)"]
[null,null,null,null,null,null,null,null,"32559",32,55,9,"Canalejas"]
[null,null,null,null,null,null,null,null,"325510",32,55,10,"Las Canteritas"]
[null,null,null,null,null,null,null,null,"325511",32,55,11,"Los Caños"]
[null,null,null,null,null,null,null,null,"325513",32,55,13,"El Carcelero"]
[null,null,null,null,null,null,null,null,"325514",32,55,14,"La Carroza"]
[null,null,null,null,null,null,null,null,"325516",32,55,16,"El Colorado"]
[null,null,null,null,null,null,null,null,"325517",32,55,17,"El Cordón"]
[null,null,null,null,null,null,null,null,"325519",32,55,19,"Guadalupe de Chicomostoc (Chicomostoc)"]
[null,null,null,null,null,null,null,null,"325520",32,55,20,"Colonia Emiliano Zapata (El Jaral)"]
[null,null,null,null,null,null,null,null,"325521",32,55,21,"La Encarnación"]
[null,null,null,null,null,null,null,null,"325522",32,55,22,"Colonia Felipe Ángeles"]
[null,null,null,null,null,null,null,null,"325523",32,55,23,"Francisco I. Madero (Santa Rosa)"]
[null,null,null,null,null,null,null,null,"325525",32,55,25,"El Fuerte"]
[null,null,null,null,null,null,null,null,"325527",32,55,27,"El Gato"]
[null,null,null,null,null,null,null,null,"325528",32,55,28,"Las Golondrinas"]
[null,null,null,null,null,null,null,null,"325529",32,55,29,"Colonia Gustavo Díaz Ordaz (Tortugas)"]
[null,null,null,null,null,null,null,null,"325532",32,55,32,"El Jagüey"]
[null,null,null,null,null,null,null,null,"325533",32,55,33,"Japalaca"]
[null,null,null,null,null,null,null,null,"325534",32,55,34,"Juana Antonia"]
[null,null,null,null,null,null,null,null,"325535",32,55,35,"Juan Miguel"]
[null,null,null,null,null,null,null,null,"325536",32,55,36,"La Junta de los Ríos"]
[null,null,null,null,null,null,null,null,"325537",32,55,37,"Laguna de las Rosas (La Laguna)"]
[null,null,null,null,null,null,null,null,"325538",32,55,38,"Laguna del Carretero"]
[null,null,null,null,null,null,null,null,"325539",32,55,39,"Colonia Lázaro Cárdenas"]
[null,null,null,null,null,null,null,null,"325540",32,55,40,"El Limón"]
[null,null,null,null,null,null,null,null,"325541",32,55,41,"La Magdalena"]
[null,null,null,null,null,null,null,null,"325542",32,55,42,"Malpaso"]
[null,null,null,null,null,null,null,null,"325543",32,55,43,"Maravillas"]
[null,null,null,null,null,null,null,null,"325545",32,55,45,"Colonia Morelos"]
[null,null,null,null,null,null,null,null,"325549",32,55,49,"Ojo de Agua del Tigre"]
[null,null,null,null,null,null,null,null,"325550",32,55,50,"Ojo de Agua Grande"]
[null,null,null,null,null,null,null,null,"325551",32,55,51,"Palomas Viejas (San Francisco de la Sierra)"]
[null,null,null,null,null,null,null,null,"325552",32,55,52,"El Pantano"]
[null,null,null,null,null,null,null,null,"325553",32,55,53,"Pasillas"]
[null,null,null,null,null,null,null,null,"325556",32,55,56,"Los Pilares"]
[null,null,null,null,null,null,null,null,"325557",32,55,57,"Las Pilas"]
[null,null,null,null,null,null,null,null,"325559",32,55,59,"Presa de Maravillas"]
[null,null,null,null,null,null,null,null,"325560",32,55,60,"Providencia (Arroyo Seco)"]
[null,null,null,null,null,null,null,null,"325561",32,55,61,"Noche Buena (La Puerta de la Parida)"]
[null,null,null,null,null,null,null,null,"325562",32,55,62,"La Quemada (Hacienda la Quemada)"]
[null,null,null,null,null,null,null,null,"325563",32,55,63,"El Reparo"]
[null,null,null,null,null,null,null,null,"325564",32,55,64,"Las Varas"]
[null,null,null,null,null,null,null,null,"325567",32,55,67,"El Salitre"]
[null,null,null,null,null,null,null,null,"325568",32,55,68,"El Salto del Agua Caliente"]
[null,null,null,null,null,null,null,null,"325569",32,55,69,"El Salto"]
[null,null,null,null,null,null,null,null,"325570",32,55,70,"San Alejo"]
[null,null,null,null,null,null,null,null,"325571",32,55,71,"San Antonio de las Huertas"]
[null,null,null,null,null,null,null,null,"325573",32,55,73,"San Diego"]
[null,null,null,null,null,null,null,null,"325574",32,55,74,"San Isidro"]
[null,null,null,null,null,null,null,null,"325575",32,55,75,"San José"]
[null,null,null,null,null,null,null,null,"325576",32,55,76,"San José de Bellavista (El Ranchito)"]
[null,null,null,null,null,null,null,null,"325578",32,55,78,"San Juan de Atitanac"]
[null,null,null,null,null,null,null,null,"325580",32,55,80,"San Marcos"]
[null,null,null,null,null,null,null,null,"325581",32,55,81,"San Miguel"]
[null,null,null,null,null,null,null,null,"325583",32,55,83,"San Tadeo de las Flores"]
[null,null,null,null,null,null,null,null,"325585",32,55,85,"Sauz"]
[null,null,null,null,null,null,null,null,"325586",32,55,86,"El Socorro"]
[null,null,null,null,null,null,null,null,"325587",32,55,87,"El Soyate (El Zoyate)"]
[null,null,null,null,null,null,null,null,{"$f":"$J279363&$K279363&$L279363","v":"325588"},32,55,88,"Tarasco (San Antonio de Tarasco)"]
[null,null,null,null,null,null,null,null,"325589",32,55,89,"Tayahua (San José de Tayahua)"]
[null,null,null,null,null,null,null,null,"325590",32,55,90,"Tenango"]
[null,null,null,null,null,null,null,null,"325591",32,55,91,"El Tigre"]
[null,null,null,null,null,null,null,null,"325593",32,55,93,"La Tinaja"]
[null,null,null,null,null,null,null,null,"325595",32,55,95,"Tuitán"]
[null,null,null,null,null,null,null,null,"325596",32,55,96,"Tuxtuac"]
[null,null,null,null,null,null,null,null,"325597",32,55,97,"El Uncidero (El Refugio)"]
[null,null,null,null,null,null,null,null,"325598",32,55,98,"Varela"]
[null,null,null,null,null,null,null,null,"325599",32,55,99,"El Vergel"]
[null,null,null,null,null,null,null,null,"3255100",32,55,100,"Villa Zaragoza (Palo Gordo)"]
[null,null,null,null,null,null,null,null,"3255101",32,55,101,"Zapoqui"]
[null,null,null,null,null,null,null,null,"3255102",32,55,102,"El Zapote"]
[null,null,null,null,null,null,null,null,"3255103",32,55,103,"El Zapotillo"]
[null,null,null,null,null,null,null,null,"3255106",32,55,106,"San Cayetano"]
[null,null,null,null,null,null,null,null,"3255107",32,55,107,"Pitón"]
[null,null,null,null,null,null,null,null,"3255108",32,55,108,"El Barranco"]
[null,null,null,null,null,null,null,null,"3255109",32,55,109,"Las Trojes"]
[null,null,null,null,null,null,null,null,"3255111",32,55,111,"El Molino"]
[null,null,null,null,null,null,null,null,"3255113",32,55,113,"Saucillo"]
[null,null,null,null,null,null,null,null,"3255116",32,55,116,"La Ordeña"]
[null,null,null,null,null,null,null,null,"3255125",32,55,125,"El Nuevo Tigre"]
[null,null,null,null,null,null,null,null,"3255126",32,55,126,"Saltito"]
[null,null,null,null,null,null,null,null,"3255128",32,55,128,"Muleros"]
[null,null,null,null,null,null,null,null,"3255129",32,55,129,"Las Lechuguillas"]
[null,null,null,null,null,null,null,null,"3255130",32,55,130,"Magueycitos"]
[null,null,null,null,null,null,null,null,"3255131",32,55,131,"Nuevo México"]
[null,null,null,null,null,null,null,null,"3255132",32,55,132,"Las Lagunas"]
[null,null,null,null,null,null,null,null,"3255134",32,55,134,"Rancho Lindavista"]
[null,null,null,null,null,null,null,null,"3255135",32,55,135,"Rancho Gonzalo"]
[null,null,null,null,null,null,null,null,"3255136",32,55,136,"Belén de la Sierra"]
[null,null,null,null,null,null,null,null,"3255137",32,55,137,"San José"]
[null,null,null,null,null,null,null,null,"3255138",32,55,138,"Francisco Villa (El Caballete)"]
[null,null,null,null,null,null,null,null,"3255139",32,55,139,"La Palmita"]
[null,null,null,null,null,null,null,null,"3255142",32,55,142,"La Hiedra"]
[null,null,null,null,null,null,null,null,"3255143",32,55,143,"El Saucito"]
[null,null,null,null,null,null,null,null,"3255144",32,55,144,"General Francisco Murguía"]
[null,null,null,null,null,null,null,null,"3255145",32,55,145,"Las Manguitas"]
[null,null,null,null,null,null,null,null,"3255146",32,55,146,"El Puente Viejo"]
[null,null,null,null,null,null,null,null,"3255147",32,55,147,"Los Pocitos"]
[null,null,null,null,null,null,null,null,"3255148",32,55,148,"Paso de los Arados"]
[null,null,null,null,null,null,null,null,"3255150",32,55,150,"El Crucero"]
[null,null,null,null,null,null,null,null,"3255151",32,55,151,"El Madroño del Río"]
[null,null,null,null,null,null,null,null,"3255152",32,55,152,"La Palmita"]
[null,null,null,null,null,null,null,null,"3255155",32,55,155,"El Tapón"]
[null,null,null,null,null,null,null,null,"3255157",32,55,157,"Agua Rica"]
[null,null,null,null,null,null,null,null,"3255158",32,55,158,"La Boquilla"]
[null,null,null,null,null,null,null,null,"3255162",32,55,162,"El Potrillo"]
[null,null,null,null,null,null,null,null,"3255166",32,55,166,"Colonia Pedro Ruiz González (La Magueyera)"]
[null,null,null,null,null,null,null,null,"3255169",32,55,169,"El Pinal"]
[null,null,null,null,null,null,null,null,"3255170",32,55,170,"Los Pinos [Rancho]"]
[null,null,null,null,null,null,null,null,"3255172",32,55,172,"El Rosario"]
[null,null,null,null,null,null,null,null,"3255173",32,55,173,"Tamasuca"]
[null,null,null,null,null,null,null,null,"3255174",32,55,174,"La Loma (Marciana de la Cruz Guerrero)"]
[null,null,null,null,null,null,null,null,"3255175",32,55,175,"La Huerta"]
[null,null,null,null,null,null,null,null,"3255177",32,55,177,"La Peña"]
[null,null,null,null,null,null,null,null,"3255181",32,55,181,"La Media Luna"]
[null,null,null,null,null,null,null,null,"3255184",32,55,184,"Las Trojas"]
[null,null,null,null,null,null,null,null,"3255189",32,55,189,"El Cócono (Santa Anita)"]
[null,null,null,null,null,null,null,null,"3255193",32,55,193,"La Leona"]
[null,null,null,null,null,null,null,null,"3255195",32,55,195,"La Cañada (Puente de Coyotes)"]
[null,null,null,null,null,null,null,null,"3255197",32,55,197,"San José de la Palmita"]
[null,null,null,null,null,null,null,null,"3255198",32,55,198,"Vaqueros"]
[null,null,null,null,null,null,null,null,"3255199",32,55,199,"El Potrerito"]
[null,null,null,null,null,null,null,null,{"$f":"$J279427&$K279427&$L279427","v":"3255200"},32,55,200,"La Puerta del Río"]
[null,null,null,null,null,null,null,null,"3255202",32,55,202,"La Campana"]
[null,null,null,null,null,null,null,null,"3255204",32,55,204,"Centro Acuícola Ingeniero Julián Adame"]
[null,null,null,null,null,null,null,null,"3255205",32,55,205,"La Granja (Ramiro Vargas)"]
[null,null,null,null,null,null,null,null,"3255206",32,55,206,"Los Hornos"]
[null,null,null,null,null,null,null,null,"3255208",32,55,208,"Rancho Chiquito (Juan de la Cruz Guerrero)"]
[null,null,null,null,null,null,null,null,"3255209",32,55,209,"Hermanos Álvarez [Rancho]"]
[null,null,null,null,null,null,null,null,"3255210",32,55,210,"Las Vegas [Rancho]"]
[null,null,null,null,null,null,null,null,"3255211",32,55,211,"La Contadora (José Marín Martínez)"]
[null,null,null,null,null,null,null,null,"3255212",32,55,212,"El Salto"]
[null,null,null,null,null,null,null,null,"3255213",32,55,213,"San Gabriel"]
[null,null,null,null,null,null,null,null,"3255214",32,55,214,"Santa Cruz de las Flores"]
[null,null,null,null,null,null,null,null,"3255216",32,55,216,"Los Santoyo"]
[null,null,null,null,null,null,null,null,"3255217",32,55,217,"Ninguno"]
[null,null,null,null,null,null,null,null,"3255218",32,55,218,"Morones (Antonio Aguilar)"]
[null,null,null,null,null,null,null,null,"3255219",32,55,219,"Aurelio Álvarez"]
[null,null,null,null,null,null,null,null,"3255220",32,55,220,"Santa Lucía (Jesús Rodríguez) [Rancho]"]
[null,null,null,null,null,null,null,null,"3255222",32,55,222,"Potrero del Río"]
[null,null,null,null,null,null,null,null,"3255224",32,55,224,"El Terrero (Encarnación Carrillo)"]
[null,null,null,null,null,null,null,null,"3255225",32,55,225,"La Tinaja"]
[null,null,null,null,null,null,null,null,"3255227",32,55,227,"El Dólar"]
[null,null,null,null,null,null,null,null,"3255228",32,55,228,"La Joya de Abajo"]
[null,null,null,null,null,null,null,null,"3255229",32,55,229,"La Mala Vida y Que"]
[null,null,null,null,null,null,null,null,"3255230",32,55,230,"La Mesa de los Patos"]
[null,null,null,null,null,null,null,null,"3255231",32,55,231,"El Ojo de Agua del Coyote"]
[null,null,null,null,null,null,null,null,"3255232",32,55,232,"Potrerito de los Callejones"]
[null,null,null,null,null,null,null,null,"3255233",32,55,233,"Hacienda de Morones [Rancho]"]
[null,null,null,null,null,null,null,null,"3255235",32,55,235,"Río de San Cristóbal"]
[null,null,null,null,null,null,null,null,"3255236",32,55,236,"San Antonio"]
[null,null,null,null,null,null,null,null,"3255237",32,55,237,"Héctor Vera García"]
[null,null,null,null,null,null,null,null,"3255238",32,55,238,"La Taberna"]
[null,null,null,null,null,null,null,null,"3255239",32,55,239,"Tilano"]
[null,null,null,null,null,null,null,null,"3255240",32,55,240,"Los Hornitos"]
[null,null,null,null,null,null,null,null,"3255241",32,55,241,"Lolita [Granja]"]
[null,null,null,null,null,null,null,null,"3255242",32,55,242,"Puente de Coyotes"]
[null,null,null,null,null,null,null,null,"3255243",32,55,243,"La Veta"]
[null,null,null,null,null,null,null,null,"3255245",32,55,245,"Consejo Tutelar para Menores"]
[null,null,null,null,null,null,null,null,"3255246",32,55,246,"Félix Vega"]
[null,null,null,null,null,null,null,null,"3255247",32,55,247,"El Nopal (José Luis Torres Sánchez)"]
[null,null,null,null,null,null,null,null,"3255248",32,55,248,"Colonia Miguel Hidalgo (El Saucillo)"]
[null,null,null,null,null,null,null,null,"3255249",32,55,249,"El Solitario"]
[null,null,null,null,null,null,null,null,"3255250",32,55,250,"La Providencia"]
[null,null,null,null,null,null,null,null,"3255251",32,55,251,"San Francisco"]
[null,null,null,null,null,null,null,null,"32561",32,56,1,"Zacatecas"]
[null,null,null,null,null,null,null,null,"325624",32,56,24,"La Aurora (La Chorrera)"]
[null,null,null,null,null,null,null,null,"325625",32,56,25,"Benito Juárez (San Cayetano)"]
[null,null,null,null,null,null,null,null,"325626",32,56,26,"Las Boquillas"]
[null,null,null,null,null,null,null,null,"325627",32,56,27,"Calerilla"]
[null,null,null,null,null,null,null,null,"325628",32,56,28,"Cieneguillas"]
[null,null,null,null,null,null,null,null,"325630",32,56,30,"Las Chilitas"]
[null,null,null,null,null,null,null,null,"325633",32,56,33,"Francisco I. Madero"]
[null,null,null,null,null,null,null,null,"325634",32,56,34,"García de la Cadena (El Visitador)"]
[null,null,null,null,null,null,null,null,"325636",32,56,36,"González Ortega (Machines)"]
[null,null,null,null,null,null,null,null,"325637",32,56,37,"La Higuera"]
[null,null,null,null,null,null,null,null,"325638",32,56,38,"El Maguey"]
[null,null,null,null,null,null,null,null,"325639",32,56,39,"Miguel Hidalgo (San Miguel)"]
[null,null,null,null,null,null,null,null,"325640",32,56,40,"El Molino"]
[null,null,null,null,null,null,null,null,"325641",32,56,41,"San Antonio de los Negros (Los Negros)"]
[null,null,null,null,null,null,null,null,"325642",32,56,42,"Nueva Australia (El Coruco)"]
[null,null,null,null,null,null,null,null,"325643",32,56,43,"Ojo de Agua de Meléndez (Ojo de Agua)"]
[null,null,null,null,null,null,null,null,"325645",32,56,45,"Picones"]
[null,null,null,null,null,null,null,null,"325646",32,56,46,"La Pimienta"]
[null,null,null,null,null,null,null,null,"325647",32,56,47,"Rancho Nuevo"]
[null,null,null,null,null,null,null,null,"325649",32,56,49,"La Soledad (La Chole)"]
[null,null,null,null,null,null,null,null,{"$f":"$J279491&$K279491&$L279491","v":"325654"},32,56,54,"La Reforma (San Blas)"]
[null,null,null,null,null,null,null,null,"325655",32,56,55,"Sardinas"]
[null,null,null,null,null,null,null,null,"325656",32,56,56,"Rancho Nuevo"]
[null,null,null,null,null,null,null,null,"325658",32,56,58,"San Miguel"]
[null,null,null,null,null,null,null,null,"325665",32,56,65,"Las Tortugas"]
[null,null,null,null,null,null,null,null,"325667",32,56,67,"Los Arellano"]
[null,null,null,null,null,null,null,null,"325670",32,56,70,"Los García (El Potrero)"]
[null,null,null,null,null,null,null,null,"325674",32,56,74,"La Huerta de Enciso"]
[null,null,null,null,null,null,null,null,"325676",32,56,76,"El Bote [Mina]"]
[null,null,null,null,null,null,null,null,"325680",32,56,80,"Los Alamitos (Pozos Artesianos) [Rancho]"]
[null,null,null,null,null,null,null,null,"325682",32,56,82,"Maravillas"]
[null,null,null,null,null,null,null,null,"325683",32,56,83,"El Barranco"]
[null,null,null,null,null,null,null,null,"325685",32,56,85,"Rancho de Buky"]
[null,null,null,null,null,null,null,null,"325688",32,56,88,"El Ropero"]
[null,null,null,null,null,null,null,null,"325691",32,56,91,"El Canelo (Casa Blanca) [Rancho]"]
[null,null,null,null,null,null,null,null,"325692",32,56,92,"San Antonio de los Sauces (Antonio Berumen)"]
[null,null,null,null,null,null,null,null,"325693",32,56,93,"Mi Último Refugio [Rancho]"]
[null,null,null,null,null,null,null,null,"325696",32,56,96,"Tula"]
[null,null,null,null,null,null,null,null,"325697",32,56,97,"Buenavista (El Dólar)"]
[null,null,null,null,null,null,null,null,"325698",32,56,98,"Bracho (Lomas de Bracho)"]
[null,null,null,null,null,null,null,null,"325699",32,56,99,"Las Mercedes"]
[null,null,null,null,null,null,null,null,"3256101",32,56,101,"San Bernabé [Mina]"]
[null,null,null,null,null,null,null,null,"3256103",32,56,103,"La Bufa"]
[null,null,null,null,null,null,null,null,"3256104",32,56,104,"El Edén [Rancho]"]
[null,null,null,null,null,null,null,null,"3256105",32,56,105,"Los Hernández"]
[null,null,null,null,null,null,null,null,"3256107",32,56,107,"La Joya"]
[null,null,null,null,null,null,null,null,"3256108",32,56,108,"El Magueycito (Jesús Pérez Carrillo)"]
[null,null,null,null,null,null,null,null,"3256109",32,56,109,"El Cigarrero"]
[null,null,null,null,null,null,null,null,"3256112",32,56,112,"Los Varela"]
[null,null,null,null,null,null,null,null,"3256114",32,56,114,"Tanque la Lama (Los Rodríguez)"]
[null,null,null,null,null,null,null,null,"3256116",32,56,116,"El Cardenchal (La Esperanza)"]
[null,null,null,null,null,null,null,null,"3256117",32,56,117,"El Club Hípico"]
[null,null,null,null,null,null,null,null,"3256118",32,56,118,"La Cuenca (El Establo Benito Juárez)"]
[null,null,null,null,null,null,null,null,"3256119",32,56,119,"El Seis B (José Carlos Rojas)"]
[null,null,null,null,null,null,null,null,"3256120",32,56,120,"Chaiser (Rancho la Pila) [Granja]"]
[null,null,null,null,null,null,null,null,"3256121",32,56,121,"La Joya (Antonio Quiroz Muñoz)"]
[null,null,null,null,null,null,null,null,"3256122",32,56,122,"Loreto (Rancho del Doctor Manuel Varela)"]
[null,null,null,null,null,null,null,null,"3256123",32,56,123,"Media Luna"]
[null,null,null,null,null,null,null,null,"3256124",32,56,124,"El Girasol [Rancho]"]
[null,null,null,null,null,null,null,null,"3256125",32,56,125,"La Luz (La Joya) [Rancho]"]
[null,null,null,null,null,null,null,null,"3256126",32,56,126,"Santa Cecilia [Rancho]"]
[null,null,null,null,null,null,null,null,"3256127",32,56,127,"Armando Larralde"]
[null,null,null,null,null,null,null,null,"3256128",32,56,128,"Jorge Mendoza"]
[null,null,null,null,null,null,null,null,"3256129",32,56,129,"Miguel Enríquez"]
[null,null,null,null,null,null,null,null,"3256130",32,56,130,"El Triángulo"]
[null,null,null,null,null,null,null,null,"3256131",32,56,131,"Cerro Santa Clara"]
[null,null,null,null,null,null,null,null,"3256136",32,56,136,"La Mecha [Mina]"]
[null,null,null,null,null,null,null,null,"3256138",32,56,138,"Planta del Parque"]
[null,null,null,null,null,null,null,null,"3256140",32,56,140,"Villa Matute"]
[null,null,null,null,null,null,null,null,"3256141",32,56,141,"El Zar"]
[null,null,null,null,null,null,null,null,"3256143",32,56,143,"Nuevo Mundo"]
[null,null,null,null,null,null,null,null,"3256144",32,56,144,"La Ladrillera"]
[null,null,null,null,null,null,null,null,"3256147",32,56,147,"El Catrín"]
[null,null,null,null,null,null,null,null,"3256148",32,56,148,"María Teresa [Granja]"]
[null,null,null,null,null,null,null,null,"3256149",32,56,149,"La Joya (El Arenal Antonio de Haro)"]
[null,null,null,null,null,null,null,null,"3256150",32,56,150,"Los Pilares"]
[null,null,null,null,null,null,null,null,"3256151",32,56,151,"Quebradora"]
[null,null,null,null,null,null,null,null,"3256152",32,56,152,"Rancho L y R"]
[null,null,null,null,null,null,null,null,"3256153",32,56,153,"San Juanito [Rancho]"]
[null,null,null,null,null,null,null,null,"3256154",32,56,154,"Santa Amalia [Rancho]"]
[null,null,null,null,null,null,null,null,"3256156",32,56,156,"Rubén Ortíz Martínez"]
[null,null,null,null,null,null,null,null,"3256157",32,56,157,"Terrones"]
[null,null,null,null,null,null,null,null,"3256158",32,56,158,"Fraccionamiento Corea"]
[null,null,null,null,null,null,null,null,"3256159",32,56,159,"Antonio de Haro"]
[null,null,null,null,null,null,null,null,{"$f":"$J279555&$K279555&$L279555","v":"3256164"},32,56,164,"San Juan [Rancho]"]
[null,null,null,null,null,null,null,null,"3256165",32,56,165,"Los Sifuentes"]
[null,null,null,null,null,null,null,null,"3256167",32,56,167,"J. Cruz Guerrero Encina"]
[null,null,null,null,null,null,null,null,"3256168",32,56,168,"Fraccionamiento Gonzalo García García"]
[null,null,null,null,null,null,null,null,"3256170",32,56,170,"Fraccionamiento Cuba"]
[null,null,null,null,null,null,null,null,"3256171",32,56,171,"Los Polvorines (Antonio Hernández Rodríguez)"]
[null,null,null,null,null,null,null,null,"3256172",32,56,172,"La Ollera"]
[null,null,null,null,null,null,null,null,"3256173",32,56,173,"Francisco Parga Mares"]
[null,null,null,null,null,null,null,null,"3256174",32,56,174,"La Joya (Ruben Ávila)"]
[null,null,null,null,null,null,null,null,"3256175",32,56,175,"Manuel Rocha"]
[null,null,null,null,null,null,null,null,"3256176",32,56,176,"La Loma (Margarito Márquez)"]
[null,null,null,null,null,null,null,null,"3256177",32,56,177,"Ángel Vázquez"]
[null,null,null,null,null,null,null,null,"3256178",32,56,178,"El General"]
[null,null,null,null,null,null,null,null,"3256179",32,56,179,"Álvaro Ortíz"]
[null,null,null,null,null,null,null,null,"3256180",32,56,180,"Los Ramírez [Rancho]"]
[null,null,null,null,null,null,null,null,"3256182",32,56,182,"Loma Bonita"]
[null,null,null,null,null,null,null,null,"3256183",32,56,183,"Lomas del Cristo Dos"]
[null,null,null,null,null,null,null,null,"3256185",32,56,185,"Rebeca Martínez"]
[null,null,null,null,null,null,null,null,"3256186",32,56,186,"Salvador Rubio Rodríguez"]
[null,null,null,null,null,null,null,null,"3256187",32,56,187,"Los Zamora (Hortizam)"]
[null,null,null,null,null,null,null,null,"3256188",32,56,188,"El Tucán [Yonke]"]
[null,null,null,null,null,null,null,null,"32571",32,57,1,"Trancoso"]
[null,null,null,null,null,null,null,null,"32572",32,57,2,"La Blanquita"]
[null,null,null,null,null,null,null,null,"32573",32,57,3,"La Curva"]
[null,null,null,null,null,null,null,null,"32574",32,57,4,"La Esperanza (Campo Real)"]
[null,null,null,null,null,null,null,null,"32575",32,57,5,"Las Arcinas [Estación de Gasolina]"]
[null,null,null,null,null,null,null,null,"32576",32,57,6,"Rex [Granja]"]
[null,null,null,null,null,null,null,null,"32577",32,57,7,"Los Insurgentes (La Puerta de Fierro)"]
[null,null,null,null,null,null,null,null,"32578",32,57,8,"El Llano Blanco"]
[null,null,null,null,null,null,null,null,"32579",32,57,9,"Loma Azul"]
[null,null,null,null,null,null,null,null,"325710",32,57,10,"Loma de los Lobos"]
[null,null,null,null,null,null,null,null,"325711",32,57,11,"Luis Reyes"]
[null,null,null,null,null,null,null,null,"325714",32,57,14,"Familias Reyes"]
[null,null,null,null,null,null,null,null,"325716",32,57,16,"El Paraíso"]
[null,null,null,null,null,null,null,null,"325717",32,57,17,"Pie Verde"]
[null,null,null,null,null,null,null,null,"325718",32,57,18,"El Porvenir"]
[null,null,null,null,null,null,null,null,"325719",32,57,19,"Pozo de Lauro Valdez"]
[null,null,null,null,null,null,null,null,"325720",32,57,20,"Pozo del Coco"]
[null,null,null,null,null,null,null,null,"325721",32,57,21,"Pozo los Cerritos"]
[null,null,null,null,null,null,null,null,"325722",32,57,22,"El Pinar [Rancho]"]
[null,null,null,null,null,null,null,null,"325723",32,57,23,"La Esperanza [Rancho]"]
[null,null,null,null,null,null,null,null,"325724",32,57,24,"Rubén Jaramillo (La Chiripa)"]
[null,null,null,null,null,null,null,null,"325725",32,57,25,"San Felipe de Jesús (Rancho de Pascual)"]
[null,null,null,null,null,null,null,null,"325726",32,57,26,"San Isidro Cinco"]
[null,null,null,null,null,null,null,null,"325727",32,57,27,"San Isidro Setenta y Cuatro"]
[null,null,null,null,null,null,null,null,"325728",32,57,28,"San José del Carmen"]
[null,null,null,null,null,null,null,null,"325729",32,57,29,"San Salvador del Bajío"]
[null,null,null,null,null,null,null,null,"325730",32,57,30,"Santa Rosa de Lima"]
[null,null,null,null,null,null,null,null,"325731",32,57,31,"David Anaya Parga"]
[null,null,null,null,null,null,null,null,"325734",32,57,34,"Las Margaritas [Restaurante]"]
[null,null,null,null,null,null,null,null,"325735",32,57,35,"Santos Patiño Ruiz"]
[null,null,null,null,null,null,null,null,"325736",32,57,36,"Tanque la Alameda (Pedro Mauricio Bernal)"]
[null,null,null,null,null,null,null,null,"325737",32,57,37,"Valle de las Arcinas"]
[null,null,null,null,null,null,null,null,"325738",32,57,38,"Las Trojes [Viñedo]"]
[null,null,null,null,null,null,null,null,"325739",32,57,39,"Don Bosco [Viñedos]"]
[null,null,null,null,null,null,null,null,"325740",32,57,40,"Santa María (Refugio Rodríguez) [Viñedos]"]
[null,null,null,null,null,null,null,null,"325741",32,57,41,"Viborillas"]
[null,null,null,null,null,null,null,null,"325742",32,57,42,"Hermanos Mauricio"]
[null,null,null,null,null,null,null,null,"325744",32,57,44,"Miguel Ángel Reyes Hernández"]
[null,null,null,null,null,null,null,null,"325745",32,57,45,"La Providencia"]
[null,null,null,null,null,null,null,null,"325746",32,57,46,"Ninguno"]
[null,null,null,null,null,null,null,null,"32581",32,58,1,"Santa María de la Paz"]
[null,null,null,null,null,null,null,null,"32582",32,58,2,"Agua Santa"]
[null,null,null,null,null,null,null,null,"32583",32,58,3,"Arroyo de Santa María (El Pino)"]
[null,null,null,null,null,null,null,null,{"$f":"$J279619&$K279619&$L279619","v":"32584"},32,58,4,"Buenavista"]
[null,null,null,null,null,null,null,null,"32585",32,58,5,"Cerrito de los Coyotes"]
[null,null,null,null,null,null,null,null,"32586",32,58,6,"Colonia Santa María"]
[null,null,null,null,null,null,null,null,"32587",32,58,7,"El Arenal"]
[null,null,null,null,null,null,null,null,"32588",32,58,8,"El Capulín"]
[null,null,null,null,null,null,null,null,"32589",32,58,9,"El Carricito"]
[null,null,null,null,null,null,null,null,"325810",32,58,10,"El Guitarrero"]
[null,null,null,null,null,null,null,null,"325811",32,58,11,"El Jaralito"]
[null,null,null,null,null,null,null,null,"325812",32,58,12,"El Laurel"]
[null,null,null,null,null,null,null,null,"325813",32,58,13,"El Palo Verde"]
[null,null,null,null,null,null,null,null,"325814",32,58,14,"El Pantano"]
[null,null,null,null,null,null,null,null,"325815",32,58,15,"El Picacho (Hidalgo)"]
[null,null,null,null,null,null,null,null,"325816",32,58,16,"El Saucito"]
[null,null,null,null,null,null,null,null,"325817",32,58,17,"El Soto"]
[null,null,null,null,null,null,null,null,"325818",32,58,18,"El Terrero"]
[null,null,null,null,null,null,null,null,"325819",32,58,19,"El Zapotito"]
[null,null,null,null,null,null,null,null,"325820",32,58,20,"Hacienda Vieja"]
[null,null,null,null,null,null,null,null,"325821",32,58,21,"La Calera"]
[null,null,null,null,null,null,null,null,"325822",32,58,22,"La Escuadra (Cerro Codorniz)"]
[null,null,null,null,null,null,null,null,"325823",32,58,23,"La Laguna"]
[null,null,null,null,null,null,null,null,"325824",32,58,24,"La Piedra Bola"]
[null,null,null,null,null,null,null,null,"325825",32,58,25,"Las Águilas"]
[null,null,null,null,null,null,null,null,"325826",32,58,26,"Las Cabras"]
[null,null,null,null,null,null,null,null,"325827",32,58,27,"Las Granjas"]
[null,null,null,null,null,null,null,null,"325828",32,58,28,"Las Penitas (Las Peñitas)"]
[null,null,null,null,null,null,null,null,"325829",32,58,29,"Las Ranas"]
[null,null,null,null,null,null,null,null,"325830",32,58,30,"Las Tablas"]
[null,null,null,null,null,null,null,null,"325831",32,58,31,"Los Cedros"]
[null,null,null,null,null,null,null,null,"325832",32,58,32,"Los Cuartos"]
[null,null,null,null,null,null,null,null,"325833",32,58,33,"Los Horcones"]
[null,null,null,null,null,null,null,null,"325834",32,58,34,"Los Rodríguez"]
[null,null,null,null,null,null,null,null,"325835",32,58,35,"Los Trigos (Mesa de los Trigos)"]
[null,null,null,null,null,null,null,null,"325836",32,58,36,"Marines"]
[null,null,null,null,null,null,null,null,"325837",32,58,37,"Mesa Grande"]
[null,null,null,null,null,null,null,null,"325838",32,58,38,"El Bellaco [Rancho]"]
[null,null,null,null,null,null,null,null,"325839",32,58,39,"San Isidro"]
[null,null,null,null,null,null,null,null,"325840",32,58,40,"San José"]
[null,null,null,null,null,null,null,null,"325841",32,58,41,"San Miguel Tepetitlán"]
[null,null,null,null,null,null,null,null,"325842",32,58,42,"San Rafael"]
[null,null,null,null,null,null,null,null,"325843",32,58,43,"Santa Fe"]

{"sheet":"MPO","index":2,"n_rows":10,"n_cols":2,"rows_kept":10,"cut":false,"hidden":true,"merged":[]}
[4,27]
["Campeche","Tabasco"]
["EDO4","EDO27"]
["Campeche","Cárdenas"]
["Carmen","Centla"]
[null,"Centro"]
[null,"Comalcalco"]
[null,"Huimanguillo"]
[null,"Macuspana"]
[null,"Paraíso"]

{"sheet":"LOCAL","index":3,"n_rows":1572,"n_cols":9,"rows_kept":1572,"cut":false,"hidden":true,"merged":[]}
[23,24,1963,1964,1965,1966,1969,1973,1975]
[4,4,27,27,27,27,27,27,27]
[2,3,2,3,4,5,8,12,14]
["Campeche","Carmen","Cárdenas","Centla","Centro","Comalcalco","Huimanguillo","Macuspana","Paraíso"]
["MPO23","MPO24","MPO1963","MPO1964","MPO1965","MPO1966","MPO1969","MPO1973","MPO1975"]
["San Francisco de Campeche","Ciudad del Carmen","Cárdenas","Frontera","Villahermosa","Comalcalco","Huimanguillo","Macuspana","Paraíso"]
["Uayamón","Nuevo Progreso","El Alacrán","Álvaro Obregón (Santa Cruz)","Acachapan y Colmena 1ra. Sección","Aldama","Alto Amacohíte 3ra. Sección (Kilómetro 32)","Abasolo","Aquiles Serdán"]
["Bethania","Atasta","Poblado C-11 José María Morelos y Pavón","Benito Juárez","Acachapan y Colmena 2da. Sección (La Arena)","Aldama 2da. Sección (Fernando Segovia)","Amacohíte 1ra. Sección","Alcalde Mayor","Aquiles Serdán"]
["Bobolá","Santa Isabel","Poblado C-15 Adolfo López Mateos","Benito Juárez","Acachapan y Colmena 3ra. Sección","Arena 1ra. Sección","Amacohíte 2da. Sección","Tulijá Sección Chinal","El Bellote (Miguel de la Madrid)"]
["Bolonchén Cahuich","Puerto Rico","Poblado C-21 Licenciado Benito Juárez García","Boca de Chilapa","Acachapan y Colmena 4ta. Sección","Arena 2da. Sección","La Arena 1ra. Sección","Alto Tulijá 2da. Sección (Paredón)","Puerto Ceiba (Carrizal)"]
["Castamay","El Playaso","Arroyo Hondo Abejonal","Buena Vista","Acachapan y Colmena 5ta. Sección","Arena 3ra. Sección","Blasillo 1ra. Sección (Nicolás Bravo)","Álvaro Obregón","Puerto Ceiba"]
["Chemblás","Zacatal","Arroyo Hondo 1ra. Sección (Santa Teresa A)","Carlos A. Madrazo","Alvarado Santa Irene 1ra. Sección","Arena 4ta. Sección","Caobanal 1ra. Sección (Mezcalapa)","Allende Alto 2da. Sección","Chiltepec (Puerto Chiltepec)"]
["Chencollí (Citro-Kampeche)","El Manatinero","Azucena 1ra. Sección","Carlos Rovirosa 1ra. Sección","Alvarado Guardacosta","Arroyo Hondo 1ra. Sección (Guácimo)","La Ceiba 1ra. Sección","Allende Bajo 2da. Sección","Las Flores 1ra. Sección"]
["Chiná","El Astillero","Azucena 2da. Sección","Carlos Rovirosa 2da. Sección","Alvarado Jimbal","Arroyo Hondo 3ra. Sección","Central Fournier 1ra. Sección (El Coleto)","Aquiles Serdán (San Fernando)","Las Flores 2da. Sección"]
["Cholul","Santa Rita","Azucena 3ra. Sección (El Triunfo)","Loma el Nanzal","Anacleto Canabal 1ra. Sección","Arroyo Hondo 4ta. Sección","Chicoacán","Bajo Tulijá","Francisco I. Madero"]
["Hampolol","El Coquito","El Bajío 2da. Sección","La Constancia","Anacleto Canabal 2da. Sección","Belisario Domínguez","Chontalpa (Estación Chontalpa)","Barrial","Barra de Tupilco"]
["Hobomó","Bahamita [Jaibera]","El Bajío 1ra. Sección","Cuauhtémoc","Anacleto Canabal 3ra. Sección","Carlos Greene","El Desecho 1ra. Sección","Santos Degollado 1ra. Sección (El Bayo)","José María Morelos y Pavón (El Bellote)"]
["Imí","Abelardo L. Rodríguez","El Barí 2da. Sección","Chicozapote 1ra. Sección","Anacleto Canabal 4ta. Sección","Carlos Greene 2da. Sección","El Desecho 2da. Sección","El Bayo 2da. Sección","Libertad 1ra. Sección (El Chivero)"]
["Lerma","Ignacio Gutiérrez","El Bronce","Chichicastle 1ra. Sección","Miraflores 1ra. Sección (Arroyo Grande)","Centro Tular 1ra. Sección","Economía","Belén","Libertad 2da. Sección"]
["Mucuychakán","José María Pino Suárez","Buenavista 1ra. Sección","Chichicastle 2da. Sección","Aztlán 1ra. Sección","Centro Tular 2da. Sección","Emiliano Zapata (Chichonal de la Boyería)","Benito Juárez (San Carlos)","Francisco I. Madero"]
["Nilchí","Plan de Ayala","Calzada 1ra. Sección Norte A","Chichicastle 3ra. Sección","Aztlán 2da. Sección (El Corcho)","Cocohital","El Encomendero","Bitzal 1ra. Sección","Francisco I. Madero (Madero)"]
["Nohakal","El Álamo","Calzada 2da. Sección","Chilapa 2da. Sección","Barrancas y Amate 3ra. Sección","Cupilco","Las Flores","Bitzal 2da. Sección","Moctezuma 1ra. Sección"]
["Uzahzil-Edzná (Nohyaxché)","El Jobo","Coronel Andrés Sánchez Magallanes","Chilapa 1ra. Sección (Margen Izquierda)","Barrancas y Amate 2da. Sección","Cuxcuxapa","Francisco I. Madero","Bitzal 3ra. Sección","Moctezuma 2da. Sección"]
["San Agustín Olá","Oxcabal","Campo Nuevo","Emiliano Zapata","Barrancas y Guanal Tintillo","Chicozapote","Francisco J. Santamaría 1ra. Sección","Bitzal 4ta. Sección","Nicolás Bravo"]
["Crucero Oxá","Chicbul","Poblado C-28 Coronel Gregorio Méndez Magaña","Escobas (Chilapa Escoba)","Barrancas y Guanal González","Chichicapa","Francisco Martínez Gaytán","Bitzal 5ta. Sección","Oriente 1ra. Sección"]
["Pich","Calax","Poblado C-16 General Emiliano Zapata","Nueva Esperanza (San Pedrito)","Aztlán 3ra. Sección (Corcho y Chilapilla)","Emiliano Zapata 1ra. Sección","Francisco Rueda","Bitzal 6ta. Sección","Oriente (San Cayetano)"]
["Pocyaxum","Orizaba","El Capricho","La Estrella","Boquerón 1ra. Sección (San Pedro)","Francisco I. Madero 1ra. Sección","Francisco Sarabia","Bonanza 1ra. Sección","Potreritos"]
["Cayal","Las Palmas","Cárdenas","Felipe Carrillo Puerto Norte (Carrillito)","Boquerón 3ra. Sección (El Guanal)","Francisco I. Madero 2da. Sección","Gilberto Flores Muñoz 2da. Sección","Bonanza 2da. Sección","Quintín Arauz"]
["San Camilo (Chencollí)","Tichel","Cárdenas 2da. Sección","Felipe Carrillo Puerto (Centro)","Boquerón 4ta. Sección (Laguna Nueva)","Gregorio Méndez 1ra. Sección","Gregorio Méndez 2da. Sección","Buena Vista (Apasco)","Nuevo Torno Largo"]
["San Francisco Kobén","El Cimarrón","Benito Juárez (Campo Magallanes)","Felipe Carrillo Puerto Sur (Carrillón)","Boquerón 5ta. Sección (La Lagartera)","Gregorio Méndez 2da. Sección","Guadalupe Victoria","Buergos","Guano Solo (El Coquito)"]
["Tikinmul","San Antonio Cárdenas","Poblado C-09 Licenciado Francisco I. Madero","Francisco I. Madero","Buena Vista 1ra. Sección","Gregorio Méndez 3ra. Sección","Güiral y González 1ra. Sección","Las Campanas","La Unión 3ra. Sección"]
["Tixmucuy","El Carmen","Cuauhtemoczín","Gobernador Cruz","Buena Vista 2da. Sección","Guayo 1ra. Sección","Güiral y González 2da. Sección","Carlos Greene 2da. Sección","El Escribano"]
["X-Tum","Santa María","Chicozapote 1ra. Sección","Los Ídolos (Margen Derecha)","Buena Vista 3ra. Sección (Boca de Escoba)","Hermenegildo Galeana","Huapacal 1ra. Sección","Carmen Serdán","Las Flores 3ra. Sección (El Cerro)"]
["Alfredo V. Bonfil","Santa Serafina","Poblado C-10 General Lázaro Cárdenas del Río","Ignacio Allende","Buena Vista Río Nuevo 1ra. Sección","Ignacio Gutiérrez Gómez","Ignacio Gutiérrez 3ra. Sección","Castro y Güiro","Moctezuma 3ra. Sección"]
["Pueblo Nuevo","El Aguacatal","Encrucijada 3ra. Sección (Las Calzadas)","Ignacio Zaragoza","Buena Vista Río Nuevo 2da. Sección","Ignacio Zaragoza 1ra. Sección","Ignacio Gutiérrez 1ra. Sección","Clemente Reyes 1ra. Sección","Nicolás Bravo 2da. Sección (La Gloria)"]
["El Tintal","La Veleta I","Encrucijada 4ta. Sección B (La Lucha)","Jalapita","Buena Vista Río Nuevo 3ra. Sección","Ignacio Zaragoza 2da. Sección","Ignacio Gutiérrez 2da. Sección","Rovirosa","Nicolás Bravo 3ra. Sección"]
["La Sierrita","Nuevo Campechito","Encrucijada 5ta. Sección","San José (La Ilusión)","Santa Catalina (San Marcos)","Independencia 1ra. Sección","José María Pino Suárez 1ra. Sección","El Congo","Nicolás Bravo 4ta. Sección (Tilapa)"]
["San Martín","San Daniel","Las Flores (La Palma)","Libertad de Allende","El Censo","Independencia 2da. Sección","José Mercedes Gamas 2da. Sección","Corralillo 1ra. Sección (Nopalapa)","Nicolás Bravo 5ta. Sección (Punta Brava)"]
["Santa Isabel","San Ramón (María de la Luz)","El Golpe","Miguel Hidalgo","Colonia Agraria (La Isla)","Jesús Carranza","José Narciso Rovirosa","Cuauhtémoc","Monte Adentro"]
["Isla Cayo Arcas","La Guadalupana","El Mingo","Miramar","El Corozal","José María Pino Suárez 1ra. Sección","Laguna de los Limones","La Curva","Moctezuma (Francisco I. Madero 3ra. Sección)"]
["La Esperanza","El Mercurio","Ignacio Gutiérrez Gómez (San Felipe)","Mixteca 1ra. Sección","Corregidora Ortiz 1ra. Sección","José María Pino Suárez 2da. Sección","Libertad","Chilapilla 1ra. Sección","La Unión 1ra. Sección (Amatillo)"]
["El Jardín del Edén","Santa Rosa","Habanero 1ra. Sección","José María Morelos y Pavón","Corregidora Ortiz 2da. Sección","José María Pino Suárez 3ra. Sección (Corinto)","Macayo y Naranjo 1ra. Sección","Chivalito 2da. Sección","La Unión 2da. Sección"]
["Tres Hermanos","El Jobo","Habanero 2da. Sección (El Castaño)","Nuevo Centla","Corregidora Ortiz 3ra. Sección (San Pedrito)","Lagartera","Macayo y Naranjo 2da. Sección","Emiliano Zapata 1ra. Sección","Andrés García (La Isla)"]
["Santa Rosa","Chacahito","Habanero 1ra. Sección (Venustiano Carranza)","Potrerillo","Corregidora Ortiz 4ta. Sección","Lázaro Cárdenas 1ra. Sección","Macayo y Naranjo 3ra. Sección (San Agustín)","Emiliano Zapata 2da. Sección","Chiltepec (Sección Banco)"]
["El Bisturí","Balchacah","Miguel Hidalgo 1ra. Sección","Quintín Aráuz","Corregidora Ortiz 5ta. Sección","León Zárate 1ra. Sección","Malpasito","La Esperanza","Oriente 2da. Sección (Palma Huaca)"]
["El Álamo","San José del Este","El Jobo (Punta Brava)","Ribera Alta 1ra. Sección","Chacté","Miguel Hidalgo","Manuel Sánchez Mármol","Francisco Bates","Occidente (San Francisco)"]
["Ex-Hacienda Santa Cristina (CBTA Número 15)","Punta de Piedra","Melchor Ocampo","Ribera Alta 2da. Sección (Salsipuedes)","Aztlán 4ta. Sección (Corcho y Chilapilla)","Norte 1ra. Sección (San Julián)","Mecatepec","Francisco I. Madero Alto 1ra. Sección","Pénjamo"]
["Cinco Hermanos","Isla Aguada","Miguel Hidalgo 2da. Sección B (La Natividad)","San José de Simón Sarlat","Chiquiguao 1ra. Sección","Norte 2da. Sección","Monte de Oro 1ra. Sección","Francisco I. Madero Alto 2da. Sección","Oriente (Hormiguero)"]
["Melchor Ocampo","El Arrozal","Naranjeño 1ra. Sección (Colonia la Fe)","Barra de San Pedro","Chiquiguao 2da. Sección (Chiquiguaíto)","Occidente 1ra. Sección","Los Naranjos 1ra. Sección (Campechito)","Francisco I. Madero Bajo","Palestina"]
["Los Cocoyoles","San Antonio del Pom Primero","Naranjeño 2da. Sección A","San Roque","Dos Montes","Occidente 2da. Sección","Los Naranjos 2da. Sección","Francisco Javier Mina (El Coco)","La Solución Somos Todos (La Alianza)"]
["Chulbac","Colonia Emiliano Zapata","Naranjeño 3ra. Sección","Simón Sarlat","Emiliano Zapata","Oriente 1ra. Sección","Ocuapan","Hermenegildo Galeana (Chiveros)","Hueso de Puerco (Colonia Quintín Aráuz)"]
["La Doble Jota","La Lagartera","Nueva Esperanza","Tabasquillo 1ra. Sección","El Espino","Oriente 2da. Sección (San Cayetano)","Otra Banda 3ra. Sección","Morelos","Quintín Aráuz Uno"]
["Ensenada","Boca Nueva","Nueva Zelandia (El Ingenio)","Tabasquillo 2da. Sección","Estancia","Oriente 3ra. Sección","Otra Banda 1ra. Sección","Gregorio Méndez 2da. Sección (Pataztal)","Chiltepec (Sección Tanque)"]
["Xtelchel","El Ramón","Ojoshal","Tres Brazos","Estancia Vieja 1ra. Sección","Oriente 4ta. Sección (Tripa Ciega)","Otra Banda 2da. Sección","Gregorio Méndez 1ra. Sección"]
["La Fortuna","La Potranca","Paylebot","La Unión","Estancia Vieja 2da. Sección","Oriente 5ta. Sección (La Candelaria)","Palo Mulato (Zapotal)","Guadalupe Victoria"]
["La Gaviota","Franco","Poblado C-23 General Venustiano Carranza","Vicente Guerrero","Estanzuela 1ra. Sección","Paso de Cupilco","Paredón 1ra. Sección","Guillermo Prieto"]
["Don Javier","Las Piedras","Paso y Playa","La Victoria","Estanzuela 2da. Sección","Patastal 1ra. Sección","Paso del Rosario","Gustavo A. Madero"]
["Ninguno [Grupo de Trabajo de Producción Porcícola y Ejidal]","Xicalango","Santuario 3ra. Sección (Piedras Negras)","Arroyo Polo 3ra. Sección","Gaviotas Sur (El Chiflón)","Progreso Tular 1ra. Sección","Pedregal Moctezuma 1ra. Sección","Miguel Hidalgo 1ra. Sección"]
["Grano de Oro","La Cristalina (Los Pasos)","El Porvenir","Boca Grande 1ra. Sección","González 1ra. Sección","Progreso Tular 2da. Sección","Pedregal Moctezuma 2da. Sección (Leyva)","Ignacio Manuel Altamirano 1ra. Sección"]
["La Herradura","Independencia","Poza Redonda 1ra. Sección","El Bellote","González 2da. Sección","Lázaro Cárdenas 3ra. Sección","Pedregal Moctezuma 1ra. Sección","Ignacio Manuel Altamirano 2da. Sección"]
["Horticultores de Kobén","Chivoja","Poza Redonda 2da. Sección","Cañaveral","González 3ra. Sección","Reyes Hernández 1ra. Sección","Pedregalito 1ra. Sección","La Isla 1ra. Sección"]
["INIFAP","San Luis (Casa Blanca)","Chicozapote 2da. Sección (El Retiro)","El Guajuco","González 4ta. Sección","Reyes Hernández 2da. Sección","Pedro C. Colorado","La Isla 2da. Sección"]
["Nueva Esperanza","Santa Gertrudis","Río Seco 2da. Sección A","El Guatope","Guineo 1ra. Sección","Sargento López 1ra. Sección","Pejelagartero 1ra. Sección (Plataforma)","José Colomo"]
["Ninguno [Vivero y Campamento Ecológico]","San Fernando","Río Seco 2da. Sección B","La Montaña","Guineo 2da. Sección","Sargento López 2da. Sección (El Chuzo)","La Vencedora","José María Pino Suárez"]
["SDR [Corralón]","El Paibe","Río Seco 2da. Sección C","El Limón (De Vicente Guerrero)","La Huasteca 1ra. Sección","Sur 5ta. Sección","Pico de Oro 1ra. Sección","Lázaro Cárdenas 1ra. Sección"]
["Escalante (San Antonio Ebulá) [Trituradora]","El Suspiro","Poblado C-27 Ingeniero Eduardo Chávez Ramírez","El Milagro","La Huasteca 2da. Sección (Alvarado la Raya)","Sur 1ra. Sección","El Puente 1ra. Sección","Lerdo de Tejada 1ra. Sección"]
["Jesús María","Las Carmelitas","Francisco Trujillo Gurría (San Pedro)","El Porvenir","Hueso de Puerco","Sur 2da. Sección (La Trinidad)","El Puente 2da. Sección","Lerdo de Tejada 2da. Sección"]
["Lubná","El Sacrificio","Santana 1ra. Sección A","El Triunfo","La Isla","Sur 3ra. Sección (El Zapote)","Río Seco y Montaña 1ra. Sección","Adolfo López Mateos (Corral Nuevo)"]
["MEXTRAC","La Ilusión","Santana 1ra. Sección B","La Pimienta","Coronel Traconis 1ra. Sección (La Isla)","Sur 4ta. Sección","Río Seco y Montaña 2da. Sección","Licenciado Juan César Becerra Bates"]
["Miguel Alemán (X-Campéu)","Oxcán","Santana 2da. Sección A","La Sábana","Ixtacomitán 1ra. Sección","Tecolutilla","San Fernando","Límbano Blandín 1ra. Sección"]
["Nicte-Há","Nohan","Santana 2da. Sección B (La Palma)","Pico de Oro","Ixtacomitán 2da. Sección","Tránsito Tular","San Manuel","Limón 1ra. Sección Sector A"]
["San Martín","Polkay","Santana 3ra. Sección A (El Filero)","San Román","Ixtacomitán 3ra. Sección","Zapotal 1ra. Sección","Tecominoacán","Limón 2da. Sección Sector A"]
["La Paz","El Trébol","Santana 4ta. Sección","Las Porfías","Ixtacomitán 4ta. Sección","Zapotal 2da. Sección","Tierra Colorada 2da. Sección (Silbarán)","El Maluco 1ra. Sección"]
["El Puertecito","La Guadalupe","Santana 5ta. Sección (El Espino)","San Juan","Ixtacomitán 5ta. Sección","Aldama 3ra. Sección (Huapacalito)","Tierra Nueva 1ra. Sección","Melchor Ocampo 1ra. Sección"]
["Quetzal Edzná","La Pimienta","Santa Rosalía (Miguel Hidalgo 2da. Sección)","Francisco Villa","Ismate y Chilapilla 1ra. Sección","Aldama 4ta. Sección (El Naranjito)","Tierra Nueva 2da. Sección","Miguel Allende"]
["La Libertad","Vista Alegre","Santuario 1ra. Sección","Miguel Hidalgo 2da. Sección","La Vuelta (La Jagua)","Arena 5ta. Sección","Tierra Nueva 3ra. Sección","Miguel Orrico de los Llanos"]
["Ramonal","El Sáiz","Santuario 2da. Sección","Nueva Esperanza de Quintín Aráuz","Aztlán 3ra. Sección (Jahuacte)","Arroyo Hondo 2da. Sección","Tres Bocas 1ra. Sección","Monte Adentro"]
["Rancho Nuevo","Paso San Juan","Poblado C-33 20 de Noviembre","Gregorio Méndez Magaña","Jolochero 2da. Sección","Carlos Greene 3ra. Sección","La Venta","Monte Largo 1ra. Sección"]
["La Sureña","Las Granjas","El Yucateco (Paylebot 2da. Sección)","Los Ángeles","Lagartera 1ra. Sección","Sur Aldama","Venustiano Carranza","Morelos"]
["El Felino","La Florida","Poblado C-29 General Vicente Guerrero","La Bellota","Lázaro Cárdenas 1ra. Sección","Emiliano Zapata 2da. Sección","Villa Flores 1ra. Sección","Los Naranjos 1ra. Sección"]
["San Joaquinito","Santa Rita","Zapotal 1ra. Sección","El Palmar (Buenavista)","Lázaro Cárdenas 2da. Sección","Francisco Trujillo Gurría","Villa Flores 2da. Sección","Narciso Mendoza 1ra. Sección"]
["San Jorge","Checubul","Zapotal 2da. Sección","Buenos Aires","Luis Gil Pérez","Guayo 2da. Sección","Estación Zanapa","Nicolás Bravo"]
["San Lorenzo","La Cristalina","Islas Encantadas (El Zapote y Reyes Heroles)","El Coco","Aztlán 1ra. Sección (Sector Majahual)","Guayo 3ra. Sección","C-31 (General Francisco Villa)","Nueva División del Bayo (Guatemala)"]
["San Luciano","Nicolás Bravo","Poblado C-14 General Plutarco Elías Calles","La Concepción","Las Matillas 4ta. Sección","Ignacio Zaragoza 3ra. Sección","C-32 (Licenciado Francisco Trujillo Gurría)","Palomas"]
["San Carlos Número 1","Sabancuy","Poblado C-20 Miguel Hidalgo y Costilla","Chicozapote 2da. Sección","Medellín y Madero 2da. Sección","Ignacio Zaragoza 4ta. Sección (San Andrés)","C-34 (Licenciado Benito Juárez García)","Paraíso"]
["El Tesoro","Puerta Colorada","Ingenio Presidente Benito Juárez","Las Delicias","Francisco I. Madero 1ra. Sección","Lázaro Cárdenas 2da. Sección (El Retiro)","C-40 (Ernesto Aguirre Colorado)","Pedro A. González"]
["San Nicolás Segundo","Estela","Las Coloradas 2da. Sección B","El Encanto","Medellín y Madero 3ra. Sección","Occidente 3ra. Sección","C-41 (Licenciado Carlos A. Madrazo)","Pedro C. Colorado 1ra. Sección"]
["Dieciocho de Octubre","La Arena","El Alacrán (Manatinero)","La Encina y el Porvenir","Medellín y Pigua 1ra. Sección","Patastal 2da. Sección","La Arena 2da. Sección","Pemex (Ciudad Pemex)"]
["Santa Teresita","La Noria","Azucena 5ta. Sección (El Apompal)","El Escoro","Medellín y Pigua 2da. Sección","Patastal 3ra. Sección","Ostitán 1ra. Sección","Pitahaya"]
["La Guadalupana [Trituradora]","La Ganadera","Azucena 4ta. Sección (Torno Alegre)","El Faisán","Medellín y Pigua 3ra. Sección","Sargento López 3ra. Sección (San Jorge)","Ostitán 2da. Sección","Playas de las Jiménez"]
["Hermanos Gil [Trituradora]","Las Delicias","El Parnaso","Los Pericos","Miguel Hidalgo 2da. Sección (La Guaira)","Sargento López 4ta. Sección","Benito Juárez 1ra. Sección","El Porvenir"]
["La Victoria","El Aguacatal","Zapotal 3ra. Sección","Fronterita","Miraflores 1ra. Sección","Oriente 6ta. Sección (Los Mulatos)","Marcelino Inorrueta de la Fuente","Profesor Caparroso 1ra. Sección"]
["Yaxá","Rancho Alegre","Buenavista 2da. Sección","El Gabanudo","Miraflores 3ra. Sección","Uspí","Gregorio Méndez","Profesor Caparroso 2da. Sección"]
["Edzná [Zona Arqueológica]","Los Ángeles","Sinaloa 2da. Sección (Arjona)","Augusto Gómez Villanueva","Miramar","Novillero 4ta. Sección","Río Pedregal","Ramón Grande"]
["Cenit","Santa Gertrudis de Marentes","Las Limas","La Herradura","Pablo L. Sidar (La Aurora)","Champa de Cupilco","Unidad Modelo Sábana Larga","Reforma 1ra. Sección"]
["Cortijo","Bella Palizada","Poblado C-22 Licenciado José María Pino Suárez","Isla del Buey","Pajonal","San Fernando (Pueblo Nuevo)","Aquiles Serdán 1ra. Sección","Santos Degollado 2da. Sección"]
["El Encuentro","Ninguno [Bodega de Arroz]","El Barí 1ra. Sección","La Joya","Parrilla","Independencia 3ra. Sección","Benito Juárez","Santuario 1ra. Sección (Estación Macuspana)"]
["Kikab","El Paraíso","El Carmen","Lerma","Guapinol","Santa Lucía Chichicapa","Caobanal 2da. Sección","Santuario 2da. Sección"]
["Nuevo Pénjamo","Borinque","El Carrizal","Llanuras de Centla","Paso Real de la Victoria","Oriente 1ra. Sección (Santo Domingo)","Cuauhtémoc","Tepetitán"]
["Adolfo Ruiz Cortínez","La Bretaña","Pedro Sánchez Magallanes","Las Mercedes","Plátano y Cacao 4ta. Sección","Arena 6ta. Sección (La Bolsa)","Chimalapa 1ra. Sección","Tierra Colorada"]
["San Miguel Allende","Don Paco","Encrucijada 4ta. Sección A","Las Mercedes","Plátano y Cacao 1ra. Sección","Carlos Greene 4ta. Sección","Chimalapa 2da. Sección","El Triunfo 1ra. Sección"]
["Perros Bravos","California","Poblado C-17 Independencia","Mixteca 2da. Sección","Plátano y Cacao 2da. Sección (La Isla)","Guatemalán","El Guanal","Unión y Libertad"]
["Los Laureles","Candelaria","Ley Federal de la Reforma Agraria (San Ramón)","Mixteca 3ra. Sección","Plátano y Cacao 3ra. Sección","Zapotal 3ra. Sección","El Hormiguero","Venustiano Carranza (La Alianza)"]
["Frutas Tropicales","Zacazonapán","Puerto Escondido","Santander (Mal Paso)","Pueblo Nuevo de las Raíces","Occidente 4ta. Sección","Gustavo Díaz Ordaz 1ra. Sección","Vernet 1ra. Sección"]
["San Francisco Suyucab","El Alba","Santana 3ra. Sección B","La Montaña","Río Tinto 1ra. Sección","Norte 1ra. Sección (Buena Vista)","La Candelaria","Vernet 2da. Sección"]
["Mar Azul","Sulinán","Miguel Hidalgo Zapotal 2da. Sección","Las Palmeras","Río Tinto 2da. Sección","Betania","La Soledad 1ra. Sección","Vernet 3ra. Sección"]
["Club Náutico y Deportivo de Campeche","La Carreta","Rubén Jaramillo Lazo","Palo Alto (Palo Quemado)","Río Tinto 3ra. Sección","Tecolutilla (Riberita)","Las Piedras","Vernet 4ta. Sección (Juan Salas)"]
["El Pocito","Ribera el Carrizal","El Chocho (Boca del Río)","Paquillal","Río Viejo 1ra. Sección","Tupilquillo","Carlos A. Madrazo","Vernet 5ta. Sección (Corozal)"]
["Campeche [Corralón de Grúas]","Centauro del Norte","Santana 2da. Sección C","Boca Grande 2da. Sección (Paquillalito)","Río Viejo 2da. Sección","Potrerillo","Las Giraldas","Vernet 6ta. Sección (San Lorenzo)"]
["Ninguno","San Salvador de los Cerrillos","La Trinidad","La Esperanza","Río Viejo 3ra. Sección","Carlos Pellicer Cámara","Miguel Hidalgo y Costilla","Vicente Guerrero 1ra. Sección"]
["Guanajuato","Adolfo López Mateos","El Arrozal","El Porvenir","Sabanas Nuevas","Río Playa (Los Pochitoques)","Ostitán 1ra. Sección","Virginio Chan 3ra. Sección"]
["San Francisco Kobén [Centro de Rehabilitación Social]","La Nueva Esperanza","Azucena 6ta. Sección","La Punta del Buey","Medellín y Pigua 3ra. Sección (San Antonio)","Tío Moncho (Urania Franyutti de Vázquez)","Rafael Martínez de Escobar","Virginio Chan 2da. Sección"]
["Santa María (La Tusita)","El Conuco","Azucena 7ma. Sección (El Lechugal)","Cuatro Hermanos","Coronel Traconis 5ta. Sección","Gregorio Méndez 4ta. Sección (El Santiago)","Río Seco y Montaña 3ra. Sección (Chinal)","Zopo Norte"]
["La Divina Providencia","El Pinal del Río","Arroyo Hondo 2da. Sección Santa Teresa B","San Carlos","Playas del Rosario (Subteniente García)","León Zárate 2da. Sección","Villa de Guadalupe","Allende Bajo 1ra. Sección (San Joaquín)"]
["San Judas Tadeo","El Cortijo","Celia González de Rovirosa","El Refugio","Tierra Amarilla 1ra. Sección","El Ángel","Paso de la Mina 2da. Sección (Barrial)","Allende Bajo 2da. Sección (San Diego)"]
["Dos Hermanos","El Crucero (La Caminera)","De los Santos","El Retiro","Tierra Amarilla 2da. Sección","Independencia","Paredón 2da. Sección","Bitzal 7ma. Sección"]
["Villa Stephany","El Crucero de San Elpidio","Paso y Playa","Ribera Alta 3ra. Sección","Torno Largo 1ra. Sección","Oriente","Paredón 3ra. Sección","Encrucijada"]
["El Jilguero","Bella Cubita","5 de Mayo","San Agustín","Torno Largo 2da. Sección","Carlos Greene 1ra. Sección Dos (Colonia Jiménez)","Estación Martínez Gaytán","Bayona"]
["El Alazán","Chacan Pato","La Alianza","San Agustín","Torno Largo 3ra. Sección (Sabanilla)","Carlos Greene 1ra. Sección Tres (Colonia el Limón)","Aureo L. Calles","Corralillo 1ra. Sección"]
["Xamantún","El Chamizal","Bajío 1ra. Sección A (Perifércio Sur)","San Juanito de Tres Brazos","Tumbulushal","Cocohital Dos","Santa Lucía","Chilapilla 2da. Sección"]
["El Potosí","El Cocoital (La Chomba)","La Península","La Suiza Uno (San Martín)","La Victoria","Chichicapa Dos","Ignacio Allende","Miguel Hidalgo 2da. Sección"]
["Los Mangos","La Daga","San Rafael","San Miguel","Macultepec","Occidente Villa Aldama","Gustavo Díaz Ordaz 2da. Sección","Lázaro Cárdenas 2da. Sección"]
["El Paraíso","Doña Lidia","Coronel Gregorio Méndez Magaña","San Ramón","La Cruz del Bajío","Gobernadores","Zanapa 1ra. Sección","Francisco Villa"]
["INIFAP","El Milagro de Dios","Las Calzadas","Santa Ana","El Zapotal",null,"Zanapa 2da. Sección (El Tumbo)","Virginio Chan 1ra. Sección"]
["Nuevo Hontún","Dos Hermanos","Ignacio Zaragoza","Santa Andrea","Coronel Traconis 2da. Sección (El Zapote)",null,"Blasillo 2da. Sección (Otates)","El Chinalito"]
["Siete Hermanos","Santa Elena","Santuario 4ta. Sección","Santa Rita","Plutarco Elías Calles (Cura Hueso)",null,"Tierra Colorada 1ra. Sección","Melchor Ocampo 2da. Sección"]
["Seis Hermanos","Loma Bonita","Tío Moncho","Santa Rita","Tamulté de las Sabanas",null,"Paso de la Mina 3ra. Sección","La Unión"]
["El Crucero","San Bartolo","Las Coloradas 2da. Sección (Ampliación las Aldeas)","Nuevo San Luis","La Manga 2da. Sección (El Jobal)",null,"Los Naranjos 3ra. Sección","Mariano Matamoros"]
["Ivette [Granja]","La Esperanza","Miguel Hidalgo","La Suiza","Gaviotas Sur (El Cedral)",null,"José María Morelos y Pavón","Veinte de Noviembre"]
["Chalpa","La Esperanza","La Esperanza","Tasajera","Buena Vista Río Nuevo 4ta. Sección",null,"Central Fournier 2da. Sección","Nuevo Progreso (La Candelaria)"]
["La Esperanza","Tío Justo","Benito Juárez (La Playita)","José María Morelos y Pavón (Tintalillo)","La Manga",null,"Huapacal 2da. Sección","Chivalito 4ta. Sección"]
["Santa Sara","Fina Estampa","Sección 10 de Azucareros","El Tulipán","La Loma",null,"Pico de Oro 3ra. Sección","Límbano Blandín 2da. Sección"]
["Santa Ana","Las Gaviotas","27 de Febrero (Locatarios del Mercado)","Santa María de la Victoria","La Ceiba",null,"Paredón 1ra. Sección (El Porvenir)","La Escalera"]
["San Juan","El Herradero","General Francisco Villa","El Yucatecal","El Zapotal (La Llave)",null,"Paredón 2da. Sección (Álvaro Obregón)","Simón Sarlat"]
["Los Cedros","La Herradura","Luis Donaldo Colosio Murrieta","Francisco I. Madero","El Bajío",null,"El Barí","Pedro C. Colorado 2da. Sección (Orizaba)"]
["Ninguno","Doble H","Naranjeño 2da. Sección B","La Holanda (San Pedrito)","La Lima",null,"Bellas Artes","Maluco 2da. Sección (Juan Vaquero)"]
["Ninguno","La Ilusión","Sinaloa 1ra. Sección","El Limón de Simón Sarlat","La Palma",null,"Bellos Horizontes","Limón 1ra. Sección Sector B"]
["Ninguno","El Imposible","Ampliación Carrizal","El Palmar (Rabelo)","Coronel Traconis (Guerrero 3ra. Sección)",null,"Blasillo 4ta. Sección","El Triunfo 2da. Sección"]
["San Francisco de Asís [Trituradora]","El Refugio","Ampliación Carrizal (Las Palomas)","El Bosque","Ocuiltzapotlán",null,"Cricerio Flores","El Corchal"]
["CONASUPO","San José","El Suspiro","San Carlos","Ismate y Chilapilla 1ra. Sección (San Antonio)",null,"El Cabrito","Chiquihuite"]
["San Francisco Uxmal","San Antonio","Cartagena","El Porvenir","Coronel Traconis (San Francisco 4ta. Sección)",null,"La Laguna","Progreso (Guaruma)"]
["San Joaquín","Los Magueyes","Carlos Alberto Wilson Gómez","El Faro","Acachapan y Colmena 2da. Sección (El Maluco)",null,"La Guadalupe (Cinco Mujeres)","Zopo Sur"]
["Estanzuela","El Mameyal","Campo Magallanes","San Francisco","Alvarado (Colima)",null,"El Carmen","Allende Alto 1ra. Sección"]
["El Colombiano","Los Manantiales","Poblado C-16 General Emiliano Zapata Uno","El Conti","Boca de Aztlán 2da. Sección",null,"La Ceiba 2da. Sección","Arroyo Hondo (Vicente Guerrero 2da. Sección)"]
["Las Tres Cruces","San José Marentes","Poblado C-16 General Emiliano Zapata Dos","El Recreo (El Tumbo)","Boca de Guanal",null,"Cinco Hermanos","Alto Tulijá 1ra. Sección (Lechugal)"]
["Chiná [Corralón]","Mata del Tigre","Poblado C-16 General Emiliano Zapata Tres","El Recreo","Boquerón 2da. Sección (El Barquillo)",null,"El Cocoite","El Bayo 1ra. Sección (Granada)"]
["Las Lomas","La Concordia","Cuauhtémoc (W-65)","San José","Cocoyol (Socialista)",null,"La Imaginación","Cacahuatalillo"]
["San Antonio Xkix","Mina de Oro","Santa Isidra","Los Ángeles","El Chilar",null,"El Chapo 1ra. Sección","La Candelaria (El Barrial)"]
["Dzicilá","San José (Los Morenos)","Miguel Hidalgo 2da. Sección A (El Eden)","La Tigrera","Pablo L. Sidar (Guineo)",null,"Chicoacán","Clemente Reyes 2da. Sección (Cantemoc)"]
["San Luis","La Revolución","Poblado C-09 Licenciado Francisco I. Madero","Miraflores (La Bellota)","Ismate y Chilapilla 2da. Sección",null,"Don Gustavo (Los Pinos)","El Guanal"]
["Gatos Güeros","La Odisea","Los Arévalos","Arroyo Polo 2da. Sección","Medellín y Madero 4ta. Sección",null,"La Providencia","Corozo"]
["Ex-Hacienda X-Tum","El Palay","Las Coloradas 1ra. Sección","Arroyo Polo 1ra. Sección","Pablo L. Sidar (Miramar)",null,"Diez de Abril","El Güiro"]
["Santa Ana","Las Palmas","Las Esperanzas","Luis Echeverría Álvarez","La Palma",null,"Aquiles Serdán 2da. Sección (Azucenita)","Maculizal"]
["San Jorge","Palma Sola","León Pacheco","El Palmar","Parrilla 4ta. Sección (Los Acosta)",null,"Francisco J. Mújica","Otatal"]
["El Pegaso","Palo Alto","Madrigal Pérez (Las Cuatro R)","El Gran Chaparral","Parrilla 5ta. Sección (El Carmen)",null,"Francisco Trujillo Gurría","Benito Juárez Sección Panzillal"]
["El Gallito Feliz","Las Palomas","Mario Morales (De los Morales)","Tembladeras","Plutarco Elías Calles",null,"Francisco Villa","Ramoncito"]
["Chapín","El Paraíso","El Pérsico","Punta el Manglar","Ribera de las Raíces",null,"Las Galaxias","Reforma 2da. Sección"]
["Río Verde","Sueño de Oro","Poza Redonda 3ra. Sección","Los Guácimos","Las Raíces",null,"La Gavia","San Antonio"]
["Ninguno [Bloquera del Gobierno del Estado]","Las Piñas","Rodríguez Polanco (Kilómetro Cinco)","La Guadalupe","San Marcos",null,"José Mercedes Gamas 1ra. Sección","San Lucas"]
["Buenaventura","El Pital","Rosique Palavicini","Chilapa 1ra. Sección (Margen Derecha)","La Vuelta 1ra. Sección (La Gloria)",null,"Gregorio Méndez Magaña","Santa Cruz"]
["Kalá","Las Gradas","Santuario 5ta. Sección Buena Vista","Rómulo Cachón Ponce (Hormiguero)","Barrancas y Guanal López Portillo",null,"Guadalupe Victoria","La Sombra"]
["El Paraíso","Polboxal","Azucenita 1ra. Sección B","Lázaro Cárdenas (El Guao)","Fraccionamiento Ocuiltzapotlán Dos",null,"Ogarrio (Rancho de los Manzanilla)","Tepetitán (Emporio)"]
["Castamay [Trituradora]","El Porvenir","Poblado C-28 Coronel Gregorio Méndez Magaña Uno","El Porvenir (De Quintín Arauz)","El Alambrado",null,"Guerrero","Tierra Colorada (Vicente Guerrero 3ra. Sección)"]
["Chivic","Amira (San Martín)","Encrucijada 1ra. Sección Rincón Brujo","Santa Leonor","Rovirosa",null,"Ignacio Gutiérrez 4ta. Sección","Veinte de Noviembre"]
["EST Agropecuaria Número Doce","Los Comales","Poblado C-10 General Lázaro Cárdenas del Río Uno","El Pitayo","Boca Grande el Espino",null,"José María Morelos y Pavón","Xicotencatl"]
["El Morado","El Recuerdo","Juan Escutia","Las Tijeras","El Novillo",null,"José María Pino Suárez","La Y Griega"]
["Edzná F-Uno [Centro de Recría]","El Refugio","Julián Montejo Velázquez","Ribera Alta Salsipuedes (Salsipuedes)","Aztlán 5ta. Sección (Palomillal)",null,"El Otate","José López Portillo"]
["Los Laureles","Ribera de San Francisco","Poblado C-15 Adolfo López Mateos Uno","Boca de Pantoja","Aztlán 2da. Sección el Cuy",null,"Luis Cabrera","Corralillo 2da. Sección (La Princesa)"]
["El Huevo","El Rocío","Poblado C-22 Licenciado José María Pino Suárez Uno","El Porvenir","Constitución",null,"Macabil","Tomás Garrido Canabal"]
["Ricer [Trituradora]","Nuevo Ontario","Las Nuevas Esperanzas","Ribera Alta de Cuauhtémoc","La Providencia (La Majahua)",null,"Macabilito","Las Ferias"]
["San Pedro","El Sacrificio","Poza Redonda 4ta. Sección (Rincón Brujo)","Adolfo López Mateos","Torno Largo Estancia (El Manguito)",null,"Central Fournier 2da. Sección","Benito Juárez"]
["Kalá [Fábrica]","Sagrado Corazón de Jesús","Arroyo Hondo (San Rosendo)","Lázaro Cárdenas","Miraflores 2da. Sección",null,"Los Cocos","El Mango"]
["Nuevo San Antonio Ebulá","La Salada","Calzada 1ra. Sección Sur","Mocambo (Cantarrana)","Buena Vista 2da. Sección (El Tular)",null,"La Esperanza","El Reventón"]
["EBORCA","San Antonio","El Golpe 2da. Sección (Los Patos)","El Gorgojo (Santa Rosa)","Plutarco Elías Calles (La Majahua)",null,"Palo Blanco","Narciso Mendoza 2da. Sección"]
["San Felipe del Jesús","San Antonio","Encrucijada 2da. Sección (Los García)","Libertad de Allende","Parrilla II",null,"Las Pampas","Sitio Nuevo"]
["La Palma","San Benito","Sinaloa 3ra. Sección","El Naranjal","Anacleto Canabal 3ra. Sección (Constitución)",null,"El Paraíso","Buena Vista (Puxcatán)"]
["Santa Concepción","San Carlos","Cuauhtemoczín 2da. Sección","Veintisiete de Febrero","Lázaro Cárdenas 2da. Sección (21 de Marzo)",null,"Linda Vista","Ampliación Morelos (Los Morales)"]
["El Yuco","San Dolores","Río Seco 2da. Sección (Norte 10)","Leandro Rovirosa Wade 2da. Sección","Aztlán 1ra. Sección (La Piedad)",null,"Pedregal Moctezuma 2da. Sección","Ampliación Morelos"]
["San Pastor","Las Hermanas","Río Seco 1ra. Sección","El Carmen 1ra. Sección","Coronel Traconis 5ta. Sección (San Isidro)",null,"El Pedregal","Nabor Cornelio"]
["Santo Domingo","San Felipe del Coyoc","Las Coloradas la Victoria","Constancia y Venecia","Medellín y Pigua 4ta. Sección (El Aguacate)",null,"Pejelagartero 1ra. Sección (Los Pinos)","Andrés García"]
["Santa Cruz","San Fernando",null,"García","Lagartera 2da. Sección",null,"Pico de Oro 4ta. Sección (Pejelagarterito)","Guacamaya"]
["La Adelita","San Francisco",null,"Niños Héroes","Villa Unión",null,"C-25 (Isidro Cortés Rueda)","Trinidad Malpica Hernández"]
["Los Dos Alacranes","San Isidoro",null,"San Antonio","Las Matillas 4ta. Sección (San Antonio)",null,"Ramírez","El Venadito"]
["Yashalum","San José",null,"Miguel Hidalgo 1ra. Sección","Jornaleros y Aparceros (Pajaritos)",null,"Las Giraldas","Celia González de Rovirosa"]
["Boxol","San José",null,"Kilómetro 18","Acachapan y Colmena 2da. Sección (La Lima)",null,"La Mina","Melchor Ocampo 3ra. Sección"]
["El Chiapaneco","San José",null,"Francisco I. Madero","Dieciséis de Septiembre",null,"Valencia","Santa Ana"]
["Los Ciclistas Chablé","San José",null,"San Miguel","González 1ra. Sección (Punta Brava)",null,"El Recreo","Tierra Colorada (El Indio)"]
["El Cortijo","San José (El Desecho)",null,"El Rin","Ismate y Chilapilla 2da. Sección Jahuactillo",null,"Campo Real (El Recuerdo)","Belén Monte Largo 3ra. Sección (Tronchadero)"]
["Los Carlos","San Juan",null,"Fraccionamiento Miramar","La Arena",null,"La Ceiba 1ra. Sección (Ruiz Cortínes)","Ignacio Zaragoza (Los Ateos)"]
["SEOPC","San Ramón",null,"Cañaveral Corcovado","Pablo L. Sidar",null,"San Antonio","San Antonio"]
["El Desierto","Santa Anita",null,"La Esperanza","El Manzano",null,"Zapotal 1ra. Sección (San Miguel)","El Regocijo"]
["Hampolol (UEMBI)","Santa Claudia",null,"El Danzi","Santa Lucía",null,"Santa Cruz","Nueva Esperanza"]
["Dziché","Santa Cruz",null,"Gran Chaparral y Faisán","Alvarado Santa Irene 2da. Sección (El Taizal)",null,"El Suspiro","San Francisco"]
["La Gloria","Santa Isabel",null,"El Pajaral (Los Pescadores)","La Francia",null,"La Laguna","Monte Largo 2da. Sección"]
["El Guayabo","Santa Teresa",null,"San Lorenzo","La Juliana (El Chilar)",null,"Lago Escondido (El Tasiste)","San Juan de Ismate"]
["Ninguno","Santa Socorro (El Cuyo)",null,"San José del Carmen","El Recreo",null,"Tembladera 1ra. Sección","Los Gurría"]
["La Soledad","Santa Teresa",null,"Francisco Villa (Guano Solo)","San Miguel",null,"Tierra Colorada 3ra. Sección","Vernet Sierra de Guadalupe"]
["Ninguno","La Guadalupana (El Sitio)",null,"Benito Juárez Lechugal","Aniceto",null,"La Libertad","San Juan Bautista"]
["La Esperanza","Solamente Dios",null,"Carlos Rovirosa 2da. Sección (La Costeñita)","Parrilla 3ra. Sección (La Providencia)",null,"El Trébol (La Estrella)","Los Arbolitos"]
["Siete Huevos y Medio","Salvador",null,"El Privilegio (Buenavista)","Aztlán 5ta. Sección (Don Lorenzo)",null,"Tres Bocas 2da. Sección (El Zapotal)","Los Güiros"]
["Ninguno","Angélica",null,"José Herrera Taku","Buena Vista 2da. Sección (Colonia José María)",null,"La Concepción","Los Naranjos 2da. Sección (Sección Pichalito)"]
["Oreb y Sinaí","Toluca",null,"El Reflejo","Buena Vista 2da. Sección (Colonia Nueva)",null,"La Chicharra","Huapacal"]
["Jamo","Toluca-México [SPR]",null,"Revolución","Coronel Traconis (San Diego 5ta. Sección)",null,"Esperanza del Bajío","Vernet 1ra. Sección (Los Venados)"]
["Kiara","Anexo el Rubí",null,"San Isidro","La Cruz del Bajío (La Soledad)",null,"Buena Fe","Limón 1ra. Sección Sector C"]
["El Escorpión","Brasil",null,"El Carmen (El Uno)","Flores del Trópico",null,"Claguamar","Limón 2da. Sección Sector B"]
["La Lenchita","La Xtabay",null,"San José","Jolochero (Boca de Culebra)",null,"La Deliciosa","Carmen Serdán"]
["Casandra","San Antonio",null,"Leandro Rovirosa Wade 1ra. Sección","José Asmitia 3ra. Ampliación",null,"Arriba y Adelante","El Triunfo 3ra. Sección"]
["Ninguno [Trituradora]","San Antonio Punta de Piedra",null,"El Socorro","Luis Gil Pérez (La Villa)",null,"Las Elenas","Clemente Reyes 2da. Sección"]
["Nueva Esperanza","Las Palomas",null,"Altamira","Miraflores 2da. Sección (Zapotillo)",null,"Los Morales","Abasolo 1ra. Sección"]
["Paraíso","Las Araucarias",null,"Francisco I. Madero (La Montaña)","La Paila",null,"Licenciado Antonio Zamora Arrioja","Bajo Allende 1ra. Sección"]
["Pichula CR","Pinzón",null,"Mesa Dorada","Los Patos",null,"San Carlos (La Mosca)","San José"]
["Puertas Cuatas","San Gilberto",null,"San Nicolás","Los Sauces",null,"Miguel Alemán Valdez","El Chinal"]
["Santa María [Trituradora]","La Lupita",null,"Ribera Alta 2da. Sección","Tierra Amarilla 3ra. Sección",null,"Organización Campesina CNC","Aquiles Serdán"]
["Ninguno [Repetidora Canal Trece]","Santa Elena",null,"Josefa Ortíz de Domínguez","Aztlán 4ta. Sección (El Bajío)",null,"Vieja Guardia Agrarista","García"]
["Shara","La Envidia",null,"Frontera","El Rosario y el Quemado",null,"Tembladera (Paso Viejo)","La Curva Uno"]
["Leopardo","San Fernando",null,"San Jorge (Pravia)","García",null,"Rancho Nuevo","Linda Vista"]
["Ex-Hacienda San Francisco Kobén (La Noria)","La Uvita",null,"Hablan los Hechos (Santa Rosa)",null,null,"La Palma","Santa Lucía"]
["Los Ocho Hermanos","Don Ignacio",null,"Alta Vista",null,null,"Laguna del Rosario","La Curva Dos"]
["El Porvenir","Santa Cruz",null,"Chilapa 2da. Sección (Cañaveralito)",null,null,"Paso de la Mina 1ra. Sección","Independencia"]
["Saúl Alberto","Buena Vista Aguada",null,"Buenos Aires",null,null,"San Juan","Abasolo 2da. Sección"]
["El Sombrerón","Martín Salvador (El Chavito)",null,"El Carmen 2da. Sección",null,null,"Altamira","Carlos Greene 1ra. Sección"]
["Ninguno [Unidad Económica]","Kayakal",null,"Lázaro Cárdenas",null,null,"San Pedrito","La Ceiba"]
["San Guillermo","La Vera (Chen Rosado)",null,"Macayo",null,null,"El Complejo","Simón Sarlat 2da. Sección (San Martín)"]
["Hermanos González","El Anonal",null,"El Palmar",null,null,"Nuevo Progreso","Independencia Uno"]
["Hermanos Colín","Dos Hermanos",null,"Las Palmas",null,null,"Pejelagartero 1ra. Sección (Gpe. Victoria)","Las Lomas de Caparroso"]
["Ninguno","El Porvenir",null,"Paso de Tabasquillo",null,null,"Pejelagartero 1ra. Sección (Chichonal)","Narciso Mendoza (Chilapilla 1ra. Sección)"]
["Santa Cruz","La Herradura",null,"El Porvenir",null,null,"Pejelagartero 1ra. Sección (El Filero)","La Providencia"]
["Ninguno","El Carmen [Unidad Agropecuaria]",null,"Rómulo Cachón",null,null,"Zapotal 4ta. Sección (Zapotalito)"]
["Yashanal","Oxcabal",null,"El Rosario",null,null,"Zapotal 3ra. Sección (El Corchal)"]
["Ninguno","San Antonio",null,"San Antonio",null,null,"Pejelagartero 2da. Sección (Nueva Reforma)"]
["Ninguno","Fénix (SEDESOL)",null,"Santa Teresa",null,null,"El Desecho 1ra. Sección (Playa I)"]
["Sierrita","Isla Pájaros",null,"María del Rosario Gutiérrez Eskildsen",null,null,"El Dorado"]
["Ninguno","Punta del Este",null,"Caparroso",null,null,"La Trinidad"]
["Ninguno","Ensenada Grande",null,"Álvaro Obregón 2da. Sección (El Lechugal)",null,null,"La Aduana"]
["Guadalupe","Casa Blanca",null,"El Vergel de Allende",null,null,"La Ceiba"]
["Lágrimas","Punta Ala",null,"Luis Donaldo Colosio Murrieta",null,null,"José María Pino Suárez 2da. Sección"]
["Santa Carolina (El Potrillo)","Palma Real [Club de Playa]",null,"San José de Simón Sarlat (El Coco)",null,null,"Chicoacán (Ampliación)"]
["Ninguno","La Veleta",null,"Los Ídolos Margen Izquierda",null,null,"Monte de Oro 2da. Sección"]
["Las Margaritas","San Luis",null,null,null,null,"El Mangal"]
["Las Palomas","La Lupita",null,null,null,null,"Los Naranjos"]
["PROAGRO","La Reata",null,null,null,null,"C-26 (General Pedro C. Colorado)"]
["Hermanos Pool [Quebradora]","La Flor",null,null,null,null,"San Rogelio"]
["San Antonio Cayal","Mis Sueños",null,null,null,null,"Paredón 1ra. Sección (La Isla)"]
["Santa Trinidad","Santa Leonor",null,null,null,null,"San Rafael"]
["El Tigre","Cerro Azul",null,null,null,null,"Celia González de Rovirosa"]
["Cayal [Vivero]","Cuatro Hermanos",null,null,null,null,"La Lucha"]
["Las Ánimas","La Guadalupe",null,null,null,null,"La Luz"]
["Ka'anaj Sha'an","Los Dos Potrillos",null,null,null,null,"Enrique Rodríguez Cano"]
["D'fox","Las Palomas",null,null,null,null,"Emiliano Zapata (Kilómetro 4)"]
["Los Cedros","La Aurora",null,null,null,null,"Economía"]
["Chac Luum","Kristel",null,null,null,null,"El Vergel"]
["El Chaleco","Veinte de Octubre (Tres Hermanos)",null,null,null,null,"Eduardo Alday Hernández"]
["Montichelo","Vista Alegre (Peor es Nada)",null,null,null,null,"Gilberto Flores Muñoz"]
["Ninguno [Depósito de Explosivos]","Las Delicias",null,null,null,null,"Margarito Zapata"]
["Ninguno [Depósito de Explosivos]","La Candelaria",null,null,null,null,"Nueva Esperanza"]
["Delfines de Márquez [Escuela de Futbol]","El Infierno",null,null,null,null,"Panga Nueva (La Central)"]
["La Granja","San Manuel",null,null,null,null,"Santa Petrona"]
["El Humilde","El Jobo",null,null,null,null,"Benito Juárez 2da. Sección (Monte Alegre)"]
["Ninguno","La Victoria",null,null,null,null,"Ernesto Aguirre Colorado"]
["Dos Hermanos (Los Cedros)","Centenario",null,null,null,null,"La Lima (Tres Bocas)"]
["Ranqueño","San Miguel",null,null,null,null,"La Loma"]
["Ninguno","La Galaxia",null,null,null,null,"Los Laureles"]
["Jungla Uno","Abreu (La Anona)",null,null,null,null,"San Alfredo"]
["El Potrillo","San Julián",null,null,null,null,"El Zopilote"]
["Ninguno","El Porvenir",null,null,null,null,"Caobanal 1ra. Sección (La Victoria)"]
["La Esperanza","Bucareli",null,null,null,null,"Los Viveros"]
["Los Tamarindos","La Esperanza",null,null,null,null,"Pedro Sánchez Magallanes"]
["El Doble","San Pedro",null,null,null,null,"Pejelagartero 2da. Sección"]
["La Guadalupe","Tres Reynas",null,null,null,null,"El Palmar"]
["Ninguno","El Diamante",null,null,null,null,"Chiloloco"]
["Ninguno","Ninguno [Rastro Municipal]",null,null,null,null,"Agapito Domínguez Canabal"]
["Las Islas","San José Dos",null,null,null,null,"Otra Banda 2da. Sección"]
["Jota Pe","El Picante",null,null,null,null,"Pedro C. Colorado 3ra. Sección"]
["Kalá [Motel]","Nohan [Fracción Segundo]",null,null,null,null,"Samaria"]
["El Gallo","Michoacán",null,null,null,null,"Oaxaca"]
["El Paraíso","La Carolina",null,null,null,null,"El Condor"]
["San José [Quebradora]","Santa Ana",null,null,null,null,"El Charco"]
["El Rincón","El Milagro",null,null,null,null,"Grano de Oro"]
["San Bernardo","Lomas de Román",null,null,null,null,"Palmira"]
["Santa Fe","Los Tulipanes",null,null,null,null,"Ojo de Agua"]
["Sagrado Corazón de Jesús [Trituradora]","Ribera Media San Francisco",null,null,null,null,"Campamento Galilea"]
["Uayamón","Ribera Alta San Francisco",null,null,null,null,"Las Lomas"]
["Ninguno [Unidad Pozo Número Tres]","La Ponderosa",null,null,null,null,"El Retoño"]
["San Miguel y Alcaché","San Martín",null,null,null,null,"Tito Soria (La Galaxia)"]
["Carlos Cano Cruz (Los Tlaxcaltecas)","La Lagartera",null,null,null,null,"Francisco Martínez Gaytán 2da. Sección"]
["Ninguno [Unidad Pozo Número Uno]","El Paraíso",null,null,null,null,"Framboyán"]
["Boxol","San César (Arroyo Negro)",null,null,null,null,"Zapopan"]
["Ninguno","San José",null,null,null,null,"Gustavo Díaz Ordaz 3ra. Sección"]
["Ninguno","La Guadalupe",null,null,null,null,"Tierra Nueva 4ta. Sección"]
["Ninguno","Santa Isabel Uno",null,null,null,null,"Las Granjas"]
["Ninguno","Generalísimo Morelos",null,null,null,null,"Miguel Alemán"]
["Rancho Viejo","Valle de Solidaridad",null,null,null,null,"Emporio"]
["San Antonio Boxol","Murallas de Campeche",null,null,null,null,"José Narciso Rovirosa"]
["Instituto Tecnológico de Lerma","Fernando Foglio Miramontes",null,null,null,null,"Tío Moncho (Caobanal 1ra. Sección)"]
["San Simón","Las Margaritas",null,null,null,null,"Santa Cruz"]
["Boxol [Torre de Microondas]","El Herradero",null,null,null,null,"Cangrejera"]
["Centro Ecológico de Campeche","Tres Hermanos",null,null,null,null,"Antonio Cárdenas"]
["Edgar [Deshuesadero]","San Antonio",null,null,null,null,"Monte de Oro 3ra. Sección"]
["Santa Rosa","Cuatro Hermanos",null,null,null,null,"Don Ostadio"]
["Agroinsumo del Sureste","La Lorena",null,null,null,null,"Río Seco y Montaña 3ra. Sección (Ampliación)"]
["Ana María","San Joaquín del Este",null,null,null,null,"Audomaro Gurría"]
["La Bamba","La Espada",null,null,null,null,"Don Teco"]
["El Wolpoch","Las Tres Marías",null,null,null,null,"Manuel Treviño"]
["Doña Susy","El Gran Chaparral",null,null,null,null,"La Nueva Esperanza"]
["La Guadalupe","El Delirio",null,null,null,null,"Beto Aguilera"]
["Hacienda Santa Rosa","El Sacrificio",null,null,null,null,"Luis Felipe Ordóñez"]
["Ninguno","El Reparo",null,null,null,null,"La Quebrada"]
["Las Cruces","San Isidro Dos",null,null,null,null,"El Sacrificio"]
["Ninguno","San Miguelito",null,null,null,null,"Rancho Alegre"]
["Las Maravillas","Santa Gertrudis",null,null,null,null,"Emiliano Zapata 2da. Sección"]
["El Norteño","Las Dos Concepciones (La Asunción Dos)",null,null,null,null,"Chicoacán 1ra. Sección"]
["Caperucita y Hermanos","San José del Carmen",null,null,null,null,"San Manuel Tenerife"]
["La Torcaza","Montecristo",null,null,null,null,"La Soledad 2da. Sección"]
["San Antonio","Potrero del Llano",null,null,null,null,"Santa Cruz"]
["San Fernando","Justo Sierra",null,null,null,null,"Poblado C-31"]
["San Francisco","Alma Ranchera",null,null,null,null,"Poblado C-41"]
["El Sinaí","Los Reyes",null,null,null,null,"Pejelagartero 1ra. Sección (Nuevo Progreso)"]
["San Horacio","El Islote",null,null,null,null,"Zapotal 5ta. Sección"]
["San Joaquín","Cruz Blanca",null,null,null,null,"El Chapo 2da. Sección"]
["San José","San Miguelito",null,null,null,null,"Ignacio Gutiérrez 5ta. Sección"]
["Los Cachitos","Camahuil",null,null,null,null,"Tres Bocas 3ra. Sección"]
["San Salvador","La Providencia",null,null,null,null,"Tierra Colorada 4ta. Sección"]
["San Vicente","El Progreso del Sultán",null,null,null,null,"Enrique Rodríguez Cano"]
["La Sierrita","El Filipino",null,null,null,null,"Tomás Garrido Canabal"]
["Tres Américas","Las Gemelas",null,null,null,null,"Armando de la Fuente"]
["Tres Hermanos","San Fernando",null,null,null,null,"El Carmen"]
["Ninguno [Unión Ganadera]","El Colocal",null,null,null,null,"Ignacio Allende (Chapingo)"]
["Cerro Verde","Tres Marías",null,null,null,null,"El Cruceño"]
["Rancho Viejo","Dos Hermanos",null,null,null,null,"Cuauhtémoc y Palmira"]
["Ninguno","El Roblar",null,null,null,null,"Doctor Vladimir Bustamante"]
["Santiago Aguada","San Benito",null,null,null,null,"La Gloria"]
["Don Goyo","Santa Rosa",null,null,null,null,"Huapacal 3ra. Sección"]
["La Escondida","Sinaloa",null,null,null,null,"Isidro Broca"]
["Hacienda Tec","La Guadalupe",null,null,null,null,"El Jobo"]
["Las Potrancas","Las Gaviotas",null,null,null,null,"Macabil"]
["Veinte de Septiembre","Las Cruces",null,null,null,null,"Las Margaritas"]
["Las Avestruces","La Lucha",null,null,null,null,"Mastelero"]
["Chulbac [Unidad de Producción Acuícola]","Los Cuatro Hermanos",null,null,null,null,"Los Naranjos 4ta. Sección"]
["Santa Genoveva","El Arbolito",null,null,null,null,"Pedregalito 1ra. Sección (Vicente Guerrero)"]
["La Aurora","Santa Teresa",null,null,null,null,"Pedro C. Colorado 1ra. Sección"]
["San Antonio la Paz","Santa Martha",null,null,null,null,"Pejelagartero 2da. Sección (Jahuacte)"]
["Sak-Katsín","Jalisco",null,null,null,null,"Poblado C-34"]
["Ninguno","Los Pilotos",null,null,null,null,"La Primavera"]
["Ninguno","El Cocoyol",null,null,null,null,"El Refugio"]
["El Mirador","El Carmen",null,null,null,null,"Río Pedregal 2da. Sección (Guadalupe Victoria)"]
["Ninguno","Santa Cruz",null,null,null,null,"Roberto Madrazo Pintado"]
["Las Melinas","Señor de Tila",null,null,null,null,"El Sacrificio"]
["Ninguno","San Pedro",null,null,null,null,"Salvador Neme Castillo"]
["Vías San Manuel","Las Mercedes",null,null,null,null,"El Sauce"]
["Rancho Alegre","San Rafael",null,null,null,null,"Los Tecos"]
["Chamuchín","El Sacrificio",null,null,null,null,"Tembladera 2da. Sección (Concepción Álvarez)"]
["Ninguno","Jovero",null,null,null,null,"Tierra Nueva 1ra. Sección (Las Palmas)"]
["Ninguno","El Palomo",null,null,null,null,"El Trébol"]
["La Ilusión","El Girasol",null,null,null,null,"Tres Bocas"]
["Ninguno","Diecinueve de Octubre",null,null,null,null,"Tres Gotas de Agua"]
["La Consentida","Dos Arbolitos",null,null,null,null,"La Trinidad"]
["Dos Hermanos","El Refugio",null,null,null,null,"La Venta (El Cuatro)"]
["El Diamante de July","El Tigre",null,null,null,null,"Por la Moral de un Presidente"]
["Duelas y Lambrinas de Campeche","San Carlos",null,null,null,null,"Huapacal 4ta. Sección"]
["El Encanto","El Tamarindo",null,null,null,null,"Francisco I. Madero (Los Naranjos)"]
["El Maculis","Agrourbe [Maquinaria]",null,null,null,null,"Poblado C-31 Uno"]
["Ninguno","Aguada del Pájaro",null,null,null,null,"Pejelagartero 1ra. Sección (El Arroyito)"]
["Ninguno","Los Ángeles",null,null,null,null,"El Puente 2da. Sección"]
["Chacón","Anexo Bahamita",null,null,null,null,"Manuel Andrade Díaz"]
["Richaud [Trituradora y Materiales]","El Bohío",null,null,null,null,"Palo Mulato Viejo"]
["Ninguno","La Bomba",null,null,null,null,"Santa Cecilia"]
["Alesa [Prefabricados]","El Cairo",null,null,null,null,"Zapotal San Miguel 1ra. Sección Ramal Uno"]
["Ninguno","El Campeón",null,null,null,null,"Escobedo"]
["Ninguno","El Capiro",null,null,null,null,"General Miguel Orrico de los Llanos"]
["San Pedro","Carlos Salinas de Gortari",null,null,null,null,"La Florida"]
["As-Adulam","La Carmita (La Texana)",null,null,null,null,"La Trinidad"]
["Ninguno","Carrillón",null,null,null,null,"San Lázaro"]
["Kinhá [Ecovillas]","El Carrizal",null,null,null,null,"Unión y Fuerza"]
["La Guadalupe [Pozo 6]","El Cedralito",null,null,null,null,"Libertad Agraria"]
["Ninguno","El Chamizal"]
["La Algodonera","El Cival"]
["Nuestra Señora de la Paz","El Compa"]
["Chamizal","Conahás"]
["San Antonio Cayal","El Crucero"]
["Ninguno","Las Damas [Isla]"]
["Campestre Cholul","Las Delicias"]
["Maculises de Pocyaxum [SPR]","Las Delicias"]
["Paraíso (Frutas Tropicales)","Don Rómulo"]
["Sierra Verde de Cayal","La Esperanza"]
["Xamán Zac","La Esmeralda"]
["El Saramuyo","El Faisán"]
["Coyote Flaco","La Bendición de Dios"]
["Nueva Esperanza","La Giralda"]
["Dos Hermanos","La Guadalupe"]
["La Guadalupe","Guanabal"]
["Ninguno","La Herradura"]
["Pancho Chí [Unidad]","Huarixe Playa"]
["El Cedro","La Veleta"]
["Hermanos López","Cristo Rey"]
["Jurajao Cuatro","El Azabache"]
["Ninguno","Ninguno"]
["Ninguno","Santa Rosa (Las Bugambilias)"]
["Ninguno","Los Tulipanes"]
["San Fernando","Dieciséis de Septiembre"]
["San Pedro","Las Almendras"]
["San Pedro","La Parabólica"]
["Seis Hermanos","El Pocito Segundo"]
["Zarahembla","Ninguno"]
["La Trinidad","La Esperanza"]
["Los Abuelos","San Rafael"]
["El Establo","Ninguno"]
["Ninguno","Ninguno"]
["Ninguno","La Florida"]
["Ninguno","La Escondida"]
["Ninguno","Ninguno"]
["El Morenal","La Escondida"]
["Ninguno","San Andrés"]
["El Porrazo","Altamira (El Guayal)"]
["San Francisco","San Francisco (Tres Hermanos)"]
["Ninguno","Tequila"]
["El Sacrificio","Ninguno"]
["Ninguno","Santa Cecilia"]
["Los Abuelos","La Flor"]
["Los Osos","Las Palmas"]
["ABR Construcciones","Atila"]
["AGROPAPAYA","El Talismán"]
["Cristo en el Camino","La Esperanza"]
["Don Lucio","El Ángel"]
["El Huerto","El Laurel"]
["Santa Catalina","El Manguito"]
["El Potrero","El Recreo"]
["El Zapote","Ninguno"]
["Granalera y Agropecuaria Campechana","Ninguno"]
["Ninguno [Grupo Acuícola Campechanos]","Paraíso Playa"]
["La Campiña","El Paraíso"]
["La Granja","San Antonio"]
["La Guadalupana","San Miguel"]
["La Lechería","Ninguno"]
["Santa Isabel","Isla Panlao"]
["La Unión","El Jabín"]
["Las Palmas","Laguna de Términos"]
["Ninguno","Los Laureles"]
["Ninguno","El Milagro"]
["Ninguno","El Mango"]
["Ninguno","Los Mangos"]
["Ninguno","Los Manguitos"]
["Ninguno","Las Maravillas"]
["Ninguno","Mazatlán"]
["Ninguno","El Milagro"]
["Ninguno","El Momal"]
["Ninguno","El Cubilete"]
["Ninguno","La Carmelita"]
["Ninguno","Anayeli"]
["Ninguno","La Paila"]
["San José","El Rubí"]
["Las Rosas","Anexo la Palma"]
["Ninguno","Maná"]
["Ninguno","Peor es Nada (La Pochitoca)"]
["El Katalosh","Peor es Nada"]
["Las Gaviotas","El Pepito"]
["Ninguno","El Pimental"]
["San Vicente","El Durazno"]
["Ninguno","El Pocito"]
["La Finca","Rancho Alegre"]
["Ninguno","El Milagro"]
["El Estribo","La Renuncia"]
["Ninguno","El Chivero II"]
["Ninguno","El Roble"]
["El Tesoro","El Sacrificio Dos"]
["Los Martínez","El Sacrificio"]
["Lujair","El Sacrificio"]
["Mont Agro","Salman"]
["Oaxaquita","San Andrés"]
["Guadalupe [Predio Rústico]","San Antonio"]
["El Cerrito","La Herradura"]
["El Monasterio","San Felipe"]
[null,"San Armando"]
[null,"La Paila"]
[null,"San Felipe"]
[null,"San Fernando"]
[null,"San Fernando"]
[null,"San Francisco del Este"]
[null,"San Gabriel (Corpus Christi)"]
[null,"El Estribo"]
[null,"San José"]
[null,"El Salvaje"]
[null,"La Victoria"]
[null,"San Manuel"]
[null,"San Miguel"]
[null,"San Miguel"]
[null,"San Miguel"]
[null,"San Román"]
[null,"San José"]
[null,"Las Rositas"]
[null,"La Muñeca"]
[null,"La Ensenada"]
[null,"El Cedro"]
[null,"Santa Martha"]
[null,"Santa Rita (Santa Anita)"]
[null,"Santa Rosa"]
[null,"Santa Soledad"]
[null,"Ninguno [Sección Cuarenta y Dos]"]
[null,"La Tercia"]
[null,"Anexo el Tesoro"]
[null,"Ninguno"]
[null,"El Tigre"]
[null,"El Tintal"]
[null,"El Toro"]
[null,"Tres Valles"]
[null,"El Dorado"]
[null,"Viaducto Playa"]
[null,"El Zapote"]
[null,"El Zapote"]
[null,"Los Cactus"]
[null,"La Camelia"]
[null,"Camino a la Gloria"]
[null,"Las Margaritas"]
[null,"Blanca Citlally"]
[null,"El Chip"]
[null,"La Escondida"]
[null,"La Florida"]
[null,"El Gallo"]
[null,"Polvorín [Geofísica Zona Marina]"]
[null,"La Guadalupe"]
[null,"Siete de Copas Uno"]
[null,"San Joaquín"]
[null,"El Girasol"]
[null,"El Gitano"]
[null,"El Güero [Playa]"]
[null,"La Gloria"]
[null,"Ninguno"]
[null,"Ninguno"]
[null,"La Irresponsable"]
[null,"Ninguno"]
[null,"Juan de la Cabada Vera"]
[null,"Kilómetro Catorce [Motel]"]
[null,"Nueva Esperanza"]
[null,"El Palmar"]
[null,"El Poquito"]
[null,"La Purísima"]
[null,"San Felipe"]
[null,"San José las Flores"]
[null,"El Retiro"]
[null,"San Luis"]
[null,"San Marcos"]
[null,"San Rafael"]
[null,"San Ramón"]
[null,"Santa Cruz"]
[null,"Vista Alegre"]
[null,"Dos de Marzo"]
[null,"Los Siete Poderes"]
[null,"La Guadalupana"]
[null,"El Aguacatal"]
[null,"El Aguilar"]
[null,"El Alazán"]
[null,"Alto Lucero"]
[null,"La Alegría"]
[null,"Anexo del Milagro"]
[null,"Anexo Jimbal"]
[null,"Anexo José Antonio"]
[null,"Anexo los Laureles"]
[null,"Los Ángeles Dos"]
[null,"La Angostura"]
[null,"Don Paco"]
[null,"La Sirena (El Chombo)"]
[null,"La Barca de Oro"]
[null,"Belén"]
[null,"Belisario Domínguez"]
[null,"San Miguel Allende"]
[null,"Boquerón"]
[null,"Potrillos"]
[null,"El Río"]
[null,"Buenos Aires"]
[null,"Bun y las Guillerminas"]
[null,"El Cachito"]
[null,"La Esperanza"]
[null,"San Gabriel"]
[null,"Los Capulines"]
[null,"El Caribe (El Moskit)"]
[null,"Carlos V"]
[null,"La Carmelita"]
[null,"El Carmen"]
[null,"El Milagro de Dios"]
[null,"El Potrillo"]
[null,"El Gavilán"]
[null,"Las Ceibas"]
[null,"Lácteos del Sur [Centro de Acopio Lechero]"]
[null,"El Recuerdo"]
[null,"Cinco de Mayo"]
[null,"Ninguno"]
[null,"Los Coquitos"]
[null,"Los Pinos"]
[null,"Concepción"]
[null,"Conquista Campesina"]
[null,"Oaxaca"]
[null,"Corozal"]
[null,"La Cristalina"]
[null,"El Crucero"]
[null,"El Audaz (El Crucero)"]
[null,"Las Cruces"]
[null,"El Cuanto"]
[null,"Cuatro Copas"]
[null,"El Cubilete"]
[null,"El Cuyo Guadalupano"]
[null,"El Chamizal"]
[null,"El Chapulín"]
[null,"El Chinal"]
[null,"San Francisco de Asís"]
[null,"El Chorrito"]
[null,"Las Delicias"]
[null,"La Ilusión"]
[null,"El Desprecio"]
[null,"El Destino"]
[null,"El Diamante"]
[null,"Don Félix"]
[null,"El Dorado"]
[null,"Las Doritas"]
[null,"Los Laureles"]
[null,"San Marcos"]
[null,"Dos Hermanos"]
[null,"La Elvira Uno"]
[null,"La Elvira II"]
[null,"El Encanto"]
[null,"El Encanto"]
[null,"Encarnación"]
[null,"Enrique Rodríguez Cano"]
[null,"Entre Hermanos"]
[null,"Entre Ratas"]
[null,"La Esmeralda"]
[null,"La Esmeralda"]
[null,"La Esperanza de Dios Uno"]
[null,"La Esperanza de Dios Tres"]
[null,"La Esperanza de Dios Cuatro"]
[null,"La Esperanza"]
[null,"La Espuela de Oro"]
[null,"La Estrella"]
[null,"Tres Potrillos"]
[null,"El Farolito"]
[null,"Felipe Ángeles"]
[null,"Ibañez"]
[null,"Las Tres Gardenias"]
[null,"Isla Florida"]
[null,"La Fortuna"]
[null,"La Fortuna"]
[null,"La Fortuna"]
[null,"El Recuerdo"]
[null,"El Herradero"]
[null,"Mamantel (Pancho Villa)"]
[null,"El Gallo Giro"]
[null,"El Egipcio"]
[null,"La Granada"]
[null,"La Guadalupe"]
[null,"La Guadalupe"]
[null,"La Guadalupe"]
[null,"Heras"]
[null,"La Hermelinda"]
[null,"La Herradura"]
[null,"La Herradura"]
[null,"La Higuera"]
[null,"Ignacio Zaragoza"]
[null,"La Ilusión"]
[null,"Cristo Negro"]
[null,"El Sembrador"]
[null,"La Florida"]
[null,"Ninguno"]
[null,"Ninguno"]
[null,"Cuatro Hermanos"]
[null,"Los Pericos"]
[null,"María del Socorro"]
[null,"El Crucero"]
[null,"San Francisco"]
[null,"La Victoria"]
[null,"Ecdolina"]
[null,"El Suspiro"]
[null,"El Invierno"]
[null,"El Jardín y el Plan del Toro"]
[null,"El Jarocho"]
[null,"El Jazmín"]
[null,"El Jimbal"]
[null,"Jimbal"]
[null,"José Antonio"]
[null,"Karina"]
[null,"Los Laureles"]
[null,"Los Laureles"]
[null,"El Líbano"]
[null,"La Libertad"]
[null,"La Libertad"]
[null,"Licenciado Gustavo Díaz Ordaz (18 de Marzo)"]
[null,"Loma Linda"]
[null,"La Lupita"]
[null,"La Malinche"]
[null,"Mamantel Pueblo (Mamantel Viejo)"]
[null,"El Marfil"]
[null,"María Isabel"]
[null,"Mayalan"]
[null,"Mesopotamia"]
[null,"El Recuerdo"]
[null,"El Vergel"]
[null,"El Herradero"]
[null,"Mireya"]
[null,"La Esperanza"]
[null,"Monterrey"]
[null,"La Virgen de Guadalupe Dos"]
[null,"El Nanzal"]
[null,"Las Nubes"]
[null,"Nueva Aventura"]
[null,"Nueva Chontalpa"]
[null,"Nueva Esperanza"]
[null,"San Pedro"]
[null,"El Oasis"]
[null,"El Jaripeo (Nuevo Mundo)"]
[null,"Nuevo Valle"]
[null,"Ojo de Agua"]
[null,"Ojo de Agua de Cuyoc"]
[null,"La Olguita"]
[null,"Oro Verde"]
[null,"El Otoño"]
[null,"Palma Sola"]
[null,"Palma Sola"]
[null,"Palmira"]
[null,"El Potrillo"]
[null,"Las Palmitas"]
[null,"La Isla"]
[null,"El Paraíso"]
[null,"La Pasión"]
[null,"Paso Nuevo"]
[null,"Los Pavos"]
[null,"El Pedregal"]
[null,"El Pensador Tabasqueño"]
[null,"La Pequeña"]
[null,"Los Pinos"]
[null,"Pital Nuevo"]
[null,"Pital Viejo"]
[null,"San Carlos [Aserradero]"]
[null,"Campo Nuevo (El Pókar)"]
[null,"El Polvorón (Los Dos Arbolitos)"]
[null,"La Ponderosa"]
[null,"El Porvenir"]
[null,"Poza Rica"]
[null,"La Presumida y Anexas"]
[null,"La Primavera"]
[null,"La Princesa"]
[null,"Los Toritos"]
[null,"La Providencia"]
[null,"Rancho Grande"]
[null,"La Providencia"]
[null,"Pucteal"]
[null,"Puerta Blanca"]
[null,"El Ramonal"]
[null,"San Fernando (Quebrache)"]
[null,"Quebrache"]
[null,"El Ramonal"]
[null,"El Ranchito"]
[null,"Los Dos Hermanos"]
[null,"El Recuerdo"]
[null,"La Chomba [Fracción 9]"]
[null,"El Remolino"]
[null,"El Retorno"]
[null,"Rey Tercero"]
[null,"El Rey"]
[null,"La Reyna"]
[null,"El Rosario"]
[null,"El Rosario"]
[null,"El Rosario"]
[null,"Piedra Santa"]
[null,"SCT [Campamento]"]
[null,"La Salud"]
[null,"El Sacrificio"]
[null,"El Sacrificio"]
[null,"El Sacrificio"]
[null,"Samaria"]
[null,"San Agustín"]
[null,"Alberto"]
[null,"San Alfredo"]
[null,"San Andrés"]
[null,"San Andrés"]
[null,"Junior"]
[null,"San Antonio"]
[null,"San Antonio"]
[null,"San Antonio"]
[null,"San Antonio (La Lucha)"]
[null,"San Juan"]
[null,"San Carlos"]
[null,"Hermanos García"]
[null,"San Armando"]
[null,"Santa María"]
[null,"San Eduardo"]
[null,"San Elías"]
[null,"San Fernando"]
[null,"San Fernando"]
[null,"Dos de Oros"]
[null,"San Francisco"]
[null,"San Gerónimo"]
[null,"San Inocente"]
[null,"San Isidro"]
[null,"San Isidro"]
[null,"San Jorge de Coyoc"]
[null,"San José"]
[null,"San José"]
[null,"San José"]
[null,"San José"]
[null,"San José"]
[null,"San José Dos"]
[null,"Santa Cecilia"]
[null,"San Juan"]
[null,"San Juan"]
[null,"San Juan (El Cuadro Limón)"]
[null,"San Juan"]
[null,"La Victoria"]
[null,"San Juanito"]
[null,"San Juanito"]
[null,"El Águila"]
[null,"San Lázaro"]
[null,"San Lázaro"]
[null,"San Luis"]
[null,"San Luis"]
[null,"San Luis"]
[null,"San Manuel"]
[null,"San Juan"]
[null,"Por Poquito (San Manuel)"]
[null,"San Manuel"]
[null,"San Marcos"]
[null,"San Marcos"]
[null,"San Martín"]
[null,"San Martín de Porres"]
[null,"San Martín de Porres"]
[null,"El Poblano"]
[null,"San Miguelito"]
[null,"San Miguel"]
[null,"San Miguel"]
[null,"San Miguel"]
[null,"San Miguel"]
[null,"San Miguel"]
[null,"R-2004"]
[null,"San Pablito"]
[null,"Los Mota"]
[null,"San Rafael"]
[null,"San Ramón"]
[null,"Santa Zuleyda"]
[null,"La Esmeralda"]
[null,"Santa Bárbara"]
[null,"Santa Beatriz"]
[null,"Santa Catalina"]
[null,"Santa Cecilia"]
[null,"Santa Cruz"]
[null,"Santa Elena"]
[null,"La Ilusión"]
[null,"Santa Fe"]
[null,"San Reynaldo"]
[null,"Santa Isabel"]
[null,"Los Ángeles"]
[null,"Santa Julia"]
[null,"Santa Lucía"]
[null,"Santa Mónica"]
[null,"Santa Patricia"]
[null,"Santa Rosa"]
[null,"Santo Domingo"]
[null,"Santo Tomás"]
[null,"El Mirador (La Soledad)"]
[null,"El Tule"]
[null,"El Suspiro"]
[null,"El Venado"]
[null,"El Teniente"]
[null,"Los Tigres"]
[null,"Tres Brazos"]
[null,"Los Tres Hermanos"]
[null,"Los Tres Campos"]
[null,"Tres Hermanos"]
[null,"Tres Patines (San José)"]
[null,"Belén"]
[null,"La Trinidad"]
[null,"La Bendición de Dios"]
[null,"El Triunfo"]
[null,"La Unión"]
[null,"La Unión"]
[null,"El Zapote"]
[null,"Valle de Campeche"]
[null,"La Veleta"]
[null,"Venustiano Carranza"]
[null,"El Vergel"]
[null,"La Victoria"]
[null,"La Victoria"]
[null,"El Xabín"]
[null,"Los Cocos"]
[null,"El Encanto"]
[null,"Grupo Consultor Acuícola"]
[null,"El Ceibo"]
[null,"El Cerrito"]
[null,"El Aguacate"]
[null,"El Corozal (Santa Cruz)"]
[null,"El Cristel"]
[null,"La Esperanza"]
[null,"La Hormiga"]
[null,"Ninguno"]
[null,"Ninguno"]
[null,"Ninguno"]
[null,"Ninguno"]
[null,"Ninguno"]
[null,"Ninguno"]
[null,"El Pocito"]
[null,"Ninguno"]
[null,"La Cabaña del Bosque"]
[null,"La Esmeralda"]
[null,"La Esperanza"]
[null,"Ninguno"]
[null,"Ninguno"]
[null,"Ninguno"]
[null,"San José"]
[null,"Ninguno"]
[null,"El Esfuerzo"]
[null,"Ninguno"]
[null,"Ninguno"]
[null,"Ninguno"]
[null,"Ninguno"]
[null,"Las Isabeles"]
[null,"Ninguno"]
[null,"El Mil Amores"]
[null,"Ninguno"]
[null,"Ninguno"]
[null,"Las Garzas"]
[null,"La Curva"]
[null,"El Sacrificio"]
[null,"El Tormento"]
[null,"San Juan Dos"]
[null,"Ninguno"]
[null,"Ninguno"]
[null,"Buenos Aires"]
[null,"Ninguno"]
[null,"El Laurel"]
[null,"Los Manueles"]
[null,"La Misericordia de Dios"]
[null,"Las Palmas"]
[null,"El Papayal"]
[null,"El Paraíso"]
[null,"El Paraíso"]
[null,"El Pez Azul"]
[null,"Rancho Nuevo Alto Lucero"]
[null,"San Francisco Número Dos"]
[null,"San Gabriel"]
[null,"San Marcos"]
[null,"San Pedro"]
[null,"Santa Zenaida"]
[null,"La Sardina Dorada"]
[null,"Los Siete Hermanos"]
[null,"El Sol"]
[null,"El Tamarindo"]
[null,"El Trébol"]
[null,"Los Tres Mosqueteros"]
[null,"La Ucanita"]
[null,"La Unión"]
[null,"El Zafiro"]
[null,"Ninguno"]
[null,"Ninguno"]
[null,"Bahama"]
[null,"Chuc-Té [Eco-Parque]"]
[null,"El Aguacatal"]
[null,"Monte Horeb"]
[null,"El Aguacatal"]
[null,"Anexo Mina de Oro"]
[null,"San Salvador"]
[null,"Arizona"]
[null,"El Azteca"]
[null,"Bahamita Beach"]
[null,"El Balazo"]
[null,"Puerto Real"]
[null,"Ninguno [Basurero Municipal]"]
[null,"Ninguno [Bomba de Agua]"]
[null,"Ninguno [Bomba de Agua]"]
[null,"Bonanza"]
[null,"Buchar"]
[null,"El Búfalo"]
[null,"Las Bugambilias"]
[null,"El Arca"]
[null,"Calaxito"]
[null,"Venecia"]
[null,"La Caoba"]
[null,"Capricornio"]
[null,"Ninguno [Cárcamo de Rebombeo]"]
[null,"Ninguno [Cárcamo de Rebombeo]"]
[null,"El Carellito"]
[null,"El Carmen"]
[null,"Ninguno [Caseta Fitozoosanitaria]"]
[null,"TELMEX [Caseta Repetidora]"]
[null,"TELMEX [Caseta Repetidora]"]
[null,"El Cedral"]
[null,"El Cedrito"]
[null,"El Cedro"]
[null,"El Cepillo"]
[null,"Los Cerros"]
[null,"El Cestiadero"]
[null,"Los Chanes"]
[null,"El Chilar"]
[null,"El Chilar"]
[null,"El Chivero (La Icotea)"]
[null,"Los Coquitos"]
[null,"La Costa"]
[null,"Cruz Ek"]
[null,"Los Cuatro Hermanos"]
[null,"Las Delicias"]
[null,"El Diamante"]
[null,"Diez de Mayo"]
[null,"San Miguel"]
[null,"El Cocoite"]
[null,"Enriquito"]
[null,"La Envidia"]
[null,"Erma Esperanza"]
[null,"Escuela Secundaria Técnica Número Nueve"]
[null,"El Esfuerzo"]
[null,"Esperanza"]
[null,"La Esperanza"]
[null,"El Faisán"]
[null,"Las Flores"]
[null,"La Concepción"]
[null,"La Gloria"]
[null,"La Gloria"]
[null,"La Guadalupe"]
[null,"La Guadalupe"]
[null,"El Guayacán"]
[null,"El Huerto del Edén"]
[null,"Hawai"]
[null,"La Herradura"]
[null,"La Huaya"]
[null,"El Tamarindo"]
[null,"La Sacua"]
[null,"Las Tres Potrancas"]
[null,"Ninguno"]
[null,"Ninguno"]
[null,"Libertad"]
[null,"Ninguno"]
[null,"Ninguno"]
[null,"La Flor"]
[null,"Ninguno"]
[null,"Ninguno"]
[null,"Monte Calvario"]
[null,"Ninguno"]
[null,"Ninguno"]
[null,"Ninguno"]
[null,"Ninguno"]
[null,"Ninguno [Pozo Número Dos]"]
[null,"Ninguno"]
[null,"Los Laureles"]
[null,"Ninguno"]
[null,"La Carmelita"]
[null,"San Pablo"]
[null,"San Miguel"]
[null,"Ninguno"]
[null,"Ninguno"]
[null,"El Deseo"]
[null,"Ixlaxique"]
[null,"Jimba II"]
[null,"Los Leones"]
[null,"El Limonal"]
[null,"El Lodazal"]
[null,"Luisita"]
[null,"La Lupita"]
[null,"Macayo"]
[null,"Macumba Playa"]
[null,"Malitzin"]
[null,"El Manatinero"]
[null,"Manglarcito"]
[null,"El Canario"]
[null,"El Milagro"]
[null,"Pablos"]
[null,"El Palmar"]
[null,"El Pedacito"]
[null,"Puerta a la Gloria"]
[null,"Las Palmitas"]
[null,"Pita la Aguada"]
[null,"La Pita"]
[null,"Ninguno [Planta Rebombeo de Gas]"]
[null,"Cantarell [Planta de Nitrógeno]"]
[null,"Playa de la Colonia"]
[null,"El Popistal"]
[null,"El Porvenir"]
[null,"El Porvenir"]
[null,"El Porvenir"]
[null,"El Amanecer"]
[null,"Rancho Chico"]
[null,"Los Laureles"]
[null,"El Recuerdo"]
[null,"El Refugio"]
[null,"El Regalo"]
[null,"El Regalo"]
[null,"Ricardos"]
[null,"El Roblar"]
[null,"El Rodeo"]
[null,"El Rosario"]
[null,"Sacrificio"]
[null,"El Sacrificio"]
[null,"El Sacrificio"]
[null,"El Sacrificio"]
[null,"Sagrado Corazón"]
[null,"Sal si Puedes"]
[null,"San Antonio"]
[null,"San Antonio"]
[null,"San Antonio"]
[null,"San Antonio"]
[null,"San Antonio"]
[null,"San Antonio (Punta de Piedra)"]
[null,"San Bartolo"]
[null,"San Cristóbal"]
[null,"Los Laureles"]
[null,"San Felipe"]
[null,"San Bernardo"]
[null,"San José"]
[null,"San José"]
[null,"San José del Carmen"]
[null,"San José Uno"]
[null,"San Juanito"]
[null,"San Julián"]
[null,"San Lázaro"]
[null,"San Luis"]
[null,"San Manuel"]
[null,"San Milagro"]
[null,"San Nicolasito"]
[null,"San Oscar"]
[null,"San Paulino"]
[null,"San Rafael"]
[null,"San Rafael"]
[null,"San Roberto"]
[null,"San Sebastián"]
[null,"San Sebastián"]
[null,"San Víctor"]
[null,"Santa Cecilia"]
[null,"Santa Cecilia"]
[null,"Santa Cruz"]
[null,"Santa Mónica"]
[null,"La Pasadita"]
[null,"Santa Rosa"]
[null,"Santa Teresa Uno"]
[null,"Schlumberger"]
[null,"Ninguno [Preescolar]"]
[null,"Shangri-La"]
[null,"El Silencio"]
[null,"El Tauro"]
[null,"El Tauro"]
[null,"El Trébol"]
[null,"El Sacrificio"]
[null,"Tres Hermanos"]
[null,"Bravo de Bonfil"]
[null,"Las Cruces"]
[null,"Tres Marías"]
[null,"La Trinidad"]
[null,"Tumbo de la Montaña"]
[null,"La Unión"]
[null,"La Veleta Dos"]
[null,"San José (El Volantín)"]
[null,"Ninguno [Vulcanizadora]"]
[null,"Las Yolis"]
[null,"San Enrique"]
[null,"Dos Hermanos"]
[null,"Anexo el Reparo"]
[null,"Los Ángeles Uno"]
[null,"Framboyán 2"]
[null,"Las Bugambilias"]
[null,"La Casa de los Arcos"]
[null,"Ninguno [Caseta Fitozoosanitaria]"]
[null,"Ninguno [Caseta Fitozoosanitaria]"]
[null,"El Cocalito"]
[null,"Chechenal"]
[null,"La Esperanza"]
[null,"El Estañol"]
[null,"Gavilán Pescador"]
[null,"Guayacanes"]
[null,"Ninguno"]
[null,"Ninguno"]
[null,"Santo Domingo"]
[null,"Ninguno"]
[null,"Ninguno"]
[null,"Donato"]
[null,"Ninguno"]
[null,"Ninguno"]
[null,"Ninguno"]
[null,"El Maculí"]
[null,"El Relicario"]
[null,"San Ernesto"]
[null,"San Felipe"]
[null,"San Julián"]
[null,"San Miguel"]
[null,"Santa Adelaida"]
[null,"Santa Beatriz"]
[null,"Flamboyanes"]
[null,"El Rosario"]
[null,"Ninguno"]
[null,"Ninguno"]
[null,"El Palmar"]
[null,"El Albacar"]
[null,"Ninguno"]
[null,"Hermanos Balam Núñez"]
[null,"Ninguno"]
[null,"El Progreso"]
[null,"Los Dos Becerros"]
[null,"San Juanito"]
[null,"Ninguno"]
[null,"Nueva Esperanza"]
[null,"San Moreno"]
[null,"Santa Isabela"]
[null,"Santa Rosalía"]
[null,"La Guadalupana"]
[null,"Isla de Huano"]
[null,"Los Tres Poderes"]
[null,"Dara"]
[null,"La Marianita"]
[null,"El Plateado"]
[null,"Los Tamarindos"]
[null,"San José del Este"]
[null,"La Caoba"]
[null,"La Esperanza"]
[null,"El Milagro"]
[null,"Ninguno"]
[null,"Ninguno"]
[null,"Ninguno"]
[null,"Ninguno"]
[null,"Ninguno"]
[null,"San Carlos"]
[null,"Villahermosa"]
[null,"Bronco"]
[null,"Las Espuelas"]
[null,"Las Tranquitas"]
[null,"Las Carmelitas"]
[null,"El Cerrito"]
[null,"Cavadonga [Arrocera]"]
[null,"El Delfín"]
[null,"La Flor del Amaranto"]
[null,"Ninguno"]
[null,"Montana"]
[null,"La Ceiba"]
[null,"Buenavista"]
[null,"Ninguno"]
[null,"Ninguno"]
[null,"Ninguno"]
[null,"El Rosario"]
[null,"Don Luis"]
[null,"Ninguno"]
[null,"Piedras Grandes"]
[null,"Cabañas"]
[null,"Ninguno"]
[null,"Don Diego"]
[null,"Ninguno"]
[null,"Ninguno"]
[null,"La Tilapia de Oro"]
[null,"Xicalango"]
[null,"Arena y Sol"]
[null,"La Barrita"]
[null,"Blanca Flor"]
[null,"San Juanito II"]
[null,"Los Cuatro Hermanos"]
[null,"El Dorado"]
[null,"Casa Blanca"]
[null,"El Castaño"]
[null,"La Concepción"]
[null,"El Faisán"]
[null,"El Ranchito"]
[null,"La Fe"]
[null,"Caribal"]
[null,"La Huerta"]
[null,"La Esperancita"]
[null,"María Isabel"]
[null,"Las Jaras"]
[null,"José Antonio"]
[null,"Nuevo Mundo"]
[null,"El Milagro"]
[null,"Ninguno"]
[null,"Kilómetro Tres y Medio"]
[null,"San José"]
[null,"El Califas"]
[null,"El Chaneque (El Tular)"]
[null,"El Encanto"]
[null,"Santa Karina"]
[null,"Santa Lucía"]
[null,"Ranchería Pejelagarto"]
[null,"Ninguno"]
[null,"Ninguno"]
[null,"Canta Rana"]
[null,"El Capricho"]
[null,"El Guayacán"]
[null,"El Oasis"]
[null,"El Paraíso"]
[null,"El Salvaje"]
[null,"Las Golondrinas"]
[null,"El Triunfo"]
[null,"Mayaraqui [Grupo Ecoturismo]"]
[null,"Guayacán"]
[null,"Jimba Viajera"]
[null,"La Esmeralda"]
[null,"La Herradura"]
[null,"La Joya"]
[null,"La Prosperidad"]
[null,"Ninguno"]
[null,"El Jaibero"]
[null,"Ninguno"]
[null,"Ninguno"]
[null,"Ninguno"]
[null,"Sagrado Corazón de Jesús"]
[null,"Ninguno"]
[null,"Caribe Beach"]
[null,"Los Coquitos"]
[null,"La Mojarra"]
[null,"Ninguno"]
[null,"Ninguno"]
[null,"Ninguno"]
[null,"Ninguno"]
[null,"Ninguno"]
[null,"Ninguno"]
[null,"Los 3 Mosqueteros"]
[null,"Los Alarcones"]
[null,"Los Arados"]
[null,"Los Encinos"]
[null,"Los Mangos"]
[null,"Los Manguitos"]
[null,"Orcas Dos"]
[null,"Oscar"]
[null,"Playa Real"]
[null,"San Lazarito"]
[null,"Cerrito la Bonita"]
[null,"San Mauricio"]
[null,"Santa Isabel"]
[null,"Santa Lucía"]
[null,"Santa Sofía"]
[null,"Tarazcón"]
[null,"Tierra Prometida"]
[null,"Tortuguero I"]
[null,"Tortuguero II"]
[null,"Ninguno [Productores de Palma de Aceite]"]
[null,"La Bonita"]
[null,"El Tahur"]
[null,"Buganvilias"]
[null,"Cielito Lindo"]
[null,"La Dueña"]
[null,"Ninguno"]
[null,"Ninguno"]
[null,"San Judas"]
[null,"Las Casas"]
[null,"Ninguno"]
[null,"Ninguno"]
[null,"Ninguno"]
[null,"La Palmira"]
[null,"San Fernando 4"]
[null,"San Pedro"]
[null,"El Tabor"]
[null,"La Virgen de Guadalupe 1"]
[null,"Las Playas"]
[null,"Ninguno"]
[null,"Ninguno"]
[null,"San José"]
[null,"San Jorge"]
[null,"Ninguno"]
[null,"El Limonal"]
[null,"Bonanza"]
[null,"Concordia"]
[null,"Dos Hermanas"]
[null,"El Apuro"]
[null,"El Castillo"]
[null,"El Esfuerzo"]
[null,"El Jabalí"]
[null,"El Cocal"]
[null,"El Maculis"]
[null,"El Paraíso"]
[null,"Isla Alfredón"]
[null,"La Bota del Caballo"]
[null,"La Escondida"]
[null,"La Guadalupe"]
[null,"La Herradurita"]
[null,"La Montañita"]
[null,"La Providencia"]
[null,"Ninguno"]
[null,"Ninguno"]
[null,"Ninguno"]
[null,"Ninguno"]
[null,"Ninguno"]
[null,"Ninguno"]
[null,"Ninguno"]
[null,"Ninguno"]
[null,"Ninguno"]
[null,"Ninguno"]
[null,"Ninguno"]
[null,"Ninguno"]
[null,"Ninguno"]
[null,"Ninguno"]
[null,"Ninguno"]
[null,"Ninguno"]
[null,"Ninguno"]
[null,"Los Arellano"]
[null,"Ninguno"]
[null,"Macgregor"]
[null,"Nuevo Sitio"]
[null,"Santa Martha"]
[null,"La Herradura"]
[null,"Palma Sola"]
[null,"Rancho Pelón"]
[null,"Roca de Guadalupe"]
[null,"Santa Isabel"]
[null,"El Bayamo"]
[null,"Las Cruces"]
[null,"Cinco de Mayo"]
[null,"Cannan"]
[null,"El Cedral"]
[null,"El Chaparral"]
[null,"El Envidiado"]
[null,"El Espejo"]
[null,"La Vid Verdadera"]
[null,"El Pitayo"]
[null,"El Porvenir"]
[null,"El Chechén"]
[null,"Emmanuel"]
[null,"La Colmena"]
[null,"La Envidia"]
[null,"La Escondida"]
[null,"La Guadalupe"]
[null,"La Herradura"]
[null,"La Sauceda"]
[null,"Las Flores"]
[null,"Ninguno"]
[null,"San Antonio"]
[null,"Ninguno"]
[null,"Ninguno"]
[null,"Ninguno"]
[null,"Ninguno"]
[null,"Ninguno"]
[null,"Ninguno"]
[null,"Ninguno"]
[null,"Ninguno"]
[null,"Ninguno"]
[null,"La Granja"]
[null,"Ninguno"]
[null,"Ninguno"]
[null,"Ninguno"]
[null,"Ninguno"]
[null,"Ninguno"]
[null,"Ninguno"]
[null,"El As de Oros"]
[null,"Las Seis R"]
[null,"Ninguno"]
[null,"Lolija"]
[null,"Loma Limpia"]
[null,"María de la Luz"]
[null,"María Elena"]
[null,"San Isidro"]
[null,"San Joaquín"]
[null,"San Juan"]
[null,"San Lorenzo"]
[null,"San Manuel"]
[null,"San Miguel"]
[null,"San Miguel"]
[null,"San Miguel"]
[null,"San Nicolás"]
[null,"San Pedro"]
[null,"Sosa"]
[null,"Tres Hermanos"]
[null,"Ninguno [Vulcanizadora]"]
[null,"Ninguno"]
[null,"El Cedral"]
[null,"El Ciricote"]
[null,"El Divino Maestro"]
[null,"El Dorado"]
[null,"El Encino"]
[null,"El Platanal"]
[null,"El Pucteíto"]
[null,"El Sacrificio"]
[null,"La Fortuna"]
[null,"La Granja"]
[null,"Las Torcazas"]
[null,"Las Varas"]
[null,"Ninguno"]
[null,"Ninguno"]
[null,"Ninguno"]
[null,"Ninguno"]
[null,"Ninguno"]
[null,"Ninguno"]
[null,"Ninguno"]
[null,"Ninguno"]
[null,"Ninguno"]
[null,"Monte Horeb"]
[null,"Ninguno"]
[null,"Laureles"]
[null,"Ninguno"]
[null,"Ninguno"]
[null,"Ninguno"]
[null,"Ninguno"]
[null,"Ninguno"]
[null,"Ninguno"]
[null,"Ninguno"]
[null,"Ninguno"]
[null,"Los Gansos"]
[null,"Los Tres Hermanos"]
[null,"San Valentín"]
[null,"Santa Cecilia"]
[null,"Los Robles"]
[null,"Ampliación el Tamarindo"]
[null,"Cuatro Hermanos"]
[null,"Ah-Caray"]
[null,"Barco Hundido"]
[null,"CASES"]
[null,"Chanek"]
[null,"COSL"]
[null,"El Bondadoso"]
[null,"El Cedro"]
[null,"El Egipcio"]
[null,"El Esfuerzo"]
[null,"El Framboyán"]
[null,"El Girasol de Ciudad del Carmen"]
[null,"El Gran Poder"]
[null,"El Guanal"]
[null,"El Jabalí"]
[null,"El Recuerdo"]
[null,"El Siloe"]
[null,"Ninguno [Escuela Primaria Rural]"]
[null,"Kilómetro Catorce y Medio (EVIA)"]
[null,"Floralma"]
[null,"Halliburtón [Depósito de Explosivos]"]
[null,"INER"]
[null,"Itzel"]
[null,"Kilómetro Tres y Medio"]
[null,"Kilómetro Veintiséis y Medio"]
[null,"La Despeinada"]
[null,"La Lupita"]
[null,"La María"]
[null,"La Montañita 2"]
[null,"La Veracruzana"]
[null,"LALA"]
[null,"Las Tres Marías"]
[null,"Las Palmitas"]
[null,"Las Tranquitas"]
[null,"Ninguno"]
[null,"Ninguno"]
[null,"Ninguno"]
[null,"Ninguno"]
[null,"Ninguno"]
[null,"Ninguno"]
[null,"Ninguno"]
[null,"Ninguno"]
[null,"Ninguno"]
[null,"Ninguno"]
[null,"Ninguno"]
[null,"Ninguno"]
[null,"Weatherford [Depósito de Explosivos]"]
[null,"Whitaker Mexicana"]
[null,"Ninguno"]
[null,"Ninguno"]
[null,"Ninguno"]
[null,"Ninguno"]
[null,"Ninguno"]
[null,"Ninguno"]
[null,"Ninguno"]
[null,"Ninguno"]
[null,"Ninguno"]
[null,"Ninguno"]
[null,"Ninguno"]
[null,"Ninguno"]
[null,"Ninguno"]
[null,"Ninguno"]
[null,"Ninguno"]
[null,"Los Dos Leoncitos"]
[null,"Los Cuatro Amigos"]
[null,"Los Cocales"]
[null,"Los Manguitos"]
[null,"Los Pishoyes"]
[null,"Los Rosales"]
[null,"Los Tucanes [Restaurante]"]
[null,"Lucero de Fátima"]
[null,"Palmicultores del Milenio del Estado de Campeche"]
[null,"Papaxé"]
[null,"Pasos"]
[null,"Pucteal 1"]
[null,"Rancho Chico"]
[null,"Ninguno [Criadores Asociados Sala de Corte]"]
[null,"San Joaquín"]
[null,"San José"]
[null,"San Ramón"]
[null,"Santana"]
[null,"SUMERGE"]
[null,"El Divino Niño"]
[null,"El Durango"]
[null,"Los Corrales"]
[null,"Zacatal [Caseta de Cobro]"]
[null,"Finca Pital"]
[null,"Hermanos Gómez"]

{"sheet":"Hoja5","index":4,"n_rows":4,"n_cols":3,"rows_kept":4,"cut":false,"hidden":true,"merged":[]}
["SI","Primaria","Pavimentación de concreto hidráulico"]
["NO","Secundaria","Pavimentación con adoquín"]
[null,"Terciaria","Pavimentación con asfalto"]
[null,null,"Empedrado con huella de concreto"]